{"text_format":"1","workbook":"xlsx","n_sheets":2,"sheets":["Табель","Настройки"],"not_rendered":{"charts":0,"images":0,"macros":1,"external_links":0,"defined_names":6,"comments":0,"pivot_tables":0},"unopened":[],"bounds":{"document_bytes":16777216,"sheet_cells":100000,"rows_first":2000,"rows_last":500,"rows_between":2000,"halvings":0,"cell_chars":16384,"cell_head_chars":4096},"cells_cut":0,"cells_raw":0,"read":"whole","date_system":"1900"}

{"sheet":"Табель","index":0,"n_rows":50,"n_cols":200,"rows_kept":50,"cut":false,"hidden":false,"merged":[[35,1,35,2],[36,1,36,2],[37,1,37,2],[38,1,38,2],[39,1,39,2]]}
["Год",2015,null,0,"Часы",0,1,2,3,4,5,6,7,8,9,10,11,12,13,14,15,16,17,18,19,20,21,22,23,null,null,null,null,null,null,null,null,null,null,null,null,null,null,null,null,null,null,null,null,null,null,null,null,null,null,null,null,null,null,null,null,null,null,null,null,null,null,null,null,null,null,null,null,null,null,null,null,null,null,null,null,null,null,null,null,null,null,null,null,null,null,null,null,null,null,null,null,null,null,null,null,null,null,null,null,null,null,null,null,null,null,null,null,null,null,null,null,null,null,null,null,null,null,null,null,null,null,null,null,null,null,null,null,null,null,null,null,null,null,null,null,null,null,null,null,null,null,null,null,null,null,null,null,null,null,null,null,null,null,null,null,null,null,null,null,null,null,null,null,null,null,null,null,null,null,null,null,null,null,null,null,null,null,null,null,null,null,null,null,null,null,null,null,null,null,null,null,null,null,1]
["Месяц",3,null,null,"Чел.",{"$f":"SUM(DY$8:DY$35)","v":0},{"$f":"SUM(DZ$8:DZ$35)","v":0},0,0,0,0,0,0,0,0,0,0,0,0,0,0,0,0,0,0,0,0,0,0,null,null,null,null,null,null,null,null,null,null,null,null,null,null,null,null,null,null,null,null,null,null,null,null,null,null,null,null,null,null,null,null,null,null,null,null,null,null,null,null,null,null,null,null,null,null,null,null,null,null,null,null,null,null,null,null,null,null,null,null,null,null,null,null,null,null,null,null,null,null,null,null,null,null,null,null,null,null,null,null,null,null,null,null,null,null,null,null,null,null,null,null,null,null,null,null,null,null,null,null,null,null,null,null,null,null,null,null,null,null,null,null,null,null,null,null,null,null,null,null,null,null,null,null,null,null,null,null,null,null,null,null,null,null,null,null,null,null,null,null,null,null,null,null,null,null,null,null,null,null,null,null,null,null,null,null,null,null,null,null,null,null,null,null,null,null,null,null,null,null,1]
["Дней в месяце",{"$f":"EOMONTH(DATE(B1,B2,1),0)-DATE(B1,B2,1)+1","v":31},null,null,null,null,null,null,null,null,null,null,null,null,null,null,null,null,null,null,null,null,null,null,null,null,null,null,null,null,null,null,null,null,null,null,null,null,null,null,null,null,null,null,null,null,null,null,null,null,null,null,null,null,null,null,null,null,null,null,null,null,null,null,null,null,null,null,null,null,null,null,null,null,null,null,null,null,null,null,null,null,null,null,null,null,null,null,null,null,null,null,null,null,null,null,null,null,null,null,null,null,null,null,null,null,null,null,null,null,null,null,null,null,null,null,null,null,null,null,null,null,null,null,null,null,null,null,null,null,null,null,null,null,null,null,null,null,null,null,null,null,null,null,null,null,null,null,null,null,null,null,null,null,null,null,null,null,null,null,null,null,null,null,null,null,null,null,null,null,null,null,null,null,null,null,null,null,null,null,null,null,null,null,null,null,null,null,null,null,null,null,null,null,null,null,null,null,null,{"$f":"IF(rngShowHidden,1,0)","v":0}]
["Смещение столбца",4,null,null,null,null,null,null,null,null,null,null,null,null,null,null,null,null,null,null,null,null,null,null,null,null,null,null,null,null,null,null,null,null,null,null,null,null,null,null,null,null,null,null,null,null,null,null,null,null,null,null,null,null,null,null,null,null,null,null,null,null,null,null,null,null,null,null,null,null,null,null,null,null,null,null,null,null,null,null,null,null,null,null,null,null,null,null,null,null,null,null,null,null,null,null,null,null,null,null,null,null,null,null,null,null,null,null,null,null,null,null,null,null,null,null,null,null,null,null,null,null,null,null,null,null,null,null,null,null,null,null,null,null,null,null,null,null,null,null,null,null,null,null,null,null,null,null,null,null,null,null,null,null,null,null,null,null,null,null,null,null,null,null,null,null,null,null,null,null,null,null,null,null,null,null,null,null,null,null,null,null,null,null,null,null,null,null,null,null,null,null,null,null,null,null,null,null,null,{"$f":"IF(rngShowHidden,1,0)","v":0}]
[null,null,null,null,null,null,null,null,null,null,null,null,null,null,null,null,null,null,null,null,null,null,null,null,null,null,null,null,null,null,null,null,null,null,null,null,null,null,null,null,null,null,null,null,null,null,null,null,null,null,null,null,null,null,null,null,null,null,null,null,null,null,null,null,null,null,null,null,null,null,null,null,null,null,null,null,null,null,null,null,null,null,null,null,null,null,null,null,null,null,null,null,null,null,null,null,null,null,null,null,null,null,null,null,null,null,null,null,null,null,null,null,null,null,null,null,null,null,null,null,null,null,null,null,null,null,null,null,null,null,null,null,null,null,null,null,null,null,null,null,null,null,null,null,null,null,null,null,null,null,null,null,null,null,null,null,null,null,null,null,null,null,null,null,null,null,null,null,null,null,null,null,null,null,null,null,null,null,null,null,null,null,null,null,null,null,null,null,null,null,null,null,null,null,null,null,null,null,null,1]
["Индикатор",null,null,null,{"$f":"IF(COLUMN()-Toffset<=Tdays,1,0)","v":1},1,1,1,1,1,1,1,1,1,1,1,1,1,1,1,1,1,1,1,1,1,1,1,1,1,1,1,1,1,1,null,null,null,null,null,null,null,null,null,null,null,null,null,null,null,null,null,null,null,null,null,null,null,null,null,null,null,null,null,null,null,null,null,null,null,null,null,null,null,null,null,null,null,null,null,null,null,null,null,null,null,null,null,null,null,null,null,null,null,null,null,null,null,null,null,null,null,null,null,null,null,null,null,null,null,null,null,null,null,null,null,null,null,null,null,null,null,null,null,null,null,null,null,null,null,null,null,null,null,null,null,null,null,null,null,null,null,null,null,null,null,null,null,null,null,null,null,null,null,null,null,null,null,null,null,null,null,null,null,null,null,null,null,null,null,null,null,null,null,null,null,null,null,null,null,null,null,null,null,null,null,null,null,null,null,null,null,null,null,null,null,null,null,null,{"$f":"IF(rngShowHidden,1,0)","v":0}]
["Фамилия","Имя","Смены","Часы",{"$f":"DATE(Tyear,Tmonth,1)","v":"2015-03-01"},{"$f":"IF(F6,DATE(Tyear,Tmonth,DAY(E$7)+1),\"\")","v":"2015-03-02"},"2015-03-03","2015-03-04","2015-03-05","2015-03-06","2015-03-07","2015-03-08","2015-03-09","2015-03-10","2015-03-11","2015-03-12","2015-03-13","2015-03-14","2015-03-15","2015-03-16","2015-03-17","2015-03-18","2015-03-19","2015-03-20","2015-03-21","2015-03-22","2015-03-23","2015-03-24","2015-03-25","2015-03-26","2015-03-27","2015-03-28","2015-03-29","2015-03-30","2015-03-31",null,{"$f":"E7","v":"2015-03-01"},{"$f":"F7","v":"2015-03-02"},{"$f":"G7","v":"2015-03-03"},{"$f":"H7","v":"2015-03-04"},"2015-03-05",{"$f":"J7","v":"2015-03-06"},"2015-03-07",{"$f":"L7","v":"2015-03-08"},"2015-03-09",{"$f":"N7","v":"2015-03-10"},"2015-03-11",{"$f":"P7","v":"2015-03-12"},"2015-03-13",{"$f":"R7","v":"2015-03-14"},"2015-03-15",{"$f":"T7","v":"2015-03-16"},"2015-03-17",{"$f":"V7","v":"2015-03-18"},"2015-03-19",{"$f":"X7","v":"2015-03-20"},"2015-03-21",{"$f":"Z7","v":"2015-03-22"},"2015-03-23",{"$f":"AB7","v":"2015-03-24"},{"$f":"AC7","v":"2015-03-25"},{"$f":"AD7","v":"2015-03-26"},{"$f":"AE7","v":"2015-03-27"},{"$f":"AF7","v":"2015-03-28"},{"$f":"AG7","v":"2015-03-29"},{"$f":"AH7","v":"2015-03-30"},{"$f":"AI7","v":"2015-03-31"},null,{"$f":"G7","v":"2015-03-03"},"2015-03-04","2015-03-05","2015-03-06","2015-03-07","2015-03-08","2015-03-09","2015-03-10","2015-03-11","2015-03-12","2015-03-13","2015-03-14","2015-03-15","2015-03-16","2015-03-17","2015-03-18","2015-03-19","2015-03-20","2015-03-21","2015-03-22","2015-03-23","2015-03-24","2015-03-25","2015-03-26","2015-03-27","2015-03-28","2015-03-29","2015-03-30","2015-03-31",null,{"$f":"G7","v":"2015-03-03"},{"$f":"H7","v":"2015-03-04"},"2015-03-05","2015-03-06","2015-03-07","2015-03-08","2015-03-09","2015-03-10","2015-03-11","2015-03-12","2015-03-13","2015-03-14","2015-03-15","2015-03-16","2015-03-17","2015-03-18","2015-03-19",{"$f":"X7","v":"2015-03-20"},{"$f":"Y7","v":"2015-03-21"},{"$f":"Z7","v":"2015-03-22"},{"$f":"AA7","v":"2015-03-23"},{"$f":"AB7","v":"2015-03-24"},{"$f":"AC7","v":"2015-03-25"},{"$f":"AD7","v":"2015-03-26"},{"$f":"AE7","v":"2015-03-27"},{"$f":"AF7","v":"2015-03-28"},{"$f":"AG7","v":"2015-03-29"},{"$f":"AH7","v":"2015-03-30"},{"$f":"AI7","v":"2015-03-31"},null,0,1,2,3,4,5,6,7,8,9,10,11,12,13,14,15,16,17,18,19,20,21,22,23,null,{"$f":"E7","v":"2015-03-01"},{"$f":"F7","v":"2015-03-02"},"2015-03-03","2015-03-04","2015-03-05","2015-03-06","2015-03-07","2015-03-08","2015-03-09","2015-03-10","2015-03-11","2015-03-12","2015-03-13","2015-03-14","2015-03-15","2015-03-16","2015-03-17","2015-03-18","2015-03-19","2015-03-20","2015-03-21","2015-03-22",{"$f":"AA7","v":"2015-03-23"},{"$f":"AB7","v":"2015-03-24"},{"$f":"AC7","v":"2015-03-25"},{"$f":"AD7","v":"2015-03-26"},{"$f":"AE7","v":"2015-03-27"},{"$f":"AF7","v":"2015-03-28"},{"$f":"AG7","v":"2015-03-29"},{"$f":"AH7","v":"2015-03-30"},{"$f":"AI7","v":"2015-03-31"},null,null,null,null,null,null,null,null,null,null,null,null,null,null,null,1]
["а",null,{"$f":"IF($A8<>\"\",COUNTIF($AK8:$BO8,\"<>0\"),\"\")","v":0},{"$f":"IF($A8<>\"\",SUMIF($AK8:$BO8,\"<>0\"),\"\")","v":0},null,null,null,null,null,null,null,null,null,null,null,null,null,null,null,null,null,null,null,null,null,null,null,null,null,null,null,null,null,null,null,null,{"$f":"IF(AK7<>\"\",IFERROR(VLOOKUP(E8,tblShift[],3,0),0),0)","v":0},{"$f":"IF(AL7<>\"\",IFERROR(VLOOKUP(F8,tblShift[],3,0),0),0)","v":0},{"$f":"IF(AM7<>\"\",IFERROR(VLOOKUP(G8,tblShift[],3,0),0),0)","v":0},{"$f":"IF(AN$7<>\"\",IFERROR(VLOOKUP(H8,tblShift[],3,0),0),0)","v":0},{"$f":"IF(AO$7<>\"\",IFERROR(VLOOKUP(I8,tblShift[],3,0),0),0)","v":0},{"$f":"IF(AP$7<>\"\",IFERROR(VLOOKUP(J8,tblShift[],3,0),0),0)","v":0},{"$f":"IF(AQ$7<>\"\",IFERROR(VLOOKUP(K8,tblShift[],3,0),0),0)","v":0},{"$f":"IF(AR$7<>\"\",IFERROR(VLOOKUP(L8,tblShift[],3,0),0),0)","v":0},{"$f":"IF(AS$7<>\"\",IFERROR(VLOOKUP(M8,tblShift[],3,0),0),0)","v":0},{"$f":"IF(AT$7<>\"\",IFERROR(VLOOKUP(N8,tblShift[],3,0),0),0)","v":0},{"$f":"IF(AU$7<>\"\",IFERROR(VLOOKUP(O8,tblShift[],3,0),0),0)","v":0},{"$f":"IF(AV$7<>\"\",IFERROR(VLOOKUP(P8,tblShift[],3,0),0),0)","v":0},{"$f":"IF(AW$7<>\"\",IFERROR(VLOOKUP(Q8,tblShift[],3,0),0),0)","v":0},{"$f":"IF(AX$7<>\"\",IFERROR(VLOOKUP(R8,tblShift[],3,0),0),0)","v":0},{"$f":"IF(AY$7<>\"\",IFERROR(VLOOKUP(S8,tblShift[],3,0),0),0)","v":0},{"$f":"IF(AZ$7<>\"\",IFERROR(VLOOKUP(T8,tblShift[],3,0),0),0)","v":0},{"$f":"IF(BA$7<>\"\",IFERROR(VLOOKUP(U8,tblShift[],3,0),0),0)","v":0},{"$f":"IF(BB$7<>\"\",IFERROR(VLOOKUP(V8,tblShift[],3,0),0),0)","v":0},{"$f":"IF(BC$7<>\"\",IFERROR(VLOOKUP(W8,tblShift[],3,0),0),0)","v":0},{"$f":"IF(BD$7<>\"\",IFERROR(VLOOKUP(X8,tblShift[],3,0),0),0)","v":0},{"$f":"IF(BE$7<>\"\",IFERROR(VLOOKUP(Y8,tblShift[],3,0),0),0)","v":0},{"$f":"IF(BF$7<>\"\",IFERROR(VLOOKUP(Z8,tblShift[],3,0),0),0)","v":0},{"$f":"IF(BG$7<>\"\",IFERROR(VLOOKUP(AA8,tblShift[],3,0),0),0)","v":0},{"$f":"IF(BH$7<>\"\",IFERROR(VLOOKUP(AB8,tblShift[],3,0),0),0)","v":0},{"$f":"IF(BI$7<>\"\",IFERROR(VLOOKUP(AC8,tblShift[],3,0),0),0)","v":0},{"$f":"IF(BJ$7<>\"\",IFERROR(VLOOKUP(AD8,tblShift[],3,0),0),0)","v":0},{"$f":"IF(BK$7<>\"\",IFERROR(VLOOKUP(AE8,tblShift[],3,0),0),0)","v":0},{"$f":"IF(BL$7<>\"\",IFERROR(VLOOKUP(AF8,tblShift[],3,0),0),0)","v":0},{"$f":"IF(BM$7<>\"\",IFERROR(VLOOKUP(AG8,tblShift[],3,0),0),0)","v":0},{"$f":"IF(BN$7<>\"\",IFERROR(VLOOKUP(AH8,tblShift[],3,0),0),0)","v":0},{"$f":"IF(BO$7<>\"\",IFERROR(VLOOKUP(AI8,tblShift[],3,0),0),0)","v":0},null,{"$f":"IF(AND(AK8>10,AL8>10,BQ$7<>\"\"),1,0)","v":0},{"$f":"IF(AND(AL8>10,AM8>10,BR$7<>\"\"),1,0)","v":0},0,0,0,0,0,0,0,0,0,0,0,0,0,0,0,0,0,0,0,0,0,0,0,0,0,0,0,null,{"$f":"IF(AND(AK8>10,AL8>10,G8=\"В\",H8=\"В\",CU$7<>\"\"),1,0)","v":0},{"$f":"IF(AND(AL8>10,AM8>10,H8=\"В\",I8=\"В\",CV$7<>\"\"),1,0)","v":0},0,0,0,0,0,0,0,0,0,0,0,0,0,0,0,0,0,0,0,0,0,0,0,0,0,0,0,null,{"$f":"IFERROR(INDEX(tblShift[0],MATCH(INDEX($E8:$AI8,$D$1),tblShift[[Смена]:[Смена]],0)),0)","v":0},{"$f":"IFERROR(INDEX(tblShift[1],MATCH(INDEX($E8:$AI8,$D$1),tblShift[[Смена]:[Смена]],0)),0)","v":0},{"$f":"IFERROR(INDEX(tblShift[2],MATCH(INDEX($E8:$AI8,$D$1),tblShift[[Смена]:[Смена]],0)),0)","v":0},{"$f":"IFERROR(INDEX(tblShift[3],MATCH(INDEX($E8:$AI8,$D$1),tblShift[[Смена]:[Смена]],0)),0)","v":0},{"$f":"IFERROR(INDEX(tblShift[4],MATCH(INDEX($E8:$AI8,$D$1),tblShift[[Смена]:[Смена]],0)),0)","v":0},{"$f":"IFERROR(INDEX(tblShift[5],MATCH(INDEX($E8:$AI8,$D$1),tblShift[[Смена]:[Смена]],0)),0)","v":0},{"$f":"IFERROR(INDEX(tblShift[6],MATCH(INDEX($E8:$AI8,$D$1),tblShift[[Смена]:[Смена]],0)),0)","v":0},{"$f":"IFERROR(INDEX(tblShift[7],MATCH(INDEX($E8:$AI8,$D$1),tblShift[[Смена]:[Смена]],0)),0)","v":0},{"$f":"IFERROR(INDEX(tblShift[8],MATCH(INDEX($E8:$AI8,$D$1),tblShift[[Смена]:[Смена]],0)),0)","v":0},{"$f":"IFERROR(INDEX(tblShift[9],MATCH(INDEX($E8:$AI8,$D$1),tblShift[[Смена]:[Смена]],0)),0)","v":0},{"$f":"IFERROR(INDEX(tblShift[10],MATCH(INDEX($E8:$AI8,$D$1),tblShift[[Смена]:[Смена]],0)),0)","v":0},{"$f":"IFERROR(INDEX(tblShift[11],MATCH(INDEX($E8:$AI8,$D$1),tblShift[[Смена]:[Смена]],0)),0)","v":0},{"$f":"IFERROR(INDEX(tblShift[12],MATCH(INDEX($E8:$AI8,$D$1),tblShift[[Смена]:[Смена]],0)),0)","v":0},{"$f":"IFERROR(INDEX(tblShift[13],MATCH(INDEX($E8:$AI8,$D$1),tblShift[[Смена]:[Смена]],0)),0)","v":0},{"$f":"IFERROR(INDEX(tblShift[14],MATCH(INDEX($E8:$AI8,$D$1),tblShift[[Смена]:[Смена]],0)),0)","v":0},{"$f":"IFERROR(INDEX(tblShift[15],MATCH(INDEX($E8:$AI8,$D$1),tblShift[[Смена]:[Смена]],0)),0)","v":0},{"$f":"IFERROR(INDEX(tblShift[16],MATCH(INDEX($E8:$AI8,$D$1),tblShift[[Смена]:[Смена]],0)),0)","v":0},{"$f":"IFERROR(INDEX(tblShift[17],MATCH(INDEX($E8:$AI8,$D$1),tblShift[[Смена]:[Смена]],0)),0)","v":0},{"$f":"IFERROR(INDEX(tblShift[18],MATCH(INDEX($E8:$AI8,$D$1),tblShift[[Смена]:[Смена]],0)),0)","v":0},{"$f":"IFERROR(INDEX(tblShift[19],MATCH(INDEX($E8:$AI8,$D$1),tblShift[[Смена]:[Смена]],0)),0)","v":0},{"$f":"IFERROR(INDEX(tblShift[20],MATCH(INDEX($E8:$AI8,$D$1),tblShift[[Смена]:[Смена]],0)),0)","v":0},{"$f":"IFERROR(INDEX(tblShift[21],MATCH(INDEX($E8:$AI8,$D$1),tblShift[[Смена]:[Смена]],0)),0)","v":0},{"$f":"IFERROR(INDEX(tblShift[22],MATCH(INDEX($E8:$AI8,$D$1),tblShift[[Смена]:[Смена]],0)),0)","v":0},{"$f":"IFERROR(INDEX(tblShift[23],MATCH(INDEX($E8:$AI8,$D$1),tblShift[[Смена]:[Смена]],0)),0)","v":0},null,{"$f":"IF(EX$7<>\"\",IFERROR(IF(INDEX(tblShift[[Рабочий]:[Рабочий]],MATCH(E8,tblShift[[Смена]:[Смена]],0)),1,0),0),0)","v":0},{"$f":"IF(EY$7<>\"\",IFERROR(IF(INDEX(tblShift[[Рабочий]:[Рабочий]],MATCH(F8,tblShift[[Смена]:[Смена]],0)),1,0),0),0)","v":0},{"$f":"IF(EZ$7<>\"\",IFERROR(IF(INDEX(tblShift[[Рабочий]:[Рабочий]],MATCH(G8,tblShift[[Смена]:[Смена]],0)),1,0),0),0)","v":0},{"$f":"IF(FA$7<>\"\",IFERROR(IF(INDEX(tblShift[[Рабочий]:[Рабочий]],MATCH(H8,tblShift[[Смена]:[Смена]],0)),1,0),0),0)","v":0},{"$f":"IF(FB$7<>\"\",IFERROR(IF(INDEX(tblShift[[Рабочий]:[Рабочий]],MATCH(I8,tblShift[[Смена]:[Смена]],0)),1,0),0),0)","v":0},{"$f":"IF(FC$7<>\"\",IFERROR(IF(INDEX(tblShift[[Рабочий]:[Рабочий]],MATCH(J8,tblShift[[Смена]:[Смена]],0)),1,0),0),0)","v":0},{"$f":"IF(FD$7<>\"\",IFERROR(IF(INDEX(tblShift[[Рабочий]:[Рабочий]],MATCH(K8,tblShift[[Смена]:[Смена]],0)),1,0),0),0)","v":0},{"$f":"IF(FE$7<>\"\",IFERROR(IF(INDEX(tblShift[[Рабочий]:[Рабочий]],MATCH(L8,tblShift[[Смена]:[Смена]],0)),1,0),0),0)","v":0},{"$f":"IF(FF$7<>\"\",IFERROR(IF(INDEX(tblShift[[Рабочий]:[Рабочий]],MATCH(M8,tblShift[[Смена]:[Смена]],0)),1,0),0),0)","v":0},{"$f":"IF(FG$7<>\"\",IFERROR(IF(INDEX(tblShift[[Рабочий]:[Рабочий]],MATCH(N8,tblShift[[Смена]:[Смена]],0)),1,0),0),0)","v":0},{"$f":"IF(FH$7<>\"\",IFERROR(IF(INDEX(tblShift[[Рабочий]:[Рабочий]],MATCH(O8,tblShift[[Смена]:[Смена]],0)),1,0),0),0)","v":0},{"$f":"IF(FI$7<>\"\",IFERROR(IF(INDEX(tblShift[[Рабочий]:[Рабочий]],MATCH(P8,tblShift[[Смена]:[Смена]],0)),1,0),0),0)","v":0},{"$f":"IF(FJ$7<>\"\",IFERROR(IF(INDEX(tblShift[[Рабочий]:[Рабочий]],MATCH(Q8,tblShift[[Смена]:[Смена]],0)),1,0),0),0)","v":0},{"$f":"IF(FK$7<>\"\",IFERROR(IF(INDEX(tblShift[[Рабочий]:[Рабочий]],MATCH(R8,tblShift[[Смена]:[Смена]],0)),1,0),0),0)","v":0},{"$f":"IF(FL$7<>\"\",IFERROR(IF(INDEX(tblShift[[Рабочий]:[Рабочий]],MATCH(S8,tblShift[[Смена]:[Смена]],0)),1,0),0),0)","v":0},{"$f":"IF(FM$7<>\"\",IFERROR(IF(INDEX(tblShift[[Рабочий]:[Рабочий]],MATCH(T8,tblShift[[Смена]:[Смена]],0)),1,0),0),0)","v":0},{"$f":"IF(FN$7<>\"\",IFERROR(IF(INDEX(tblShift[[Рабочий]:[Рабочий]],MATCH(U8,tblShift[[Смена]:[Смена]],0)),1,0),0),0)","v":0},{"$f":"IF(FO$7<>\"\",IFERROR(IF(INDEX(tblShift[[Рабочий]:[Рабочий]],MATCH(V8,tblShift[[Смена]:[Смена]],0)),1,0),0),0)","v":0},{"$f":"IF(FP$7<>\"\",IFERROR(IF(INDEX(tblShift[[Рабочий]:[Рабочий]],MATCH(W8,tblShift[[Смена]:[Смена]],0)),1,0),0),0)","v":0},{"$f":"IF(FQ$7<>\"\",IFERROR(IF(INDEX(tblShift[[Рабочий]:[Рабочий]],MATCH(X8,tblShift[[Смена]:[Смена]],0)),1,0),0),0)","v":0},{"$f":"IF(FR$7<>\"\",IFERROR(IF(INDEX(tblShift[[Рабочий]:[Рабочий]],MATCH(Y8,tblShift[[Смена]:[Смена]],0)),1,0),0),0)","v":0},{"$f":"IF(FS$7<>\"\",IFERROR(IF(INDEX(tblShift[[Рабочий]:[Рабочий]],MATCH(Z8,tblShift[[Смена]:[Смена]],0)),1,0),0),0)","v":0},{"$f":"IF(FT$7<>\"\",IFERROR(IF(INDEX(tblShift[[Рабочий]:[Рабочий]],MATCH(AA8,tblShift[[Смена]:[Смена]],0)),1,0),0),0)","v":0},{"$f":"IF(FU$7<>\"\",IFERROR(IF(INDEX(tblShift[[Рабочий]:[Рабочий]],MATCH(AB8,tblShift[[Смена]:[Смена]],0)),1,0),0),0)","v":0},{"$f":"IF(FV$7<>\"\",IFERROR(IF(INDEX(tblShift[[Рабочий]:[Рабочий]],MATCH(AC8,tblShift[[Смена]:[Смена]],0)),1,0),0),0)","v":0},{"$f":"IF(FW$7<>\"\",IFERROR(IF(INDEX(tblShift[[Рабочий]:[Рабочий]],MATCH(AD8,tblShift[[Смена]:[Смена]],0)),1,0),0),0)","v":0},{"$f":"IF(FX$7<>\"\",IFERROR(IF(INDEX(tblShift[[Рабочий]:[Рабочий]],MATCH(AE8,tblShift[[Смена]:[Смена]],0)),1,0),0),0)","v":0},{"$f":"IF(FY$7<>\"\",IFERROR(IF(INDEX(tblShift[[Рабочий]:[Рабочий]],MATCH(AF8,tblShift[[Смена]:[Смена]],0)),1,0),0),0)","v":0},{"$f":"IF(FZ$7<>\"\",IFERROR(IF(INDEX(tblShift[[Рабочий]:[Рабочий]],MATCH(AG8,tblShift[[Смена]:[Смена]],0)),1,0),0),0)","v":0},{"$f":"IF(GA$7<>\"\",IFERROR(IF(INDEX(tblShift[[Рабочий]:[Рабочий]],MATCH(AH8,tblShift[[Смена]:[Смена]],0)),1,0),0),0)","v":0},{"$f":"IF(GB$7<>\"\",IFERROR(IF(INDEX(tblShift[[Рабочий]:[Рабочий]],MATCH(AI8,tblShift[[Смена]:[Смена]],0)),1,0),0),0)","v":0},null,null,null,null,null,null,null,null,null,null,null,null,null,null,null,1]
[null,null,{"$f":"IF($A9<>\"\",COUNTIF($AK9:$BO9,\"<>0\"),\"\")","v":""},{"$f":"IF($A9<>\"\",SUMIF($AK9:$BO9,\"<>0\"),\"\")","v":""},null,null,null,null,null,null,null,null,null,null,null,null,null,null,null,null,null,null,null,null,null,null,null,null,null,null,null,null,null,null,null,null,{"$f":"IF(AK8<>\"\",IFERROR(VLOOKUP(E9,tblShift[],3,0),0),0)","v":0},{"$f":"IF(AL8<>\"\",IFERROR(VLOOKUP(F9,tblShift[],3,0),0),0)","v":0},{"$f":"IF(AM8<>\"\",IFERROR(VLOOKUP(G9,tblShift[],3,0),0),0)","v":0},{"$f":"IF(AN$7<>\"\",IFERROR(VLOOKUP(H9,tblShift[],3,0),0),0)","v":0},{"$f":"IF(AO$7<>\"\",IFERROR(VLOOKUP(I9,tblShift[],3,0),0),0)","v":0},{"$f":"IF(AP$7<>\"\",IFERROR(VLOOKUP(J9,tblShift[],3,0),0),0)","v":0},{"$f":"IF(AQ$7<>\"\",IFERROR(VLOOKUP(K9,tblShift[],3,0),0),0)","v":0},{"$f":"IF(AR$7<>\"\",IFERROR(VLOOKUP(L9,tblShift[],3,0),0),0)","v":0},{"$f":"IF(AS$7<>\"\",IFERROR(VLOOKUP(M9,tblShift[],3,0),0),0)","v":0},{"$f":"IF(AT$7<>\"\",IFERROR(VLOOKUP(N9,tblShift[],3,0),0),0)","v":0},{"$f":"IF(AU$7<>\"\",IFERROR(VLOOKUP(O9,tblShift[],3,0),0),0)","v":0},{"$f":"IF(AV$7<>\"\",IFERROR(VLOOKUP(P9,tblShift[],3,0),0),0)","v":0},{"$f":"IF(AW$7<>\"\",IFERROR(VLOOKUP(Q9,tblShift[],3,0),0),0)","v":0},{"$f":"IF(AX$7<>\"\",IFERROR(VLOOKUP(R9,tblShift[],3,0),0),0)","v":0},{"$f":"IF(AY$7<>\"\",IFERROR(VLOOKUP(S9,tblShift[],3,0),0),0)","v":0},{"$f":"IF(AZ$7<>\"\",IFERROR(VLOOKUP(T9,tblShift[],3,0),0),0)","v":0},{"$f":"IF(BA$7<>\"\",IFERROR(VLOOKUP(U9,tblShift[],3,0),0),0)","v":0},{"$f":"IF(BB$7<>\"\",IFERROR(VLOOKUP(V9,tblShift[],3,0),0),0)","v":0},{"$f":"IF(BC$7<>\"\",IFERROR(VLOOKUP(W9,tblShift[],3,0),0),0)","v":0},{"$f":"IF(BD$7<>\"\",IFERROR(VLOOKUP(X9,tblShift[],3,0),0),0)","v":0},{"$f":"IF(BE$7<>\"\",IFERROR(VLOOKUP(Y9,tblShift[],3,0),0),0)","v":0},{"$f":"IF(BF$7<>\"\",IFERROR(VLOOKUP(Z9,tblShift[],3,0),0),0)","v":0},{"$f":"IF(BG$7<>\"\",IFERROR(VLOOKUP(AA9,tblShift[],3,0),0),0)","v":0},{"$f":"IF(BH$7<>\"\",IFERROR(VLOOKUP(AB9,tblShift[],3,0),0),0)","v":0},{"$f":"IF(BI$7<>\"\",IFERROR(VLOOKUP(AC9,tblShift[],3,0),0),0)","v":0},{"$f":"IF(BJ$7<>\"\",IFERROR(VLOOKUP(AD9,tblShift[],3,0),0),0)","v":0},{"$f":"IF(BK$7<>\"\",IFERROR(VLOOKUP(AE9,tblShift[],3,0),0),0)","v":0},{"$f":"IF(BL$7<>\"\",IFERROR(VLOOKUP(AF9,tblShift[],3,0),0),0)","v":0},{"$f":"IF(BM$7<>\"\",IFERROR(VLOOKUP(AG9,tblShift[],3,0),0),0)","v":0},{"$f":"IF(BN$7<>\"\",IFERROR(VLOOKUP(AH9,tblShift[],3,0),0),0)","v":0},{"$f":"IF(BO$7<>\"\",IFERROR(VLOOKUP(AI9,tblShift[],3,0),0),0)","v":0},null,{"$f":"IF(AND(AK9>10,AL9>10,BQ$7<>\"\"),1,0)","v":0},{"$f":"IF(AND(AL9>10,AM9>10,BR$7<>\"\"),1,0)","v":0},{"$f":"IF(AND(AM9>10,AN9>10,BS$7<>\"\"),1,0)","v":0},{"$f":"IF(AND(AN9>10,AO9>10,BT$7<>\"\"),1,0)","v":0},{"$f":"IF(AND(AO9>10,AP9>10,BU$7<>\"\"),1,0)","v":0},{"$f":"IF(AND(AP9>10,AQ9>10,BV$7<>\"\"),1,0)","v":0},{"$f":"IF(AND(AQ9>10,AR9>10,BW$7<>\"\"),1,0)","v":0},{"$f":"IF(AND(AR9>10,AS9>10,BX$7<>\"\"),1,0)","v":0},{"$f":"IF(AND(AS9>10,AT9>10,BY$7<>\"\"),1,0)","v":0},{"$f":"IF(AND(AT9>10,AU9>10,BZ$7<>\"\"),1,0)","v":0},{"$f":"IF(AND(AU9>10,AV9>10,CA$7<>\"\"),1,0)","v":0},{"$f":"IF(AND(AV9>10,AW9>10,CB$7<>\"\"),1,0)","v":0},{"$f":"IF(AND(AW9>10,AX9>10,CC$7<>\"\"),1,0)","v":0},{"$f":"IF(AND(AX9>10,AY9>10,CD$7<>\"\"),1,0)","v":0},{"$f":"IF(AND(AY9>10,AZ9>10,CE$7<>\"\"),1,0)","v":0},{"$f":"IF(AND(AZ9>10,BA9>10,CF$7<>\"\"),1,0)","v":0},{"$f":"IF(AND(BA9>10,BB9>10,CG$7<>\"\"),1,0)","v":0},{"$f":"IF(AND(BB9>10,BC9>10,CH$7<>\"\"),1,0)","v":0},{"$f":"IF(AND(BC9>10,BD9>10,CI$7<>\"\"),1,0)","v":0},{"$f":"IF(AND(BD9>10,BE9>10,CJ$7<>\"\"),1,0)","v":0},{"$f":"IF(AND(BE9>10,BF9>10,CK$7<>\"\"),1,0)","v":0},{"$f":"IF(AND(BF9>10,BG9>10,CL$7<>\"\"),1,0)","v":0},{"$f":"IF(AND(BG9>10,BH9>10,CM$7<>\"\"),1,0)","v":0},{"$f":"IF(AND(BH9>10,BI9>10,CN$7<>\"\"),1,0)","v":0},{"$f":"IF(AND(BI9>10,BJ9>10,CO$7<>\"\"),1,0)","v":0},{"$f":"IF(AND(BJ9>10,BK9>10,CP$7<>\"\"),1,0)","v":0},{"$f":"IF(AND(BK9>10,BL9>10,CQ$7<>\"\"),1,0)","v":0},{"$f":"IF(AND(BL9>10,BM9>10,CR$7<>\"\"),1,0)","v":0},{"$f":"IF(AND(BM9>10,BN9>10,CS$7<>\"\"),1,0)","v":0},null,{"$f":"IF(AND(AK9>10,AL9>10,G9=\"В\",H9=\"В\",CU$7<>\"\"),1,0)","v":0},{"$f":"IF(AND(AL9>10,AM9>10,H9=\"В\",I9=\"В\",CV$7<>\"\"),1,0)","v":0},{"$f":"IF(AND(AM9>10,AN9>10,I9=\"В\",J9=\"В\",CW$7<>\"\"),1,0)","v":0},{"$f":"IF(AND(AN9>10,AO9>10,J9=\"В\",K9=\"В\",CX$7<>\"\"),1,0)","v":0},{"$f":"IF(AND(AO9>10,AP9>10,K9=\"В\",L9=\"В\",CY$7<>\"\"),1,0)","v":0},{"$f":"IF(AND(AP9>10,AQ9>10,L9=\"В\",M9=\"В\",CZ$7<>\"\"),1,0)","v":0},{"$f":"IF(AND(AQ9>10,AR9>10,M9=\"В\",N9=\"В\",DA$7<>\"\"),1,0)","v":0},{"$f":"IF(AND(AR9>10,AS9>10,N9=\"В\",O9=\"В\",DB$7<>\"\"),1,0)","v":0},{"$f":"IF(AND(AS9>10,AT9>10,O9=\"В\",P9=\"В\",DC$7<>\"\"),1,0)","v":0},{"$f":"IF(AND(AT9>10,AU9>10,P9=\"В\",Q9=\"В\",DD$7<>\"\"),1,0)","v":0},{"$f":"IF(AND(AU9>10,AV9>10,Q9=\"В\",R9=\"В\",DE$7<>\"\"),1,0)","v":0},{"$f":"IF(AND(AV9>10,AW9>10,R9=\"В\",S9=\"В\",DF$7<>\"\"),1,0)","v":0},{"$f":"IF(AND(AW9>10,AX9>10,S9=\"В\",T9=\"В\",DG$7<>\"\"),1,0)","v":0},{"$f":"IF(AND(AX9>10,AY9>10,T9=\"В\",U9=\"В\",DH$7<>\"\"),1,0)","v":0},{"$f":"IF(AND(AY9>10,AZ9>10,U9=\"В\",V9=\"В\",DI$7<>\"\"),1,0)","v":0},{"$f":"IF(AND(AZ9>10,BA9>10,V9=\"В\",W9=\"В\",DJ$7<>\"\"),1,0)","v":0},{"$f":"IF(AND(BA9>10,BB9>10,W9=\"В\",X9=\"В\",DK$7<>\"\"),1,0)","v":0},{"$f":"IF(AND(BB9>10,BC9>10,X9=\"В\",Y9=\"В\",DL$7<>\"\"),1,0)","v":0},{"$f":"IF(AND(BC9>10,BD9>10,Y9=\"В\",Z9=\"В\",DM$7<>\"\"),1,0)","v":0},{"$f":"IF(AND(BD9>10,BE9>10,Z9=\"В\",AA9=\"В\",DN$7<>\"\"),1,0)","v":0},{"$f":"IF(AND(BE9>10,BF9>10,AA9=\"В\",AB9=\"В\",DO$7<>\"\"),1,0)","v":0},{"$f":"IF(AND(BF9>10,BG9>10,AB9=\"В\",AC9=\"В\",DP$7<>\"\"),1,0)","v":0},{"$f":"IF(AND(BG9>10,BH9>10,AC9=\"В\",AD9=\"В\",DQ$7<>\"\"),1,0)","v":0},{"$f":"IF(AND(BH9>10,BI9>10,AD9=\"В\",AE9=\"В\",DR$7<>\"\"),1,0)","v":0},{"$f":"IF(AND(BI9>10,BJ9>10,AE9=\"В\",AF9=\"В\",DS$7<>\"\"),1,0)","v":0},{"$f":"IF(AND(BJ9>10,BK9>10,AF9=\"В\",AG9=\"В\",DT$7<>\"\"),1,0)","v":0},{"$f":"IF(AND(BK9>10,BL9>10,AG9=\"В\",AH9=\"В\",DU$7<>\"\"),1,0)","v":0},{"$f":"IF(AND(BL9>10,BM9>10,AH9=\"В\",AI9=\"В\",DV$7<>\"\"),1,0)","v":0},{"$f":"IF(AND(BM9>10,BN9>10,AI9=\"В\",AJ9=\"В\",DW$7<>\"\"),1,0)","v":0},null,{"$f":"IFERROR(INDEX(tblShift[0],MATCH(INDEX($E9:$AI9,$D$1),tblShift[[Смена]:[Смена]],0)),0)","v":0},{"$f":"IFERROR(INDEX(tblShift[1],MATCH(INDEX($E9:$AI9,$D$1),tblShift[[Смена]:[Смена]],0)),0)","v":0},{"$f":"IFERROR(INDEX(tblShift[2],MATCH(INDEX($E9:$AI9,$D$1),tblShift[[Смена]:[Смена]],0)),0)","v":0},{"$f":"IFERROR(INDEX(tblShift[3],MATCH(INDEX($E9:$AI9,$D$1),tblShift[[Смена]:[Смена]],0)),0)","v":0},{"$f":"IFERROR(INDEX(tblShift[4],MATCH(INDEX($E9:$AI9,$D$1),tblShift[[Смена]:[Смена]],0)),0)","v":0},{"$f":"IFERROR(INDEX(tblShift[5],MATCH(INDEX($E9:$AI9,$D$1),tblShift[[Смена]:[Смена]],0)),0)","v":0},{"$f":"IFERROR(INDEX(tblShift[6],MATCH(INDEX($E9:$AI9,$D$1),tblShift[[Смена]:[Смена]],0)),0)","v":0},{"$f":"IFERROR(INDEX(tblShift[7],MATCH(INDEX($E9:$AI9,$D$1),tblShift[[Смена]:[Смена]],0)),0)","v":0},{"$f":"IFERROR(INDEX(tblShift[8],MATCH(INDEX($E9:$AI9,$D$1),tblShift[[Смена]:[Смена]],0)),0)","v":0},{"$f":"IFERROR(INDEX(tblShift[9],MATCH(INDEX($E9:$AI9,$D$1),tblShift[[Смена]:[Смена]],0)),0)","v":0},{"$f":"IFERROR(INDEX(tblShift[10],MATCH(INDEX($E9:$AI9,$D$1),tblShift[[Смена]:[Смена]],0)),0)","v":0},{"$f":"IFERROR(INDEX(tblShift[11],MATCH(INDEX($E9:$AI9,$D$1),tblShift[[Смена]:[Смена]],0)),0)","v":0},{"$f":"IFERROR(INDEX(tblShift[12],MATCH(INDEX($E9:$AI9,$D$1),tblShift[[Смена]:[Смена]],0)),0)","v":0},{"$f":"IFERROR(INDEX(tblShift[13],MATCH(INDEX($E9:$AI9,$D$1),tblShift[[Смена]:[Смена]],0)),0)","v":0},{"$f":"IFERROR(INDEX(tblShift[14],MATCH(INDEX($E9:$AI9,$D$1),tblShift[[Смена]:[Смена]],0)),0)","v":0},{"$f":"IFERROR(INDEX(tblShift[15],MATCH(INDEX($E9:$AI9,$D$1),tblShift[[Смена]:[Смена]],0)),0)","v":0},{"$f":"IFERROR(INDEX(tblShift[16],MATCH(INDEX($E9:$AI9,$D$1),tblShift[[Смена]:[Смена]],0)),0)","v":0},{"$f":"IFERROR(INDEX(tblShift[17],MATCH(INDEX($E9:$AI9,$D$1),tblShift[[Смена]:[Смена]],0)),0)","v":0},{"$f":"IFERROR(INDEX(tblShift[18],MATCH(INDEX($E9:$AI9,$D$1),tblShift[[Смена]:[Смена]],0)),0)","v":0},{"$f":"IFERROR(INDEX(tblShift[19],MATCH(INDEX($E9:$AI9,$D$1),tblShift[[Смена]:[Смена]],0)),0)","v":0},{"$f":"IFERROR(INDEX(tblShift[20],MATCH(INDEX($E9:$AI9,$D$1),tblShift[[Смена]:[Смена]],0)),0)","v":0},{"$f":"IFERROR(INDEX(tblShift[21],MATCH(INDEX($E9:$AI9,$D$1),tblShift[[Смена]:[Смена]],0)),0)","v":0},{"$f":"IFERROR(INDEX(tblShift[22],MATCH(INDEX($E9:$AI9,$D$1),tblShift[[Смена]:[Смена]],0)),0)","v":0},{"$f":"IFERROR(INDEX(tblShift[23],MATCH(INDEX($E9:$AI9,$D$1),tblShift[[Смена]:[Смена]],0)),0)","v":0},null,{"$f":"IF(EX$7<>\"\",IFERROR(IF(INDEX(tblShift[[Рабочий]:[Рабочий]],MATCH(E9,tblShift[[Смена]:[Смена]],0)),1,0),0),0)","v":0},{"$f":"IF(EY$7<>\"\",IFERROR(IF(INDEX(tblShift[[Рабочий]:[Рабочий]],MATCH(F9,tblShift[[Смена]:[Смена]],0)),1,0),0),0)","v":0},{"$f":"IF(EZ$7<>\"\",IFERROR(IF(INDEX(tblShift[[Рабочий]:[Рабочий]],MATCH(G9,tblShift[[Смена]:[Смена]],0)),1,0),0),0)","v":0},{"$f":"IF(FA$7<>\"\",IFERROR(IF(INDEX(tblShift[[Рабочий]:[Рабочий]],MATCH(H9,tblShift[[Смена]:[Смена]],0)),1,0),0),0)","v":0},{"$f":"IF(FB$7<>\"\",IFERROR(IF(INDEX(tblShift[[Рабочий]:[Рабочий]],MATCH(I9,tblShift[[Смена]:[Смена]],0)),1,0),0),0)","v":0},{"$f":"IF(FC$7<>\"\",IFERROR(IF(INDEX(tblShift[[Рабочий]:[Рабочий]],MATCH(J9,tblShift[[Смена]:[Смена]],0)),1,0),0),0)","v":0},{"$f":"IF(FD$7<>\"\",IFERROR(IF(INDEX(tblShift[[Рабочий]:[Рабочий]],MATCH(K9,tblShift[[Смена]:[Смена]],0)),1,0),0),0)","v":0},{"$f":"IF(FE$7<>\"\",IFERROR(IF(INDEX(tblShift[[Рабочий]:[Рабочий]],MATCH(L9,tblShift[[Смена]:[Смена]],0)),1,0),0),0)","v":0},{"$f":"IF(FF$7<>\"\",IFERROR(IF(INDEX(tblShift[[Рабочий]:[Рабочий]],MATCH(M9,tblShift[[Смена]:[Смена]],0)),1,0),0),0)","v":0},{"$f":"IF(FG$7<>\"\",IFERROR(IF(INDEX(tblShift[[Рабочий]:[Рабочий]],MATCH(N9,tblShift[[Смена]:[Смена]],0)),1,0),0),0)","v":0},{"$f":"IF(FH$7<>\"\",IFERROR(IF(INDEX(tblShift[[Рабочий]:[Рабочий]],MATCH(O9,tblShift[[Смена]:[Смена]],0)),1,0),0),0)","v":0},{"$f":"IF(FI$7<>\"\",IFERROR(IF(INDEX(tblShift[[Рабочий]:[Рабочий]],MATCH(P9,tblShift[[Смена]:[Смена]],0)),1,0),0),0)","v":0},{"$f":"IF(FJ$7<>\"\",IFERROR(IF(INDEX(tblShift[[Рабочий]:[Рабочий]],MATCH(Q9,tblShift[[Смена]:[Смена]],0)),1,0),0),0)","v":0},{"$f":"IF(FK$7<>\"\",IFERROR(IF(INDEX(tblShift[[Рабочий]:[Рабочий]],MATCH(R9,tblShift[[Смена]:[Смена]],0)),1,0),0),0)","v":0},{"$f":"IF(FL$7<>\"\",IFERROR(IF(INDEX(tblShift[[Рабочий]:[Рабочий]],MATCH(S9,tblShift[[Смена]:[Смена]],0)),1,0),0),0)","v":0},{"$f":"IF(FM$7<>\"\",IFERROR(IF(INDEX(tblShift[[Рабочий]:[Рабочий]],MATCH(T9,tblShift[[Смена]:[Смена]],0)),1,0),0),0)","v":0},{"$f":"IF(FN$7<>\"\",IFERROR(IF(INDEX(tblShift[[Рабочий]:[Рабочий]],MATCH(U9,tblShift[[Смена]:[Смена]],0)),1,0),0),0)","v":0},{"$f":"IF(FO$7<>\"\",IFERROR(IF(INDEX(tblShift[[Рабочий]:[Рабочий]],MATCH(V9,tblShift[[Смена]:[Смена]],0)),1,0),0),0)","v":0},{"$f":"IF(FP$7<>\"\",IFERROR(IF(INDEX(tblShift[[Рабочий]:[Рабочий]],MATCH(W9,tblShift[[Смена]:[Смена]],0)),1,0),0),0)","v":0},{"$f":"IF(FQ$7<>\"\",IFERROR(IF(INDEX(tblShift[[Рабочий]:[Рабочий]],MATCH(X9,tblShift[[Смена]:[Смена]],0)),1,0),0),0)","v":0},{"$f":"IF(FR$7<>\"\",IFERROR(IF(INDEX(tblShift[[Рабочий]:[Рабочий]],MATCH(Y9,tblShift[[Смена]:[Смена]],0)),1,0),0),0)","v":0},{"$f":"IF(FS$7<>\"\",IFERROR(IF(INDEX(tblShift[[Рабочий]:[Рабочий]],MATCH(Z9,tblShift[[Смена]:[Смена]],0)),1,0),0),0)","v":0},{"$f":"IF(FT$7<>\"\",IFERROR(IF(INDEX(tblShift[[Рабочий]:[Рабочий]],MATCH(AA9,tblShift[[Смена]:[Смена]],0)),1,0),0),0)","v":0},{"$f":"IF(FU$7<>\"\",IFERROR(IF(INDEX(tblShift[[Рабочий]:[Рабочий]],MATCH(AB9,tblShift[[Смена]:[Смена]],0)),1,0),0),0)","v":0},{"$f":"IF(FV$7<>\"\",IFERROR(IF(INDEX(tblShift[[Рабочий]:[Рабочий]],MATCH(AC9,tblShift[[Смена]:[Смена]],0)),1,0),0),0)","v":0},{"$f":"IF(FW$7<>\"\",IFERROR(IF(INDEX(tblShift[[Рабочий]:[Рабочий]],MATCH(AD9,tblShift[[Смена]:[Смена]],0)),1,0),0),0)","v":0},{"$f":"IF(FX$7<>\"\",IFERROR(IF(INDEX(tblShift[[Рабочий]:[Рабочий]],MATCH(AE9,tblShift[[Смена]:[Смена]],0)),1,0),0),0)","v":0},{"$f":"IF(FY$7<>\"\",IFERROR(IF(INDEX(tblShift[[Рабочий]:[Рабочий]],MATCH(AF9,tblShift[[Смена]:[Смена]],0)),1,0),0),0)","v":0},{"$f":"IF(FZ$7<>\"\",IFERROR(IF(INDEX(tblShift[[Рабочий]:[Рабочий]],MATCH(AG9,tblShift[[Смена]:[Смена]],0)),1,0),0),0)","v":0},{"$f":"IF(GA$7<>\"\",IFERROR(IF(INDEX(tblShift[[Рабочий]:[Рабочий]],MATCH(AH9,tblShift[[Смена]:[Смена]],0)),1,0),0),0)","v":0},{"$f":"IF(GB$7<>\"\",IFERROR(IF(INDEX(tblShift[[Рабочий]:[Рабочий]],MATCH(AI9,tblShift[[Смена]:[Смена]],0)),1,0),0),0)","v":0},null,null,null,null,null,null,null,null,null,null,null,null,null,null,null,{"$f":"IF(rngShowHidden,1,IF(OR($A8<>\"\",$A9<>\"\"),1,0))","v":1}]
[null,null,"","",null,null,null,null,null,null,null,null,null,null,null,null,null,null,null,null,null,null,null,null,null,null,null,null,null,null,null,null,null,null,null,null,{"$f":"IF(AK9<>\"\",IFERROR(VLOOKUP(E10,tblShift[],3,0),0),0)","v":0},{"$f":"IF(AL9<>\"\",IFERROR(VLOOKUP(F10,tblShift[],3,0),0),0)","v":0},{"$f":"IF(AM9<>\"\",IFERROR(VLOOKUP(G10,tblShift[],3,0),0),0)","v":0},{"$f":"IF(AN$7<>\"\",IFERROR(VLOOKUP(H10,tblShift[],3,0),0),0)","v":0},{"$f":"IF(AO$7<>\"\",IFERROR(VLOOKUP(I10,tblShift[],3,0),0),0)","v":0},{"$f":"IF(AP$7<>\"\",IFERROR(VLOOKUP(J10,tblShift[],3,0),0),0)","v":0},{"$f":"IF(AQ$7<>\"\",IFERROR(VLOOKUP(K10,tblShift[],3,0),0),0)","v":0},{"$f":"IF(AR$7<>\"\",IFERROR(VLOOKUP(L10,tblShift[],3,0),0),0)","v":0},{"$f":"IF(AS$7<>\"\",IFERROR(VLOOKUP(M10,tblShift[],3,0),0),0)","v":0},{"$f":"IF(AT$7<>\"\",IFERROR(VLOOKUP(N10,tblShift[],3,0),0),0)","v":0},{"$f":"IF(AU$7<>\"\",IFERROR(VLOOKUP(O10,tblShift[],3,0),0),0)","v":0},{"$f":"IF(AV$7<>\"\",IFERROR(VLOOKUP(P10,tblShift[],3,0),0),0)","v":0},{"$f":"IF(AW$7<>\"\",IFERROR(VLOOKUP(Q10,tblShift[],3,0),0),0)","v":0},{"$f":"IF(AX$7<>\"\",IFERROR(VLOOKUP(R10,tblShift[],3,0),0),0)","v":0},{"$f":"IF(AY$7<>\"\",IFERROR(VLOOKUP(S10,tblShift[],3,0),0),0)","v":0},{"$f":"IF(AZ$7<>\"\",IFERROR(VLOOKUP(T10,tblShift[],3,0),0),0)","v":0},{"$f":"IF(BA$7<>\"\",IFERROR(VLOOKUP(U10,tblShift[],3,0),0),0)","v":0},{"$f":"IF(BB$7<>\"\",IFERROR(VLOOKUP(V10,tblShift[],3,0),0),0)","v":0},{"$f":"IF(BC$7<>\"\",IFERROR(VLOOKUP(W10,tblShift[],3,0),0),0)","v":0},{"$f":"IF(BD$7<>\"\",IFERROR(VLOOKUP(X10,tblShift[],3,0),0),0)","v":0},{"$f":"IF(BE$7<>\"\",IFERROR(VLOOKUP(Y10,tblShift[],3,0),0),0)","v":0},{"$f":"IF(BF$7<>\"\",IFERROR(VLOOKUP(Z10,tblShift[],3,0),0),0)","v":0},{"$f":"IF(BG$7<>\"\",IFERROR(VLOOKUP(AA10,tblShift[],3,0),0),0)","v":0},{"$f":"IF(BH$7<>\"\",IFERROR(VLOOKUP(AB10,tblShift[],3,0),0),0)","v":0},{"$f":"IF(BI$7<>\"\",IFERROR(VLOOKUP(AC10,tblShift[],3,0),0),0)","v":0},{"$f":"IF(BJ$7<>\"\",IFERROR(VLOOKUP(AD10,tblShift[],3,0),0),0)","v":0},{"$f":"IF(BK$7<>\"\",IFERROR(VLOOKUP(AE10,tblShift[],3,0),0),0)","v":0},{"$f":"IF(BL$7<>\"\",IFERROR(VLOOKUP(AF10,tblShift[],3,0),0),0)","v":0},{"$f":"IF(BM$7<>\"\",IFERROR(VLOOKUP(AG10,tblShift[],3,0),0),0)","v":0},{"$f":"IF(BN$7<>\"\",IFERROR(VLOOKUP(AH10,tblShift[],3,0),0),0)","v":0},{"$f":"IF(BO$7<>\"\",IFERROR(VLOOKUP(AI10,tblShift[],3,0),0),0)","v":0},null,0,0,0,0,0,0,0,0,0,0,0,0,0,0,0,0,0,0,0,0,0,0,0,0,0,0,0,0,0,null,0,0,0,0,0,0,0,0,0,0,0,0,0,0,0,0,0,0,0,0,0,0,0,0,0,0,0,0,0,null,{"$f":"IFERROR(INDEX(tblShift[0],MATCH(INDEX($E10:$AI10,$D$1),tblShift[[Смена]:[Смена]],0)),0)","v":0},{"$f":"IFERROR(INDEX(tblShift[1],MATCH(INDEX($E10:$AI10,$D$1),tblShift[[Смена]:[Смена]],0)),0)","v":0},{"$f":"IFERROR(INDEX(tblShift[2],MATCH(INDEX($E10:$AI10,$D$1),tblShift[[Смена]:[Смена]],0)),0)","v":0},{"$f":"IFERROR(INDEX(tblShift[3],MATCH(INDEX($E10:$AI10,$D$1),tblShift[[Смена]:[Смена]],0)),0)","v":0},{"$f":"IFERROR(INDEX(tblShift[4],MATCH(INDEX($E10:$AI10,$D$1),tblShift[[Смена]:[Смена]],0)),0)","v":0},{"$f":"IFERROR(INDEX(tblShift[5],MATCH(INDEX($E10:$AI10,$D$1),tblShift[[Смена]:[Смена]],0)),0)","v":0},{"$f":"IFERROR(INDEX(tblShift[6],MATCH(INDEX($E10:$AI10,$D$1),tblShift[[Смена]:[Смена]],0)),0)","v":0},{"$f":"IFERROR(INDEX(tblShift[7],MATCH(INDEX($E10:$AI10,$D$1),tblShift[[Смена]:[Смена]],0)),0)","v":0},{"$f":"IFERROR(INDEX(tblShift[8],MATCH(INDEX($E10:$AI10,$D$1),tblShift[[Смена]:[Смена]],0)),0)","v":0},{"$f":"IFERROR(INDEX(tblShift[9],MATCH(INDEX($E10:$AI10,$D$1),tblShift[[Смена]:[Смена]],0)),0)","v":0},{"$f":"IFERROR(INDEX(tblShift[10],MATCH(INDEX($E10:$AI10,$D$1),tblShift[[Смена]:[Смена]],0)),0)","v":0},{"$f":"IFERROR(INDEX(tblShift[11],MATCH(INDEX($E10:$AI10,$D$1),tblShift[[Смена]:[Смена]],0)),0)","v":0},{"$f":"IFERROR(INDEX(tblShift[12],MATCH(INDEX($E10:$AI10,$D$1),tblShift[[Смена]:[Смена]],0)),0)","v":0},{"$f":"IFERROR(INDEX(tblShift[13],MATCH(INDEX($E10:$AI10,$D$1),tblShift[[Смена]:[Смена]],0)),0)","v":0},{"$f":"IFERROR(INDEX(tblShift[14],MATCH(INDEX($E10:$AI10,$D$1),tblShift[[Смена]:[Смена]],0)),0)","v":0},{"$f":"IFERROR(INDEX(tblShift[15],MATCH(INDEX($E10:$AI10,$D$1),tblShift[[Смена]:[Смена]],0)),0)","v":0},{"$f":"IFERROR(INDEX(tblShift[16],MATCH(INDEX($E10:$AI10,$D$1),tblShift[[Смена]:[Смена]],0)),0)","v":0},{"$f":"IFERROR(INDEX(tblShift[17],MATCH(INDEX($E10:$AI10,$D$1),tblShift[[Смена]:[Смена]],0)),0)","v":0},{"$f":"IFERROR(INDEX(tblShift[18],MATCH(INDEX($E10:$AI10,$D$1),tblShift[[Смена]:[Смена]],0)),0)","v":0},{"$f":"IFERROR(INDEX(tblShift[19],MATCH(INDEX($E10:$AI10,$D$1),tblShift[[Смена]:[Смена]],0)),0)","v":0},{"$f":"IFERROR(INDEX(tblShift[20],MATCH(INDEX($E10:$AI10,$D$1),tblShift[[Смена]:[Смена]],0)),0)","v":0},{"$f":"IFERROR(INDEX(tblShift[21],MATCH(INDEX($E10:$AI10,$D$1),tblShift[[Смена]:[Смена]],0)),0)","v":0},{"$f":"IFERROR(INDEX(tblShift[22],MATCH(INDEX($E10:$AI10,$D$1),tblShift[[Смена]:[Смена]],0)),0)","v":0},{"$f":"IFERROR(INDEX(tblShift[23],MATCH(INDEX($E10:$AI10,$D$1),tblShift[[Смена]:[Смена]],0)),0)","v":0},null,{"$f":"IF(EX$7<>\"\",IFERROR(IF(INDEX(tblShift[[Рабочий]:[Рабочий]],MATCH(E10,tblShift[[Смена]:[Смена]],0)),1,0),0),0)","v":0},{"$f":"IF(EY$7<>\"\",IFERROR(IF(INDEX(tblShift[[Рабочий]:[Рабочий]],MATCH(F10,tblShift[[Смена]:[Смена]],0)),1,0),0),0)","v":0},{"$f":"IF(EZ$7<>\"\",IFERROR(IF(INDEX(tblShift[[Рабочий]:[Рабочий]],MATCH(G10,tblShift[[Смена]:[Смена]],0)),1,0),0),0)","v":0},{"$f":"IF(FA$7<>\"\",IFERROR(IF(INDEX(tblShift[[Рабочий]:[Рабочий]],MATCH(H10,tblShift[[Смена]:[Смена]],0)),1,0),0),0)","v":0},{"$f":"IF(FB$7<>\"\",IFERROR(IF(INDEX(tblShift[[Рабочий]:[Рабочий]],MATCH(I10,tblShift[[Смена]:[Смена]],0)),1,0),0),0)","v":0},{"$f":"IF(FC$7<>\"\",IFERROR(IF(INDEX(tblShift[[Рабочий]:[Рабочий]],MATCH(J10,tblShift[[Смена]:[Смена]],0)),1,0),0),0)","v":0},{"$f":"IF(FD$7<>\"\",IFERROR(IF(INDEX(tblShift[[Рабочий]:[Рабочий]],MATCH(K10,tblShift[[Смена]:[Смена]],0)),1,0),0),0)","v":0},{"$f":"IF(FE$7<>\"\",IFERROR(IF(INDEX(tblShift[[Рабочий]:[Рабочий]],MATCH(L10,tblShift[[Смена]:[Смена]],0)),1,0),0),0)","v":0},{"$f":"IF(FF$7<>\"\",IFERROR(IF(INDEX(tblShift[[Рабочий]:[Рабочий]],MATCH(M10,tblShift[[Смена]:[Смена]],0)),1,0),0),0)","v":0},{"$f":"IF(FG$7<>\"\",IFERROR(IF(INDEX(tblShift[[Рабочий]:[Рабочий]],MATCH(N10,tblShift[[Смена]:[Смена]],0)),1,0),0),0)","v":0},{"$f":"IF(FH$7<>\"\",IFERROR(IF(INDEX(tblShift[[Рабочий]:[Рабочий]],MATCH(O10,tblShift[[Смена]:[Смена]],0)),1,0),0),0)","v":0},{"$f":"IF(FI$7<>\"\",IFERROR(IF(INDEX(tblShift[[Рабочий]:[Рабочий]],MATCH(P10,tblShift[[Смена]:[Смена]],0)),1,0),0),0)","v":0},{"$f":"IF(FJ$7<>\"\",IFERROR(IF(INDEX(tblShift[[Рабочий]:[Рабочий]],MATCH(Q10,tblShift[[Смена]:[Смена]],0)),1,0),0),0)","v":0},{"$f":"IF(FK$7<>\"\",IFERROR(IF(INDEX(tblShift[[Рабочий]:[Рабочий]],MATCH(R10,tblShift[[Смена]:[Смена]],0)),1,0),0),0)","v":0},{"$f":"IF(FL$7<>\"\",IFERROR(IF(INDEX(tblShift[[Рабочий]:[Рабочий]],MATCH(S10,tblShift[[Смена]:[Смена]],0)),1,0),0),0)","v":0},{"$f":"IF(FM$7<>\"\",IFERROR(IF(INDEX(tblShift[[Рабочий]:[Рабочий]],MATCH(T10,tblShift[[Смена]:[Смена]],0)),1,0),0),0)","v":0},{"$f":"IF(FN$7<>\"\",IFERROR(IF(INDEX(tblShift[[Рабочий]:[Рабочий]],MATCH(U10,tblShift[[Смена]:[Смена]],0)),1,0),0),0)","v":0},{"$f":"IF(FO$7<>\"\",IFERROR(IF(INDEX(tblShift[[Рабочий]:[Рабочий]],MATCH(V10,tblShift[[Смена]:[Смена]],0)),1,0),0),0)","v":0},{"$f":"IF(FP$7<>\"\",IFERROR(IF(INDEX(tblShift[[Рабочий]:[Рабочий]],MATCH(W10,tblShift[[Смена]:[Смена]],0)),1,0),0),0)","v":0},{"$f":"IF(FQ$7<>\"\",IFERROR(IF(INDEX(tblShift[[Рабочий]:[Рабочий]],MATCH(X10,tblShift[[Смена]:[Смена]],0)),1,0),0),0)","v":0},{"$f":"IF(FR$7<>\"\",IFERROR(IF(INDEX(tblShift[[Рабочий]:[Рабочий]],MATCH(Y10,tblShift[[Смена]:[Смена]],0)),1,0),0),0)","v":0},{"$f":"IF(FS$7<>\"\",IFERROR(IF(INDEX(tblShift[[Рабочий]:[Рабочий]],MATCH(Z10,tblShift[[Смена]:[Смена]],0)),1,0),0),0)","v":0},{"$f":"IF(FT$7<>\"\",IFERROR(IF(INDEX(tblShift[[Рабочий]:[Рабочий]],MATCH(AA10,tblShift[[Смена]:[Смена]],0)),1,0),0),0)","v":0},{"$f":"IF(FU$7<>\"\",IFERROR(IF(INDEX(tblShift[[Рабочий]:[Рабочий]],MATCH(AB10,tblShift[[Смена]:[Смена]],0)),1,0),0),0)","v":0},{"$f":"IF(FV$7<>\"\",IFERROR(IF(INDEX(tblShift[[Рабочий]:[Рабочий]],MATCH(AC10,tblShift[[Смена]:[Смена]],0)),1,0),0),0)","v":0},{"$f":"IF(FW$7<>\"\",IFERROR(IF(INDEX(tblShift[[Рабочий]:[Рабочий]],MATCH(AD10,tblShift[[Смена]:[Смена]],0)),1,0),0),0)","v":0},{"$f":"IF(FX$7<>\"\",IFERROR(IF(INDEX(tblShift[[Рабочий]:[Рабочий]],MATCH(AE10,tblShift[[Смена]:[Смена]],0)),1,0),0),0)","v":0},{"$f":"IF(FY$7<>\"\",IFERROR(IF(INDEX(tblShift[[Рабочий]:[Рабочий]],MATCH(AF10,tblShift[[Смена]:[Смена]],0)),1,0),0),0)","v":0},{"$f":"IF(FZ$7<>\"\",IFERROR(IF(INDEX(tblShift[[Рабочий]:[Рабочий]],MATCH(AG10,tblShift[[Смена]:[Смена]],0)),1,0),0),0)","v":0},{"$f":"IF(GA$7<>\"\",IFERROR(IF(INDEX(tblShift[[Рабочий]:[Рабочий]],MATCH(AH10,tblShift[[Смена]:[Смена]],0)),1,0),0),0)","v":0},{"$f":"IF(GB$7<>\"\",IFERROR(IF(INDEX(tblShift[[Рабочий]:[Рабочий]],MATCH(AI10,tblShift[[Смена]:[Смена]],0)),1,0),0),0)","v":0},null,null,null,null,null,null,null,null,null,null,null,null,null,null,null,0]
[null,null,"","",null,null,null,null,null,null,null,null,null,null,null,null,null,null,null,null,null,null,null,null,null,null,null,null,null,null,null,null,null,null,null,null,{"$f":"IF(AK10<>\"\",IFERROR(VLOOKUP(E11,tblShift[],3,0),0),0)","v":0},{"$f":"IF(AL10<>\"\",IFERROR(VLOOKUP(F11,tblShift[],3,0),0),0)","v":0},{"$f":"IF(AM10<>\"\",IFERROR(VLOOKUP(G11,tblShift[],3,0),0),0)","v":0},{"$f":"IF(AN$7<>\"\",IFERROR(VLOOKUP(H11,tblShift[],3,0),0),0)","v":0},{"$f":"IF(AO$7<>\"\",IFERROR(VLOOKUP(I11,tblShift[],3,0),0),0)","v":0},{"$f":"IF(AP$7<>\"\",IFERROR(VLOOKUP(J11,tblShift[],3,0),0),0)","v":0},{"$f":"IF(AQ$7<>\"\",IFERROR(VLOOKUP(K11,tblShift[],3,0),0),0)","v":0},{"$f":"IF(AR$7<>\"\",IFERROR(VLOOKUP(L11,tblShift[],3,0),0),0)","v":0},{"$f":"IF(AS$7<>\"\",IFERROR(VLOOKUP(M11,tblShift[],3,0),0),0)","v":0},{"$f":"IF(AT$7<>\"\",IFERROR(VLOOKUP(N11,tblShift[],3,0),0),0)","v":0},{"$f":"IF(AU$7<>\"\",IFERROR(VLOOKUP(O11,tblShift[],3,0),0),0)","v":0},{"$f":"IF(AV$7<>\"\",IFERROR(VLOOKUP(P11,tblShift[],3,0),0),0)","v":0},{"$f":"IF(AW$7<>\"\",IFERROR(VLOOKUP(Q11,tblShift[],3,0),0),0)","v":0},{"$f":"IF(AX$7<>\"\",IFERROR(VLOOKUP(R11,tblShift[],3,0),0),0)","v":0},{"$f":"IF(AY$7<>\"\",IFERROR(VLOOKUP(S11,tblShift[],3,0),0),0)","v":0},{"$f":"IF(AZ$7<>\"\",IFERROR(VLOOKUP(T11,tblShift[],3,0),0),0)","v":0},{"$f":"IF(BA$7<>\"\",IFERROR(VLOOKUP(U11,tblShift[],3,0),0),0)","v":0},{"$f":"IF(BB$7<>\"\",IFERROR(VLOOKUP(V11,tblShift[],3,0),0),0)","v":0},{"$f":"IF(BC$7<>\"\",IFERROR(VLOOKUP(W11,tblShift[],3,0),0),0)","v":0},{"$f":"IF(BD$7<>\"\",IFERROR(VLOOKUP(X11,tblShift[],3,0),0),0)","v":0},{"$f":"IF(BE$7<>\"\",IFERROR(VLOOKUP(Y11,tblShift[],3,0),0),0)","v":0},{"$f":"IF(BF$7<>\"\",IFERROR(VLOOKUP(Z11,tblShift[],3,0),0),0)","v":0},{"$f":"IF(BG$7<>\"\",IFERROR(VLOOKUP(AA11,tblShift[],3,0),0),0)","v":0},{"$f":"IF(BH$7<>\"\",IFERROR(VLOOKUP(AB11,tblShift[],3,0),0),0)","v":0},{"$f":"IF(BI$7<>\"\",IFERROR(VLOOKUP(AC11,tblShift[],3,0),0),0)","v":0},{"$f":"IF(BJ$7<>\"\",IFERROR(VLOOKUP(AD11,tblShift[],3,0),0),0)","v":0},{"$f":"IF(BK$7<>\"\",IFERROR(VLOOKUP(AE11,tblShift[],3,0),0),0)","v":0},{"$f":"IF(BL$7<>\"\",IFERROR(VLOOKUP(AF11,tblShift[],3,0),0),0)","v":0},{"$f":"IF(BM$7<>\"\",IFERROR(VLOOKUP(AG11,tblShift[],3,0),0),0)","v":0},{"$f":"IF(BN$7<>\"\",IFERROR(VLOOKUP(AH11,tblShift[],3,0),0),0)","v":0},{"$f":"IF(BO$7<>\"\",IFERROR(VLOOKUP(AI11,tblShift[],3,0),0),0)","v":0},null,0,0,0,0,0,0,0,0,0,0,0,0,0,0,0,0,0,0,0,0,0,0,0,0,0,0,0,0,0,null,0,0,0,0,0,0,0,0,0,0,0,0,0,0,0,0,0,0,0,0,0,0,0,0,0,0,0,0,0,null,{"$f":"IFERROR(INDEX(tblShift[0],MATCH(INDEX($E11:$AI11,$D$1),tblShift[[Смена]:[Смена]],0)),0)","v":0},{"$f":"IFERROR(INDEX(tblShift[1],MATCH(INDEX($E11:$AI11,$D$1),tblShift[[Смена]:[Смена]],0)),0)","v":0},{"$f":"IFERROR(INDEX(tblShift[2],MATCH(INDEX($E11:$AI11,$D$1),tblShift[[Смена]:[Смена]],0)),0)","v":0},{"$f":"IFERROR(INDEX(tblShift[3],MATCH(INDEX($E11:$AI11,$D$1),tblShift[[Смена]:[Смена]],0)),0)","v":0},{"$f":"IFERROR(INDEX(tblShift[4],MATCH(INDEX($E11:$AI11,$D$1),tblShift[[Смена]:[Смена]],0)),0)","v":0},{"$f":"IFERROR(INDEX(tblShift[5],MATCH(INDEX($E11:$AI11,$D$1),tblShift[[Смена]:[Смена]],0)),0)","v":0},{"$f":"IFERROR(INDEX(tblShift[6],MATCH(INDEX($E11:$AI11,$D$1),tblShift[[Смена]:[Смена]],0)),0)","v":0},{"$f":"IFERROR(INDEX(tblShift[7],MATCH(INDEX($E11:$AI11,$D$1),tblShift[[Смена]:[Смена]],0)),0)","v":0},{"$f":"IFERROR(INDEX(tblShift[8],MATCH(INDEX($E11:$AI11,$D$1),tblShift[[Смена]:[Смена]],0)),0)","v":0},{"$f":"IFERROR(INDEX(tblShift[9],MATCH(INDEX($E11:$AI11,$D$1),tblShift[[Смена]:[Смена]],0)),0)","v":0},{"$f":"IFERROR(INDEX(tblShift[10],MATCH(INDEX($E11:$AI11,$D$1),tblShift[[Смена]:[Смена]],0)),0)","v":0},{"$f":"IFERROR(INDEX(tblShift[11],MATCH(INDEX($E11:$AI11,$D$1),tblShift[[Смена]:[Смена]],0)),0)","v":0},{"$f":"IFERROR(INDEX(tblShift[12],MATCH(INDEX($E11:$AI11,$D$1),tblShift[[Смена]:[Смена]],0)),0)","v":0},{"$f":"IFERROR(INDEX(tblShift[13],MATCH(INDEX($E11:$AI11,$D$1),tblShift[[Смена]:[Смена]],0)),0)","v":0},{"$f":"IFERROR(INDEX(tblShift[14],MATCH(INDEX($E11:$AI11,$D$1),tblShift[[Смена]:[Смена]],0)),0)","v":0},{"$f":"IFERROR(INDEX(tblShift[15],MATCH(INDEX($E11:$AI11,$D$1),tblShift[[Смена]:[Смена]],0)),0)","v":0},{"$f":"IFERROR(INDEX(tblShift[16],MATCH(INDEX($E11:$AI11,$D$1),tblShift[[Смена]:[Смена]],0)),0)","v":0},{"$f":"IFERROR(INDEX(tblShift[17],MATCH(INDEX($E11:$AI11,$D$1),tblShift[[Смена]:[Смена]],0)),0)","v":0},{"$f":"IFERROR(INDEX(tblShift[18],MATCH(INDEX($E11:$AI11,$D$1),tblShift[[Смена]:[Смена]],0)),0)","v":0},{"$f":"IFERROR(INDEX(tblShift[19],MATCH(INDEX($E11:$AI11,$D$1),tblShift[[Смена]:[Смена]],0)),0)","v":0},{"$f":"IFERROR(INDEX(tblShift[20],MATCH(INDEX($E11:$AI11,$D$1),tblShift[[Смена]:[Смена]],0)),0)","v":0},{"$f":"IFERROR(INDEX(tblShift[21],MATCH(INDEX($E11:$AI11,$D$1),tblShift[[Смена]:[Смена]],0)),0)","v":0},{"$f":"IFERROR(INDEX(tblShift[22],MATCH(INDEX($E11:$AI11,$D$1),tblShift[[Смена]:[Смена]],0)),0)","v":0},{"$f":"IFERROR(INDEX(tblShift[23],MATCH(INDEX($E11:$AI11,$D$1),tblShift[[Смена]:[Смена]],0)),0)","v":0},null,{"$f":"IF(EX$7<>\"\",IFERROR(IF(INDEX(tblShift[[Рабочий]:[Рабочий]],MATCH(E11,tblShift[[Смена]:[Смена]],0)),1,0),0),0)","v":0},{"$f":"IF(EY$7<>\"\",IFERROR(IF(INDEX(tblShift[[Рабочий]:[Рабочий]],MATCH(F11,tblShift[[Смена]:[Смена]],0)),1,0),0),0)","v":0},{"$f":"IF(EZ$7<>\"\",IFERROR(IF(INDEX(tblShift[[Рабочий]:[Рабочий]],MATCH(G11,tblShift[[Смена]:[Смена]],0)),1,0),0),0)","v":0},{"$f":"IF(FA$7<>\"\",IFERROR(IF(INDEX(tblShift[[Рабочий]:[Рабочий]],MATCH(H11,tblShift[[Смена]:[Смена]],0)),1,0),0),0)","v":0},{"$f":"IF(FB$7<>\"\",IFERROR(IF(INDEX(tblShift[[Рабочий]:[Рабочий]],MATCH(I11,tblShift[[Смена]:[Смена]],0)),1,0),0),0)","v":0},{"$f":"IF(FC$7<>\"\",IFERROR(IF(INDEX(tblShift[[Рабочий]:[Рабочий]],MATCH(J11,tblShift[[Смена]:[Смена]],0)),1,0),0),0)","v":0},{"$f":"IF(FD$7<>\"\",IFERROR(IF(INDEX(tblShift[[Рабочий]:[Рабочий]],MATCH(K11,tblShift[[Смена]:[Смена]],0)),1,0),0),0)","v":0},{"$f":"IF(FE$7<>\"\",IFERROR(IF(INDEX(tblShift[[Рабочий]:[Рабочий]],MATCH(L11,tblShift[[Смена]:[Смена]],0)),1,0),0),0)","v":0},{"$f":"IF(FF$7<>\"\",IFERROR(IF(INDEX(tblShift[[Рабочий]:[Рабочий]],MATCH(M11,tblShift[[Смена]:[Смена]],0)),1,0),0),0)","v":0},{"$f":"IF(FG$7<>\"\",IFERROR(IF(INDEX(tblShift[[Рабочий]:[Рабочий]],MATCH(N11,tblShift[[Смена]:[Смена]],0)),1,0),0),0)","v":0},{"$f":"IF(FH$7<>\"\",IFERROR(IF(INDEX(tblShift[[Рабочий]:[Рабочий]],MATCH(O11,tblShift[[Смена]:[Смена]],0)),1,0),0),0)","v":0},{"$f":"IF(FI$7<>\"\",IFERROR(IF(INDEX(tblShift[[Рабочий]:[Рабочий]],MATCH(P11,tblShift[[Смена]:[Смена]],0)),1,0),0),0)","v":0},{"$f":"IF(FJ$7<>\"\",IFERROR(IF(INDEX(tblShift[[Рабочий]:[Рабочий]],MATCH(Q11,tblShift[[Смена]:[Смена]],0)),1,0),0),0)","v":0},{"$f":"IF(FK$7<>\"\",IFERROR(IF(INDEX(tblShift[[Рабочий]:[Рабочий]],MATCH(R11,tblShift[[Смена]:[Смена]],0)),1,0),0),0)","v":0},{"$f":"IF(FL$7<>\"\",IFERROR(IF(INDEX(tblShift[[Рабочий]:[Рабочий]],MATCH(S11,tblShift[[Смена]:[Смена]],0)),1,0),0),0)","v":0},{"$f":"IF(FM$7<>\"\",IFERROR(IF(INDEX(tblShift[[Рабочий]:[Рабочий]],MATCH(T11,tblShift[[Смена]:[Смена]],0)),1,0),0),0)","v":0},{"$f":"IF(FN$7<>\"\",IFERROR(IF(INDEX(tblShift[[Рабочий]:[Рабочий]],MATCH(U11,tblShift[[Смена]:[Смена]],0)),1,0),0),0)","v":0},{"$f":"IF(FO$7<>\"\",IFERROR(IF(INDEX(tblShift[[Рабочий]:[Рабочий]],MATCH(V11,tblShift[[Смена]:[Смена]],0)),1,0),0),0)","v":0},{"$f":"IF(FP$7<>\"\",IFERROR(IF(INDEX(tblShift[[Рабочий]:[Рабочий]],MATCH(W11,tblShift[[Смена]:[Смена]],0)),1,0),0),0)","v":0},{"$f":"IF(FQ$7<>\"\",IFERROR(IF(INDEX(tblShift[[Рабочий]:[Рабочий]],MATCH(X11,tblShift[[Смена]:[Смена]],0)),1,0),0),0)","v":0},{"$f":"IF(FR$7<>\"\",IFERROR(IF(INDEX(tblShift[[Рабочий]:[Рабочий]],MATCH(Y11,tblShift[[Смена]:[Смена]],0)),1,0),0),0)","v":0},{"$f":"IF(FS$7<>\"\",IFERROR(IF(INDEX(tblShift[[Рабочий]:[Рабочий]],MATCH(Z11,tblShift[[Смена]:[Смена]],0)),1,0),0),0)","v":0},{"$f":"IF(FT$7<>\"\",IFERROR(IF(INDEX(tblShift[[Рабочий]:[Рабочий]],MATCH(AA11,tblShift[[Смена]:[Смена]],0)),1,0),0),0)","v":0},{"$f":"IF(FU$7<>\"\",IFERROR(IF(INDEX(tblShift[[Рабочий]:[Рабочий]],MATCH(AB11,tblShift[[Смена]:[Смена]],0)),1,0),0),0)","v":0},{"$f":"IF(FV$7<>\"\",IFERROR(IF(INDEX(tblShift[[Рабочий]:[Рабочий]],MATCH(AC11,tblShift[[Смена]:[Смена]],0)),1,0),0),0)","v":0},{"$f":"IF(FW$7<>\"\",IFERROR(IF(INDEX(tblShift[[Рабочий]:[Рабочий]],MATCH(AD11,tblShift[[Смена]:[Смена]],0)),1,0),0),0)","v":0},{"$f":"IF(FX$7<>\"\",IFERROR(IF(INDEX(tblShift[[Рабочий]:[Рабочий]],MATCH(AE11,tblShift[[Смена]:[Смена]],0)),1,0),0),0)","v":0},{"$f":"IF(FY$7<>\"\",IFERROR(IF(INDEX(tblShift[[Рабочий]:[Рабочий]],MATCH(AF11,tblShift[[Смена]:[Смена]],0)),1,0),0),0)","v":0},{"$f":"IF(FZ$7<>\"\",IFERROR(IF(INDEX(tblShift[[Рабочий]:[Рабочий]],MATCH(AG11,tblShift[[Смена]:[Смена]],0)),1,0),0),0)","v":0},{"$f":"IF(GA$7<>\"\",IFERROR(IF(INDEX(tblShift[[Рабочий]:[Рабочий]],MATCH(AH11,tblShift[[Смена]:[Смена]],0)),1,0),0),0)","v":0},{"$f":"IF(GB$7<>\"\",IFERROR(IF(INDEX(tblShift[[Рабочий]:[Рабочий]],MATCH(AI11,tblShift[[Смена]:[Смена]],0)),1,0),0),0)","v":0},null,null,null,null,null,null,null,null,null,null,null,null,null,null,null,0]
[null,null,"","",null,null,null,null,null,null,null,null,null,null,null,null,null,null,null,null,null,null,null,null,null,null,null,null,null,null,null,null,null,null,null,null,{"$f":"IF(AK11<>\"\",IFERROR(VLOOKUP(E12,tblShift[],3,0),0),0)","v":0},{"$f":"IF(AL11<>\"\",IFERROR(VLOOKUP(F12,tblShift[],3,0),0),0)","v":0},{"$f":"IF(AM11<>\"\",IFERROR(VLOOKUP(G12,tblShift[],3,0),0),0)","v":0},{"$f":"IF(AN$7<>\"\",IFERROR(VLOOKUP(H12,tblShift[],3,0),0),0)","v":0},{"$f":"IF(AO$7<>\"\",IFERROR(VLOOKUP(I12,tblShift[],3,0),0),0)","v":0},{"$f":"IF(AP$7<>\"\",IFERROR(VLOOKUP(J12,tblShift[],3,0),0),0)","v":0},{"$f":"IF(AQ$7<>\"\",IFERROR(VLOOKUP(K12,tblShift[],3,0),0),0)","v":0},{"$f":"IF(AR$7<>\"\",IFERROR(VLOOKUP(L12,tblShift[],3,0),0),0)","v":0},{"$f":"IF(AS$7<>\"\",IFERROR(VLOOKUP(M12,tblShift[],3,0),0),0)","v":0},{"$f":"IF(AT$7<>\"\",IFERROR(VLOOKUP(N12,tblShift[],3,0),0),0)","v":0},{"$f":"IF(AU$7<>\"\",IFERROR(VLOOKUP(O12,tblShift[],3,0),0),0)","v":0},{"$f":"IF(AV$7<>\"\",IFERROR(VLOOKUP(P12,tblShift[],3,0),0),0)","v":0},{"$f":"IF(AW$7<>\"\",IFERROR(VLOOKUP(Q12,tblShift[],3,0),0),0)","v":0},{"$f":"IF(AX$7<>\"\",IFERROR(VLOOKUP(R12,tblShift[],3,0),0),0)","v":0},{"$f":"IF(AY$7<>\"\",IFERROR(VLOOKUP(S12,tblShift[],3,0),0),0)","v":0},{"$f":"IF(AZ$7<>\"\",IFERROR(VLOOKUP(T12,tblShift[],3,0),0),0)","v":0},{"$f":"IF(BA$7<>\"\",IFERROR(VLOOKUP(U12,tblShift[],3,0),0),0)","v":0},{"$f":"IF(BB$7<>\"\",IFERROR(VLOOKUP(V12,tblShift[],3,0),0),0)","v":0},{"$f":"IF(BC$7<>\"\",IFERROR(VLOOKUP(W12,tblShift[],3,0),0),0)","v":0},{"$f":"IF(BD$7<>\"\",IFERROR(VLOOKUP(X12,tblShift[],3,0),0),0)","v":0},{"$f":"IF(BE$7<>\"\",IFERROR(VLOOKUP(Y12,tblShift[],3,0),0),0)","v":0},{"$f":"IF(BF$7<>\"\",IFERROR(VLOOKUP(Z12,tblShift[],3,0),0),0)","v":0},{"$f":"IF(BG$7<>\"\",IFERROR(VLOOKUP(AA12,tblShift[],3,0),0),0)","v":0},{"$f":"IF(BH$7<>\"\",IFERROR(VLOOKUP(AB12,tblShift[],3,0),0),0)","v":0},{"$f":"IF(BI$7<>\"\",IFERROR(VLOOKUP(AC12,tblShift[],3,0),0),0)","v":0},{"$f":"IF(BJ$7<>\"\",IFERROR(VLOOKUP(AD12,tblShift[],3,0),0),0)","v":0},{"$f":"IF(BK$7<>\"\",IFERROR(VLOOKUP(AE12,tblShift[],3,0),0),0)","v":0},{"$f":"IF(BL$7<>\"\",IFERROR(VLOOKUP(AF12,tblShift[],3,0),0),0)","v":0},{"$f":"IF(BM$7<>\"\",IFERROR(VLOOKUP(AG12,tblShift[],3,0),0),0)","v":0},{"$f":"IF(BN$7<>\"\",IFERROR(VLOOKUP(AH12,tblShift[],3,0),0),0)","v":0},{"$f":"IF(BO$7<>\"\",IFERROR(VLOOKUP(AI12,tblShift[],3,0),0),0)","v":0},null,0,0,0,0,0,0,0,0,0,0,0,0,0,0,0,0,0,0,0,0,0,0,0,0,0,0,0,0,0,null,0,0,0,0,0,0,0,0,0,0,0,0,0,0,0,0,0,0,0,0,0,0,0,0,0,0,0,0,0,null,{"$f":"IFERROR(INDEX(tblShift[0],MATCH(INDEX($E12:$AI12,$D$1),tblShift[[Смена]:[Смена]],0)),0)","v":0},{"$f":"IFERROR(INDEX(tblShift[1],MATCH(INDEX($E12:$AI12,$D$1),tblShift[[Смена]:[Смена]],0)),0)","v":0},{"$f":"IFERROR(INDEX(tblShift[2],MATCH(INDEX($E12:$AI12,$D$1),tblShift[[Смена]:[Смена]],0)),0)","v":0},{"$f":"IFERROR(INDEX(tblShift[3],MATCH(INDEX($E12:$AI12,$D$1),tblShift[[Смена]:[Смена]],0)),0)","v":0},{"$f":"IFERROR(INDEX(tblShift[4],MATCH(INDEX($E12:$AI12,$D$1),tblShift[[Смена]:[Смена]],0)),0)","v":0},{"$f":"IFERROR(INDEX(tblShift[5],MATCH(INDEX($E12:$AI12,$D$1),tblShift[[Смена]:[Смена]],0)),0)","v":0},{"$f":"IFERROR(INDEX(tblShift[6],MATCH(INDEX($E12:$AI12,$D$1),tblShift[[Смена]:[Смена]],0)),0)","v":0},{"$f":"IFERROR(INDEX(tblShift[7],MATCH(INDEX($E12:$AI12,$D$1),tblShift[[Смена]:[Смена]],0)),0)","v":0},{"$f":"IFERROR(INDEX(tblShift[8],MATCH(INDEX($E12:$AI12,$D$1),tblShift[[Смена]:[Смена]],0)),0)","v":0},{"$f":"IFERROR(INDEX(tblShift[9],MATCH(INDEX($E12:$AI12,$D$1),tblShift[[Смена]:[Смена]],0)),0)","v":0},{"$f":"IFERROR(INDEX(tblShift[10],MATCH(INDEX($E12:$AI12,$D$1),tblShift[[Смена]:[Смена]],0)),0)","v":0},{"$f":"IFERROR(INDEX(tblShift[11],MATCH(INDEX($E12:$AI12,$D$1),tblShift[[Смена]:[Смена]],0)),0)","v":0},{"$f":"IFERROR(INDEX(tblShift[12],MATCH(INDEX($E12:$AI12,$D$1),tblShift[[Смена]:[Смена]],0)),0)","v":0},{"$f":"IFERROR(INDEX(tblShift[13],MATCH(INDEX($E12:$AI12,$D$1),tblShift[[Смена]:[Смена]],0)),0)","v":0},{"$f":"IFERROR(INDEX(tblShift[14],MATCH(INDEX($E12:$AI12,$D$1),tblShift[[Смена]:[Смена]],0)),0)","v":0},{"$f":"IFERROR(INDEX(tblShift[15],MATCH(INDEX($E12:$AI12,$D$1),tblShift[[Смена]:[Смена]],0)),0)","v":0},{"$f":"IFERROR(INDEX(tblShift[16],MATCH(INDEX($E12:$AI12,$D$1),tblShift[[Смена]:[Смена]],0)),0)","v":0},{"$f":"IFERROR(INDEX(tblShift[17],MATCH(INDEX($E12:$AI12,$D$1),tblShift[[Смена]:[Смена]],0)),0)","v":0},{"$f":"IFERROR(INDEX(tblShift[18],MATCH(INDEX($E12:$AI12,$D$1),tblShift[[Смена]:[Смена]],0)),0)","v":0},{"$f":"IFERROR(INDEX(tblShift[19],MATCH(INDEX($E12:$AI12,$D$1),tblShift[[Смена]:[Смена]],0)),0)","v":0},{"$f":"IFERROR(INDEX(tblShift[20],MATCH(INDEX($E12:$AI12,$D$1),tblShift[[Смена]:[Смена]],0)),0)","v":0},{"$f":"IFERROR(INDEX(tblShift[21],MATCH(INDEX($E12:$AI12,$D$1),tblShift[[Смена]:[Смена]],0)),0)","v":0},{"$f":"IFERROR(INDEX(tblShift[22],MATCH(INDEX($E12:$AI12,$D$1),tblShift[[Смена]:[Смена]],0)),0)","v":0},{"$f":"IFERROR(INDEX(tblShift[23],MATCH(INDEX($E12:$AI12,$D$1),tblShift[[Смена]:[Смена]],0)),0)","v":0},null,{"$f":"IF(EX$7<>\"\",IFERROR(IF(INDEX(tblShift[[Рабочий]:[Рабочий]],MATCH(E12,tblShift[[Смена]:[Смена]],0)),1,0),0),0)","v":0},{"$f":"IF(EY$7<>\"\",IFERROR(IF(INDEX(tblShift[[Рабочий]:[Рабочий]],MATCH(F12,tblShift[[Смена]:[Смена]],0)),1,0),0),0)","v":0},{"$f":"IF(EZ$7<>\"\",IFERROR(IF(INDEX(tblShift[[Рабочий]:[Рабочий]],MATCH(G12,tblShift[[Смена]:[Смена]],0)),1,0),0),0)","v":0},{"$f":"IF(FA$7<>\"\",IFERROR(IF(INDEX(tblShift[[Рабочий]:[Рабочий]],MATCH(H12,tblShift[[Смена]:[Смена]],0)),1,0),0),0)","v":0},{"$f":"IF(FB$7<>\"\",IFERROR(IF(INDEX(tblShift[[Рабочий]:[Рабочий]],MATCH(I12,tblShift[[Смена]:[Смена]],0)),1,0),0),0)","v":0},{"$f":"IF(FC$7<>\"\",IFERROR(IF(INDEX(tblShift[[Рабочий]:[Рабочий]],MATCH(J12,tblShift[[Смена]:[Смена]],0)),1,0),0),0)","v":0},{"$f":"IF(FD$7<>\"\",IFERROR(IF(INDEX(tblShift[[Рабочий]:[Рабочий]],MATCH(K12,tblShift[[Смена]:[Смена]],0)),1,0),0),0)","v":0},{"$f":"IF(FE$7<>\"\",IFERROR(IF(INDEX(tblShift[[Рабочий]:[Рабочий]],MATCH(L12,tblShift[[Смена]:[Смена]],0)),1,0),0),0)","v":0},{"$f":"IF(FF$7<>\"\",IFERROR(IF(INDEX(tblShift[[Рабочий]:[Рабочий]],MATCH(M12,tblShift[[Смена]:[Смена]],0)),1,0),0),0)","v":0},{"$f":"IF(FG$7<>\"\",IFERROR(IF(INDEX(tblShift[[Рабочий]:[Рабочий]],MATCH(N12,tblShift[[Смена]:[Смена]],0)),1,0),0),0)","v":0},{"$f":"IF(FH$7<>\"\",IFERROR(IF(INDEX(tblShift[[Рабочий]:[Рабочий]],MATCH(O12,tblShift[[Смена]:[Смена]],0)),1,0),0),0)","v":0},{"$f":"IF(FI$7<>\"\",IFERROR(IF(INDEX(tblShift[[Рабочий]:[Рабочий]],MATCH(P12,tblShift[[Смена]:[Смена]],0)),1,0),0),0)","v":0},{"$f":"IF(FJ$7<>\"\",IFERROR(IF(INDEX(tblShift[[Рабочий]:[Рабочий]],MATCH(Q12,tblShift[[Смена]:[Смена]],0)),1,0),0),0)","v":0},{"$f":"IF(FK$7<>\"\",IFERROR(IF(INDEX(tblShift[[Рабочий]:[Рабочий]],MATCH(R12,tblShift[[Смена]:[Смена]],0)),1,0),0),0)","v":0},{"$f":"IF(FL$7<>\"\",IFERROR(IF(INDEX(tblShift[[Рабочий]:[Рабочий]],MATCH(S12,tblShift[[Смена]:[Смена]],0)),1,0),0),0)","v":0},{"$f":"IF(FM$7<>\"\",IFERROR(IF(INDEX(tblShift[[Рабочий]:[Рабочий]],MATCH(T12,tblShift[[Смена]:[Смена]],0)),1,0),0),0)","v":0},{"$f":"IF(FN$7<>\"\",IFERROR(IF(INDEX(tblShift[[Рабочий]:[Рабочий]],MATCH(U12,tblShift[[Смена]:[Смена]],0)),1,0),0),0)","v":0},{"$f":"IF(FO$7<>\"\",IFERROR(IF(INDEX(tblShift[[Рабочий]:[Рабочий]],MATCH(V12,tblShift[[Смена]:[Смена]],0)),1,0),0),0)","v":0},{"$f":"IF(FP$7<>\"\",IFERROR(IF(INDEX(tblShift[[Рабочий]:[Рабочий]],MATCH(W12,tblShift[[Смена]:[Смена]],0)),1,0),0),0)","v":0},{"$f":"IF(FQ$7<>\"\",IFERROR(IF(INDEX(tblShift[[Рабочий]:[Рабочий]],MATCH(X12,tblShift[[Смена]:[Смена]],0)),1,0),0),0)","v":0},{"$f":"IF(FR$7<>\"\",IFERROR(IF(INDEX(tblShift[[Рабочий]:[Рабочий]],MATCH(Y12,tblShift[[Смена]:[Смена]],0)),1,0),0),0)","v":0},{"$f":"IF(FS$7<>\"\",IFERROR(IF(INDEX(tblShift[[Рабочий]:[Рабочий]],MATCH(Z12,tblShift[[Смена]:[Смена]],0)),1,0),0),0)","v":0},{"$f":"IF(FT$7<>\"\",IFERROR(IF(INDEX(tblShift[[Рабочий]:[Рабочий]],MATCH(AA12,tblShift[[Смена]:[Смена]],0)),1,0),0),0)","v":0},{"$f":"IF(FU$7<>\"\",IFERROR(IF(INDEX(tblShift[[Рабочий]:[Рабочий]],MATCH(AB12,tblShift[[Смена]:[Смена]],0)),1,0),0),0)","v":0},{"$f":"IF(FV$7<>\"\",IFERROR(IF(INDEX(tblShift[[Рабочий]:[Рабочий]],MATCH(AC12,tblShift[[Смена]:[Смена]],0)),1,0),0),0)","v":0},{"$f":"IF(FW$7<>\"\",IFERROR(IF(INDEX(tblShift[[Рабочий]:[Рабочий]],MATCH(AD12,tblShift[[Смена]:[Смена]],0)),1,0),0),0)","v":0},{"$f":"IF(FX$7<>\"\",IFERROR(IF(INDEX(tblShift[[Рабочий]:[Рабочий]],MATCH(AE12,tblShift[[Смена]:[Смена]],0)),1,0),0),0)","v":0},{"$f":"IF(FY$7<>\"\",IFERROR(IF(INDEX(tblShift[[Рабочий]:[Рабочий]],MATCH(AF12,tblShift[[Смена]:[Смена]],0)),1,0),0),0)","v":0},{"$f":"IF(FZ$7<>\"\",IFERROR(IF(INDEX(tblShift[[Рабочий]:[Рабочий]],MATCH(AG12,tblShift[[Смена]:[Смена]],0)),1,0),0),0)","v":0},{"$f":"IF(GA$7<>\"\",IFERROR(IF(INDEX(tblShift[[Рабочий]:[Рабочий]],MATCH(AH12,tblShift[[Смена]:[Смена]],0)),1,0),0),0)","v":0},{"$f":"IF(GB$7<>\"\",IFERROR(IF(INDEX(tblShift[[Рабочий]:[Рабочий]],MATCH(AI12,tblShift[[Смена]:[Смена]],0)),1,0),0),0)","v":0},null,null,null,null,null,null,null,null,null,null,null,null,null,null,null,0]
[null,null,"","",null,null,null,null,null,null,null,null,null,null,null,null,null,null,null,null,null,null,null,null,null,null,null,null,null,null,null,null,null,null,null,null,{"$f":"IF(AK12<>\"\",IFERROR(VLOOKUP(E13,tblShift[],3,0),0),0)","v":0},{"$f":"IF(AL12<>\"\",IFERROR(VLOOKUP(F13,tblShift[],3,0),0),0)","v":0},{"$f":"IF(AM12<>\"\",IFERROR(VLOOKUP(G13,tblShift[],3,0),0),0)","v":0},{"$f":"IF(AN$7<>\"\",IFERROR(VLOOKUP(H13,tblShift[],3,0),0),0)","v":0},{"$f":"IF(AO$7<>\"\",IFERROR(VLOOKUP(I13,tblShift[],3,0),0),0)","v":0},{"$f":"IF(AP$7<>\"\",IFERROR(VLOOKUP(J13,tblShift[],3,0),0),0)","v":0},{"$f":"IF(AQ$7<>\"\",IFERROR(VLOOKUP(K13,tblShift[],3,0),0),0)","v":0},{"$f":"IF(AR$7<>\"\",IFERROR(VLOOKUP(L13,tblShift[],3,0),0),0)","v":0},{"$f":"IF(AS$7<>\"\",IFERROR(VLOOKUP(M13,tblShift[],3,0),0),0)","v":0},{"$f":"IF(AT$7<>\"\",IFERROR(VLOOKUP(N13,tblShift[],3,0),0),0)","v":0},{"$f":"IF(AU$7<>\"\",IFERROR(VLOOKUP(O13,tblShift[],3,0),0),0)","v":0},{"$f":"IF(AV$7<>\"\",IFERROR(VLOOKUP(P13,tblShift[],3,0),0),0)","v":0},{"$f":"IF(AW$7<>\"\",IFERROR(VLOOKUP(Q13,tblShift[],3,0),0),0)","v":0},{"$f":"IF(AX$7<>\"\",IFERROR(VLOOKUP(R13,tblShift[],3,0),0),0)","v":0},{"$f":"IF(AY$7<>\"\",IFERROR(VLOOKUP(S13,tblShift[],3,0),0),0)","v":0},{"$f":"IF(AZ$7<>\"\",IFERROR(VLOOKUP(T13,tblShift[],3,0),0),0)","v":0},{"$f":"IF(BA$7<>\"\",IFERROR(VLOOKUP(U13,tblShift[],3,0),0),0)","v":0},{"$f":"IF(BB$7<>\"\",IFERROR(VLOOKUP(V13,tblShift[],3,0),0),0)","v":0},{"$f":"IF(BC$7<>\"\",IFERROR(VLOOKUP(W13,tblShift[],3,0),0),0)","v":0},{"$f":"IF(BD$7<>\"\",IFERROR(VLOOKUP(X13,tblShift[],3,0),0),0)","v":0},{"$f":"IF(BE$7<>\"\",IFERROR(VLOOKUP(Y13,tblShift[],3,0),0),0)","v":0},{"$f":"IF(BF$7<>\"\",IFERROR(VLOOKUP(Z13,tblShift[],3,0),0),0)","v":0},{"$f":"IF(BG$7<>\"\",IFERROR(VLOOKUP(AA13,tblShift[],3,0),0),0)","v":0},{"$f":"IF(BH$7<>\"\",IFERROR(VLOOKUP(AB13,tblShift[],3,0),0),0)","v":0},{"$f":"IF(BI$7<>\"\",IFERROR(VLOOKUP(AC13,tblShift[],3,0),0),0)","v":0},{"$f":"IF(BJ$7<>\"\",IFERROR(VLOOKUP(AD13,tblShift[],3,0),0),0)","v":0},{"$f":"IF(BK$7<>\"\",IFERROR(VLOOKUP(AE13,tblShift[],3,0),0),0)","v":0},{"$f":"IF(BL$7<>\"\",IFERROR(VLOOKUP(AF13,tblShift[],3,0),0),0)","v":0},{"$f":"IF(BM$7<>\"\",IFERROR(VLOOKUP(AG13,tblShift[],3,0),0),0)","v":0},{"$f":"IF(BN$7<>\"\",IFERROR(VLOOKUP(AH13,tblShift[],3,0),0),0)","v":0},{"$f":"IF(BO$7<>\"\",IFERROR(VLOOKUP(AI13,tblShift[],3,0),0),0)","v":0},null,0,0,0,0,0,0,0,0,0,0,0,0,0,0,0,0,0,0,0,0,0,0,0,0,0,0,0,0,0,null,0,0,0,0,0,0,0,0,0,0,0,0,0,0,0,0,0,0,0,0,0,0,0,0,0,0,0,0,0,null,{"$f":"IFERROR(INDEX(tblShift[0],MATCH(INDEX($E13:$AI13,$D$1),tblShift[[Смена]:[Смена]],0)),0)","v":0},{"$f":"IFERROR(INDEX(tblShift[1],MATCH(INDEX($E13:$AI13,$D$1),tblShift[[Смена]:[Смена]],0)),0)","v":0},{"$f":"IFERROR(INDEX(tblShift[2],MATCH(INDEX($E13:$AI13,$D$1),tblShift[[Смена]:[Смена]],0)),0)","v":0},{"$f":"IFERROR(INDEX(tblShift[3],MATCH(INDEX($E13:$AI13,$D$1),tblShift[[Смена]:[Смена]],0)),0)","v":0},{"$f":"IFERROR(INDEX(tblShift[4],MATCH(INDEX($E13:$AI13,$D$1),tblShift[[Смена]:[Смена]],0)),0)","v":0},{"$f":"IFERROR(INDEX(tblShift[5],MATCH(INDEX($E13:$AI13,$D$1),tblShift[[Смена]:[Смена]],0)),0)","v":0},{"$f":"IFERROR(INDEX(tblShift[6],MATCH(INDEX($E13:$AI13,$D$1),tblShift[[Смена]:[Смена]],0)),0)","v":0},{"$f":"IFERROR(INDEX(tblShift[7],MATCH(INDEX($E13:$AI13,$D$1),tblShift[[Смена]:[Смена]],0)),0)","v":0},{"$f":"IFERROR(INDEX(tblShift[8],MATCH(INDEX($E13:$AI13,$D$1),tblShift[[Смена]:[Смена]],0)),0)","v":0},{"$f":"IFERROR(INDEX(tblShift[9],MATCH(INDEX($E13:$AI13,$D$1),tblShift[[Смена]:[Смена]],0)),0)","v":0},{"$f":"IFERROR(INDEX(tblShift[10],MATCH(INDEX($E13:$AI13,$D$1),tblShift[[Смена]:[Смена]],0)),0)","v":0},{"$f":"IFERROR(INDEX(tblShift[11],MATCH(INDEX($E13:$AI13,$D$1),tblShift[[Смена]:[Смена]],0)),0)","v":0},{"$f":"IFERROR(INDEX(tblShift[12],MATCH(INDEX($E13:$AI13,$D$1),tblShift[[Смена]:[Смена]],0)),0)","v":0},{"$f":"IFERROR(INDEX(tblShift[13],MATCH(INDEX($E13:$AI13,$D$1),tblShift[[Смена]:[Смена]],0)),0)","v":0},{"$f":"IFERROR(INDEX(tblShift[14],MATCH(INDEX($E13:$AI13,$D$1),tblShift[[Смена]:[Смена]],0)),0)","v":0},{"$f":"IFERROR(INDEX(tblShift[15],MATCH(INDEX($E13:$AI13,$D$1),tblShift[[Смена]:[Смена]],0)),0)","v":0},{"$f":"IFERROR(INDEX(tblShift[16],MATCH(INDEX($E13:$AI13,$D$1),tblShift[[Смена]:[Смена]],0)),0)","v":0},{"$f":"IFERROR(INDEX(tblShift[17],MATCH(INDEX($E13:$AI13,$D$1),tblShift[[Смена]:[Смена]],0)),0)","v":0},{"$f":"IFERROR(INDEX(tblShift[18],MATCH(INDEX($E13:$AI13,$D$1),tblShift[[Смена]:[Смена]],0)),0)","v":0},{"$f":"IFERROR(INDEX(tblShift[19],MATCH(INDEX($E13:$AI13,$D$1),tblShift[[Смена]:[Смена]],0)),0)","v":0},{"$f":"IFERROR(INDEX(tblShift[20],MATCH(INDEX($E13:$AI13,$D$1),tblShift[[Смена]:[Смена]],0)),0)","v":0},{"$f":"IFERROR(INDEX(tblShift[21],MATCH(INDEX($E13:$AI13,$D$1),tblShift[[Смена]:[Смена]],0)),0)","v":0},{"$f":"IFERROR(INDEX(tblShift[22],MATCH(INDEX($E13:$AI13,$D$1),tblShift[[Смена]:[Смена]],0)),0)","v":0},{"$f":"IFERROR(INDEX(tblShift[23],MATCH(INDEX($E13:$AI13,$D$1),tblShift[[Смена]:[Смена]],0)),0)","v":0},null,{"$f":"IF(EX$7<>\"\",IFERROR(IF(INDEX(tblShift[[Рабочий]:[Рабочий]],MATCH(E13,tblShift[[Смена]:[Смена]],0)),1,0),0),0)","v":0},{"$f":"IF(EY$7<>\"\",IFERROR(IF(INDEX(tblShift[[Рабочий]:[Рабочий]],MATCH(F13,tblShift[[Смена]:[Смена]],0)),1,0),0),0)","v":0},{"$f":"IF(EZ$7<>\"\",IFERROR(IF(INDEX(tblShift[[Рабочий]:[Рабочий]],MATCH(G13,tblShift[[Смена]:[Смена]],0)),1,0),0),0)","v":0},{"$f":"IF(FA$7<>\"\",IFERROR(IF(INDEX(tblShift[[Рабочий]:[Рабочий]],MATCH(H13,tblShift[[Смена]:[Смена]],0)),1,0),0),0)","v":0},{"$f":"IF(FB$7<>\"\",IFERROR(IF(INDEX(tblShift[[Рабочий]:[Рабочий]],MATCH(I13,tblShift[[Смена]:[Смена]],0)),1,0),0),0)","v":0},{"$f":"IF(FC$7<>\"\",IFERROR(IF(INDEX(tblShift[[Рабочий]:[Рабочий]],MATCH(J13,tblShift[[Смена]:[Смена]],0)),1,0),0),0)","v":0},{"$f":"IF(FD$7<>\"\",IFERROR(IF(INDEX(tblShift[[Рабочий]:[Рабочий]],MATCH(K13,tblShift[[Смена]:[Смена]],0)),1,0),0),0)","v":0},{"$f":"IF(FE$7<>\"\",IFERROR(IF(INDEX(tblShift[[Рабочий]:[Рабочий]],MATCH(L13,tblShift[[Смена]:[Смена]],0)),1,0),0),0)","v":0},{"$f":"IF(FF$7<>\"\",IFERROR(IF(INDEX(tblShift[[Рабочий]:[Рабочий]],MATCH(M13,tblShift[[Смена]:[Смена]],0)),1,0),0),0)","v":0},{"$f":"IF(FG$7<>\"\",IFERROR(IF(INDEX(tblShift[[Рабочий]:[Рабочий]],MATCH(N13,tblShift[[Смена]:[Смена]],0)),1,0),0),0)","v":0},{"$f":"IF(FH$7<>\"\",IFERROR(IF(INDEX(tblShift[[Рабочий]:[Рабочий]],MATCH(O13,tblShift[[Смена]:[Смена]],0)),1,0),0),0)","v":0},{"$f":"IF(FI$7<>\"\",IFERROR(IF(INDEX(tblShift[[Рабочий]:[Рабочий]],MATCH(P13,tblShift[[Смена]:[Смена]],0)),1,0),0),0)","v":0},{"$f":"IF(FJ$7<>\"\",IFERROR(IF(INDEX(tblShift[[Рабочий]:[Рабочий]],MATCH(Q13,tblShift[[Смена]:[Смена]],0)),1,0),0),0)","v":0},{"$f":"IF(FK$7<>\"\",IFERROR(IF(INDEX(tblShift[[Рабочий]:[Рабочий]],MATCH(R13,tblShift[[Смена]:[Смена]],0)),1,0),0),0)","v":0},{"$f":"IF(FL$7<>\"\",IFERROR(IF(INDEX(tblShift[[Рабочий]:[Рабочий]],MATCH(S13,tblShift[[Смена]:[Смена]],0)),1,0),0),0)","v":0},{"$f":"IF(FM$7<>\"\",IFERROR(IF(INDEX(tblShift[[Рабочий]:[Рабочий]],MATCH(T13,tblShift[[Смена]:[Смена]],0)),1,0),0),0)","v":0},{"$f":"IF(FN$7<>\"\",IFERROR(IF(INDEX(tblShift[[Рабочий]:[Рабочий]],MATCH(U13,tblShift[[Смена]:[Смена]],0)),1,0),0),0)","v":0},{"$f":"IF(FO$7<>\"\",IFERROR(IF(INDEX(tblShift[[Рабочий]:[Рабочий]],MATCH(V13,tblShift[[Смена]:[Смена]],0)),1,0),0),0)","v":0},{"$f":"IF(FP$7<>\"\",IFERROR(IF(INDEX(tblShift[[Рабочий]:[Рабочий]],MATCH(W13,tblShift[[Смена]:[Смена]],0)),1,0),0),0)","v":0},{"$f":"IF(FQ$7<>\"\",IFERROR(IF(INDEX(tblShift[[Рабочий]:[Рабочий]],MATCH(X13,tblShift[[Смена]:[Смена]],0)),1,0),0),0)","v":0},{"$f":"IF(FR$7<>\"\",IFERROR(IF(INDEX(tblShift[[Рабочий]:[Рабочий]],MATCH(Y13,tblShift[[Смена]:[Смена]],0)),1,0),0),0)","v":0},{"$f":"IF(FS$7<>\"\",IFERROR(IF(INDEX(tblShift[[Рабочий]:[Рабочий]],MATCH(Z13,tblShift[[Смена]:[Смена]],0)),1,0),0),0)","v":0},{"$f":"IF(FT$7<>\"\",IFERROR(IF(INDEX(tblShift[[Рабочий]:[Рабочий]],MATCH(AA13,tblShift[[Смена]:[Смена]],0)),1,0),0),0)","v":0},{"$f":"IF(FU$7<>\"\",IFERROR(IF(INDEX(tblShift[[Рабочий]:[Рабочий]],MATCH(AB13,tblShift[[Смена]:[Смена]],0)),1,0),0),0)","v":0},{"$f":"IF(FV$7<>\"\",IFERROR(IF(INDEX(tblShift[[Рабочий]:[Рабочий]],MATCH(AC13,tblShift[[Смена]:[Смена]],0)),1,0),0),0)","v":0},{"$f":"IF(FW$7<>\"\",IFERROR(IF(INDEX(tblShift[[Рабочий]:[Рабочий]],MATCH(AD13,tblShift[[Смена]:[Смена]],0)),1,0),0),0)","v":0},{"$f":"IF(FX$7<>\"\",IFERROR(IF(INDEX(tblShift[[Рабочий]:[Рабочий]],MATCH(AE13,tblShift[[Смена]:[Смена]],0)),1,0),0),0)","v":0},{"$f":"IF(FY$7<>\"\",IFERROR(IF(INDEX(tblShift[[Рабочий]:[Рабочий]],MATCH(AF13,tblShift[[Смена]:[Смена]],0)),1,0),0),0)","v":0},{"$f":"IF(FZ$7<>\"\",IFERROR(IF(INDEX(tblShift[[Рабочий]:[Рабочий]],MATCH(AG13,tblShift[[Смена]:[Смена]],0)),1,0),0),0)","v":0},{"$f":"IF(GA$7<>\"\",IFERROR(IF(INDEX(tblShift[[Рабочий]:[Рабочий]],MATCH(AH13,tblShift[[Смена]:[Смена]],0)),1,0),0),0)","v":0},{"$f":"IF(GB$7<>\"\",IFERROR(IF(INDEX(tblShift[[Рабочий]:[Рабочий]],MATCH(AI13,tblShift[[Смена]:[Смена]],0)),1,0),0),0)","v":0},null,null,null,null,null,null,null,null,null,null,null,null,null,null,null,0]
[null,null,"","",null,null,null,null,null,null,null,null,null,null,null,null,null,null,null,null,null,null,null,null,null,null,null,null,null,null,null,null,null,null,null,null,{"$f":"IF(AK13<>\"\",IFERROR(VLOOKUP(E14,tblShift[],3,0),0),0)","v":0},{"$f":"IF(AL13<>\"\",IFERROR(VLOOKUP(F14,tblShift[],3,0),0),0)","v":0},{"$f":"IF(AM13<>\"\",IFERROR(VLOOKUP(G14,tblShift[],3,0),0),0)","v":0},{"$f":"IF(AN$7<>\"\",IFERROR(VLOOKUP(H14,tblShift[],3,0),0),0)","v":0},{"$f":"IF(AO$7<>\"\",IFERROR(VLOOKUP(I14,tblShift[],3,0),0),0)","v":0},{"$f":"IF(AP$7<>\"\",IFERROR(VLOOKUP(J14,tblShift[],3,0),0),0)","v":0},{"$f":"IF(AQ$7<>\"\",IFERROR(VLOOKUP(K14,tblShift[],3,0),0),0)","v":0},{"$f":"IF(AR$7<>\"\",IFERROR(VLOOKUP(L14,tblShift[],3,0),0),0)","v":0},{"$f":"IF(AS$7<>\"\",IFERROR(VLOOKUP(M14,tblShift[],3,0),0),0)","v":0},{"$f":"IF(AT$7<>\"\",IFERROR(VLOOKUP(N14,tblShift[],3,0),0),0)","v":0},{"$f":"IF(AU$7<>\"\",IFERROR(VLOOKUP(O14,tblShift[],3,0),0),0)","v":0},{"$f":"IF(AV$7<>\"\",IFERROR(VLOOKUP(P14,tblShift[],3,0),0),0)","v":0},{"$f":"IF(AW$7<>\"\",IFERROR(VLOOKUP(Q14,tblShift[],3,0),0),0)","v":0},{"$f":"IF(AX$7<>\"\",IFERROR(VLOOKUP(R14,tblShift[],3,0),0),0)","v":0},{"$f":"IF(AY$7<>\"\",IFERROR(VLOOKUP(S14,tblShift[],3,0),0),0)","v":0},{"$f":"IF(AZ$7<>\"\",IFERROR(VLOOKUP(T14,tblShift[],3,0),0),0)","v":0},{"$f":"IF(BA$7<>\"\",IFERROR(VLOOKUP(U14,tblShift[],3,0),0),0)","v":0},{"$f":"IF(BB$7<>\"\",IFERROR(VLOOKUP(V14,tblShift[],3,0),0),0)","v":0},{"$f":"IF(BC$7<>\"\",IFERROR(VLOOKUP(W14,tblShift[],3,0),0),0)","v":0},{"$f":"IF(BD$7<>\"\",IFERROR(VLOOKUP(X14,tblShift[],3,0),0),0)","v":0},{"$f":"IF(BE$7<>\"\",IFERROR(VLOOKUP(Y14,tblShift[],3,0),0),0)","v":0},{"$f":"IF(BF$7<>\"\",IFERROR(VLOOKUP(Z14,tblShift[],3,0),0),0)","v":0},{"$f":"IF(BG$7<>\"\",IFERROR(VLOOKUP(AA14,tblShift[],3,0),0),0)","v":0},{"$f":"IF(BH$7<>\"\",IFERROR(VLOOKUP(AB14,tblShift[],3,0),0),0)","v":0},{"$f":"IF(BI$7<>\"\",IFERROR(VLOOKUP(AC14,tblShift[],3,0),0),0)","v":0},{"$f":"IF(BJ$7<>\"\",IFERROR(VLOOKUP(AD14,tblShift[],3,0),0),0)","v":0},{"$f":"IF(BK$7<>\"\",IFERROR(VLOOKUP(AE14,tblShift[],3,0),0),0)","v":0},{"$f":"IF(BL$7<>\"\",IFERROR(VLOOKUP(AF14,tblShift[],3,0),0),0)","v":0},{"$f":"IF(BM$7<>\"\",IFERROR(VLOOKUP(AG14,tblShift[],3,0),0),0)","v":0},{"$f":"IF(BN$7<>\"\",IFERROR(VLOOKUP(AH14,tblShift[],3,0),0),0)","v":0},{"$f":"IF(BO$7<>\"\",IFERROR(VLOOKUP(AI14,tblShift[],3,0),0),0)","v":0},null,0,0,0,0,0,0,0,0,0,0,0,0,0,0,0,0,0,0,0,0,0,0,0,0,0,0,0,0,0,null,0,0,0,0,0,0,0,0,0,0,0,0,0,0,0,0,0,0,0,0,0,0,0,0,0,0,0,0,0,null,{"$f":"IFERROR(INDEX(tblShift[0],MATCH(INDEX($E14:$AI14,$D$1),tblShift[[Смена]:[Смена]],0)),0)","v":0},{"$f":"IFERROR(INDEX(tblShift[1],MATCH(INDEX($E14:$AI14,$D$1),tblShift[[Смена]:[Смена]],0)),0)","v":0},{"$f":"IFERROR(INDEX(tblShift[2],MATCH(INDEX($E14:$AI14,$D$1),tblShift[[Смена]:[Смена]],0)),0)","v":0},{"$f":"IFERROR(INDEX(tblShift[3],MATCH(INDEX($E14:$AI14,$D$1),tblShift[[Смена]:[Смена]],0)),0)","v":0},{"$f":"IFERROR(INDEX(tblShift[4],MATCH(INDEX($E14:$AI14,$D$1),tblShift[[Смена]:[Смена]],0)),0)","v":0},{"$f":"IFERROR(INDEX(tblShift[5],MATCH(INDEX($E14:$AI14,$D$1),tblShift[[Смена]:[Смена]],0)),0)","v":0},{"$f":"IFERROR(INDEX(tblShift[6],MATCH(INDEX($E14:$AI14,$D$1),tblShift[[Смена]:[Смена]],0)),0)","v":0},{"$f":"IFERROR(INDEX(tblShift[7],MATCH(INDEX($E14:$AI14,$D$1),tblShift[[Смена]:[Смена]],0)),0)","v":0},{"$f":"IFERROR(INDEX(tblShift[8],MATCH(INDEX($E14:$AI14,$D$1),tblShift[[Смена]:[Смена]],0)),0)","v":0},{"$f":"IFERROR(INDEX(tblShift[9],MATCH(INDEX($E14:$AI14,$D$1),tblShift[[Смена]:[Смена]],0)),0)","v":0},{"$f":"IFERROR(INDEX(tblShift[10],MATCH(INDEX($E14:$AI14,$D$1),tblShift[[Смена]:[Смена]],0)),0)","v":0},{"$f":"IFERROR(INDEX(tblShift[11],MATCH(INDEX($E14:$AI14,$D$1),tblShift[[Смена]:[Смена]],0)),0)","v":0},{"$f":"IFERROR(INDEX(tblShift[12],MATCH(INDEX($E14:$AI14,$D$1),tblShift[[Смена]:[Смена]],0)),0)","v":0},{"$f":"IFERROR(INDEX(tblShift[13],MATCH(INDEX($E14:$AI14,$D$1),tblShift[[Смена]:[Смена]],0)),0)","v":0},{"$f":"IFERROR(INDEX(tblShift[14],MATCH(INDEX($E14:$AI14,$D$1),tblShift[[Смена]:[Смена]],0)),0)","v":0},{"$f":"IFERROR(INDEX(tblShift[15],MATCH(INDEX($E14:$AI14,$D$1),tblShift[[Смена]:[Смена]],0)),0)","v":0},{"$f":"IFERROR(INDEX(tblShift[16],MATCH(INDEX($E14:$AI14,$D$1),tblShift[[Смена]:[Смена]],0)),0)","v":0},{"$f":"IFERROR(INDEX(tblShift[17],MATCH(INDEX($E14:$AI14,$D$1),tblShift[[Смена]:[Смена]],0)),0)","v":0},{"$f":"IFERROR(INDEX(tblShift[18],MATCH(INDEX($E14:$AI14,$D$1),tblShift[[Смена]:[Смена]],0)),0)","v":0},{"$f":"IFERROR(INDEX(tblShift[19],MATCH(INDEX($E14:$AI14,$D$1),tblShift[[Смена]:[Смена]],0)),0)","v":0},{"$f":"IFERROR(INDEX(tblShift[20],MATCH(INDEX($E14:$AI14,$D$1),tblShift[[Смена]:[Смена]],0)),0)","v":0},{"$f":"IFERROR(INDEX(tblShift[21],MATCH(INDEX($E14:$AI14,$D$1),tblShift[[Смена]:[Смена]],0)),0)","v":0},{"$f":"IFERROR(INDEX(tblShift[22],MATCH(INDEX($E14:$AI14,$D$1),tblShift[[Смена]:[Смена]],0)),0)","v":0},{"$f":"IFERROR(INDEX(tblShift[23],MATCH(INDEX($E14:$AI14,$D$1),tblShift[[Смена]:[Смена]],0)),0)","v":0},null,{"$f":"IF(EX$7<>\"\",IFERROR(IF(INDEX(tblShift[[Рабочий]:[Рабочий]],MATCH(E14,tblShift[[Смена]:[Смена]],0)),1,0),0),0)","v":0},{"$f":"IF(EY$7<>\"\",IFERROR(IF(INDEX(tblShift[[Рабочий]:[Рабочий]],MATCH(F14,tblShift[[Смена]:[Смена]],0)),1,0),0),0)","v":0},{"$f":"IF(EZ$7<>\"\",IFERROR(IF(INDEX(tblShift[[Рабочий]:[Рабочий]],MATCH(G14,tblShift[[Смена]:[Смена]],0)),1,0),0),0)","v":0},{"$f":"IF(FA$7<>\"\",IFERROR(IF(INDEX(tblShift[[Рабочий]:[Рабочий]],MATCH(H14,tblShift[[Смена]:[Смена]],0)),1,0),0),0)","v":0},{"$f":"IF(FB$7<>\"\",IFERROR(IF(INDEX(tblShift[[Рабочий]:[Рабочий]],MATCH(I14,tblShift[[Смена]:[Смена]],0)),1,0),0),0)","v":0},{"$f":"IF(FC$7<>\"\",IFERROR(IF(INDEX(tblShift[[Рабочий]:[Рабочий]],MATCH(J14,tblShift[[Смена]:[Смена]],0)),1,0),0),0)","v":0},{"$f":"IF(FD$7<>\"\",IFERROR(IF(INDEX(tblShift[[Рабочий]:[Рабочий]],MATCH(K14,tblShift[[Смена]:[Смена]],0)),1,0),0),0)","v":0},{"$f":"IF(FE$7<>\"\",IFERROR(IF(INDEX(tblShift[[Рабочий]:[Рабочий]],MATCH(L14,tblShift[[Смена]:[Смена]],0)),1,0),0),0)","v":0},{"$f":"IF(FF$7<>\"\",IFERROR(IF(INDEX(tblShift[[Рабочий]:[Рабочий]],MATCH(M14,tblShift[[Смена]:[Смена]],0)),1,0),0),0)","v":0},{"$f":"IF(FG$7<>\"\",IFERROR(IF(INDEX(tblShift[[Рабочий]:[Рабочий]],MATCH(N14,tblShift[[Смена]:[Смена]],0)),1,0),0),0)","v":0},{"$f":"IF(FH$7<>\"\",IFERROR(IF(INDEX(tblShift[[Рабочий]:[Рабочий]],MATCH(O14,tblShift[[Смена]:[Смена]],0)),1,0),0),0)","v":0},{"$f":"IF(FI$7<>\"\",IFERROR(IF(INDEX(tblShift[[Рабочий]:[Рабочий]],MATCH(P14,tblShift[[Смена]:[Смена]],0)),1,0),0),0)","v":0},{"$f":"IF(FJ$7<>\"\",IFERROR(IF(INDEX(tblShift[[Рабочий]:[Рабочий]],MATCH(Q14,tblShift[[Смена]:[Смена]],0)),1,0),0),0)","v":0},{"$f":"IF(FK$7<>\"\",IFERROR(IF(INDEX(tblShift[[Рабочий]:[Рабочий]],MATCH(R14,tblShift[[Смена]:[Смена]],0)),1,0),0),0)","v":0},{"$f":"IF(FL$7<>\"\",IFERROR(IF(INDEX(tblShift[[Рабочий]:[Рабочий]],MATCH(S14,tblShift[[Смена]:[Смена]],0)),1,0),0),0)","v":0},{"$f":"IF(FM$7<>\"\",IFERROR(IF(INDEX(tblShift[[Рабочий]:[Рабочий]],MATCH(T14,tblShift[[Смена]:[Смена]],0)),1,0),0),0)","v":0},{"$f":"IF(FN$7<>\"\",IFERROR(IF(INDEX(tblShift[[Рабочий]:[Рабочий]],MATCH(U14,tblShift[[Смена]:[Смена]],0)),1,0),0),0)","v":0},{"$f":"IF(FO$7<>\"\",IFERROR(IF(INDEX(tblShift[[Рабочий]:[Рабочий]],MATCH(V14,tblShift[[Смена]:[Смена]],0)),1,0),0),0)","v":0},{"$f":"IF(FP$7<>\"\",IFERROR(IF(INDEX(tblShift[[Рабочий]:[Рабочий]],MATCH(W14,tblShift[[Смена]:[Смена]],0)),1,0),0),0)","v":0},{"$f":"IF(FQ$7<>\"\",IFERROR(IF(INDEX(tblShift[[Рабочий]:[Рабочий]],MATCH(X14,tblShift[[Смена]:[Смена]],0)),1,0),0),0)","v":0},{"$f":"IF(FR$7<>\"\",IFERROR(IF(INDEX(tblShift[[Рабочий]:[Рабочий]],MATCH(Y14,tblShift[[Смена]:[Смена]],0)),1,0),0),0)","v":0},{"$f":"IF(FS$7<>\"\",IFERROR(IF(INDEX(tblShift[[Рабочий]:[Рабочий]],MATCH(Z14,tblShift[[Смена]:[Смена]],0)),1,0),0),0)","v":0},{"$f":"IF(FT$7<>\"\",IFERROR(IF(INDEX(tblShift[[Рабочий]:[Рабочий]],MATCH(AA14,tblShift[[Смена]:[Смена]],0)),1,0),0),0)","v":0},{"$f":"IF(FU$7<>\"\",IFERROR(IF(INDEX(tblShift[[Рабочий]:[Рабочий]],MATCH(AB14,tblShift[[Смена]:[Смена]],0)),1,0),0),0)","v":0},{"$f":"IF(FV$7<>\"\",IFERROR(IF(INDEX(tblShift[[Рабочий]:[Рабочий]],MATCH(AC14,tblShift[[Смена]:[Смена]],0)),1,0),0),0)","v":0},{"$f":"IF(FW$7<>\"\",IFERROR(IF(INDEX(tblShift[[Рабочий]:[Рабочий]],MATCH(AD14,tblShift[[Смена]:[Смена]],0)),1,0),0),0)","v":0},{"$f":"IF(FX$7<>\"\",IFERROR(IF(INDEX(tblShift[[Рабочий]:[Рабочий]],MATCH(AE14,tblShift[[Смена]:[Смена]],0)),1,0),0),0)","v":0},{"$f":"IF(FY$7<>\"\",IFERROR(IF(INDEX(tblShift[[Рабочий]:[Рабочий]],MATCH(AF14,tblShift[[Смена]:[Смена]],0)),1,0),0),0)","v":0},{"$f":"IF(FZ$7<>\"\",IFERROR(IF(INDEX(tblShift[[Рабочий]:[Рабочий]],MATCH(AG14,tblShift[[Смена]:[Смена]],0)),1,0),0),0)","v":0},{"$f":"IF(GA$7<>\"\",IFERROR(IF(INDEX(tblShift[[Рабочий]:[Рабочий]],MATCH(AH14,tblShift[[Смена]:[Смена]],0)),1,0),0),0)","v":0},{"$f":"IF(GB$7<>\"\",IFERROR(IF(INDEX(tblShift[[Рабочий]:[Рабочий]],MATCH(AI14,tblShift[[Смена]:[Смена]],0)),1,0),0),0)","v":0},null,null,null,null,null,null,null,null,null,null,null,null,null,null,null,0]
[null,null,"","",null,null,null,null,null,null,null,null,null,null,null,null,null,null,null,null,null,null,null,null,null,null,null,null,null,null,null,null,null,null,null,null,{"$f":"IF(AK14<>\"\",IFERROR(VLOOKUP(E15,tblShift[],3,0),0),0)","v":0},{"$f":"IF(AL14<>\"\",IFERROR(VLOOKUP(F15,tblShift[],3,0),0),0)","v":0},{"$f":"IF(AM14<>\"\",IFERROR(VLOOKUP(G15,tblShift[],3,0),0),0)","v":0},{"$f":"IF(AN$7<>\"\",IFERROR(VLOOKUP(H15,tblShift[],3,0),0),0)","v":0},{"$f":"IF(AO$7<>\"\",IFERROR(VLOOKUP(I15,tblShift[],3,0),0),0)","v":0},{"$f":"IF(AP$7<>\"\",IFERROR(VLOOKUP(J15,tblShift[],3,0),0),0)","v":0},{"$f":"IF(AQ$7<>\"\",IFERROR(VLOOKUP(K15,tblShift[],3,0),0),0)","v":0},{"$f":"IF(AR$7<>\"\",IFERROR(VLOOKUP(L15,tblShift[],3,0),0),0)","v":0},{"$f":"IF(AS$7<>\"\",IFERROR(VLOOKUP(M15,tblShift[],3,0),0),0)","v":0},{"$f":"IF(AT$7<>\"\",IFERROR(VLOOKUP(N15,tblShift[],3,0),0),0)","v":0},{"$f":"IF(AU$7<>\"\",IFERROR(VLOOKUP(O15,tblShift[],3,0),0),0)","v":0},{"$f":"IF(AV$7<>\"\",IFERROR(VLOOKUP(P15,tblShift[],3,0),0),0)","v":0},{"$f":"IF(AW$7<>\"\",IFERROR(VLOOKUP(Q15,tblShift[],3,0),0),0)","v":0},{"$f":"IF(AX$7<>\"\",IFERROR(VLOOKUP(R15,tblShift[],3,0),0),0)","v":0},{"$f":"IF(AY$7<>\"\",IFERROR(VLOOKUP(S15,tblShift[],3,0),0),0)","v":0},{"$f":"IF(AZ$7<>\"\",IFERROR(VLOOKUP(T15,tblShift[],3,0),0),0)","v":0},{"$f":"IF(BA$7<>\"\",IFERROR(VLOOKUP(U15,tblShift[],3,0),0),0)","v":0},{"$f":"IF(BB$7<>\"\",IFERROR(VLOOKUP(V15,tblShift[],3,0),0),0)","v":0},{"$f":"IF(BC$7<>\"\",IFERROR(VLOOKUP(W15,tblShift[],3,0),0),0)","v":0},{"$f":"IF(BD$7<>\"\",IFERROR(VLOOKUP(X15,tblShift[],3,0),0),0)","v":0},{"$f":"IF(BE$7<>\"\",IFERROR(VLOOKUP(Y15,tblShift[],3,0),0),0)","v":0},{"$f":"IF(BF$7<>\"\",IFERROR(VLOOKUP(Z15,tblShift[],3,0),0),0)","v":0},{"$f":"IF(BG$7<>\"\",IFERROR(VLOOKUP(AA15,tblShift[],3,0),0),0)","v":0},{"$f":"IF(BH$7<>\"\",IFERROR(VLOOKUP(AB15,tblShift[],3,0),0),0)","v":0},{"$f":"IF(BI$7<>\"\",IFERROR(VLOOKUP(AC15,tblShift[],3,0),0),0)","v":0},{"$f":"IF(BJ$7<>\"\",IFERROR(VLOOKUP(AD15,tblShift[],3,0),0),0)","v":0},{"$f":"IF(BK$7<>\"\",IFERROR(VLOOKUP(AE15,tblShift[],3,0),0),0)","v":0},{"$f":"IF(BL$7<>\"\",IFERROR(VLOOKUP(AF15,tblShift[],3,0),0),0)","v":0},{"$f":"IF(BM$7<>\"\",IFERROR(VLOOKUP(AG15,tblShift[],3,0),0),0)","v":0},{"$f":"IF(BN$7<>\"\",IFERROR(VLOOKUP(AH15,tblShift[],3,0),0),0)","v":0},{"$f":"IF(BO$7<>\"\",IFERROR(VLOOKUP(AI15,tblShift[],3,0),0),0)","v":0},null,0,0,0,0,0,0,0,0,0,0,0,0,0,0,0,0,0,0,0,0,0,0,0,0,0,0,0,0,0,null,0,0,0,0,0,0,0,0,0,0,0,0,0,0,0,0,0,0,0,0,0,0,0,0,0,0,0,0,0,null,{"$f":"IFERROR(INDEX(tblShift[0],MATCH(INDEX($E15:$AI15,$D$1),tblShift[[Смена]:[Смена]],0)),0)","v":0},{"$f":"IFERROR(INDEX(tblShift[1],MATCH(INDEX($E15:$AI15,$D$1),tblShift[[Смена]:[Смена]],0)),0)","v":0},{"$f":"IFERROR(INDEX(tblShift[2],MATCH(INDEX($E15:$AI15,$D$1),tblShift[[Смена]:[Смена]],0)),0)","v":0},{"$f":"IFERROR(INDEX(tblShift[3],MATCH(INDEX($E15:$AI15,$D$1),tblShift[[Смена]:[Смена]],0)),0)","v":0},{"$f":"IFERROR(INDEX(tblShift[4],MATCH(INDEX($E15:$AI15,$D$1),tblShift[[Смена]:[Смена]],0)),0)","v":0},{"$f":"IFERROR(INDEX(tblShift[5],MATCH(INDEX($E15:$AI15,$D$1),tblShift[[Смена]:[Смена]],0)),0)","v":0},{"$f":"IFERROR(INDEX(tblShift[6],MATCH(INDEX($E15:$AI15,$D$1),tblShift[[Смена]:[Смена]],0)),0)","v":0},{"$f":"IFERROR(INDEX(tblShift[7],MATCH(INDEX($E15:$AI15,$D$1),tblShift[[Смена]:[Смена]],0)),0)","v":0},{"$f":"IFERROR(INDEX(tblShift[8],MATCH(INDEX($E15:$AI15,$D$1),tblShift[[Смена]:[Смена]],0)),0)","v":0},{"$f":"IFERROR(INDEX(tblShift[9],MATCH(INDEX($E15:$AI15,$D$1),tblShift[[Смена]:[Смена]],0)),0)","v":0},{"$f":"IFERROR(INDEX(tblShift[10],MATCH(INDEX($E15:$AI15,$D$1),tblShift[[Смена]:[Смена]],0)),0)","v":0},{"$f":"IFERROR(INDEX(tblShift[11],MATCH(INDEX($E15:$AI15,$D$1),tblShift[[Смена]:[Смена]],0)),0)","v":0},{"$f":"IFERROR(INDEX(tblShift[12],MATCH(INDEX($E15:$AI15,$D$1),tblShift[[Смена]:[Смена]],0)),0)","v":0},{"$f":"IFERROR(INDEX(tblShift[13],MATCH(INDEX($E15:$AI15,$D$1),tblShift[[Смена]:[Смена]],0)),0)","v":0},{"$f":"IFERROR(INDEX(tblShift[14],MATCH(INDEX($E15:$AI15,$D$1),tblShift[[Смена]:[Смена]],0)),0)","v":0},{"$f":"IFERROR(INDEX(tblShift[15],MATCH(INDEX($E15:$AI15,$D$1),tblShift[[Смена]:[Смена]],0)),0)","v":0},{"$f":"IFERROR(INDEX(tblShift[16],MATCH(INDEX($E15:$AI15,$D$1),tblShift[[Смена]:[Смена]],0)),0)","v":0},{"$f":"IFERROR(INDEX(tblShift[17],MATCH(INDEX($E15:$AI15,$D$1),tblShift[[Смена]:[Смена]],0)),0)","v":0},{"$f":"IFERROR(INDEX(tblShift[18],MATCH(INDEX($E15:$AI15,$D$1),tblShift[[Смена]:[Смена]],0)),0)","v":0},{"$f":"IFERROR(INDEX(tblShift[19],MATCH(INDEX($E15:$AI15,$D$1),tblShift[[Смена]:[Смена]],0)),0)","v":0},{"$f":"IFERROR(INDEX(tblShift[20],MATCH(INDEX($E15:$AI15,$D$1),tblShift[[Смена]:[Смена]],0)),0)","v":0},{"$f":"IFERROR(INDEX(tblShift[21],MATCH(INDEX($E15:$AI15,$D$1),tblShift[[Смена]:[Смена]],0)),0)","v":0},{"$f":"IFERROR(INDEX(tblShift[22],MATCH(INDEX($E15:$AI15,$D$1),tblShift[[Смена]:[Смена]],0)),0)","v":0},{"$f":"IFERROR(INDEX(tblShift[23],MATCH(INDEX($E15:$AI15,$D$1),tblShift[[Смена]:[Смена]],0)),0)","v":0},null,{"$f":"IF(EX$7<>\"\",IFERROR(IF(INDEX(tblShift[[Рабочий]:[Рабочий]],MATCH(E15,tblShift[[Смена]:[Смена]],0)),1,0),0),0)","v":0},{"$f":"IF(EY$7<>\"\",IFERROR(IF(INDEX(tblShift[[Рабочий]:[Рабочий]],MATCH(F15,tblShift[[Смена]:[Смена]],0)),1,0),0),0)","v":0},{"$f":"IF(EZ$7<>\"\",IFERROR(IF(INDEX(tblShift[[Рабочий]:[Рабочий]],MATCH(G15,tblShift[[Смена]:[Смена]],0)),1,0),0),0)","v":0},{"$f":"IF(FA$7<>\"\",IFERROR(IF(INDEX(tblShift[[Рабочий]:[Рабочий]],MATCH(H15,tblShift[[Смена]:[Смена]],0)),1,0),0),0)","v":0},{"$f":"IF(FB$7<>\"\",IFERROR(IF(INDEX(tblShift[[Рабочий]:[Рабочий]],MATCH(I15,tblShift[[Смена]:[Смена]],0)),1,0),0),0)","v":0},{"$f":"IF(FC$7<>\"\",IFERROR(IF(INDEX(tblShift[[Рабочий]:[Рабочий]],MATCH(J15,tblShift[[Смена]:[Смена]],0)),1,0),0),0)","v":0},{"$f":"IF(FD$7<>\"\",IFERROR(IF(INDEX(tblShift[[Рабочий]:[Рабочий]],MATCH(K15,tblShift[[Смена]:[Смена]],0)),1,0),0),0)","v":0},{"$f":"IF(FE$7<>\"\",IFERROR(IF(INDEX(tblShift[[Рабочий]:[Рабочий]],MATCH(L15,tblShift[[Смена]:[Смена]],0)),1,0),0),0)","v":0},{"$f":"IF(FF$7<>\"\",IFERROR(IF(INDEX(tblShift[[Рабочий]:[Рабочий]],MATCH(M15,tblShift[[Смена]:[Смена]],0)),1,0),0),0)","v":0},{"$f":"IF(FG$7<>\"\",IFERROR(IF(INDEX(tblShift[[Рабочий]:[Рабочий]],MATCH(N15,tblShift[[Смена]:[Смена]],0)),1,0),0),0)","v":0},{"$f":"IF(FH$7<>\"\",IFERROR(IF(INDEX(tblShift[[Рабочий]:[Рабочий]],MATCH(O15,tblShift[[Смена]:[Смена]],0)),1,0),0),0)","v":0},{"$f":"IF(FI$7<>\"\",IFERROR(IF(INDEX(tblShift[[Рабочий]:[Рабочий]],MATCH(P15,tblShift[[Смена]:[Смена]],0)),1,0),0),0)","v":0},{"$f":"IF(FJ$7<>\"\",IFERROR(IF(INDEX(tblShift[[Рабочий]:[Рабочий]],MATCH(Q15,tblShift[[Смена]:[Смена]],0)),1,0),0),0)","v":0},{"$f":"IF(FK$7<>\"\",IFERROR(IF(INDEX(tblShift[[Рабочий]:[Рабочий]],MATCH(R15,tblShift[[Смена]:[Смена]],0)),1,0),0),0)","v":0},{"$f":"IF(FL$7<>\"\",IFERROR(IF(INDEX(tblShift[[Рабочий]:[Рабочий]],MATCH(S15,tblShift[[Смена]:[Смена]],0)),1,0),0),0)","v":0},{"$f":"IF(FM$7<>\"\",IFERROR(IF(INDEX(tblShift[[Рабочий]:[Рабочий]],MATCH(T15,tblShift[[Смена]:[Смена]],0)),1,0),0),0)","v":0},{"$f":"IF(FN$7<>\"\",IFERROR(IF(INDEX(tblShift[[Рабочий]:[Рабочий]],MATCH(U15,tblShift[[Смена]:[Смена]],0)),1,0),0),0)","v":0},{"$f":"IF(FO$7<>\"\",IFERROR(IF(INDEX(tblShift[[Рабочий]:[Рабочий]],MATCH(V15,tblShift[[Смена]:[Смена]],0)),1,0),0),0)","v":0},{"$f":"IF(FP$7<>\"\",IFERROR(IF(INDEX(tblShift[[Рабочий]:[Рабочий]],MATCH(W15,tblShift[[Смена]:[Смена]],0)),1,0),0),0)","v":0},{"$f":"IF(FQ$7<>\"\",IFERROR(IF(INDEX(tblShift[[Рабочий]:[Рабочий]],MATCH(X15,tblShift[[Смена]:[Смена]],0)),1,0),0),0)","v":0},{"$f":"IF(FR$7<>\"\",IFERROR(IF(INDEX(tblShift[[Рабочий]:[Рабочий]],MATCH(Y15,tblShift[[Смена]:[Смена]],0)),1,0),0),0)","v":0},{"$f":"IF(FS$7<>\"\",IFERROR(IF(INDEX(tblShift[[Рабочий]:[Рабочий]],MATCH(Z15,tblShift[[Смена]:[Смена]],0)),1,0),0),0)","v":0},{"$f":"IF(FT$7<>\"\",IFERROR(IF(INDEX(tblShift[[Рабочий]:[Рабочий]],MATCH(AA15,tblShift[[Смена]:[Смена]],0)),1,0),0),0)","v":0},{"$f":"IF(FU$7<>\"\",IFERROR(IF(INDEX(tblShift[[Рабочий]:[Рабочий]],MATCH(AB15,tblShift[[Смена]:[Смена]],0)),1,0),0),0)","v":0},{"$f":"IF(FV$7<>\"\",IFERROR(IF(INDEX(tblShift[[Рабочий]:[Рабочий]],MATCH(AC15,tblShift[[Смена]:[Смена]],0)),1,0),0),0)","v":0},{"$f":"IF(FW$7<>\"\",IFERROR(IF(INDEX(tblShift[[Рабочий]:[Рабочий]],MATCH(AD15,tblShift[[Смена]:[Смена]],0)),1,0),0),0)","v":0},{"$f":"IF(FX$7<>\"\",IFERROR(IF(INDEX(tblShift[[Рабочий]:[Рабочий]],MATCH(AE15,tblShift[[Смена]:[Смена]],0)),1,0),0),0)","v":0},{"$f":"IF(FY$7<>\"\",IFERROR(IF(INDEX(tblShift[[Рабочий]:[Рабочий]],MATCH(AF15,tblShift[[Смена]:[Смена]],0)),1,0),0),0)","v":0},{"$f":"IF(FZ$7<>\"\",IFERROR(IF(INDEX(tblShift[[Рабочий]:[Рабочий]],MATCH(AG15,tblShift[[Смена]:[Смена]],0)),1,0),0),0)","v":0},{"$f":"IF(GA$7<>\"\",IFERROR(IF(INDEX(tblShift[[Рабочий]:[Рабочий]],MATCH(AH15,tblShift[[Смена]:[Смена]],0)),1,0),0),0)","v":0},{"$f":"IF(GB$7<>\"\",IFERROR(IF(INDEX(tblShift[[Рабочий]:[Рабочий]],MATCH(AI15,tblShift[[Смена]:[Смена]],0)),1,0),0),0)","v":0},null,null,null,null,null,null,null,null,null,null,null,null,null,null,null,0]
[null,null,"","",null,null,null,null,null,null,null,null,null,null,null,null,null,null,null,null,null,null,null,null,null,null,null,null,null,null,null,null,null,null,null,null,{"$f":"IF(AK15<>\"\",IFERROR(VLOOKUP(E16,tblShift[],3,0),0),0)","v":0},{"$f":"IF(AL15<>\"\",IFERROR(VLOOKUP(F16,tblShift[],3,0),0),0)","v":0},{"$f":"IF(AM15<>\"\",IFERROR(VLOOKUP(G16,tblShift[],3,0),0),0)","v":0},{"$f":"IF(AN$7<>\"\",IFERROR(VLOOKUP(H16,tblShift[],3,0),0),0)","v":0},{"$f":"IF(AO$7<>\"\",IFERROR(VLOOKUP(I16,tblShift[],3,0),0),0)","v":0},{"$f":"IF(AP$7<>\"\",IFERROR(VLOOKUP(J16,tblShift[],3,0),0),0)","v":0},{"$f":"IF(AQ$7<>\"\",IFERROR(VLOOKUP(K16,tblShift[],3,0),0),0)","v":0},{"$f":"IF(AR$7<>\"\",IFERROR(VLOOKUP(L16,tblShift[],3,0),0),0)","v":0},{"$f":"IF(AS$7<>\"\",IFERROR(VLOOKUP(M16,tblShift[],3,0),0),0)","v":0},{"$f":"IF(AT$7<>\"\",IFERROR(VLOOKUP(N16,tblShift[],3,0),0),0)","v":0},{"$f":"IF(AU$7<>\"\",IFERROR(VLOOKUP(O16,tblShift[],3,0),0),0)","v":0},{"$f":"IF(AV$7<>\"\",IFERROR(VLOOKUP(P16,tblShift[],3,0),0),0)","v":0},{"$f":"IF(AW$7<>\"\",IFERROR(VLOOKUP(Q16,tblShift[],3,0),0),0)","v":0},{"$f":"IF(AX$7<>\"\",IFERROR(VLOOKUP(R16,tblShift[],3,0),0),0)","v":0},{"$f":"IF(AY$7<>\"\",IFERROR(VLOOKUP(S16,tblShift[],3,0),0),0)","v":0},{"$f":"IF(AZ$7<>\"\",IFERROR(VLOOKUP(T16,tblShift[],3,0),0),0)","v":0},{"$f":"IF(BA$7<>\"\",IFERROR(VLOOKUP(U16,tblShift[],3,0),0),0)","v":0},{"$f":"IF(BB$7<>\"\",IFERROR(VLOOKUP(V16,tblShift[],3,0),0),0)","v":0},{"$f":"IF(BC$7<>\"\",IFERROR(VLOOKUP(W16,tblShift[],3,0),0),0)","v":0},{"$f":"IF(BD$7<>\"\",IFERROR(VLOOKUP(X16,tblShift[],3,0),0),0)","v":0},{"$f":"IF(BE$7<>\"\",IFERROR(VLOOKUP(Y16,tblShift[],3,0),0),0)","v":0},{"$f":"IF(BF$7<>\"\",IFERROR(VLOOKUP(Z16,tblShift[],3,0),0),0)","v":0},{"$f":"IF(BG$7<>\"\",IFERROR(VLOOKUP(AA16,tblShift[],3,0),0),0)","v":0},{"$f":"IF(BH$7<>\"\",IFERROR(VLOOKUP(AB16,tblShift[],3,0),0),0)","v":0},{"$f":"IF(BI$7<>\"\",IFERROR(VLOOKUP(AC16,tblShift[],3,0),0),0)","v":0},{"$f":"IF(BJ$7<>\"\",IFERROR(VLOOKUP(AD16,tblShift[],3,0),0),0)","v":0},{"$f":"IF(BK$7<>\"\",IFERROR(VLOOKUP(AE16,tblShift[],3,0),0),0)","v":0},{"$f":"IF(BL$7<>\"\",IFERROR(VLOOKUP(AF16,tblShift[],3,0),0),0)","v":0},{"$f":"IF(BM$7<>\"\",IFERROR(VLOOKUP(AG16,tblShift[],3,0),0),0)","v":0},{"$f":"IF(BN$7<>\"\",IFERROR(VLOOKUP(AH16,tblShift[],3,0),0),0)","v":0},{"$f":"IF(BO$7<>\"\",IFERROR(VLOOKUP(AI16,tblShift[],3,0),0),0)","v":0},null,{"$f":"IF(AND(AK16>10,AL16>10,BQ$7<>\"\"),1,0)","v":0},{"$f":"IF(AND(AL16>10,AM16>10,BR$7<>\"\"),1,0)","v":0},{"$f":"IF(AND(AM16>10,AN16>10,BS$7<>\"\"),1,0)","v":0},{"$f":"IF(AND(AN16>10,AO16>10,BT$7<>\"\"),1,0)","v":0},{"$f":"IF(AND(AO16>10,AP16>10,BU$7<>\"\"),1,0)","v":0},{"$f":"IF(AND(AP16>10,AQ16>10,BV$7<>\"\"),1,0)","v":0},{"$f":"IF(AND(AQ16>10,AR16>10,BW$7<>\"\"),1,0)","v":0},{"$f":"IF(AND(AR16>10,AS16>10,BX$7<>\"\"),1,0)","v":0},{"$f":"IF(AND(AS16>10,AT16>10,BY$7<>\"\"),1,0)","v":0},{"$f":"IF(AND(AT16>10,AU16>10,BZ$7<>\"\"),1,0)","v":0},{"$f":"IF(AND(AU16>10,AV16>10,CA$7<>\"\"),1,0)","v":0},{"$f":"IF(AND(AV16>10,AW16>10,CB$7<>\"\"),1,0)","v":0},{"$f":"IF(AND(AW16>10,AX16>10,CC$7<>\"\"),1,0)","v":0},{"$f":"IF(AND(AX16>10,AY16>10,CD$7<>\"\"),1,0)","v":0},{"$f":"IF(AND(AY16>10,AZ16>10,CE$7<>\"\"),1,0)","v":0},{"$f":"IF(AND(AZ16>10,BA16>10,CF$7<>\"\"),1,0)","v":0},{"$f":"IF(AND(BA16>10,BB16>10,CG$7<>\"\"),1,0)","v":0},{"$f":"IF(AND(BB16>10,BC16>10,CH$7<>\"\"),1,0)","v":0},{"$f":"IF(AND(BC16>10,BD16>10,CI$7<>\"\"),1,0)","v":0},{"$f":"IF(AND(BD16>10,BE16>10,CJ$7<>\"\"),1,0)","v":0},{"$f":"IF(AND(BE16>10,BF16>10,CK$7<>\"\"),1,0)","v":0},{"$f":"IF(AND(BF16>10,BG16>10,CL$7<>\"\"),1,0)","v":0},{"$f":"IF(AND(BG16>10,BH16>10,CM$7<>\"\"),1,0)","v":0},{"$f":"IF(AND(BH16>10,BI16>10,CN$7<>\"\"),1,0)","v":0},{"$f":"IF(AND(BI16>10,BJ16>10,CO$7<>\"\"),1,0)","v":0},{"$f":"IF(AND(BJ16>10,BK16>10,CP$7<>\"\"),1,0)","v":0},{"$f":"IF(AND(BK16>10,BL16>10,CQ$7<>\"\"),1,0)","v":0},{"$f":"IF(AND(BL16>10,BM16>10,CR$7<>\"\"),1,0)","v":0},{"$f":"IF(AND(BM16>10,BN16>10,CS$7<>\"\"),1,0)","v":0},null,0,0,0,0,0,0,0,0,0,0,0,0,0,0,0,0,0,0,0,0,0,0,0,0,0,0,0,0,0,null,{"$f":"IFERROR(INDEX(tblShift[0],MATCH(INDEX($E16:$AI16,$D$1),tblShift[[Смена]:[Смена]],0)),0)","v":0},{"$f":"IFERROR(INDEX(tblShift[1],MATCH(INDEX($E16:$AI16,$D$1),tblShift[[Смена]:[Смена]],0)),0)","v":0},{"$f":"IFERROR(INDEX(tblShift[2],MATCH(INDEX($E16:$AI16,$D$1),tblShift[[Смена]:[Смена]],0)),0)","v":0},{"$f":"IFERROR(INDEX(tblShift[3],MATCH(INDEX($E16:$AI16,$D$1),tblShift[[Смена]:[Смена]],0)),0)","v":0},{"$f":"IFERROR(INDEX(tblShift[4],MATCH(INDEX($E16:$AI16,$D$1),tblShift[[Смена]:[Смена]],0)),0)","v":0},{"$f":"IFERROR(INDEX(tblShift[5],MATCH(INDEX($E16:$AI16,$D$1),tblShift[[Смена]:[Смена]],0)),0)","v":0},{"$f":"IFERROR(INDEX(tblShift[6],MATCH(INDEX($E16:$AI16,$D$1),tblShift[[Смена]:[Смена]],0)),0)","v":0},{"$f":"IFERROR(INDEX(tblShift[7],MATCH(INDEX($E16:$AI16,$D$1),tblShift[[Смена]:[Смена]],0)),0)","v":0},{"$f":"IFERROR(INDEX(tblShift[8],MATCH(INDEX($E16:$AI16,$D$1),tblShift[[Смена]:[Смена]],0)),0)","v":0},{"$f":"IFERROR(INDEX(tblShift[9],MATCH(INDEX($E16:$AI16,$D$1),tblShift[[Смена]:[Смена]],0)),0)","v":0},{"$f":"IFERROR(INDEX(tblShift[10],MATCH(INDEX($E16:$AI16,$D$1),tblShift[[Смена]:[Смена]],0)),0)","v":0},{"$f":"IFERROR(INDEX(tblShift[11],MATCH(INDEX($E16:$AI16,$D$1),tblShift[[Смена]:[Смена]],0)),0)","v":0},{"$f":"IFERROR(INDEX(tblShift[12],MATCH(INDEX($E16:$AI16,$D$1),tblShift[[Смена]:[Смена]],0)),0)","v":0},{"$f":"IFERROR(INDEX(tblShift[13],MATCH(INDEX($E16:$AI16,$D$1),tblShift[[Смена]:[Смена]],0)),0)","v":0},{"$f":"IFERROR(INDEX(tblShift[14],MATCH(INDEX($E16:$AI16,$D$1),tblShift[[Смена]:[Смена]],0)),0)","v":0},{"$f":"IFERROR(INDEX(tblShift[15],MATCH(INDEX($E16:$AI16,$D$1),tblShift[[Смена]:[Смена]],0)),0)","v":0},{"$f":"IFERROR(INDEX(tblShift[16],MATCH(INDEX($E16:$AI16,$D$1),tblShift[[Смена]:[Смена]],0)),0)","v":0},{"$f":"IFERROR(INDEX(tblShift[17],MATCH(INDEX($E16:$AI16,$D$1),tblShift[[Смена]:[Смена]],0)),0)","v":0},{"$f":"IFERROR(INDEX(tblShift[18],MATCH(INDEX($E16:$AI16,$D$1),tblShift[[Смена]:[Смена]],0)),0)","v":0},{"$f":"IFERROR(INDEX(tblShift[19],MATCH(INDEX($E16:$AI16,$D$1),tblShift[[Смена]:[Смена]],0)),0)","v":0},{"$f":"IFERROR(INDEX(tblShift[20],MATCH(INDEX($E16:$AI16,$D$1),tblShift[[Смена]:[Смена]],0)),0)","v":0},{"$f":"IFERROR(INDEX(tblShift[21],MATCH(INDEX($E16:$AI16,$D$1),tblShift[[Смена]:[Смена]],0)),0)","v":0},{"$f":"IFERROR(INDEX(tblShift[22],MATCH(INDEX($E16:$AI16,$D$1),tblShift[[Смена]:[Смена]],0)),0)","v":0},{"$f":"IFERROR(INDEX(tblShift[23],MATCH(INDEX($E16:$AI16,$D$1),tblShift[[Смена]:[Смена]],0)),0)","v":0},null,{"$f":"IF(EX$7<>\"\",IFERROR(IF(INDEX(tblShift[[Рабочий]:[Рабочий]],MATCH(E16,tblShift[[Смена]:[Смена]],0)),1,0),0),0)","v":0},{"$f":"IF(EY$7<>\"\",IFERROR(IF(INDEX(tblShift[[Рабочий]:[Рабочий]],MATCH(F16,tblShift[[Смена]:[Смена]],0)),1,0),0),0)","v":0},{"$f":"IF(EZ$7<>\"\",IFERROR(IF(INDEX(tblShift[[Рабочий]:[Рабочий]],MATCH(G16,tblShift[[Смена]:[Смена]],0)),1,0),0),0)","v":0},{"$f":"IF(FA$7<>\"\",IFERROR(IF(INDEX(tblShift[[Рабочий]:[Рабочий]],MATCH(H16,tblShift[[Смена]:[Смена]],0)),1,0),0),0)","v":0},{"$f":"IF(FB$7<>\"\",IFERROR(IF(INDEX(tblShift[[Рабочий]:[Рабочий]],MATCH(I16,tblShift[[Смена]:[Смена]],0)),1,0),0),0)","v":0},{"$f":"IF(FC$7<>\"\",IFERROR(IF(INDEX(tblShift[[Рабочий]:[Рабочий]],MATCH(J16,tblShift[[Смена]:[Смена]],0)),1,0),0),0)","v":0},{"$f":"IF(FD$7<>\"\",IFERROR(IF(INDEX(tblShift[[Рабочий]:[Рабочий]],MATCH(K16,tblShift[[Смена]:[Смена]],0)),1,0),0),0)","v":0},{"$f":"IF(FE$7<>\"\",IFERROR(IF(INDEX(tblShift[[Рабочий]:[Рабочий]],MATCH(L16,tblShift[[Смена]:[Смена]],0)),1,0),0),0)","v":0},{"$f":"IF(FF$7<>\"\",IFERROR(IF(INDEX(tblShift[[Рабочий]:[Рабочий]],MATCH(M16,tblShift[[Смена]:[Смена]],0)),1,0),0),0)","v":0},{"$f":"IF(FG$7<>\"\",IFERROR(IF(INDEX(tblShift[[Рабочий]:[Рабочий]],MATCH(N16,tblShift[[Смена]:[Смена]],0)),1,0),0),0)","v":0},{"$f":"IF(FH$7<>\"\",IFERROR(IF(INDEX(tblShift[[Рабочий]:[Рабочий]],MATCH(O16,tblShift[[Смена]:[Смена]],0)),1,0),0),0)","v":0},{"$f":"IF(FI$7<>\"\",IFERROR(IF(INDEX(tblShift[[Рабочий]:[Рабочий]],MATCH(P16,tblShift[[Смена]:[Смена]],0)),1,0),0),0)","v":0},{"$f":"IF(FJ$7<>\"\",IFERROR(IF(INDEX(tblShift[[Рабочий]:[Рабочий]],MATCH(Q16,tblShift[[Смена]:[Смена]],0)),1,0),0),0)","v":0},{"$f":"IF(FK$7<>\"\",IFERROR(IF(INDEX(tblShift[[Рабочий]:[Рабочий]],MATCH(R16,tblShift[[Смена]:[Смена]],0)),1,0),0),0)","v":0},{"$f":"IF(FL$7<>\"\",IFERROR(IF(INDEX(tblShift[[Рабочий]:[Рабочий]],MATCH(S16,tblShift[[Смена]:[Смена]],0)),1,0),0),0)","v":0},{"$f":"IF(FM$7<>\"\",IFERROR(IF(INDEX(tblShift[[Рабочий]:[Рабочий]],MATCH(T16,tblShift[[Смена]:[Смена]],0)),1,0),0),0)","v":0},{"$f":"IF(FN$7<>\"\",IFERROR(IF(INDEX(tblShift[[Рабочий]:[Рабочий]],MATCH(U16,tblShift[[Смена]:[Смена]],0)),1,0),0),0)","v":0},{"$f":"IF(FO$7<>\"\",IFERROR(IF(INDEX(tblShift[[Рабочий]:[Рабочий]],MATCH(V16,tblShift[[Смена]:[Смена]],0)),1,0),0),0)","v":0},{"$f":"IF(FP$7<>\"\",IFERROR(IF(INDEX(tblShift[[Рабочий]:[Рабочий]],MATCH(W16,tblShift[[Смена]:[Смена]],0)),1,0),0),0)","v":0},{"$f":"IF(FQ$7<>\"\",IFERROR(IF(INDEX(tblShift[[Рабочий]:[Рабочий]],MATCH(X16,tblShift[[Смена]:[Смена]],0)),1,0),0),0)","v":0},{"$f":"IF(FR$7<>\"\",IFERROR(IF(INDEX(tblShift[[Рабочий]:[Рабочий]],MATCH(Y16,tblShift[[Смена]:[Смена]],0)),1,0),0),0)","v":0},{"$f":"IF(FS$7<>\"\",IFERROR(IF(INDEX(tblShift[[Рабочий]:[Рабочий]],MATCH(Z16,tblShift[[Смена]:[Смена]],0)),1,0),0),0)","v":0},{"$f":"IF(FT$7<>\"\",IFERROR(IF(INDEX(tblShift[[Рабочий]:[Рабочий]],MATCH(AA16,tblShift[[Смена]:[Смена]],0)),1,0),0),0)","v":0},{"$f":"IF(FU$7<>\"\",IFERROR(IF(INDEX(tblShift[[Рабочий]:[Рабочий]],MATCH(AB16,tblShift[[Смена]:[Смена]],0)),1,0),0),0)","v":0},{"$f":"IF(FV$7<>\"\",IFERROR(IF(INDEX(tblShift[[Рабочий]:[Рабочий]],MATCH(AC16,tblShift[[Смена]:[Смена]],0)),1,0),0),0)","v":0},{"$f":"IF(FW$7<>\"\",IFERROR(IF(INDEX(tblShift[[Рабочий]:[Рабочий]],MATCH(AD16,tblShift[[Смена]:[Смена]],0)),1,0),0),0)","v":0},{"$f":"IF(FX$7<>\"\",IFERROR(IF(INDEX(tblShift[[Рабочий]:[Рабочий]],MATCH(AE16,tblShift[[Смена]:[Смена]],0)),1,0),0),0)","v":0},{"$f":"IF(FY$7<>\"\",IFERROR(IF(INDEX(tblShift[[Рабочий]:[Рабочий]],MATCH(AF16,tblShift[[Смена]:[Смена]],0)),1,0),0),0)","v":0},{"$f":"IF(FZ$7<>\"\",IFERROR(IF(INDEX(tblShift[[Рабочий]:[Рабочий]],MATCH(AG16,tblShift[[Смена]:[Смена]],0)),1,0),0),0)","v":0},{"$f":"IF(GA$7<>\"\",IFERROR(IF(INDEX(tblShift[[Рабочий]:[Рабочий]],MATCH(AH16,tblShift[[Смена]:[Смена]],0)),1,0),0),0)","v":0},{"$f":"IF(GB$7<>\"\",IFERROR(IF(INDEX(tblShift[[Рабочий]:[Рабочий]],MATCH(AI16,tblShift[[Смена]:[Смена]],0)),1,0),0),0)","v":0},null,null,null,null,null,null,null,null,null,null,null,null,null,null,null,0]
[null,null,"","",null,null,null,null,null,null,null,null,null,null,null,null,null,null,null,null,null,null,null,null,null,null,null,null,null,null,null,null,null,null,null,null,{"$f":"IF(AK16<>\"\",IFERROR(VLOOKUP(E17,tblShift[],3,0),0),0)","v":0},{"$f":"IF(AL16<>\"\",IFERROR(VLOOKUP(F17,tblShift[],3,0),0),0)","v":0},{"$f":"IF(AM16<>\"\",IFERROR(VLOOKUP(G17,tblShift[],3,0),0),0)","v":0},{"$f":"IF(AN$7<>\"\",IFERROR(VLOOKUP(H17,tblShift[],3,0),0),0)","v":0},{"$f":"IF(AO$7<>\"\",IFERROR(VLOOKUP(I17,tblShift[],3,0),0),0)","v":0},{"$f":"IF(AP$7<>\"\",IFERROR(VLOOKUP(J17,tblShift[],3,0),0),0)","v":0},{"$f":"IF(AQ$7<>\"\",IFERROR(VLOOKUP(K17,tblShift[],3,0),0),0)","v":0},{"$f":"IF(AR$7<>\"\",IFERROR(VLOOKUP(L17,tblShift[],3,0),0),0)","v":0},{"$f":"IF(AS$7<>\"\",IFERROR(VLOOKUP(M17,tblShift[],3,0),0),0)","v":0},{"$f":"IF(AT$7<>\"\",IFERROR(VLOOKUP(N17,tblShift[],3,0),0),0)","v":0},{"$f":"IF(AU$7<>\"\",IFERROR(VLOOKUP(O17,tblShift[],3,0),0),0)","v":0},{"$f":"IF(AV$7<>\"\",IFERROR(VLOOKUP(P17,tblShift[],3,0),0),0)","v":0},{"$f":"IF(AW$7<>\"\",IFERROR(VLOOKUP(Q17,tblShift[],3,0),0),0)","v":0},{"$f":"IF(AX$7<>\"\",IFERROR(VLOOKUP(R17,tblShift[],3,0),0),0)","v":0},{"$f":"IF(AY$7<>\"\",IFERROR(VLOOKUP(S17,tblShift[],3,0),0),0)","v":0},{"$f":"IF(AZ$7<>\"\",IFERROR(VLOOKUP(T17,tblShift[],3,0),0),0)","v":0},{"$f":"IF(BA$7<>\"\",IFERROR(VLOOKUP(U17,tblShift[],3,0),0),0)","v":0},{"$f":"IF(BB$7<>\"\",IFERROR(VLOOKUP(V17,tblShift[],3,0),0),0)","v":0},{"$f":"IF(BC$7<>\"\",IFERROR(VLOOKUP(W17,tblShift[],3,0),0),0)","v":0},{"$f":"IF(BD$7<>\"\",IFERROR(VLOOKUP(X17,tblShift[],3,0),0),0)","v":0},{"$f":"IF(BE$7<>\"\",IFERROR(VLOOKUP(Y17,tblShift[],3,0),0),0)","v":0},{"$f":"IF(BF$7<>\"\",IFERROR(VLOOKUP(Z17,tblShift[],3,0),0),0)","v":0},{"$f":"IF(BG$7<>\"\",IFERROR(VLOOKUP(AA17,tblShift[],3,0),0),0)","v":0},{"$f":"IF(BH$7<>\"\",IFERROR(VLOOKUP(AB17,tblShift[],3,0),0),0)","v":0},{"$f":"IF(BI$7<>\"\",IFERROR(VLOOKUP(AC17,tblShift[],3,0),0),0)","v":0},{"$f":"IF(BJ$7<>\"\",IFERROR(VLOOKUP(AD17,tblShift[],3,0),0),0)","v":0},{"$f":"IF(BK$7<>\"\",IFERROR(VLOOKUP(AE17,tblShift[],3,0),0),0)","v":0},{"$f":"IF(BL$7<>\"\",IFERROR(VLOOKUP(AF17,tblShift[],3,0),0),0)","v":0},{"$f":"IF(BM$7<>\"\",IFERROR(VLOOKUP(AG17,tblShift[],3,0),0),0)","v":0},{"$f":"IF(BN$7<>\"\",IFERROR(VLOOKUP(AH17,tblShift[],3,0),0),0)","v":0},{"$f":"IF(BO$7<>\"\",IFERROR(VLOOKUP(AI17,tblShift[],3,0),0),0)","v":0},null,0,0,0,0,0,0,0,0,0,0,0,0,0,0,0,0,0,0,0,0,0,0,0,0,0,0,0,0,0,null,0,0,0,0,0,0,0,0,0,0,0,0,0,0,0,0,0,0,0,0,0,0,0,0,0,0,0,0,0,null,{"$f":"IFERROR(INDEX(tblShift[0],MATCH(INDEX($E17:$AI17,$D$1),tblShift[[Смена]:[Смена]],0)),0)","v":0},{"$f":"IFERROR(INDEX(tblShift[1],MATCH(INDEX($E17:$AI17,$D$1),tblShift[[Смена]:[Смена]],0)),0)","v":0},{"$f":"IFERROR(INDEX(tblShift[2],MATCH(INDEX($E17:$AI17,$D$1),tblShift[[Смена]:[Смена]],0)),0)","v":0},{"$f":"IFERROR(INDEX(tblShift[3],MATCH(INDEX($E17:$AI17,$D$1),tblShift[[Смена]:[Смена]],0)),0)","v":0},{"$f":"IFERROR(INDEX(tblShift[4],MATCH(INDEX($E17:$AI17,$D$1),tblShift[[Смена]:[Смена]],0)),0)","v":0},{"$f":"IFERROR(INDEX(tblShift[5],MATCH(INDEX($E17:$AI17,$D$1),tblShift[[Смена]:[Смена]],0)),0)","v":0},{"$f":"IFERROR(INDEX(tblShift[6],MATCH(INDEX($E17:$AI17,$D$1),tblShift[[Смена]:[Смена]],0)),0)","v":0},{"$f":"IFERROR(INDEX(tblShift[7],MATCH(INDEX($E17:$AI17,$D$1),tblShift[[Смена]:[Смена]],0)),0)","v":0},{"$f":"IFERROR(INDEX(tblShift[8],MATCH(INDEX($E17:$AI17,$D$1),tblShift[[Смена]:[Смена]],0)),0)","v":0},{"$f":"IFERROR(INDEX(tblShift[9],MATCH(INDEX($E17:$AI17,$D$1),tblShift[[Смена]:[Смена]],0)),0)","v":0},{"$f":"IFERROR(INDEX(tblShift[10],MATCH(INDEX($E17:$AI17,$D$1),tblShift[[Смена]:[Смена]],0)),0)","v":0},{"$f":"IFERROR(INDEX(tblShift[11],MATCH(INDEX($E17:$AI17,$D$1),tblShift[[Смена]:[Смена]],0)),0)","v":0},{"$f":"IFERROR(INDEX(tblShift[12],MATCH(INDEX($E17:$AI17,$D$1),tblShift[[Смена]:[Смена]],0)),0)","v":0},{"$f":"IFERROR(INDEX(tblShift[13],MATCH(INDEX($E17:$AI17,$D$1),tblShift[[Смена]:[Смена]],0)),0)","v":0},{"$f":"IFERROR(INDEX(tblShift[14],MATCH(INDEX($E17:$AI17,$D$1),tblShift[[Смена]:[Смена]],0)),0)","v":0},{"$f":"IFERROR(INDEX(tblShift[15],MATCH(INDEX($E17:$AI17,$D$1),tblShift[[Смена]:[Смена]],0)),0)","v":0},{"$f":"IFERROR(INDEX(tblShift[16],MATCH(INDEX($E17:$AI17,$D$1),tblShift[[Смена]:[Смена]],0)),0)","v":0},{"$f":"IFERROR(INDEX(tblShift[17],MATCH(INDEX($E17:$AI17,$D$1),tblShift[[Смена]:[Смена]],0)),0)","v":0},{"$f":"IFERROR(INDEX(tblShift[18],MATCH(INDEX($E17:$AI17,$D$1),tblShift[[Смена]:[Смена]],0)),0)","v":0},{"$f":"IFERROR(INDEX(tblShift[19],MATCH(INDEX($E17:$AI17,$D$1),tblShift[[Смена]:[Смена]],0)),0)","v":0},{"$f":"IFERROR(INDEX(tblShift[20],MATCH(INDEX($E17:$AI17,$D$1),tblShift[[Смена]:[Смена]],0)),0)","v":0},{"$f":"IFERROR(INDEX(tblShift[21],MATCH(INDEX($E17:$AI17,$D$1),tblShift[[Смена]:[Смена]],0)),0)","v":0},{"$f":"IFERROR(INDEX(tblShift[22],MATCH(INDEX($E17:$AI17,$D$1),tblShift[[Смена]:[Смена]],0)),0)","v":0},{"$f":"IFERROR(INDEX(tblShift[23],MATCH(INDEX($E17:$AI17,$D$1),tblShift[[Смена]:[Смена]],0)),0)","v":0},null,{"$f":"IF(EX$7<>\"\",IFERROR(IF(INDEX(tblShift[[Рабочий]:[Рабочий]],MATCH(E17,tblShift[[Смена]:[Смена]],0)),1,0),0),0)","v":0},{"$f":"IF(EY$7<>\"\",IFERROR(IF(INDEX(tblShift[[Рабочий]:[Рабочий]],MATCH(F17,tblShift[[Смена]:[Смена]],0)),1,0),0),0)","v":0},{"$f":"IF(EZ$7<>\"\",IFERROR(IF(INDEX(tblShift[[Рабочий]:[Рабочий]],MATCH(G17,tblShift[[Смена]:[Смена]],0)),1,0),0),0)","v":0},{"$f":"IF(FA$7<>\"\",IFERROR(IF(INDEX(tblShift[[Рабочий]:[Рабочий]],MATCH(H17,tblShift[[Смена]:[Смена]],0)),1,0),0),0)","v":0},{"$f":"IF(FB$7<>\"\",IFERROR(IF(INDEX(tblShift[[Рабочий]:[Рабочий]],MATCH(I17,tblShift[[Смена]:[Смена]],0)),1,0),0),0)","v":0},{"$f":"IF(FC$7<>\"\",IFERROR(IF(INDEX(tblShift[[Рабочий]:[Рабочий]],MATCH(J17,tblShift[[Смена]:[Смена]],0)),1,0),0),0)","v":0},{"$f":"IF(FD$7<>\"\",IFERROR(IF(INDEX(tblShift[[Рабочий]:[Рабочий]],MATCH(K17,tblShift[[Смена]:[Смена]],0)),1,0),0),0)","v":0},{"$f":"IF(FE$7<>\"\",IFERROR(IF(INDEX(tblShift[[Рабочий]:[Рабочий]],MATCH(L17,tblShift[[Смена]:[Смена]],0)),1,0),0),0)","v":0},{"$f":"IF(FF$7<>\"\",IFERROR(IF(INDEX(tblShift[[Рабочий]:[Рабочий]],MATCH(M17,tblShift[[Смена]:[Смена]],0)),1,0),0),0)","v":0},{"$f":"IF(FG$7<>\"\",IFERROR(IF(INDEX(tblShift[[Рабочий]:[Рабочий]],MATCH(N17,tblShift[[Смена]:[Смена]],0)),1,0),0),0)","v":0},{"$f":"IF(FH$7<>\"\",IFERROR(IF(INDEX(tblShift[[Рабочий]:[Рабочий]],MATCH(O17,tblShift[[Смена]:[Смена]],0)),1,0),0),0)","v":0},{"$f":"IF(FI$7<>\"\",IFERROR(IF(INDEX(tblShift[[Рабочий]:[Рабочий]],MATCH(P17,tblShift[[Смена]:[Смена]],0)),1,0),0),0)","v":0},{"$f":"IF(FJ$7<>\"\",IFERROR(IF(INDEX(tblShift[[Рабочий]:[Рабочий]],MATCH(Q17,tblShift[[Смена]:[Смена]],0)),1,0),0),0)","v":0},{"$f":"IF(FK$7<>\"\",IFERROR(IF(INDEX(tblShift[[Рабочий]:[Рабочий]],MATCH(R17,tblShift[[Смена]:[Смена]],0)),1,0),0),0)","v":0},{"$f":"IF(FL$7<>\"\",IFERROR(IF(INDEX(tblShift[[Рабочий]:[Рабочий]],MATCH(S17,tblShift[[Смена]:[Смена]],0)),1,0),0),0)","v":0},{"$f":"IF(FM$7<>\"\",IFERROR(IF(INDEX(tblShift[[Рабочий]:[Рабочий]],MATCH(T17,tblShift[[Смена]:[Смена]],0)),1,0),0),0)","v":0},{"$f":"IF(FN$7<>\"\",IFERROR(IF(INDEX(tblShift[[Рабочий]:[Рабочий]],MATCH(U17,tblShift[[Смена]:[Смена]],0)),1,0),0),0)","v":0},{"$f":"IF(FO$7<>\"\",IFERROR(IF(INDEX(tblShift[[Рабочий]:[Рабочий]],MATCH(V17,tblShift[[Смена]:[Смена]],0)),1,0),0),0)","v":0},{"$f":"IF(FP$7<>\"\",IFERROR(IF(INDEX(tblShift[[Рабочий]:[Рабочий]],MATCH(W17,tblShift[[Смена]:[Смена]],0)),1,0),0),0)","v":0},{"$f":"IF(FQ$7<>\"\",IFERROR(IF(INDEX(tblShift[[Рабочий]:[Рабочий]],MATCH(X17,tblShift[[Смена]:[Смена]],0)),1,0),0),0)","v":0},{"$f":"IF(FR$7<>\"\",IFERROR(IF(INDEX(tblShift[[Рабочий]:[Рабочий]],MATCH(Y17,tblShift[[Смена]:[Смена]],0)),1,0),0),0)","v":0},{"$f":"IF(FS$7<>\"\",IFERROR(IF(INDEX(tblShift[[Рабочий]:[Рабочий]],MATCH(Z17,tblShift[[Смена]:[Смена]],0)),1,0),0),0)","v":0},{"$f":"IF(FT$7<>\"\",IFERROR(IF(INDEX(tblShift[[Рабочий]:[Рабочий]],MATCH(AA17,tblShift[[Смена]:[Смена]],0)),1,0),0),0)","v":0},{"$f":"IF(FU$7<>\"\",IFERROR(IF(INDEX(tblShift[[Рабочий]:[Рабочий]],MATCH(AB17,tblShift[[Смена]:[Смена]],0)),1,0),0),0)","v":0},{"$f":"IF(FV$7<>\"\",IFERROR(IF(INDEX(tblShift[[Рабочий]:[Рабочий]],MATCH(AC17,tblShift[[Смена]:[Смена]],0)),1,0),0),0)","v":0},{"$f":"IF(FW$7<>\"\",IFERROR(IF(INDEX(tblShift[[Рабочий]:[Рабочий]],MATCH(AD17,tblShift[[Смена]:[Смена]],0)),1,0),0),0)","v":0},{"$f":"IF(FX$7<>\"\",IFERROR(IF(INDEX(tblShift[[Рабочий]:[Рабочий]],MATCH(AE17,tblShift[[Смена]:[Смена]],0)),1,0),0),0)","v":0},{"$f":"IF(FY$7<>\"\",IFERROR(IF(INDEX(tblShift[[Рабочий]:[Рабочий]],MATCH(AF17,tblShift[[Смена]:[Смена]],0)),1,0),0),0)","v":0},{"$f":"IF(FZ$7<>\"\",IFERROR(IF(INDEX(tblShift[[Рабочий]:[Рабочий]],MATCH(AG17,tblShift[[Смена]:[Смена]],0)),1,0),0),0)","v":0},{"$f":"IF(GA$7<>\"\",IFERROR(IF(INDEX(tblShift[[Рабочий]:[Рабочий]],MATCH(AH17,tblShift[[Смена]:[Смена]],0)),1,0),0),0)","v":0},{"$f":"IF(GB$7<>\"\",IFERROR(IF(INDEX(tblShift[[Рабочий]:[Рабочий]],MATCH(AI17,tblShift[[Смена]:[Смена]],0)),1,0),0),0)","v":0},null,null,null,null,null,null,null,null,null,null,null,null,null,null,null,0]
[null,null,"","",null,null,null,null,null,null,null,null,null,null,null,null,null,null,null,null,null,null,null,null,null,null,null,null,null,null,null,null,null,null,null,null,{"$f":"IF(AK17<>\"\",IFERROR(VLOOKUP(E18,tblShift[],3,0),0),0)","v":0},{"$f":"IF(AL17<>\"\",IFERROR(VLOOKUP(F18,tblShift[],3,0),0),0)","v":0},{"$f":"IF(AM17<>\"\",IFERROR(VLOOKUP(G18,tblShift[],3,0),0),0)","v":0},{"$f":"IF(AN$7<>\"\",IFERROR(VLOOKUP(H18,tblShift[],3,0),0),0)","v":0},{"$f":"IF(AO$7<>\"\",IFERROR(VLOOKUP(I18,tblShift[],3,0),0),0)","v":0},{"$f":"IF(AP$7<>\"\",IFERROR(VLOOKUP(J18,tblShift[],3,0),0),0)","v":0},{"$f":"IF(AQ$7<>\"\",IFERROR(VLOOKUP(K18,tblShift[],3,0),0),0)","v":0},{"$f":"IF(AR$7<>\"\",IFERROR(VLOOKUP(L18,tblShift[],3,0),0),0)","v":0},{"$f":"IF(AS$7<>\"\",IFERROR(VLOOKUP(M18,tblShift[],3,0),0),0)","v":0},{"$f":"IF(AT$7<>\"\",IFERROR(VLOOKUP(N18,tblShift[],3,0),0),0)","v":0},{"$f":"IF(AU$7<>\"\",IFERROR(VLOOKUP(O18,tblShift[],3,0),0),0)","v":0},{"$f":"IF(AV$7<>\"\",IFERROR(VLOOKUP(P18,tblShift[],3,0),0),0)","v":0},{"$f":"IF(AW$7<>\"\",IFERROR(VLOOKUP(Q18,tblShift[],3,0),0),0)","v":0},{"$f":"IF(AX$7<>\"\",IFERROR(VLOOKUP(R18,tblShift[],3,0),0),0)","v":0},{"$f":"IF(AY$7<>\"\",IFERROR(VLOOKUP(S18,tblShift[],3,0),0),0)","v":0},{"$f":"IF(AZ$7<>\"\",IFERROR(VLOOKUP(T18,tblShift[],3,0),0),0)","v":0},{"$f":"IF(BA$7<>\"\",IFERROR(VLOOKUP(U18,tblShift[],3,0),0),0)","v":0},{"$f":"IF(BB$7<>\"\",IFERROR(VLOOKUP(V18,tblShift[],3,0),0),0)","v":0},{"$f":"IF(BC$7<>\"\",IFERROR(VLOOKUP(W18,tblShift[],3,0),0),0)","v":0},{"$f":"IF(BD$7<>\"\",IFERROR(VLOOKUP(X18,tblShift[],3,0),0),0)","v":0},{"$f":"IF(BE$7<>\"\",IFERROR(VLOOKUP(Y18,tblShift[],3,0),0),0)","v":0},{"$f":"IF(BF$7<>\"\",IFERROR(VLOOKUP(Z18,tblShift[],3,0),0),0)","v":0},{"$f":"IF(BG$7<>\"\",IFERROR(VLOOKUP(AA18,tblShift[],3,0),0),0)","v":0},{"$f":"IF(BH$7<>\"\",IFERROR(VLOOKUP(AB18,tblShift[],3,0),0),0)","v":0},{"$f":"IF(BI$7<>\"\",IFERROR(VLOOKUP(AC18,tblShift[],3,0),0),0)","v":0},{"$f":"IF(BJ$7<>\"\",IFERROR(VLOOKUP(AD18,tblShift[],3,0),0),0)","v":0},{"$f":"IF(BK$7<>\"\",IFERROR(VLOOKUP(AE18,tblShift[],3,0),0),0)","v":0},{"$f":"IF(BL$7<>\"\",IFERROR(VLOOKUP(AF18,tblShift[],3,0),0),0)","v":0},{"$f":"IF(BM$7<>\"\",IFERROR(VLOOKUP(AG18,tblShift[],3,0),0),0)","v":0},{"$f":"IF(BN$7<>\"\",IFERROR(VLOOKUP(AH18,tblShift[],3,0),0),0)","v":0},{"$f":"IF(BO$7<>\"\",IFERROR(VLOOKUP(AI18,tblShift[],3,0),0),0)","v":0},null,0,0,0,0,0,0,0,0,0,0,0,0,0,0,0,0,0,0,0,0,0,0,0,0,0,0,0,0,0,null,0,0,0,0,0,0,0,0,0,0,0,0,0,0,0,0,0,0,0,0,0,0,0,0,0,0,0,0,0,null,{"$f":"IFERROR(INDEX(tblShift[0],MATCH(INDEX($E18:$AI18,$D$1),tblShift[[Смена]:[Смена]],0)),0)","v":0},{"$f":"IFERROR(INDEX(tblShift[1],MATCH(INDEX($E18:$AI18,$D$1),tblShift[[Смена]:[Смена]],0)),0)","v":0},{"$f":"IFERROR(INDEX(tblShift[2],MATCH(INDEX($E18:$AI18,$D$1),tblShift[[Смена]:[Смена]],0)),0)","v":0},{"$f":"IFERROR(INDEX(tblShift[3],MATCH(INDEX($E18:$AI18,$D$1),tblShift[[Смена]:[Смена]],0)),0)","v":0},{"$f":"IFERROR(INDEX(tblShift[4],MATCH(INDEX($E18:$AI18,$D$1),tblShift[[Смена]:[Смена]],0)),0)","v":0},{"$f":"IFERROR(INDEX(tblShift[5],MATCH(INDEX($E18:$AI18,$D$1),tblShift[[Смена]:[Смена]],0)),0)","v":0},{"$f":"IFERROR(INDEX(tblShift[6],MATCH(INDEX($E18:$AI18,$D$1),tblShift[[Смена]:[Смена]],0)),0)","v":0},{"$f":"IFERROR(INDEX(tblShift[7],MATCH(INDEX($E18:$AI18,$D$1),tblShift[[Смена]:[Смена]],0)),0)","v":0},{"$f":"IFERROR(INDEX(tblShift[8],MATCH(INDEX($E18:$AI18,$D$1),tblShift[[Смена]:[Смена]],0)),0)","v":0},{"$f":"IFERROR(INDEX(tblShift[9],MATCH(INDEX($E18:$AI18,$D$1),tblShift[[Смена]:[Смена]],0)),0)","v":0},{"$f":"IFERROR(INDEX(tblShift[10],MATCH(INDEX($E18:$AI18,$D$1),tblShift[[Смена]:[Смена]],0)),0)","v":0},{"$f":"IFERROR(INDEX(tblShift[11],MATCH(INDEX($E18:$AI18,$D$1),tblShift[[Смена]:[Смена]],0)),0)","v":0},{"$f":"IFERROR(INDEX(tblShift[12],MATCH(INDEX($E18:$AI18,$D$1),tblShift[[Смена]:[Смена]],0)),0)","v":0},{"$f":"IFERROR(INDEX(tblShift[13],MATCH(INDEX($E18:$AI18,$D$1),tblShift[[Смена]:[Смена]],0)),0)","v":0},{"$f":"IFERROR(INDEX(tblShift[14],MATCH(INDEX($E18:$AI18,$D$1),tblShift[[Смена]:[Смена]],0)),0)","v":0},{"$f":"IFERROR(INDEX(tblShift[15],MATCH(INDEX($E18:$AI18,$D$1),tblShift[[Смена]:[Смена]],0)),0)","v":0},{"$f":"IFERROR(INDEX(tblShift[16],MATCH(INDEX($E18:$AI18,$D$1),tblShift[[Смена]:[Смена]],0)),0)","v":0},{"$f":"IFERROR(INDEX(tblShift[17],MATCH(INDEX($E18:$AI18,$D$1),tblShift[[Смена]:[Смена]],0)),0)","v":0},{"$f":"IFERROR(INDEX(tblShift[18],MATCH(INDEX($E18:$AI18,$D$1),tblShift[[Смена]:[Смена]],0)),0)","v":0},{"$f":"IFERROR(INDEX(tblShift[19],MATCH(INDEX($E18:$AI18,$D$1),tblShift[[Смена]:[Смена]],0)),0)","v":0},{"$f":"IFERROR(INDEX(tblShift[20],MATCH(INDEX($E18:$AI18,$D$1),tblShift[[Смена]:[Смена]],0)),0)","v":0},{"$f":"IFERROR(INDEX(tblShift[21],MATCH(INDEX($E18:$AI18,$D$1),tblShift[[Смена]:[Смена]],0)),0)","v":0},{"$f":"IFERROR(INDEX(tblShift[22],MATCH(INDEX($E18:$AI18,$D$1),tblShift[[Смена]:[Смена]],0)),0)","v":0},{"$f":"IFERROR(INDEX(tblShift[23],MATCH(INDEX($E18:$AI18,$D$1),tblShift[[Смена]:[Смена]],0)),0)","v":0},null,{"$f":"IF(EX$7<>\"\",IFERROR(IF(INDEX(tblShift[[Рабочий]:[Рабочий]],MATCH(E18,tblShift[[Смена]:[Смена]],0)),1,0),0),0)","v":0},{"$f":"IF(EY$7<>\"\",IFERROR(IF(INDEX(tblShift[[Рабочий]:[Рабочий]],MATCH(F18,tblShift[[Смена]:[Смена]],0)),1,0),0),0)","v":0},{"$f":"IF(EZ$7<>\"\",IFERROR(IF(INDEX(tblShift[[Рабочий]:[Рабочий]],MATCH(G18,tblShift[[Смена]:[Смена]],0)),1,0),0),0)","v":0},{"$f":"IF(FA$7<>\"\",IFERROR(IF(INDEX(tblShift[[Рабочий]:[Рабочий]],MATCH(H18,tblShift[[Смена]:[Смена]],0)),1,0),0),0)","v":0},{"$f":"IF(FB$7<>\"\",IFERROR(IF(INDEX(tblShift[[Рабочий]:[Рабочий]],MATCH(I18,tblShift[[Смена]:[Смена]],0)),1,0),0),0)","v":0},{"$f":"IF(FC$7<>\"\",IFERROR(IF(INDEX(tblShift[[Рабочий]:[Рабочий]],MATCH(J18,tblShift[[Смена]:[Смена]],0)),1,0),0),0)","v":0},{"$f":"IF(FD$7<>\"\",IFERROR(IF(INDEX(tblShift[[Рабочий]:[Рабочий]],MATCH(K18,tblShift[[Смена]:[Смена]],0)),1,0),0),0)","v":0},{"$f":"IF(FE$7<>\"\",IFERROR(IF(INDEX(tblShift[[Рабочий]:[Рабочий]],MATCH(L18,tblShift[[Смена]:[Смена]],0)),1,0),0),0)","v":0},{"$f":"IF(FF$7<>\"\",IFERROR(IF(INDEX(tblShift[[Рабочий]:[Рабочий]],MATCH(M18,tblShift[[Смена]:[Смена]],0)),1,0),0),0)","v":0},{"$f":"IF(FG$7<>\"\",IFERROR(IF(INDEX(tblShift[[Рабочий]:[Рабочий]],MATCH(N18,tblShift[[Смена]:[Смена]],0)),1,0),0),0)","v":0},{"$f":"IF(FH$7<>\"\",IFERROR(IF(INDEX(tblShift[[Рабочий]:[Рабочий]],MATCH(O18,tblShift[[Смена]:[Смена]],0)),1,0),0),0)","v":0},{"$f":"IF(FI$7<>\"\",IFERROR(IF(INDEX(tblShift[[Рабочий]:[Рабочий]],MATCH(P18,tblShift[[Смена]:[Смена]],0)),1,0),0),0)","v":0},{"$f":"IF(FJ$7<>\"\",IFERROR(IF(INDEX(tblShift[[Рабочий]:[Рабочий]],MATCH(Q18,tblShift[[Смена]:[Смена]],0)),1,0),0),0)","v":0},{"$f":"IF(FK$7<>\"\",IFERROR(IF(INDEX(tblShift[[Рабочий]:[Рабочий]],MATCH(R18,tblShift[[Смена]:[Смена]],0)),1,0),0),0)","v":0},{"$f":"IF(FL$7<>\"\",IFERROR(IF(INDEX(tblShift[[Рабочий]:[Рабочий]],MATCH(S18,tblShift[[Смена]:[Смена]],0)),1,0),0),0)","v":0},{"$f":"IF(FM$7<>\"\",IFERROR(IF(INDEX(tblShift[[Рабочий]:[Рабочий]],MATCH(T18,tblShift[[Смена]:[Смена]],0)),1,0),0),0)","v":0},{"$f":"IF(FN$7<>\"\",IFERROR(IF(INDEX(tblShift[[Рабочий]:[Рабочий]],MATCH(U18,tblShift[[Смена]:[Смена]],0)),1,0),0),0)","v":0},{"$f":"IF(FO$7<>\"\",IFERROR(IF(INDEX(tblShift[[Рабочий]:[Рабочий]],MATCH(V18,tblShift[[Смена]:[Смена]],0)),1,0),0),0)","v":0},{"$f":"IF(FP$7<>\"\",IFERROR(IF(INDEX(tblShift[[Рабочий]:[Рабочий]],MATCH(W18,tblShift[[Смена]:[Смена]],0)),1,0),0),0)","v":0},{"$f":"IF(FQ$7<>\"\",IFERROR(IF(INDEX(tblShift[[Рабочий]:[Рабочий]],MATCH(X18,tblShift[[Смена]:[Смена]],0)),1,0),0),0)","v":0},{"$f":"IF(FR$7<>\"\",IFERROR(IF(INDEX(tblShift[[Рабочий]:[Рабочий]],MATCH(Y18,tblShift[[Смена]:[Смена]],0)),1,0),0),0)","v":0},{"$f":"IF(FS$7<>\"\",IFERROR(IF(INDEX(tblShift[[Рабочий]:[Рабочий]],MATCH(Z18,tblShift[[Смена]:[Смена]],0)),1,0),0),0)","v":0},{"$f":"IF(FT$7<>\"\",IFERROR(IF(INDEX(tblShift[[Рабочий]:[Рабочий]],MATCH(AA18,tblShift[[Смена]:[Смена]],0)),1,0),0),0)","v":0},{"$f":"IF(FU$7<>\"\",IFERROR(IF(INDEX(tblShift[[Рабочий]:[Рабочий]],MATCH(AB18,tblShift[[Смена]:[Смена]],0)),1,0),0),0)","v":0},{"$f":"IF(FV$7<>\"\",IFERROR(IF(INDEX(tblShift[[Рабочий]:[Рабочий]],MATCH(AC18,tblShift[[Смена]:[Смена]],0)),1,0),0),0)","v":0},{"$f":"IF(FW$7<>\"\",IFERROR(IF(INDEX(tblShift[[Рабочий]:[Рабочий]],MATCH(AD18,tblShift[[Смена]:[Смена]],0)),1,0),0),0)","v":0},{"$f":"IF(FX$7<>\"\",IFERROR(IF(INDEX(tblShift[[Рабочий]:[Рабочий]],MATCH(AE18,tblShift[[Смена]:[Смена]],0)),1,0),0),0)","v":0},{"$f":"IF(FY$7<>\"\",IFERROR(IF(INDEX(tblShift[[Рабочий]:[Рабочий]],MATCH(AF18,tblShift[[Смена]:[Смена]],0)),1,0),0),0)","v":0},{"$f":"IF(FZ$7<>\"\",IFERROR(IF(INDEX(tblShift[[Рабочий]:[Рабочий]],MATCH(AG18,tblShift[[Смена]:[Смена]],0)),1,0),0),0)","v":0},{"$f":"IF(GA$7<>\"\",IFERROR(IF(INDEX(tblShift[[Рабочий]:[Рабочий]],MATCH(AH18,tblShift[[Смена]:[Смена]],0)),1,0),0),0)","v":0},{"$f":"IF(GB$7<>\"\",IFERROR(IF(INDEX(tblShift[[Рабочий]:[Рабочий]],MATCH(AI18,tblShift[[Смена]:[Смена]],0)),1,0),0),0)","v":0},null,null,null,null,null,null,null,null,null,null,null,null,null,null,null,0]
[null,null,"","",null,null,null,null,null,null,null,null,null,null,null,null,null,null,null,null,null,null,null,null,null,null,null,null,null,null,null,null,null,null,null,null,{"$f":"IF(AK18<>\"\",IFERROR(VLOOKUP(E19,tblShift[],3,0),0),0)","v":0},{"$f":"IF(AL18<>\"\",IFERROR(VLOOKUP(F19,tblShift[],3,0),0),0)","v":0},{"$f":"IF(AM18<>\"\",IFERROR(VLOOKUP(G19,tblShift[],3,0),0),0)","v":0},{"$f":"IF(AN$7<>\"\",IFERROR(VLOOKUP(H19,tblShift[],3,0),0),0)","v":0},{"$f":"IF(AO$7<>\"\",IFERROR(VLOOKUP(I19,tblShift[],3,0),0),0)","v":0},{"$f":"IF(AP$7<>\"\",IFERROR(VLOOKUP(J19,tblShift[],3,0),0),0)","v":0},{"$f":"IF(AQ$7<>\"\",IFERROR(VLOOKUP(K19,tblShift[],3,0),0),0)","v":0},{"$f":"IF(AR$7<>\"\",IFERROR(VLOOKUP(L19,tblShift[],3,0),0),0)","v":0},{"$f":"IF(AS$7<>\"\",IFERROR(VLOOKUP(M19,tblShift[],3,0),0),0)","v":0},{"$f":"IF(AT$7<>\"\",IFERROR(VLOOKUP(N19,tblShift[],3,0),0),0)","v":0},{"$f":"IF(AU$7<>\"\",IFERROR(VLOOKUP(O19,tblShift[],3,0),0),0)","v":0},{"$f":"IF(AV$7<>\"\",IFERROR(VLOOKUP(P19,tblShift[],3,0),0),0)","v":0},{"$f":"IF(AW$7<>\"\",IFERROR(VLOOKUP(Q19,tblShift[],3,0),0),0)","v":0},{"$f":"IF(AX$7<>\"\",IFERROR(VLOOKUP(R19,tblShift[],3,0),0),0)","v":0},{"$f":"IF(AY$7<>\"\",IFERROR(VLOOKUP(S19,tblShift[],3,0),0),0)","v":0},{"$f":"IF(AZ$7<>\"\",IFERROR(VLOOKUP(T19,tblShift[],3,0),0),0)","v":0},{"$f":"IF(BA$7<>\"\",IFERROR(VLOOKUP(U19,tblShift[],3,0),0),0)","v":0},{"$f":"IF(BB$7<>\"\",IFERROR(VLOOKUP(V19,tblShift[],3,0),0),0)","v":0},{"$f":"IF(BC$7<>\"\",IFERROR(VLOOKUP(W19,tblShift[],3,0),0),0)","v":0},{"$f":"IF(BD$7<>\"\",IFERROR(VLOOKUP(X19,tblShift[],3,0),0),0)","v":0},{"$f":"IF(BE$7<>\"\",IFERROR(VLOOKUP(Y19,tblShift[],3,0),0),0)","v":0},{"$f":"IF(BF$7<>\"\",IFERROR(VLOOKUP(Z19,tblShift[],3,0),0),0)","v":0},{"$f":"IF(BG$7<>\"\",IFERROR(VLOOKUP(AA19,tblShift[],3,0),0),0)","v":0},{"$f":"IF(BH$7<>\"\",IFERROR(VLOOKUP(AB19,tblShift[],3,0),0),0)","v":0},{"$f":"IF(BI$7<>\"\",IFERROR(VLOOKUP(AC19,tblShift[],3,0),0),0)","v":0},{"$f":"IF(BJ$7<>\"\",IFERROR(VLOOKUP(AD19,tblShift[],3,0),0),0)","v":0},{"$f":"IF(BK$7<>\"\",IFERROR(VLOOKUP(AE19,tblShift[],3,0),0),0)","v":0},{"$f":"IF(BL$7<>\"\",IFERROR(VLOOKUP(AF19,tblShift[],3,0),0),0)","v":0},{"$f":"IF(BM$7<>\"\",IFERROR(VLOOKUP(AG19,tblShift[],3,0),0),0)","v":0},{"$f":"IF(BN$7<>\"\",IFERROR(VLOOKUP(AH19,tblShift[],3,0),0),0)","v":0},{"$f":"IF(BO$7<>\"\",IFERROR(VLOOKUP(AI19,tblShift[],3,0),0),0)","v":0},null,0,0,0,0,0,0,0,0,0,0,0,0,0,0,0,0,0,0,0,0,0,0,0,0,0,0,0,0,0,null,0,0,0,0,0,0,0,0,0,0,0,0,0,0,0,0,0,0,0,0,0,0,0,0,0,0,0,0,0,null,{"$f":"IFERROR(INDEX(tblShift[0],MATCH(INDEX($E19:$AI19,$D$1),tblShift[[Смена]:[Смена]],0)),0)","v":0},{"$f":"IFERROR(INDEX(tblShift[1],MATCH(INDEX($E19:$AI19,$D$1),tblShift[[Смена]:[Смена]],0)),0)","v":0},{"$f":"IFERROR(INDEX(tblShift[2],MATCH(INDEX($E19:$AI19,$D$1),tblShift[[Смена]:[Смена]],0)),0)","v":0},{"$f":"IFERROR(INDEX(tblShift[3],MATCH(INDEX($E19:$AI19,$D$1),tblShift[[Смена]:[Смена]],0)),0)","v":0},{"$f":"IFERROR(INDEX(tblShift[4],MATCH(INDEX($E19:$AI19,$D$1),tblShift[[Смена]:[Смена]],0)),0)","v":0},{"$f":"IFERROR(INDEX(tblShift[5],MATCH(INDEX($E19:$AI19,$D$1),tblShift[[Смена]:[Смена]],0)),0)","v":0},{"$f":"IFERROR(INDEX(tblShift[6],MATCH(INDEX($E19:$AI19,$D$1),tblShift[[Смена]:[Смена]],0)),0)","v":0},{"$f":"IFERROR(INDEX(tblShift[7],MATCH(INDEX($E19:$AI19,$D$1),tblShift[[Смена]:[Смена]],0)),0)","v":0},{"$f":"IFERROR(INDEX(tblShift[8],MATCH(INDEX($E19:$AI19,$D$1),tblShift[[Смена]:[Смена]],0)),0)","v":0},{"$f":"IFERROR(INDEX(tblShift[9],MATCH(INDEX($E19:$AI19,$D$1),tblShift[[Смена]:[Смена]],0)),0)","v":0},{"$f":"IFERROR(INDEX(tblShift[10],MATCH(INDEX($E19:$AI19,$D$1),tblShift[[Смена]:[Смена]],0)),0)","v":0},{"$f":"IFERROR(INDEX(tblShift[11],MATCH(INDEX($E19:$AI19,$D$1),tblShift[[Смена]:[Смена]],0)),0)","v":0},{"$f":"IFERROR(INDEX(tblShift[12],MATCH(INDEX($E19:$AI19,$D$1),tblShift[[Смена]:[Смена]],0)),0)","v":0},{"$f":"IFERROR(INDEX(tblShift[13],MATCH(INDEX($E19:$AI19,$D$1),tblShift[[Смена]:[Смена]],0)),0)","v":0},{"$f":"IFERROR(INDEX(tblShift[14],MATCH(INDEX($E19:$AI19,$D$1),tblShift[[Смена]:[Смена]],0)),0)","v":0},{"$f":"IFERROR(INDEX(tblShift[15],MATCH(INDEX($E19:$AI19,$D$1),tblShift[[Смена]:[Смена]],0)),0)","v":0},{"$f":"IFERROR(INDEX(tblShift[16],MATCH(INDEX($E19:$AI19,$D$1),tblShift[[Смена]:[Смена]],0)),0)","v":0},{"$f":"IFERROR(INDEX(tblShift[17],MATCH(INDEX($E19:$AI19,$D$1),tblShift[[Смена]:[Смена]],0)),0)","v":0},{"$f":"IFERROR(INDEX(tblShift[18],MATCH(INDEX($E19:$AI19,$D$1),tblShift[[Смена]:[Смена]],0)),0)","v":0},{"$f":"IFERROR(INDEX(tblShift[19],MATCH(INDEX($E19:$AI19,$D$1),tblShift[[Смена]:[Смена]],0)),0)","v":0},{"$f":"IFERROR(INDEX(tblShift[20],MATCH(INDEX($E19:$AI19,$D$1),tblShift[[Смена]:[Смена]],0)),0)","v":0},{"$f":"IFERROR(INDEX(tblShift[21],MATCH(INDEX($E19:$AI19,$D$1),tblShift[[Смена]:[Смена]],0)),0)","v":0},{"$f":"IFERROR(INDEX(tblShift[22],MATCH(INDEX($E19:$AI19,$D$1),tblShift[[Смена]:[Смена]],0)),0)","v":0},{"$f":"IFERROR(INDEX(tblShift[23],MATCH(INDEX($E19:$AI19,$D$1),tblShift[[Смена]:[Смена]],0)),0)","v":0},null,{"$f":"IF(EX$7<>\"\",IFERROR(IF(INDEX(tblShift[[Рабочий]:[Рабочий]],MATCH(E19,tblShift[[Смена]:[Смена]],0)),1,0),0),0)","v":0},{"$f":"IF(EY$7<>\"\",IFERROR(IF(INDEX(tblShift[[Рабочий]:[Рабочий]],MATCH(F19,tblShift[[Смена]:[Смена]],0)),1,0),0),0)","v":0},{"$f":"IF(EZ$7<>\"\",IFERROR(IF(INDEX(tblShift[[Рабочий]:[Рабочий]],MATCH(G19,tblShift[[Смена]:[Смена]],0)),1,0),0),0)","v":0},{"$f":"IF(FA$7<>\"\",IFERROR(IF(INDEX(tblShift[[Рабочий]:[Рабочий]],MATCH(H19,tblShift[[Смена]:[Смена]],0)),1,0),0),0)","v":0},{"$f":"IF(FB$7<>\"\",IFERROR(IF(INDEX(tblShift[[Рабочий]:[Рабочий]],MATCH(I19,tblShift[[Смена]:[Смена]],0)),1,0),0),0)","v":0},{"$f":"IF(FC$7<>\"\",IFERROR(IF(INDEX(tblShift[[Рабочий]:[Рабочий]],MATCH(J19,tblShift[[Смена]:[Смена]],0)),1,0),0),0)","v":0},{"$f":"IF(FD$7<>\"\",IFERROR(IF(INDEX(tblShift[[Рабочий]:[Рабочий]],MATCH(K19,tblShift[[Смена]:[Смена]],0)),1,0),0),0)","v":0},{"$f":"IF(FE$7<>\"\",IFERROR(IF(INDEX(tblShift[[Рабочий]:[Рабочий]],MATCH(L19,tblShift[[Смена]:[Смена]],0)),1,0),0),0)","v":0},{"$f":"IF(FF$7<>\"\",IFERROR(IF(INDEX(tblShift[[Рабочий]:[Рабочий]],MATCH(M19,tblShift[[Смена]:[Смена]],0)),1,0),0),0)","v":0},{"$f":"IF(FG$7<>\"\",IFERROR(IF(INDEX(tblShift[[Рабочий]:[Рабочий]],MATCH(N19,tblShift[[Смена]:[Смена]],0)),1,0),0),0)","v":0},{"$f":"IF(FH$7<>\"\",IFERROR(IF(INDEX(tblShift[[Рабочий]:[Рабочий]],MATCH(O19,tblShift[[Смена]:[Смена]],0)),1,0),0),0)","v":0},{"$f":"IF(FI$7<>\"\",IFERROR(IF(INDEX(tblShift[[Рабочий]:[Рабочий]],MATCH(P19,tblShift[[Смена]:[Смена]],0)),1,0),0),0)","v":0},{"$f":"IF(FJ$7<>\"\",IFERROR(IF(INDEX(tblShift[[Рабочий]:[Рабочий]],MATCH(Q19,tblShift[[Смена]:[Смена]],0)),1,0),0),0)","v":0},{"$f":"IF(FK$7<>\"\",IFERROR(IF(INDEX(tblShift[[Рабочий]:[Рабочий]],MATCH(R19,tblShift[[Смена]:[Смена]],0)),1,0),0),0)","v":0},{"$f":"IF(FL$7<>\"\",IFERROR(IF(INDEX(tblShift[[Рабочий]:[Рабочий]],MATCH(S19,tblShift[[Смена]:[Смена]],0)),1,0),0),0)","v":0},{"$f":"IF(FM$7<>\"\",IFERROR(IF(INDEX(tblShift[[Рабочий]:[Рабочий]],MATCH(T19,tblShift[[Смена]:[Смена]],0)),1,0),0),0)","v":0},{"$f":"IF(FN$7<>\"\",IFERROR(IF(INDEX(tblShift[[Рабочий]:[Рабочий]],MATCH(U19,tblShift[[Смена]:[Смена]],0)),1,0),0),0)","v":0},{"$f":"IF(FO$7<>\"\",IFERROR(IF(INDEX(tblShift[[Рабочий]:[Рабочий]],MATCH(V19,tblShift[[Смена]:[Смена]],0)),1,0),0),0)","v":0},{"$f":"IF(FP$7<>\"\",IFERROR(IF(INDEX(tblShift[[Рабочий]:[Рабочий]],MATCH(W19,tblShift[[Смена]:[Смена]],0)),1,0),0),0)","v":0},{"$f":"IF(FQ$7<>\"\",IFERROR(IF(INDEX(tblShift[[Рабочий]:[Рабочий]],MATCH(X19,tblShift[[Смена]:[Смена]],0)),1,0),0),0)","v":0},{"$f":"IF(FR$7<>\"\",IFERROR(IF(INDEX(tblShift[[Рабочий]:[Рабочий]],MATCH(Y19,tblShift[[Смена]:[Смена]],0)),1,0),0),0)","v":0},{"$f":"IF(FS$7<>\"\",IFERROR(IF(INDEX(tblShift[[Рабочий]:[Рабочий]],MATCH(Z19,tblShift[[Смена]:[Смена]],0)),1,0),0),0)","v":0},{"$f":"IF(FT$7<>\"\",IFERROR(IF(INDEX(tblShift[[Рабочий]:[Рабочий]],MATCH(AA19,tblShift[[Смена]:[Смена]],0)),1,0),0),0)","v":0},{"$f":"IF(FU$7<>\"\",IFERROR(IF(INDEX(tblShift[[Рабочий]:[Рабочий]],MATCH(AB19,tblShift[[Смена]:[Смена]],0)),1,0),0),0)","v":0},{"$f":"IF(FV$7<>\"\",IFERROR(IF(INDEX(tblShift[[Рабочий]:[Рабочий]],MATCH(AC19,tblShift[[Смена]:[Смена]],0)),1,0),0),0)","v":0},{"$f":"IF(FW$7<>\"\",IFERROR(IF(INDEX(tblShift[[Рабочий]:[Рабочий]],MATCH(AD19,tblShift[[Смена]:[Смена]],0)),1,0),0),0)","v":0},{"$f":"IF(FX$7<>\"\",IFERROR(IF(INDEX(tblShift[[Рабочий]:[Рабочий]],MATCH(AE19,tblShift[[Смена]:[Смена]],0)),1,0),0),0)","v":0},{"$f":"IF(FY$7<>\"\",IFERROR(IF(INDEX(tblShift[[Рабочий]:[Рабочий]],MATCH(AF19,tblShift[[Смена]:[Смена]],0)),1,0),0),0)","v":0},{"$f":"IF(FZ$7<>\"\",IFERROR(IF(INDEX(tblShift[[Рабочий]:[Рабочий]],MATCH(AG19,tblShift[[Смена]:[Смена]],0)),1,0),0),0)","v":0},{"$f":"IF(GA$7<>\"\",IFERROR(IF(INDEX(tblShift[[Рабочий]:[Рабочий]],MATCH(AH19,tblShift[[Смена]:[Смена]],0)),1,0),0),0)","v":0},{"$f":"IF(GB$7<>\"\",IFERROR(IF(INDEX(tblShift[[Рабочий]:[Рабочий]],MATCH(AI19,tblShift[[Смена]:[Смена]],0)),1,0),0),0)","v":0},null,null,null,null,null,null,null,null,null,null,null,null,null,null,null,0]
[null,null,"","",null,null,null,null,null,null,null,null,null,null,null,null,null,null,null,null,null,null,null,null,null,null,null,null,null,null,null,null,null,null,null,null,{"$f":"IF(AK19<>\"\",IFERROR(VLOOKUP(E20,tblShift[],3,0),0),0)","v":0},{"$f":"IF(AL19<>\"\",IFERROR(VLOOKUP(F20,tblShift[],3,0),0),0)","v":0},{"$f":"IF(AM19<>\"\",IFERROR(VLOOKUP(G20,tblShift[],3,0),0),0)","v":0},{"$f":"IF(AN$7<>\"\",IFERROR(VLOOKUP(H20,tblShift[],3,0),0),0)","v":0},{"$f":"IF(AO$7<>\"\",IFERROR(VLOOKUP(I20,tblShift[],3,0),0),0)","v":0},{"$f":"IF(AP$7<>\"\",IFERROR(VLOOKUP(J20,tblShift[],3,0),0),0)","v":0},{"$f":"IF(AQ$7<>\"\",IFERROR(VLOOKUP(K20,tblShift[],3,0),0),0)","v":0},{"$f":"IF(AR$7<>\"\",IFERROR(VLOOKUP(L20,tblShift[],3,0),0),0)","v":0},{"$f":"IF(AS$7<>\"\",IFERROR(VLOOKUP(M20,tblShift[],3,0),0),0)","v":0},{"$f":"IF(AT$7<>\"\",IFERROR(VLOOKUP(N20,tblShift[],3,0),0),0)","v":0},{"$f":"IF(AU$7<>\"\",IFERROR(VLOOKUP(O20,tblShift[],3,0),0),0)","v":0},{"$f":"IF(AV$7<>\"\",IFERROR(VLOOKUP(P20,tblShift[],3,0),0),0)","v":0},{"$f":"IF(AW$7<>\"\",IFERROR(VLOOKUP(Q20,tblShift[],3,0),0),0)","v":0},{"$f":"IF(AX$7<>\"\",IFERROR(VLOOKUP(R20,tblShift[],3,0),0),0)","v":0},{"$f":"IF(AY$7<>\"\",IFERROR(VLOOKUP(S20,tblShift[],3,0),0),0)","v":0},{"$f":"IF(AZ$7<>\"\",IFERROR(VLOOKUP(T20,tblShift[],3,0),0),0)","v":0},{"$f":"IF(BA$7<>\"\",IFERROR(VLOOKUP(U20,tblShift[],3,0),0),0)","v":0},{"$f":"IF(BB$7<>\"\",IFERROR(VLOOKUP(V20,tblShift[],3,0),0),0)","v":0},{"$f":"IF(BC$7<>\"\",IFERROR(VLOOKUP(W20,tblShift[],3,0),0),0)","v":0},{"$f":"IF(BD$7<>\"\",IFERROR(VLOOKUP(X20,tblShift[],3,0),0),0)","v":0},{"$f":"IF(BE$7<>\"\",IFERROR(VLOOKUP(Y20,tblShift[],3,0),0),0)","v":0},{"$f":"IF(BF$7<>\"\",IFERROR(VLOOKUP(Z20,tblShift[],3,0),0),0)","v":0},{"$f":"IF(BG$7<>\"\",IFERROR(VLOOKUP(AA20,tblShift[],3,0),0),0)","v":0},{"$f":"IF(BH$7<>\"\",IFERROR(VLOOKUP(AB20,tblShift[],3,0),0),0)","v":0},{"$f":"IF(BI$7<>\"\",IFERROR(VLOOKUP(AC20,tblShift[],3,0),0),0)","v":0},{"$f":"IF(BJ$7<>\"\",IFERROR(VLOOKUP(AD20,tblShift[],3,0),0),0)","v":0},{"$f":"IF(BK$7<>\"\",IFERROR(VLOOKUP(AE20,tblShift[],3,0),0),0)","v":0},{"$f":"IF(BL$7<>\"\",IFERROR(VLOOKUP(AF20,tblShift[],3,0),0),0)","v":0},{"$f":"IF(BM$7<>\"\",IFERROR(VLOOKUP(AG20,tblShift[],3,0),0),0)","v":0},{"$f":"IF(BN$7<>\"\",IFERROR(VLOOKUP(AH20,tblShift[],3,0),0),0)","v":0},{"$f":"IF(BO$7<>\"\",IFERROR(VLOOKUP(AI20,tblShift[],3,0),0),0)","v":0},null,0,0,0,0,0,0,0,0,0,0,0,0,0,0,0,0,0,0,0,0,0,0,0,0,0,0,0,0,0,null,0,0,0,0,0,0,0,0,0,0,0,0,0,0,0,0,0,0,0,0,0,0,0,0,0,0,0,0,0,null,{"$f":"IFERROR(INDEX(tblShift[0],MATCH(INDEX($E20:$AI20,$D$1),tblShift[[Смена]:[Смена]],0)),0)","v":0},{"$f":"IFERROR(INDEX(tblShift[1],MATCH(INDEX($E20:$AI20,$D$1),tblShift[[Смена]:[Смена]],0)),0)","v":0},{"$f":"IFERROR(INDEX(tblShift[2],MATCH(INDEX($E20:$AI20,$D$1),tblShift[[Смена]:[Смена]],0)),0)","v":0},{"$f":"IFERROR(INDEX(tblShift[3],MATCH(INDEX($E20:$AI20,$D$1),tblShift[[Смена]:[Смена]],0)),0)","v":0},{"$f":"IFERROR(INDEX(tblShift[4],MATCH(INDEX($E20:$AI20,$D$1),tblShift[[Смена]:[Смена]],0)),0)","v":0},{"$f":"IFERROR(INDEX(tblShift[5],MATCH(INDEX($E20:$AI20,$D$1),tblShift[[Смена]:[Смена]],0)),0)","v":0},{"$f":"IFERROR(INDEX(tblShift[6],MATCH(INDEX($E20:$AI20,$D$1),tblShift[[Смена]:[Смена]],0)),0)","v":0},{"$f":"IFERROR(INDEX(tblShift[7],MATCH(INDEX($E20:$AI20,$D$1),tblShift[[Смена]:[Смена]],0)),0)","v":0},{"$f":"IFERROR(INDEX(tblShift[8],MATCH(INDEX($E20:$AI20,$D$1),tblShift[[Смена]:[Смена]],0)),0)","v":0},{"$f":"IFERROR(INDEX(tblShift[9],MATCH(INDEX($E20:$AI20,$D$1),tblShift[[Смена]:[Смена]],0)),0)","v":0},{"$f":"IFERROR(INDEX(tblShift[10],MATCH(INDEX($E20:$AI20,$D$1),tblShift[[Смена]:[Смена]],0)),0)","v":0},{"$f":"IFERROR(INDEX(tblShift[11],MATCH(INDEX($E20:$AI20,$D$1),tblShift[[Смена]:[Смена]],0)),0)","v":0},{"$f":"IFERROR(INDEX(tblShift[12],MATCH(INDEX($E20:$AI20,$D$1),tblShift[[Смена]:[Смена]],0)),0)","v":0},{"$f":"IFERROR(INDEX(tblShift[13],MATCH(INDEX($E20:$AI20,$D$1),tblShift[[Смена]:[Смена]],0)),0)","v":0},{"$f":"IFERROR(INDEX(tblShift[14],MATCH(INDEX($E20:$AI20,$D$1),tblShift[[Смена]:[Смена]],0)),0)","v":0},{"$f":"IFERROR(INDEX(tblShift[15],MATCH(INDEX($E20:$AI20,$D$1),tblShift[[Смена]:[Смена]],0)),0)","v":0},{"$f":"IFERROR(INDEX(tblShift[16],MATCH(INDEX($E20:$AI20,$D$1),tblShift[[Смена]:[Смена]],0)),0)","v":0},{"$f":"IFERROR(INDEX(tblShift[17],MATCH(INDEX($E20:$AI20,$D$1),tblShift[[Смена]:[Смена]],0)),0)","v":0},{"$f":"IFERROR(INDEX(tblShift[18],MATCH(INDEX($E20:$AI20,$D$1),tblShift[[Смена]:[Смена]],0)),0)","v":0},{"$f":"IFERROR(INDEX(tblShift[19],MATCH(INDEX($E20:$AI20,$D$1),tblShift[[Смена]:[Смена]],0)),0)","v":0},{"$f":"IFERROR(INDEX(tblShift[20],MATCH(INDEX($E20:$AI20,$D$1),tblShift[[Смена]:[Смена]],0)),0)","v":0},{"$f":"IFERROR(INDEX(tblShift[21],MATCH(INDEX($E20:$AI20,$D$1),tblShift[[Смена]:[Смена]],0)),0)","v":0},{"$f":"IFERROR(INDEX(tblShift[22],MATCH(INDEX($E20:$AI20,$D$1),tblShift[[Смена]:[Смена]],0)),0)","v":0},{"$f":"IFERROR(INDEX(tblShift[23],MATCH(INDEX($E20:$AI20,$D$1),tblShift[[Смена]:[Смена]],0)),0)","v":0},null,{"$f":"IF(EX$7<>\"\",IFERROR(IF(INDEX(tblShift[[Рабочий]:[Рабочий]],MATCH(E20,tblShift[[Смена]:[Смена]],0)),1,0),0),0)","v":0},{"$f":"IF(EY$7<>\"\",IFERROR(IF(INDEX(tblShift[[Рабочий]:[Рабочий]],MATCH(F20,tblShift[[Смена]:[Смена]],0)),1,0),0),0)","v":0},{"$f":"IF(EZ$7<>\"\",IFERROR(IF(INDEX(tblShift[[Рабочий]:[Рабочий]],MATCH(G20,tblShift[[Смена]:[Смена]],0)),1,0),0),0)","v":0},{"$f":"IF(FA$7<>\"\",IFERROR(IF(INDEX(tblShift[[Рабочий]:[Рабочий]],MATCH(H20,tblShift[[Смена]:[Смена]],0)),1,0),0),0)","v":0},{"$f":"IF(FB$7<>\"\",IFERROR(IF(INDEX(tblShift[[Рабочий]:[Рабочий]],MATCH(I20,tblShift[[Смена]:[Смена]],0)),1,0),0),0)","v":0},{"$f":"IF(FC$7<>\"\",IFERROR(IF(INDEX(tblShift[[Рабочий]:[Рабочий]],MATCH(J20,tblShift[[Смена]:[Смена]],0)),1,0),0),0)","v":0},{"$f":"IF(FD$7<>\"\",IFERROR(IF(INDEX(tblShift[[Рабочий]:[Рабочий]],MATCH(K20,tblShift[[Смена]:[Смена]],0)),1,0),0),0)","v":0},{"$f":"IF(FE$7<>\"\",IFERROR(IF(INDEX(tblShift[[Рабочий]:[Рабочий]],MATCH(L20,tblShift[[Смена]:[Смена]],0)),1,0),0),0)","v":0},{"$f":"IF(FF$7<>\"\",IFERROR(IF(INDEX(tblShift[[Рабочий]:[Рабочий]],MATCH(M20,tblShift[[Смена]:[Смена]],0)),1,0),0),0)","v":0},{"$f":"IF(FG$7<>\"\",IFERROR(IF(INDEX(tblShift[[Рабочий]:[Рабочий]],MATCH(N20,tblShift[[Смена]:[Смена]],0)),1,0),0),0)","v":0},{"$f":"IF(FH$7<>\"\",IFERROR(IF(INDEX(tblShift[[Рабочий]:[Рабочий]],MATCH(O20,tblShift[[Смена]:[Смена]],0)),1,0),0),0)","v":0},{"$f":"IF(FI$7<>\"\",IFERROR(IF(INDEX(tblShift[[Рабочий]:[Рабочий]],MATCH(P20,tblShift[[Смена]:[Смена]],0)),1,0),0),0)","v":0},{"$f":"IF(FJ$7<>\"\",IFERROR(IF(INDEX(tblShift[[Рабочий]:[Рабочий]],MATCH(Q20,tblShift[[Смена]:[Смена]],0)),1,0),0),0)","v":0},{"$f":"IF(FK$7<>\"\",IFERROR(IF(INDEX(tblShift[[Рабочий]:[Рабочий]],MATCH(R20,tblShift[[Смена]:[Смена]],0)),1,0),0),0)","v":0},{"$f":"IF(FL$7<>\"\",IFERROR(IF(INDEX(tblShift[[Рабочий]:[Рабочий]],MATCH(S20,tblShift[[Смена]:[Смена]],0)),1,0),0),0)","v":0},{"$f":"IF(FM$7<>\"\",IFERROR(IF(INDEX(tblShift[[Рабочий]:[Рабочий]],MATCH(T20,tblShift[[Смена]:[Смена]],0)),1,0),0),0)","v":0},{"$f":"IF(FN$7<>\"\",IFERROR(IF(INDEX(tblShift[[Рабочий]:[Рабочий]],MATCH(U20,tblShift[[Смена]:[Смена]],0)),1,0),0),0)","v":0},{"$f":"IF(FO$7<>\"\",IFERROR(IF(INDEX(tblShift[[Рабочий]:[Рабочий]],MATCH(V20,tblShift[[Смена]:[Смена]],0)),1,0),0),0)","v":0},{"$f":"IF(FP$7<>\"\",IFERROR(IF(INDEX(tblShift[[Рабочий]:[Рабочий]],MATCH(W20,tblShift[[Смена]:[Смена]],0)),1,0),0),0)","v":0},{"$f":"IF(FQ$7<>\"\",IFERROR(IF(INDEX(tblShift[[Рабочий]:[Рабочий]],MATCH(X20,tblShift[[Смена]:[Смена]],0)),1,0),0),0)","v":0},{"$f":"IF(FR$7<>\"\",IFERROR(IF(INDEX(tblShift[[Рабочий]:[Рабочий]],MATCH(Y20,tblShift[[Смена]:[Смена]],0)),1,0),0),0)","v":0},{"$f":"IF(FS$7<>\"\",IFERROR(IF(INDEX(tblShift[[Рабочий]:[Рабочий]],MATCH(Z20,tblShift[[Смена]:[Смена]],0)),1,0),0),0)","v":0},{"$f":"IF(FT$7<>\"\",IFERROR(IF(INDEX(tblShift[[Рабочий]:[Рабочий]],MATCH(AA20,tblShift[[Смена]:[Смена]],0)),1,0),0),0)","v":0},{"$f":"IF(FU$7<>\"\",IFERROR(IF(INDEX(tblShift[[Рабочий]:[Рабочий]],MATCH(AB20,tblShift[[Смена]:[Смена]],0)),1,0),0),0)","v":0},{"$f":"IF(FV$7<>\"\",IFERROR(IF(INDEX(tblShift[[Рабочий]:[Рабочий]],MATCH(AC20,tblShift[[Смена]:[Смена]],0)),1,0),0),0)","v":0},{"$f":"IF(FW$7<>\"\",IFERROR(IF(INDEX(tblShift[[Рабочий]:[Рабочий]],MATCH(AD20,tblShift[[Смена]:[Смена]],0)),1,0),0),0)","v":0},{"$f":"IF(FX$7<>\"\",IFERROR(IF(INDEX(tblShift[[Рабочий]:[Рабочий]],MATCH(AE20,tblShift[[Смена]:[Смена]],0)),1,0),0),0)","v":0},{"$f":"IF(FY$7<>\"\",IFERROR(IF(INDEX(tblShift[[Рабочий]:[Рабочий]],MATCH(AF20,tblShift[[Смена]:[Смена]],0)),1,0),0),0)","v":0},{"$f":"IF(FZ$7<>\"\",IFERROR(IF(INDEX(tblShift[[Рабочий]:[Рабочий]],MATCH(AG20,tblShift[[Смена]:[Смена]],0)),1,0),0),0)","v":0},{"$f":"IF(GA$7<>\"\",IFERROR(IF(INDEX(tblShift[[Рабочий]:[Рабочий]],MATCH(AH20,tblShift[[Смена]:[Смена]],0)),1,0),0),0)","v":0},{"$f":"IF(GB$7<>\"\",IFERROR(IF(INDEX(tblShift[[Рабочий]:[Рабочий]],MATCH(AI20,tblShift[[Смена]:[Смена]],0)),1,0),0),0)","v":0},null,null,null,null,null,null,null,null,null,null,null,null,null,null,null,0]
[null,null,"","",null,null,null,null,null,null,null,null,null,null,null,null,null,null,null,null,null,null,null,null,null,null,null,null,null,null,null,null,null,null,null,null,{"$f":"IF(AK20<>\"\",IFERROR(VLOOKUP(E21,tblShift[],3,0),0),0)","v":0},{"$f":"IF(AL20<>\"\",IFERROR(VLOOKUP(F21,tblShift[],3,0),0),0)","v":0},{"$f":"IF(AM20<>\"\",IFERROR(VLOOKUP(G21,tblShift[],3,0),0),0)","v":0},{"$f":"IF(AN$7<>\"\",IFERROR(VLOOKUP(H21,tblShift[],3,0),0),0)","v":0},{"$f":"IF(AO$7<>\"\",IFERROR(VLOOKUP(I21,tblShift[],3,0),0),0)","v":0},{"$f":"IF(AP$7<>\"\",IFERROR(VLOOKUP(J21,tblShift[],3,0),0),0)","v":0},{"$f":"IF(AQ$7<>\"\",IFERROR(VLOOKUP(K21,tblShift[],3,0),0),0)","v":0},{"$f":"IF(AR$7<>\"\",IFERROR(VLOOKUP(L21,tblShift[],3,0),0),0)","v":0},{"$f":"IF(AS$7<>\"\",IFERROR(VLOOKUP(M21,tblShift[],3,0),0),0)","v":0},{"$f":"IF(AT$7<>\"\",IFERROR(VLOOKUP(N21,tblShift[],3,0),0),0)","v":0},{"$f":"IF(AU$7<>\"\",IFERROR(VLOOKUP(O21,tblShift[],3,0),0),0)","v":0},{"$f":"IF(AV$7<>\"\",IFERROR(VLOOKUP(P21,tblShift[],3,0),0),0)","v":0},{"$f":"IF(AW$7<>\"\",IFERROR(VLOOKUP(Q21,tblShift[],3,0),0),0)","v":0},{"$f":"IF(AX$7<>\"\",IFERROR(VLOOKUP(R21,tblShift[],3,0),0),0)","v":0},{"$f":"IF(AY$7<>\"\",IFERROR(VLOOKUP(S21,tblShift[],3,0),0),0)","v":0},{"$f":"IF(AZ$7<>\"\",IFERROR(VLOOKUP(T21,tblShift[],3,0),0),0)","v":0},{"$f":"IF(BA$7<>\"\",IFERROR(VLOOKUP(U21,tblShift[],3,0),0),0)","v":0},{"$f":"IF(BB$7<>\"\",IFERROR(VLOOKUP(V21,tblShift[],3,0),0),0)","v":0},{"$f":"IF(BC$7<>\"\",IFERROR(VLOOKUP(W21,tblShift[],3,0),0),0)","v":0},{"$f":"IF(BD$7<>\"\",IFERROR(VLOOKUP(X21,tblShift[],3,0),0),0)","v":0},{"$f":"IF(BE$7<>\"\",IFERROR(VLOOKUP(Y21,tblShift[],3,0),0),0)","v":0},{"$f":"IF(BF$7<>\"\",IFERROR(VLOOKUP(Z21,tblShift[],3,0),0),0)","v":0},{"$f":"IF(BG$7<>\"\",IFERROR(VLOOKUP(AA21,tblShift[],3,0),0),0)","v":0},{"$f":"IF(BH$7<>\"\",IFERROR(VLOOKUP(AB21,tblShift[],3,0),0),0)","v":0},{"$f":"IF(BI$7<>\"\",IFERROR(VLOOKUP(AC21,tblShift[],3,0),0),0)","v":0},{"$f":"IF(BJ$7<>\"\",IFERROR(VLOOKUP(AD21,tblShift[],3,0),0),0)","v":0},{"$f":"IF(BK$7<>\"\",IFERROR(VLOOKUP(AE21,tblShift[],3,0),0),0)","v":0},{"$f":"IF(BL$7<>\"\",IFERROR(VLOOKUP(AF21,tblShift[],3,0),0),0)","v":0},{"$f":"IF(BM$7<>\"\",IFERROR(VLOOKUP(AG21,tblShift[],3,0),0),0)","v":0},{"$f":"IF(BN$7<>\"\",IFERROR(VLOOKUP(AH21,tblShift[],3,0),0),0)","v":0},{"$f":"IF(BO$7<>\"\",IFERROR(VLOOKUP(AI21,tblShift[],3,0),0),0)","v":0},null,0,0,0,0,0,0,0,0,0,0,0,0,0,0,0,0,0,0,0,0,0,0,0,0,0,0,0,0,0,null,0,0,0,0,0,0,0,0,0,0,0,0,0,0,0,0,0,0,0,0,0,0,0,0,0,0,0,0,0,null,{"$f":"IFERROR(INDEX(tblShift[0],MATCH(INDEX($E21:$AI21,$D$1),tblShift[[Смена]:[Смена]],0)),0)","v":0},{"$f":"IFERROR(INDEX(tblShift[1],MATCH(INDEX($E21:$AI21,$D$1),tblShift[[Смена]:[Смена]],0)),0)","v":0},{"$f":"IFERROR(INDEX(tblShift[2],MATCH(INDEX($E21:$AI21,$D$1),tblShift[[Смена]:[Смена]],0)),0)","v":0},{"$f":"IFERROR(INDEX(tblShift[3],MATCH(INDEX($E21:$AI21,$D$1),tblShift[[Смена]:[Смена]],0)),0)","v":0},{"$f":"IFERROR(INDEX(tblShift[4],MATCH(INDEX($E21:$AI21,$D$1),tblShift[[Смена]:[Смена]],0)),0)","v":0},{"$f":"IFERROR(INDEX(tblShift[5],MATCH(INDEX($E21:$AI21,$D$1),tblShift[[Смена]:[Смена]],0)),0)","v":0},{"$f":"IFERROR(INDEX(tblShift[6],MATCH(INDEX($E21:$AI21,$D$1),tblShift[[Смена]:[Смена]],0)),0)","v":0},{"$f":"IFERROR(INDEX(tblShift[7],MATCH(INDEX($E21:$AI21,$D$1),tblShift[[Смена]:[Смена]],0)),0)","v":0},{"$f":"IFERROR(INDEX(tblShift[8],MATCH(INDEX($E21:$AI21,$D$1),tblShift[[Смена]:[Смена]],0)),0)","v":0},{"$f":"IFERROR(INDEX(tblShift[9],MATCH(INDEX($E21:$AI21,$D$1),tblShift[[Смена]:[Смена]],0)),0)","v":0},{"$f":"IFERROR(INDEX(tblShift[10],MATCH(INDEX($E21:$AI21,$D$1),tblShift[[Смена]:[Смена]],0)),0)","v":0},{"$f":"IFERROR(INDEX(tblShift[11],MATCH(INDEX($E21:$AI21,$D$1),tblShift[[Смена]:[Смена]],0)),0)","v":0},{"$f":"IFERROR(INDEX(tblShift[12],MATCH(INDEX($E21:$AI21,$D$1),tblShift[[Смена]:[Смена]],0)),0)","v":0},{"$f":"IFERROR(INDEX(tblShift[13],MATCH(INDEX($E21:$AI21,$D$1),tblShift[[Смена]:[Смена]],0)),0)","v":0},{"$f":"IFERROR(INDEX(tblShift[14],MATCH(INDEX($E21:$AI21,$D$1),tblShift[[Смена]:[Смена]],0)),0)","v":0},{"$f":"IFERROR(INDEX(tblShift[15],MATCH(INDEX($E21:$AI21,$D$1),tblShift[[Смена]:[Смена]],0)),0)","v":0},{"$f":"IFERROR(INDEX(tblShift[16],MATCH(INDEX($E21:$AI21,$D$1),tblShift[[Смена]:[Смена]],0)),0)","v":0},{"$f":"IFERROR(INDEX(tblShift[17],MATCH(INDEX($E21:$AI21,$D$1),tblShift[[Смена]:[Смена]],0)),0)","v":0},{"$f":"IFERROR(INDEX(tblShift[18],MATCH(INDEX($E21:$AI21,$D$1),tblShift[[Смена]:[Смена]],0)),0)","v":0},{"$f":"IFERROR(INDEX(tblShift[19],MATCH(INDEX($E21:$AI21,$D$1),tblShift[[Смена]:[Смена]],0)),0)","v":0},{"$f":"IFERROR(INDEX(tblShift[20],MATCH(INDEX($E21:$AI21,$D$1),tblShift[[Смена]:[Смена]],0)),0)","v":0},{"$f":"IFERROR(INDEX(tblShift[21],MATCH(INDEX($E21:$AI21,$D$1),tblShift[[Смена]:[Смена]],0)),0)","v":0},{"$f":"IFERROR(INDEX(tblShift[22],MATCH(INDEX($E21:$AI21,$D$1),tblShift[[Смена]:[Смена]],0)),0)","v":0},{"$f":"IFERROR(INDEX(tblShift[23],MATCH(INDEX($E21:$AI21,$D$1),tblShift[[Смена]:[Смена]],0)),0)","v":0},null,{"$f":"IF(EX$7<>\"\",IFERROR(IF(INDEX(tblShift[[Рабочий]:[Рабочий]],MATCH(E21,tblShift[[Смена]:[Смена]],0)),1,0),0),0)","v":0},{"$f":"IF(EY$7<>\"\",IFERROR(IF(INDEX(tblShift[[Рабочий]:[Рабочий]],MATCH(F21,tblShift[[Смена]:[Смена]],0)),1,0),0),0)","v":0},{"$f":"IF(EZ$7<>\"\",IFERROR(IF(INDEX(tblShift[[Рабочий]:[Рабочий]],MATCH(G21,tblShift[[Смена]:[Смена]],0)),1,0),0),0)","v":0},{"$f":"IF(FA$7<>\"\",IFERROR(IF(INDEX(tblShift[[Рабочий]:[Рабочий]],MATCH(H21,tblShift[[Смена]:[Смена]],0)),1,0),0),0)","v":0},{"$f":"IF(FB$7<>\"\",IFERROR(IF(INDEX(tblShift[[Рабочий]:[Рабочий]],MATCH(I21,tblShift[[Смена]:[Смена]],0)),1,0),0),0)","v":0},{"$f":"IF(FC$7<>\"\",IFERROR(IF(INDEX(tblShift[[Рабочий]:[Рабочий]],MATCH(J21,tblShift[[Смена]:[Смена]],0)),1,0),0),0)","v":0},{"$f":"IF(FD$7<>\"\",IFERROR(IF(INDEX(tblShift[[Рабочий]:[Рабочий]],MATCH(K21,tblShift[[Смена]:[Смена]],0)),1,0),0),0)","v":0},{"$f":"IF(FE$7<>\"\",IFERROR(IF(INDEX(tblShift[[Рабочий]:[Рабочий]],MATCH(L21,tblShift[[Смена]:[Смена]],0)),1,0),0),0)","v":0},{"$f":"IF(FF$7<>\"\",IFERROR(IF(INDEX(tblShift[[Рабочий]:[Рабочий]],MATCH(M21,tblShift[[Смена]:[Смена]],0)),1,0),0),0)","v":0},{"$f":"IF(FG$7<>\"\",IFERROR(IF(INDEX(tblShift[[Рабочий]:[Рабочий]],MATCH(N21,tblShift[[Смена]:[Смена]],0)),1,0),0),0)","v":0},{"$f":"IF(FH$7<>\"\",IFERROR(IF(INDEX(tblShift[[Рабочий]:[Рабочий]],MATCH(O21,tblShift[[Смена]:[Смена]],0)),1,0),0),0)","v":0},{"$f":"IF(FI$7<>\"\",IFERROR(IF(INDEX(tblShift[[Рабочий]:[Рабочий]],MATCH(P21,tblShift[[Смена]:[Смена]],0)),1,0),0),0)","v":0},{"$f":"IF(FJ$7<>\"\",IFERROR(IF(INDEX(tblShift[[Рабочий]:[Рабочий]],MATCH(Q21,tblShift[[Смена]:[Смена]],0)),1,0),0),0)","v":0},{"$f":"IF(FK$7<>\"\",IFERROR(IF(INDEX(tblShift[[Рабочий]:[Рабочий]],MATCH(R21,tblShift[[Смена]:[Смена]],0)),1,0),0),0)","v":0},{"$f":"IF(FL$7<>\"\",IFERROR(IF(INDEX(tblShift[[Рабочий]:[Рабочий]],MATCH(S21,tblShift[[Смена]:[Смена]],0)),1,0),0),0)","v":0},{"$f":"IF(FM$7<>\"\",IFERROR(IF(INDEX(tblShift[[Рабочий]:[Рабочий]],MATCH(T21,tblShift[[Смена]:[Смена]],0)),1,0),0),0)","v":0},{"$f":"IF(FN$7<>\"\",IFERROR(IF(INDEX(tblShift[[Рабочий]:[Рабочий]],MATCH(U21,tblShift[[Смена]:[Смена]],0)),1,0),0),0)","v":0},{"$f":"IF(FO$7<>\"\",IFERROR(IF(INDEX(tblShift[[Рабочий]:[Рабочий]],MATCH(V21,tblShift[[Смена]:[Смена]],0)),1,0),0),0)","v":0},{"$f":"IF(FP$7<>\"\",IFERROR(IF(INDEX(tblShift[[Рабочий]:[Рабочий]],MATCH(W21,tblShift[[Смена]:[Смена]],0)),1,0),0),0)","v":0},{"$f":"IF(FQ$7<>\"\",IFERROR(IF(INDEX(tblShift[[Рабочий]:[Рабочий]],MATCH(X21,tblShift[[Смена]:[Смена]],0)),1,0),0),0)","v":0},{"$f":"IF(FR$7<>\"\",IFERROR(IF(INDEX(tblShift[[Рабочий]:[Рабочий]],MATCH(Y21,tblShift[[Смена]:[Смена]],0)),1,0),0),0)","v":0},{"$f":"IF(FS$7<>\"\",IFERROR(IF(INDEX(tblShift[[Рабочий]:[Рабочий]],MATCH(Z21,tblShift[[Смена]:[Смена]],0)),1,0),0),0)","v":0},{"$f":"IF(FT$7<>\"\",IFERROR(IF(INDEX(tblShift[[Рабочий]:[Рабочий]],MATCH(AA21,tblShift[[Смена]:[Смена]],0)),1,0),0),0)","v":0},{"$f":"IF(FU$7<>\"\",IFERROR(IF(INDEX(tblShift[[Рабочий]:[Рабочий]],MATCH(AB21,tblShift[[Смена]:[Смена]],0)),1,0),0),0)","v":0},{"$f":"IF(FV$7<>\"\",IFERROR(IF(INDEX(tblShift[[Рабочий]:[Рабочий]],MATCH(AC21,tblShift[[Смена]:[Смена]],0)),1,0),0),0)","v":0},{"$f":"IF(FW$7<>\"\",IFERROR(IF(INDEX(tblShift[[Рабочий]:[Рабочий]],MATCH(AD21,tblShift[[Смена]:[Смена]],0)),1,0),0),0)","v":0},{"$f":"IF(FX$7<>\"\",IFERROR(IF(INDEX(tblShift[[Рабочий]:[Рабочий]],MATCH(AE21,tblShift[[Смена]:[Смена]],0)),1,0),0),0)","v":0},{"$f":"IF(FY$7<>\"\",IFERROR(IF(INDEX(tblShift[[Рабочий]:[Рабочий]],MATCH(AF21,tblShift[[Смена]:[Смена]],0)),1,0),0),0)","v":0},{"$f":"IF(FZ$7<>\"\",IFERROR(IF(INDEX(tblShift[[Рабочий]:[Рабочий]],MATCH(AG21,tblShift[[Смена]:[Смена]],0)),1,0),0),0)","v":0},{"$f":"IF(GA$7<>\"\",IFERROR(IF(INDEX(tblShift[[Рабочий]:[Рабочий]],MATCH(AH21,tblShift[[Смена]:[Смена]],0)),1,0),0),0)","v":0},{"$f":"IF(GB$7<>\"\",IFERROR(IF(INDEX(tblShift[[Рабочий]:[Рабочий]],MATCH(AI21,tblShift[[Смена]:[Смена]],0)),1,0),0),0)","v":0},null,null,null,null,null,null,null,null,null,null,null,null,null,null,null,0]
[null,null,"","",null,null,null,null,null,null,null,null,null,null,null,null,null,null,null,null,null,null,null,null,null,null,null,null,null,null,null,null,null,null,null,null,{"$f":"IF(AK21<>\"\",IFERROR(VLOOKUP(E22,tblShift[],3,0),0),0)","v":0},{"$f":"IF(AL21<>\"\",IFERROR(VLOOKUP(F22,tblShift[],3,0),0),0)","v":0},{"$f":"IF(AM21<>\"\",IFERROR(VLOOKUP(G22,tblShift[],3,0),0),0)","v":0},{"$f":"IF(AN$7<>\"\",IFERROR(VLOOKUP(H22,tblShift[],3,0),0),0)","v":0},{"$f":"IF(AO$7<>\"\",IFERROR(VLOOKUP(I22,tblShift[],3,0),0),0)","v":0},{"$f":"IF(AP$7<>\"\",IFERROR(VLOOKUP(J22,tblShift[],3,0),0),0)","v":0},{"$f":"IF(AQ$7<>\"\",IFERROR(VLOOKUP(K22,tblShift[],3,0),0),0)","v":0},{"$f":"IF(AR$7<>\"\",IFERROR(VLOOKUP(L22,tblShift[],3,0),0),0)","v":0},{"$f":"IF(AS$7<>\"\",IFERROR(VLOOKUP(M22,tblShift[],3,0),0),0)","v":0},{"$f":"IF(AT$7<>\"\",IFERROR(VLOOKUP(N22,tblShift[],3,0),0),0)","v":0},{"$f":"IF(AU$7<>\"\",IFERROR(VLOOKUP(O22,tblShift[],3,0),0),0)","v":0},{"$f":"IF(AV$7<>\"\",IFERROR(VLOOKUP(P22,tblShift[],3,0),0),0)","v":0},{"$f":"IF(AW$7<>\"\",IFERROR(VLOOKUP(Q22,tblShift[],3,0),0),0)","v":0},{"$f":"IF(AX$7<>\"\",IFERROR(VLOOKUP(R22,tblShift[],3,0),0),0)","v":0},{"$f":"IF(AY$7<>\"\",IFERROR(VLOOKUP(S22,tblShift[],3,0),0),0)","v":0},{"$f":"IF(AZ$7<>\"\",IFERROR(VLOOKUP(T22,tblShift[],3,0),0),0)","v":0},{"$f":"IF(BA$7<>\"\",IFERROR(VLOOKUP(U22,tblShift[],3,0),0),0)","v":0},{"$f":"IF(BB$7<>\"\",IFERROR(VLOOKUP(V22,tblShift[],3,0),0),0)","v":0},{"$f":"IF(BC$7<>\"\",IFERROR(VLOOKUP(W22,tblShift[],3,0),0),0)","v":0},{"$f":"IF(BD$7<>\"\",IFERROR(VLOOKUP(X22,tblShift[],3,0),0),0)","v":0},{"$f":"IF(BE$7<>\"\",IFERROR(VLOOKUP(Y22,tblShift[],3,0),0),0)","v":0},{"$f":"IF(BF$7<>\"\",IFERROR(VLOOKUP(Z22,tblShift[],3,0),0),0)","v":0},{"$f":"IF(BG$7<>\"\",IFERROR(VLOOKUP(AA22,tblShift[],3,0),0),0)","v":0},{"$f":"IF(BH$7<>\"\",IFERROR(VLOOKUP(AB22,tblShift[],3,0),0),0)","v":0},{"$f":"IF(BI$7<>\"\",IFERROR(VLOOKUP(AC22,tblShift[],3,0),0),0)","v":0},{"$f":"IF(BJ$7<>\"\",IFERROR(VLOOKUP(AD22,tblShift[],3,0),0),0)","v":0},{"$f":"IF(BK$7<>\"\",IFERROR(VLOOKUP(AE22,tblShift[],3,0),0),0)","v":0},{"$f":"IF(BL$7<>\"\",IFERROR(VLOOKUP(AF22,tblShift[],3,0),0),0)","v":0},{"$f":"IF(BM$7<>\"\",IFERROR(VLOOKUP(AG22,tblShift[],3,0),0),0)","v":0},{"$f":"IF(BN$7<>\"\",IFERROR(VLOOKUP(AH22,tblShift[],3,0),0),0)","v":0},{"$f":"IF(BO$7<>\"\",IFERROR(VLOOKUP(AI22,tblShift[],3,0),0),0)","v":0},null,0,0,0,0,0,0,0,0,0,0,0,0,0,0,0,0,0,0,0,0,0,0,0,0,0,0,0,0,0,null,0,0,0,0,0,0,0,0,0,0,0,0,0,0,0,0,0,0,0,0,0,0,0,0,0,0,0,0,0,null,{"$f":"IFERROR(INDEX(tblShift[0],MATCH(INDEX($E22:$AI22,$D$1),tblShift[[Смена]:[Смена]],0)),0)","v":0},{"$f":"IFERROR(INDEX(tblShift[1],MATCH(INDEX($E22:$AI22,$D$1),tblShift[[Смена]:[Смена]],0)),0)","v":0},{"$f":"IFERROR(INDEX(tblShift[2],MATCH(INDEX($E22:$AI22,$D$1),tblShift[[Смена]:[Смена]],0)),0)","v":0},{"$f":"IFERROR(INDEX(tblShift[3],MATCH(INDEX($E22:$AI22,$D$1),tblShift[[Смена]:[Смена]],0)),0)","v":0},{"$f":"IFERROR(INDEX(tblShift[4],MATCH(INDEX($E22:$AI22,$D$1),tblShift[[Смена]:[Смена]],0)),0)","v":0},{"$f":"IFERROR(INDEX(tblShift[5],MATCH(INDEX($E22:$AI22,$D$1),tblShift[[Смена]:[Смена]],0)),0)","v":0},{"$f":"IFERROR(INDEX(tblShift[6],MATCH(INDEX($E22:$AI22,$D$1),tblShift[[Смена]:[Смена]],0)),0)","v":0},{"$f":"IFERROR(INDEX(tblShift[7],MATCH(INDEX($E22:$AI22,$D$1),tblShift[[Смена]:[Смена]],0)),0)","v":0},{"$f":"IFERROR(INDEX(tblShift[8],MATCH(INDEX($E22:$AI22,$D$1),tblShift[[Смена]:[Смена]],0)),0)","v":0},{"$f":"IFERROR(INDEX(tblShift[9],MATCH(INDEX($E22:$AI22,$D$1),tblShift[[Смена]:[Смена]],0)),0)","v":0},{"$f":"IFERROR(INDEX(tblShift[10],MATCH(INDEX($E22:$AI22,$D$1),tblShift[[Смена]:[Смена]],0)),0)","v":0},{"$f":"IFERROR(INDEX(tblShift[11],MATCH(INDEX($E22:$AI22,$D$1),tblShift[[Смена]:[Смена]],0)),0)","v":0},{"$f":"IFERROR(INDEX(tblShift[12],MATCH(INDEX($E22:$AI22,$D$1),tblShift[[Смена]:[Смена]],0)),0)","v":0},{"$f":"IFERROR(INDEX(tblShift[13],MATCH(INDEX($E22:$AI22,$D$1),tblShift[[Смена]:[Смена]],0)),0)","v":0},{"$f":"IFERROR(INDEX(tblShift[14],MATCH(INDEX($E22:$AI22,$D$1),tblShift[[Смена]:[Смена]],0)),0)","v":0},{"$f":"IFERROR(INDEX(tblShift[15],MATCH(INDEX($E22:$AI22,$D$1),tblShift[[Смена]:[Смена]],0)),0)","v":0},{"$f":"IFERROR(INDEX(tblShift[16],MATCH(INDEX($E22:$AI22,$D$1),tblShift[[Смена]:[Смена]],0)),0)","v":0},{"$f":"IFERROR(INDEX(tblShift[17],MATCH(INDEX($E22:$AI22,$D$1),tblShift[[Смена]:[Смена]],0)),0)","v":0},{"$f":"IFERROR(INDEX(tblShift[18],MATCH(INDEX($E22:$AI22,$D$1),tblShift[[Смена]:[Смена]],0)),0)","v":0},{"$f":"IFERROR(INDEX(tblShift[19],MATCH(INDEX($E22:$AI22,$D$1),tblShift[[Смена]:[Смена]],0)),0)","v":0},{"$f":"IFERROR(INDEX(tblShift[20],MATCH(INDEX($E22:$AI22,$D$1),tblShift[[Смена]:[Смена]],0)),0)","v":0},{"$f":"IFERROR(INDEX(tblShift[21],MATCH(INDEX($E22:$AI22,$D$1),tblShift[[Смена]:[Смена]],0)),0)","v":0},{"$f":"IFERROR(INDEX(tblShift[22],MATCH(INDEX($E22:$AI22,$D$1),tblShift[[Смена]:[Смена]],0)),0)","v":0},{"$f":"IFERROR(INDEX(tblShift[23],MATCH(INDEX($E22:$AI22,$D$1),tblShift[[Смена]:[Смена]],0)),0)","v":0},null,{"$f":"IF(EX$7<>\"\",IFERROR(IF(INDEX(tblShift[[Рабочий]:[Рабочий]],MATCH(E22,tblShift[[Смена]:[Смена]],0)),1,0),0),0)","v":0},{"$f":"IF(EY$7<>\"\",IFERROR(IF(INDEX(tblShift[[Рабочий]:[Рабочий]],MATCH(F22,tblShift[[Смена]:[Смена]],0)),1,0),0),0)","v":0},{"$f":"IF(EZ$7<>\"\",IFERROR(IF(INDEX(tblShift[[Рабочий]:[Рабочий]],MATCH(G22,tblShift[[Смена]:[Смена]],0)),1,0),0),0)","v":0},{"$f":"IF(FA$7<>\"\",IFERROR(IF(INDEX(tblShift[[Рабочий]:[Рабочий]],MATCH(H22,tblShift[[Смена]:[Смена]],0)),1,0),0),0)","v":0},{"$f":"IF(FB$7<>\"\",IFERROR(IF(INDEX(tblShift[[Рабочий]:[Рабочий]],MATCH(I22,tblShift[[Смена]:[Смена]],0)),1,0),0),0)","v":0},{"$f":"IF(FC$7<>\"\",IFERROR(IF(INDEX(tblShift[[Рабочий]:[Рабочий]],MATCH(J22,tblShift[[Смена]:[Смена]],0)),1,0),0),0)","v":0},{"$f":"IF(FD$7<>\"\",IFERROR(IF(INDEX(tblShift[[Рабочий]:[Рабочий]],MATCH(K22,tblShift[[Смена]:[Смена]],0)),1,0),0),0)","v":0},{"$f":"IF(FE$7<>\"\",IFERROR(IF(INDEX(tblShift[[Рабочий]:[Рабочий]],MATCH(L22,tblShift[[Смена]:[Смена]],0)),1,0),0),0)","v":0},{"$f":"IF(FF$7<>\"\",IFERROR(IF(INDEX(tblShift[[Рабочий]:[Рабочий]],MATCH(M22,tblShift[[Смена]:[Смена]],0)),1,0),0),0)","v":0},{"$f":"IF(FG$7<>\"\",IFERROR(IF(INDEX(tblShift[[Рабочий]:[Рабочий]],MATCH(N22,tblShift[[Смена]:[Смена]],0)),1,0),0),0)","v":0},{"$f":"IF(FH$7<>\"\",IFERROR(IF(INDEX(tblShift[[Рабочий]:[Рабочий]],MATCH(O22,tblShift[[Смена]:[Смена]],0)),1,0),0),0)","v":0},{"$f":"IF(FI$7<>\"\",IFERROR(IF(INDEX(tblShift[[Рабочий]:[Рабочий]],MATCH(P22,tblShift[[Смена]:[Смена]],0)),1,0),0),0)","v":0},{"$f":"IF(FJ$7<>\"\",IFERROR(IF(INDEX(tblShift[[Рабочий]:[Рабочий]],MATCH(Q22,tblShift[[Смена]:[Смена]],0)),1,0),0),0)","v":0},{"$f":"IF(FK$7<>\"\",IFERROR(IF(INDEX(tblShift[[Рабочий]:[Рабочий]],MATCH(R22,tblShift[[Смена]:[Смена]],0)),1,0),0),0)","v":0},{"$f":"IF(FL$7<>\"\",IFERROR(IF(INDEX(tblShift[[Рабочий]:[Рабочий]],MATCH(S22,tblShift[[Смена]:[Смена]],0)),1,0),0),0)","v":0},{"$f":"IF(FM$7<>\"\",IFERROR(IF(INDEX(tblShift[[Рабочий]:[Рабочий]],MATCH(T22,tblShift[[Смена]:[Смена]],0)),1,0),0),0)","v":0},{"$f":"IF(FN$7<>\"\",IFERROR(IF(INDEX(tblShift[[Рабочий]:[Рабочий]],MATCH(U22,tblShift[[Смена]:[Смена]],0)),1,0),0),0)","v":0},{"$f":"IF(FO$7<>\"\",IFERROR(IF(INDEX(tblShift[[Рабочий]:[Рабочий]],MATCH(V22,tblShift[[Смена]:[Смена]],0)),1,0),0),0)","v":0},{"$f":"IF(FP$7<>\"\",IFERROR(IF(INDEX(tblShift[[Рабочий]:[Рабочий]],MATCH(W22,tblShift[[Смена]:[Смена]],0)),1,0),0),0)","v":0},{"$f":"IF(FQ$7<>\"\",IFERROR(IF(INDEX(tblShift[[Рабочий]:[Рабочий]],MATCH(X22,tblShift[[Смена]:[Смена]],0)),1,0),0),0)","v":0},{"$f":"IF(FR$7<>\"\",IFERROR(IF(INDEX(tblShift[[Рабочий]:[Рабочий]],MATCH(Y22,tblShift[[Смена]:[Смена]],0)),1,0),0),0)","v":0},{"$f":"IF(FS$7<>\"\",IFERROR(IF(INDEX(tblShift[[Рабочий]:[Рабочий]],MATCH(Z22,tblShift[[Смена]:[Смена]],0)),1,0),0),0)","v":0},{"$f":"IF(FT$7<>\"\",IFERROR(IF(INDEX(tblShift[[Рабочий]:[Рабочий]],MATCH(AA22,tblShift[[Смена]:[Смена]],0)),1,0),0),0)","v":0},{"$f":"IF(FU$7<>\"\",IFERROR(IF(INDEX(tblShift[[Рабочий]:[Рабочий]],MATCH(AB22,tblShift[[Смена]:[Смена]],0)),1,0),0),0)","v":0},{"$f":"IF(FV$7<>\"\",IFERROR(IF(INDEX(tblShift[[Рабочий]:[Рабочий]],MATCH(AC22,tblShift[[Смена]:[Смена]],0)),1,0),0),0)","v":0},{"$f":"IF(FW$7<>\"\",IFERROR(IF(INDEX(tblShift[[Рабочий]:[Рабочий]],MATCH(AD22,tblShift[[Смена]:[Смена]],0)),1,0),0),0)","v":0},{"$f":"IF(FX$7<>\"\",IFERROR(IF(INDEX(tblShift[[Рабочий]:[Рабочий]],MATCH(AE22,tblShift[[Смена]:[Смена]],0)),1,0),0),0)","v":0},{"$f":"IF(FY$7<>\"\",IFERROR(IF(INDEX(tblShift[[Рабочий]:[Рабочий]],MATCH(AF22,tblShift[[Смена]:[Смена]],0)),1,0),0),0)","v":0},{"$f":"IF(FZ$7<>\"\",IFERROR(IF(INDEX(tblShift[[Рабочий]:[Рабочий]],MATCH(AG22,tblShift[[Смена]:[Смена]],0)),1,0),0),0)","v":0},{"$f":"IF(GA$7<>\"\",IFERROR(IF(INDEX(tblShift[[Рабочий]:[Рабочий]],MATCH(AH22,tblShift[[Смена]:[Смена]],0)),1,0),0),0)","v":0},{"$f":"IF(GB$7<>\"\",IFERROR(IF(INDEX(tblShift[[Рабочий]:[Рабочий]],MATCH(AI22,tblShift[[Смена]:[Смена]],0)),1,0),0),0)","v":0},null,null,null,null,null,null,null,null,null,null,null,null,null,null,null,0]
[null,null,"","",null,null,null,null,null,null,null,null,null,null,null,null,null,null,null,null,null,null,null,null,null,null,null,null,null,null,null,null,null,null,null,null,{"$f":"IF(AK22<>\"\",IFERROR(VLOOKUP(E23,tblShift[],3,0),0),0)","v":0},{"$f":"IF(AL22<>\"\",IFERROR(VLOOKUP(F23,tblShift[],3,0),0),0)","v":0},{"$f":"IF(AM22<>\"\",IFERROR(VLOOKUP(G23,tblShift[],3,0),0),0)","v":0},{"$f":"IF(AN$7<>\"\",IFERROR(VLOOKUP(H23,tblShift[],3,0),0),0)","v":0},{"$f":"IF(AO$7<>\"\",IFERROR(VLOOKUP(I23,tblShift[],3,0),0),0)","v":0},{"$f":"IF(AP$7<>\"\",IFERROR(VLOOKUP(J23,tblShift[],3,0),0),0)","v":0},{"$f":"IF(AQ$7<>\"\",IFERROR(VLOOKUP(K23,tblShift[],3,0),0),0)","v":0},{"$f":"IF(AR$7<>\"\",IFERROR(VLOOKUP(L23,tblShift[],3,0),0),0)","v":0},{"$f":"IF(AS$7<>\"\",IFERROR(VLOOKUP(M23,tblShift[],3,0),0),0)","v":0},{"$f":"IF(AT$7<>\"\",IFERROR(VLOOKUP(N23,tblShift[],3,0),0),0)","v":0},{"$f":"IF(AU$7<>\"\",IFERROR(VLOOKUP(O23,tblShift[],3,0),0),0)","v":0},{"$f":"IF(AV$7<>\"\",IFERROR(VLOOKUP(P23,tblShift[],3,0),0),0)","v":0},{"$f":"IF(AW$7<>\"\",IFERROR(VLOOKUP(Q23,tblShift[],3,0),0),0)","v":0},{"$f":"IF(AX$7<>\"\",IFERROR(VLOOKUP(R23,tblShift[],3,0),0),0)","v":0},{"$f":"IF(AY$7<>\"\",IFERROR(VLOOKUP(S23,tblShift[],3,0),0),0)","v":0},{"$f":"IF(AZ$7<>\"\",IFERROR(VLOOKUP(T23,tblShift[],3,0),0),0)","v":0},{"$f":"IF(BA$7<>\"\",IFERROR(VLOOKUP(U23,tblShift[],3,0),0),0)","v":0},{"$f":"IF(BB$7<>\"\",IFERROR(VLOOKUP(V23,tblShift[],3,0),0),0)","v":0},{"$f":"IF(BC$7<>\"\",IFERROR(VLOOKUP(W23,tblShift[],3,0),0),0)","v":0},{"$f":"IF(BD$7<>\"\",IFERROR(VLOOKUP(X23,tblShift[],3,0),0),0)","v":0},{"$f":"IF(BE$7<>\"\",IFERROR(VLOOKUP(Y23,tblShift[],3,0),0),0)","v":0},{"$f":"IF(BF$7<>\"\",IFERROR(VLOOKUP(Z23,tblShift[],3,0),0),0)","v":0},{"$f":"IF(BG$7<>\"\",IFERROR(VLOOKUP(AA23,tblShift[],3,0),0),0)","v":0},{"$f":"IF(BH$7<>\"\",IFERROR(VLOOKUP(AB23,tblShift[],3,0),0),0)","v":0},{"$f":"IF(BI$7<>\"\",IFERROR(VLOOKUP(AC23,tblShift[],3,0),0),0)","v":0},{"$f":"IF(BJ$7<>\"\",IFERROR(VLOOKUP(AD23,tblShift[],3,0),0),0)","v":0},{"$f":"IF(BK$7<>\"\",IFERROR(VLOOKUP(AE23,tblShift[],3,0),0),0)","v":0},{"$f":"IF(BL$7<>\"\",IFERROR(VLOOKUP(AF23,tblShift[],3,0),0),0)","v":0},{"$f":"IF(BM$7<>\"\",IFERROR(VLOOKUP(AG23,tblShift[],3,0),0),0)","v":0},{"$f":"IF(BN$7<>\"\",IFERROR(VLOOKUP(AH23,tblShift[],3,0),0),0)","v":0},{"$f":"IF(BO$7<>\"\",IFERROR(VLOOKUP(AI23,tblShift[],3,0),0),0)","v":0},null,0,0,0,0,0,0,0,0,0,0,0,0,0,0,0,0,0,0,0,0,0,0,0,0,0,0,0,0,0,null,0,0,0,0,0,0,0,0,0,0,0,0,0,0,0,0,0,0,0,0,0,0,0,0,0,0,0,0,0,null,{"$f":"IFERROR(INDEX(tblShift[0],MATCH(INDEX($E23:$AI23,$D$1),tblShift[[Смена]:[Смена]],0)),0)","v":0},{"$f":"IFERROR(INDEX(tblShift[1],MATCH(INDEX($E23:$AI23,$D$1),tblShift[[Смена]:[Смена]],0)),0)","v":0},{"$f":"IFERROR(INDEX(tblShift[2],MATCH(INDEX($E23:$AI23,$D$1),tblShift[[Смена]:[Смена]],0)),0)","v":0},{"$f":"IFERROR(INDEX(tblShift[3],MATCH(INDEX($E23:$AI23,$D$1),tblShift[[Смена]:[Смена]],0)),0)","v":0},{"$f":"IFERROR(INDEX(tblShift[4],MATCH(INDEX($E23:$AI23,$D$1),tblShift[[Смена]:[Смена]],0)),0)","v":0},{"$f":"IFERROR(INDEX(tblShift[5],MATCH(INDEX($E23:$AI23,$D$1),tblShift[[Смена]:[Смена]],0)),0)","v":0},{"$f":"IFERROR(INDEX(tblShift[6],MATCH(INDEX($E23:$AI23,$D$1),tblShift[[Смена]:[Смена]],0)),0)","v":0},{"$f":"IFERROR(INDEX(tblShift[7],MATCH(INDEX($E23:$AI23,$D$1),tblShift[[Смена]:[Смена]],0)),0)","v":0},{"$f":"IFERROR(INDEX(tblShift[8],MATCH(INDEX($E23:$AI23,$D$1),tblShift[[Смена]:[Смена]],0)),0)","v":0},{"$f":"IFERROR(INDEX(tblShift[9],MATCH(INDEX($E23:$AI23,$D$1),tblShift[[Смена]:[Смена]],0)),0)","v":0},{"$f":"IFERROR(INDEX(tblShift[10],MATCH(INDEX($E23:$AI23,$D$1),tblShift[[Смена]:[Смена]],0)),0)","v":0},{"$f":"IFERROR(INDEX(tblShift[11],MATCH(INDEX($E23:$AI23,$D$1),tblShift[[Смена]:[Смена]],0)),0)","v":0},{"$f":"IFERROR(INDEX(tblShift[12],MATCH(INDEX($E23:$AI23,$D$1),tblShift[[Смена]:[Смена]],0)),0)","v":0},{"$f":"IFERROR(INDEX(tblShift[13],MATCH(INDEX($E23:$AI23,$D$1),tblShift[[Смена]:[Смена]],0)),0)","v":0},{"$f":"IFERROR(INDEX(tblShift[14],MATCH(INDEX($E23:$AI23,$D$1),tblShift[[Смена]:[Смена]],0)),0)","v":0},{"$f":"IFERROR(INDEX(tblShift[15],MATCH(INDEX($E23:$AI23,$D$1),tblShift[[Смена]:[Смена]],0)),0)","v":0},{"$f":"IFERROR(INDEX(tblShift[16],MATCH(INDEX($E23:$AI23,$D$1),tblShift[[Смена]:[Смена]],0)),0)","v":0},{"$f":"IFERROR(INDEX(tblShift[17],MATCH(INDEX($E23:$AI23,$D$1),tblShift[[Смена]:[Смена]],0)),0)","v":0},{"$f":"IFERROR(INDEX(tblShift[18],MATCH(INDEX($E23:$AI23,$D$1),tblShift[[Смена]:[Смена]],0)),0)","v":0},{"$f":"IFERROR(INDEX(tblShift[19],MATCH(INDEX($E23:$AI23,$D$1),tblShift[[Смена]:[Смена]],0)),0)","v":0},{"$f":"IFERROR(INDEX(tblShift[20],MATCH(INDEX($E23:$AI23,$D$1),tblShift[[Смена]:[Смена]],0)),0)","v":0},{"$f":"IFERROR(INDEX(tblShift[21],MATCH(INDEX($E23:$AI23,$D$1),tblShift[[Смена]:[Смена]],0)),0)","v":0},{"$f":"IFERROR(INDEX(tblShift[22],MATCH(INDEX($E23:$AI23,$D$1),tblShift[[Смена]:[Смена]],0)),0)","v":0},{"$f":"IFERROR(INDEX(tblShift[23],MATCH(INDEX($E23:$AI23,$D$1),tblShift[[Смена]:[Смена]],0)),0)","v":0},null,{"$f":"IF(EX$7<>\"\",IFERROR(IF(INDEX(tblShift[[Рабочий]:[Рабочий]],MATCH(E23,tblShift[[Смена]:[Смена]],0)),1,0),0),0)","v":0},{"$f":"IF(EY$7<>\"\",IFERROR(IF(INDEX(tblShift[[Рабочий]:[Рабочий]],MATCH(F23,tblShift[[Смена]:[Смена]],0)),1,0),0),0)","v":0},{"$f":"IF(EZ$7<>\"\",IFERROR(IF(INDEX(tblShift[[Рабочий]:[Рабочий]],MATCH(G23,tblShift[[Смена]:[Смена]],0)),1,0),0),0)","v":0},{"$f":"IF(FA$7<>\"\",IFERROR(IF(INDEX(tblShift[[Рабочий]:[Рабочий]],MATCH(H23,tblShift[[Смена]:[Смена]],0)),1,0),0),0)","v":0},{"$f":"IF(FB$7<>\"\",IFERROR(IF(INDEX(tblShift[[Рабочий]:[Рабочий]],MATCH(I23,tblShift[[Смена]:[Смена]],0)),1,0),0),0)","v":0},{"$f":"IF(FC$7<>\"\",IFERROR(IF(INDEX(tblShift[[Рабочий]:[Рабочий]],MATCH(J23,tblShift[[Смена]:[Смена]],0)),1,0),0),0)","v":0},{"$f":"IF(FD$7<>\"\",IFERROR(IF(INDEX(tblShift[[Рабочий]:[Рабочий]],MATCH(K23,tblShift[[Смена]:[Смена]],0)),1,0),0),0)","v":0},{"$f":"IF(FE$7<>\"\",IFERROR(IF(INDEX(tblShift[[Рабочий]:[Рабочий]],MATCH(L23,tblShift[[Смена]:[Смена]],0)),1,0),0),0)","v":0},{"$f":"IF(FF$7<>\"\",IFERROR(IF(INDEX(tblShift[[Рабочий]:[Рабочий]],MATCH(M23,tblShift[[Смена]:[Смена]],0)),1,0),0),0)","v":0},{"$f":"IF(FG$7<>\"\",IFERROR(IF(INDEX(tblShift[[Рабочий]:[Рабочий]],MATCH(N23,tblShift[[Смена]:[Смена]],0)),1,0),0),0)","v":0},{"$f":"IF(FH$7<>\"\",IFERROR(IF(INDEX(tblShift[[Рабочий]:[Рабочий]],MATCH(O23,tblShift[[Смена]:[Смена]],0)),1,0),0),0)","v":0},{"$f":"IF(FI$7<>\"\",IFERROR(IF(INDEX(tblShift[[Рабочий]:[Рабочий]],MATCH(P23,tblShift[[Смена]:[Смена]],0)),1,0),0),0)","v":0},{"$f":"IF(FJ$7<>\"\",IFERROR(IF(INDEX(tblShift[[Рабочий]:[Рабочий]],MATCH(Q23,tblShift[[Смена]:[Смена]],0)),1,0),0),0)","v":0},{"$f":"IF(FK$7<>\"\",IFERROR(IF(INDEX(tblShift[[Рабочий]:[Рабочий]],MATCH(R23,tblShift[[Смена]:[Смена]],0)),1,0),0),0)","v":0},{"$f":"IF(FL$7<>\"\",IFERROR(IF(INDEX(tblShift[[Рабочий]:[Рабочий]],MATCH(S23,tblShift[[Смена]:[Смена]],0)),1,0),0),0)","v":0},{"$f":"IF(FM$7<>\"\",IFERROR(IF(INDEX(tblShift[[Рабочий]:[Рабочий]],MATCH(T23,tblShift[[Смена]:[Смена]],0)),1,0),0),0)","v":0},{"$f":"IF(FN$7<>\"\",IFERROR(IF(INDEX(tblShift[[Рабочий]:[Рабочий]],MATCH(U23,tblShift[[Смена]:[Смена]],0)),1,0),0),0)","v":0},{"$f":"IF(FO$7<>\"\",IFERROR(IF(INDEX(tblShift[[Рабочий]:[Рабочий]],MATCH(V23,tblShift[[Смена]:[Смена]],0)),1,0),0),0)","v":0},{"$f":"IF(FP$7<>\"\",IFERROR(IF(INDEX(tblShift[[Рабочий]:[Рабочий]],MATCH(W23,tblShift[[Смена]:[Смена]],0)),1,0),0),0)","v":0},{"$f":"IF(FQ$7<>\"\",IFERROR(IF(INDEX(tblShift[[Рабочий]:[Рабочий]],MATCH(X23,tblShift[[Смена]:[Смена]],0)),1,0),0),0)","v":0},{"$f":"IF(FR$7<>\"\",IFERROR(IF(INDEX(tblShift[[Рабочий]:[Рабочий]],MATCH(Y23,tblShift[[Смена]:[Смена]],0)),1,0),0),0)","v":0},{"$f":"IF(FS$7<>\"\",IFERROR(IF(INDEX(tblShift[[Рабочий]:[Рабочий]],MATCH(Z23,tblShift[[Смена]:[Смена]],0)),1,0),0),0)","v":0},{"$f":"IF(FT$7<>\"\",IFERROR(IF(INDEX(tblShift[[Рабочий]:[Рабочий]],MATCH(AA23,tblShift[[Смена]:[Смена]],0)),1,0),0),0)","v":0},{"$f":"IF(FU$7<>\"\",IFERROR(IF(INDEX(tblShift[[Рабочий]:[Рабочий]],MATCH(AB23,tblShift[[Смена]:[Смена]],0)),1,0),0),0)","v":0},{"$f":"IF(FV$7<>\"\",IFERROR(IF(INDEX(tblShift[[Рабочий]:[Рабочий]],MATCH(AC23,tblShift[[Смена]:[Смена]],0)),1,0),0),0)","v":0},{"$f":"IF(FW$7<>\"\",IFERROR(IF(INDEX(tblShift[[Рабочий]:[Рабочий]],MATCH(AD23,tblShift[[Смена]:[Смена]],0)),1,0),0),0)","v":0},{"$f":"IF(FX$7<>\"\",IFERROR(IF(INDEX(tblShift[[Рабочий]:[Рабочий]],MATCH(AE23,tblShift[[Смена]:[Смена]],0)),1,0),0),0)","v":0},{"$f":"IF(FY$7<>\"\",IFERROR(IF(INDEX(tblShift[[Рабочий]:[Рабочий]],MATCH(AF23,tblShift[[Смена]:[Смена]],0)),1,0),0),0)","v":0},{"$f":"IF(FZ$7<>\"\",IFERROR(IF(INDEX(tblShift[[Рабочий]:[Рабочий]],MATCH(AG23,tblShift[[Смена]:[Смена]],0)),1,0),0),0)","v":0},{"$f":"IF(GA$7<>\"\",IFERROR(IF(INDEX(tblShift[[Рабочий]:[Рабочий]],MATCH(AH23,tblShift[[Смена]:[Смена]],0)),1,0),0),0)","v":0},{"$f":"IF(GB$7<>\"\",IFERROR(IF(INDEX(tblShift[[Рабочий]:[Рабочий]],MATCH(AI23,tblShift[[Смена]:[Смена]],0)),1,0),0),0)","v":0},null,null,null,null,null,null,null,null,null,null,null,null,null,null,null,0]
[null,null,"","",null,null,null,null,null,null,null,null,null,null,null,null,null,null,null,null,null,null,null,null,null,null,null,null,null,null,null,null,null,null,null,null,{"$f":"IF(AK23<>\"\",IFERROR(VLOOKUP(E24,tblShift[],3,0),0),0)","v":0},{"$f":"IF(AL23<>\"\",IFERROR(VLOOKUP(F24,tblShift[],3,0),0),0)","v":0},{"$f":"IF(AM23<>\"\",IFERROR(VLOOKUP(G24,tblShift[],3,0),0),0)","v":0},{"$f":"IF(AN$7<>\"\",IFERROR(VLOOKUP(H24,tblShift[],3,0),0),0)","v":0},{"$f":"IF(AO$7<>\"\",IFERROR(VLOOKUP(I24,tblShift[],3,0),0),0)","v":0},{"$f":"IF(AP$7<>\"\",IFERROR(VLOOKUP(J24,tblShift[],3,0),0),0)","v":0},{"$f":"IF(AQ$7<>\"\",IFERROR(VLOOKUP(K24,tblShift[],3,0),0),0)","v":0},{"$f":"IF(AR$7<>\"\",IFERROR(VLOOKUP(L24,tblShift[],3,0),0),0)","v":0},{"$f":"IF(AS$7<>\"\",IFERROR(VLOOKUP(M24,tblShift[],3,0),0),0)","v":0},{"$f":"IF(AT$7<>\"\",IFERROR(VLOOKUP(N24,tblShift[],3,0),0),0)","v":0},{"$f":"IF(AU$7<>\"\",IFERROR(VLOOKUP(O24,tblShift[],3,0),0),0)","v":0},{"$f":"IF(AV$7<>\"\",IFERROR(VLOOKUP(P24,tblShift[],3,0),0),0)","v":0},{"$f":"IF(AW$7<>\"\",IFERROR(VLOOKUP(Q24,tblShift[],3,0),0),0)","v":0},{"$f":"IF(AX$7<>\"\",IFERROR(VLOOKUP(R24,tblShift[],3,0),0),0)","v":0},{"$f":"IF(AY$7<>\"\",IFERROR(VLOOKUP(S24,tblShift[],3,0),0),0)","v":0},{"$f":"IF(AZ$7<>\"\",IFERROR(VLOOKUP(T24,tblShift[],3,0),0),0)","v":0},{"$f":"IF(BA$7<>\"\",IFERROR(VLOOKUP(U24,tblShift[],3,0),0),0)","v":0},{"$f":"IF(BB$7<>\"\",IFERROR(VLOOKUP(V24,tblShift[],3,0),0),0)","v":0},{"$f":"IF(BC$7<>\"\",IFERROR(VLOOKUP(W24,tblShift[],3,0),0),0)","v":0},{"$f":"IF(BD$7<>\"\",IFERROR(VLOOKUP(X24,tblShift[],3,0),0),0)","v":0},{"$f":"IF(BE$7<>\"\",IFERROR(VLOOKUP(Y24,tblShift[],3,0),0),0)","v":0},{"$f":"IF(BF$7<>\"\",IFERROR(VLOOKUP(Z24,tblShift[],3,0),0),0)","v":0},{"$f":"IF(BG$7<>\"\",IFERROR(VLOOKUP(AA24,tblShift[],3,0),0),0)","v":0},{"$f":"IF(BH$7<>\"\",IFERROR(VLOOKUP(AB24,tblShift[],3,0),0),0)","v":0},{"$f":"IF(BI$7<>\"\",IFERROR(VLOOKUP(AC24,tblShift[],3,0),0),0)","v":0},{"$f":"IF(BJ$7<>\"\",IFERROR(VLOOKUP(AD24,tblShift[],3,0),0),0)","v":0},{"$f":"IF(BK$7<>\"\",IFERROR(VLOOKUP(AE24,tblShift[],3,0),0),0)","v":0},{"$f":"IF(BL$7<>\"\",IFERROR(VLOOKUP(AF24,tblShift[],3,0),0),0)","v":0},{"$f":"IF(BM$7<>\"\",IFERROR(VLOOKUP(AG24,tblShift[],3,0),0),0)","v":0},{"$f":"IF(BN$7<>\"\",IFERROR(VLOOKUP(AH24,tblShift[],3,0),0),0)","v":0},{"$f":"IF(BO$7<>\"\",IFERROR(VLOOKUP(AI24,tblShift[],3,0),0),0)","v":0},null,0,0,0,0,0,0,0,0,0,0,0,0,0,0,0,0,0,0,0,0,0,0,0,0,0,0,0,0,0,null,0,0,0,0,0,0,0,0,0,0,0,0,0,0,0,0,0,0,0,0,0,0,0,0,0,0,0,0,0,null,{"$f":"IFERROR(INDEX(tblShift[0],MATCH(INDEX($E24:$AI24,$D$1),tblShift[[Смена]:[Смена]],0)),0)","v":0},{"$f":"IFERROR(INDEX(tblShift[1],MATCH(INDEX($E24:$AI24,$D$1),tblShift[[Смена]:[Смена]],0)),0)","v":0},{"$f":"IFERROR(INDEX(tblShift[2],MATCH(INDEX($E24:$AI24,$D$1),tblShift[[Смена]:[Смена]],0)),0)","v":0},{"$f":"IFERROR(INDEX(tblShift[3],MATCH(INDEX($E24:$AI24,$D$1),tblShift[[Смена]:[Смена]],0)),0)","v":0},{"$f":"IFERROR(INDEX(tblShift[4],MATCH(INDEX($E24:$AI24,$D$1),tblShift[[Смена]:[Смена]],0)),0)","v":0},{"$f":"IFERROR(INDEX(tblShift[5],MATCH(INDEX($E24:$AI24,$D$1),tblShift[[Смена]:[Смена]],0)),0)","v":0},{"$f":"IFERROR(INDEX(tblShift[6],MATCH(INDEX($E24:$AI24,$D$1),tblShift[[Смена]:[Смена]],0)),0)","v":0},{"$f":"IFERROR(INDEX(tblShift[7],MATCH(INDEX($E24:$AI24,$D$1),tblShift[[Смена]:[Смена]],0)),0)","v":0},{"$f":"IFERROR(INDEX(tblShift[8],MATCH(INDEX($E24:$AI24,$D$1),tblShift[[Смена]:[Смена]],0)),0)","v":0},{"$f":"IFERROR(INDEX(tblShift[9],MATCH(INDEX($E24:$AI24,$D$1),tblShift[[Смена]:[Смена]],0)),0)","v":0},{"$f":"IFERROR(INDEX(tblShift[10],MATCH(INDEX($E24:$AI24,$D$1),tblShift[[Смена]:[Смена]],0)),0)","v":0},{"$f":"IFERROR(INDEX(tblShift[11],MATCH(INDEX($E24:$AI24,$D$1),tblShift[[Смена]:[Смена]],0)),0)","v":0},{"$f":"IFERROR(INDEX(tblShift[12],MATCH(INDEX($E24:$AI24,$D$1),tblShift[[Смена]:[Смена]],0)),0)","v":0},{"$f":"IFERROR(INDEX(tblShift[13],MATCH(INDEX($E24:$AI24,$D$1),tblShift[[Смена]:[Смена]],0)),0)","v":0},{"$f":"IFERROR(INDEX(tblShift[14],MATCH(INDEX($E24:$AI24,$D$1),tblShift[[Смена]:[Смена]],0)),0)","v":0},{"$f":"IFERROR(INDEX(tblShift[15],MATCH(INDEX($E24:$AI24,$D$1),tblShift[[Смена]:[Смена]],0)),0)","v":0},{"$f":"IFERROR(INDEX(tblShift[16],MATCH(INDEX($E24:$AI24,$D$1),tblShift[[Смена]:[Смена]],0)),0)","v":0},{"$f":"IFERROR(INDEX(tblShift[17],MATCH(INDEX($E24:$AI24,$D$1),tblShift[[Смена]:[Смена]],0)),0)","v":0},{"$f":"IFERROR(INDEX(tblShift[18],MATCH(INDEX($E24:$AI24,$D$1),tblShift[[Смена]:[Смена]],0)),0)","v":0},{"$f":"IFERROR(INDEX(tblShift[19],MATCH(INDEX($E24:$AI24,$D$1),tblShift[[Смена]:[Смена]],0)),0)","v":0},{"$f":"IFERROR(INDEX(tblShift[20],MATCH(INDEX($E24:$AI24,$D$1),tblShift[[Смена]:[Смена]],0)),0)","v":0},{"$f":"IFERROR(INDEX(tblShift[21],MATCH(INDEX($E24:$AI24,$D$1),tblShift[[Смена]:[Смена]],0)),0)","v":0},{"$f":"IFERROR(INDEX(tblShift[22],MATCH(INDEX($E24:$AI24,$D$1),tblShift[[Смена]:[Смена]],0)),0)","v":0},{"$f":"IFERROR(INDEX(tblShift[23],MATCH(INDEX($E24:$AI24,$D$1),tblShift[[Смена]:[Смена]],0)),0)","v":0},null,{"$f":"IF(EX$7<>\"\",IFERROR(IF(INDEX(tblShift[[Рабочий]:[Рабочий]],MATCH(E24,tblShift[[Смена]:[Смена]],0)),1,0),0),0)","v":0},{"$f":"IF(EY$7<>\"\",IFERROR(IF(INDEX(tblShift[[Рабочий]:[Рабочий]],MATCH(F24,tblShift[[Смена]:[Смена]],0)),1,0),0),0)","v":0},{"$f":"IF(EZ$7<>\"\",IFERROR(IF(INDEX(tblShift[[Рабочий]:[Рабочий]],MATCH(G24,tblShift[[Смена]:[Смена]],0)),1,0),0),0)","v":0},{"$f":"IF(FA$7<>\"\",IFERROR(IF(INDEX(tblShift[[Рабочий]:[Рабочий]],MATCH(H24,tblShift[[Смена]:[Смена]],0)),1,0),0),0)","v":0},{"$f":"IF(FB$7<>\"\",IFERROR(IF(INDEX(tblShift[[Рабочий]:[Рабочий]],MATCH(I24,tblShift[[Смена]:[Смена]],0)),1,0),0),0)","v":0},{"$f":"IF(FC$7<>\"\",IFERROR(IF(INDEX(tblShift[[Рабочий]:[Рабочий]],MATCH(J24,tblShift[[Смена]:[Смена]],0)),1,0),0),0)","v":0},{"$f":"IF(FD$7<>\"\",IFERROR(IF(INDEX(tblShift[[Рабочий]:[Рабочий]],MATCH(K24,tblShift[[Смена]:[Смена]],0)),1,0),0),0)","v":0},{"$f":"IF(FE$7<>\"\",IFERROR(IF(INDEX(tblShift[[Рабочий]:[Рабочий]],MATCH(L24,tblShift[[Смена]:[Смена]],0)),1,0),0),0)","v":0},{"$f":"IF(FF$7<>\"\",IFERROR(IF(INDEX(tblShift[[Рабочий]:[Рабочий]],MATCH(M24,tblShift[[Смена]:[Смена]],0)),1,0),0),0)","v":0},{"$f":"IF(FG$7<>\"\",IFERROR(IF(INDEX(tblShift[[Рабочий]:[Рабочий]],MATCH(N24,tblShift[[Смена]:[Смена]],0)),1,0),0),0)","v":0},{"$f":"IF(FH$7<>\"\",IFERROR(IF(INDEX(tblShift[[Рабочий]:[Рабочий]],MATCH(O24,tblShift[[Смена]:[Смена]],0)),1,0),0),0)","v":0},{"$f":"IF(FI$7<>\"\",IFERROR(IF(INDEX(tblShift[[Рабочий]:[Рабочий]],MATCH(P24,tblShift[[Смена]:[Смена]],0)),1,0),0),0)","v":0},{"$f":"IF(FJ$7<>\"\",IFERROR(IF(INDEX(tblShift[[Рабочий]:[Рабочий]],MATCH(Q24,tblShift[[Смена]:[Смена]],0)),1,0),0),0)","v":0},{"$f":"IF(FK$7<>\"\",IFERROR(IF(INDEX(tblShift[[Рабочий]:[Рабочий]],MATCH(R24,tblShift[[Смена]:[Смена]],0)),1,0),0),0)","v":0},{"$f":"IF(FL$7<>\"\",IFERROR(IF(INDEX(tblShift[[Рабочий]:[Рабочий]],MATCH(S24,tblShift[[Смена]:[Смена]],0)),1,0),0),0)","v":0},{"$f":"IF(FM$7<>\"\",IFERROR(IF(INDEX(tblShift[[Рабочий]:[Рабочий]],MATCH(T24,tblShift[[Смена]:[Смена]],0)),1,0),0),0)","v":0},{"$f":"IF(FN$7<>\"\",IFERROR(IF(INDEX(tblShift[[Рабочий]:[Рабочий]],MATCH(U24,tblShift[[Смена]:[Смена]],0)),1,0),0),0)","v":0},{"$f":"IF(FO$7<>\"\",IFERROR(IF(INDEX(tblShift[[Рабочий]:[Рабочий]],MATCH(V24,tblShift[[Смена]:[Смена]],0)),1,0),0),0)","v":0},{"$f":"IF(FP$7<>\"\",IFERROR(IF(INDEX(tblShift[[Рабочий]:[Рабочий]],MATCH(W24,tblShift[[Смена]:[Смена]],0)),1,0),0),0)","v":0},{"$f":"IF(FQ$7<>\"\",IFERROR(IF(INDEX(tblShift[[Рабочий]:[Рабочий]],MATCH(X24,tblShift[[Смена]:[Смена]],0)),1,0),0),0)","v":0},{"$f":"IF(FR$7<>\"\",IFERROR(IF(INDEX(tblShift[[Рабочий]:[Рабочий]],MATCH(Y24,tblShift[[Смена]:[Смена]],0)),1,0),0),0)","v":0},{"$f":"IF(FS$7<>\"\",IFERROR(IF(INDEX(tblShift[[Рабочий]:[Рабочий]],MATCH(Z24,tblShift[[Смена]:[Смена]],0)),1,0),0),0)","v":0},{"$f":"IF(FT$7<>\"\",IFERROR(IF(INDEX(tblShift[[Рабочий]:[Рабочий]],MATCH(AA24,tblShift[[Смена]:[Смена]],0)),1,0),0),0)","v":0},{"$f":"IF(FU$7<>\"\",IFERROR(IF(INDEX(tblShift[[Рабочий]:[Рабочий]],MATCH(AB24,tblShift[[Смена]:[Смена]],0)),1,0),0),0)","v":0},{"$f":"IF(FV$7<>\"\",IFERROR(IF(INDEX(tblShift[[Рабочий]:[Рабочий]],MATCH(AC24,tblShift[[Смена]:[Смена]],0)),1,0),0),0)","v":0},{"$f":"IF(FW$7<>\"\",IFERROR(IF(INDEX(tblShift[[Рабочий]:[Рабочий]],MATCH(AD24,tblShift[[Смена]:[Смена]],0)),1,0),0),0)","v":0},{"$f":"IF(FX$7<>\"\",IFERROR(IF(INDEX(tblShift[[Рабочий]:[Рабочий]],MATCH(AE24,tblShift[[Смена]:[Смена]],0)),1,0),0),0)","v":0},{"$f":"IF(FY$7<>\"\",IFERROR(IF(INDEX(tblShift[[Рабочий]:[Рабочий]],MATCH(AF24,tblShift[[Смена]:[Смена]],0)),1,0),0),0)","v":0},{"$f":"IF(FZ$7<>\"\",IFERROR(IF(INDEX(tblShift[[Рабочий]:[Рабочий]],MATCH(AG24,tblShift[[Смена]:[Смена]],0)),1,0),0),0)","v":0},{"$f":"IF(GA$7<>\"\",IFERROR(IF(INDEX(tblShift[[Рабочий]:[Рабочий]],MATCH(AH24,tblShift[[Смена]:[Смена]],0)),1,0),0),0)","v":0},{"$f":"IF(GB$7<>\"\",IFERROR(IF(INDEX(tblShift[[Рабочий]:[Рабочий]],MATCH(AI24,tblShift[[Смена]:[Смена]],0)),1,0),0),0)","v":0},null,null,null,null,null,null,null,null,null,null,null,null,null,null,null,0]
[null,null,"","",null,null,null,null,null,null,null,null,null,null,null,null,null,null,null,null,null,null,null,null,null,null,null,null,null,null,null,null,null,null,null,null,{"$f":"IF(AK24<>\"\",IFERROR(VLOOKUP(E25,tblShift[],3,0),0),0)","v":0},{"$f":"IF(AL24<>\"\",IFERROR(VLOOKUP(F25,tblShift[],3,0),0),0)","v":0},{"$f":"IF(AM24<>\"\",IFERROR(VLOOKUP(G25,tblShift[],3,0),0),0)","v":0},{"$f":"IF(AN$7<>\"\",IFERROR(VLOOKUP(H25,tblShift[],3,0),0),0)","v":0},{"$f":"IF(AO$7<>\"\",IFERROR(VLOOKUP(I25,tblShift[],3,0),0),0)","v":0},{"$f":"IF(AP$7<>\"\",IFERROR(VLOOKUP(J25,tblShift[],3,0),0),0)","v":0},{"$f":"IF(AQ$7<>\"\",IFERROR(VLOOKUP(K25,tblShift[],3,0),0),0)","v":0},{"$f":"IF(AR$7<>\"\",IFERROR(VLOOKUP(L25,tblShift[],3,0),0),0)","v":0},{"$f":"IF(AS$7<>\"\",IFERROR(VLOOKUP(M25,tblShift[],3,0),0),0)","v":0},{"$f":"IF(AT$7<>\"\",IFERROR(VLOOKUP(N25,tblShift[],3,0),0),0)","v":0},{"$f":"IF(AU$7<>\"\",IFERROR(VLOOKUP(O25,tblShift[],3,0),0),0)","v":0},{"$f":"IF(AV$7<>\"\",IFERROR(VLOOKUP(P25,tblShift[],3,0),0),0)","v":0},{"$f":"IF(AW$7<>\"\",IFERROR(VLOOKUP(Q25,tblShift[],3,0),0),0)","v":0},{"$f":"IF(AX$7<>\"\",IFERROR(VLOOKUP(R25,tblShift[],3,0),0),0)","v":0},{"$f":"IF(AY$7<>\"\",IFERROR(VLOOKUP(S25,tblShift[],3,0),0),0)","v":0},{"$f":"IF(AZ$7<>\"\",IFERROR(VLOOKUP(T25,tblShift[],3,0),0),0)","v":0},{"$f":"IF(BA$7<>\"\",IFERROR(VLOOKUP(U25,tblShift[],3,0),0),0)","v":0},{"$f":"IF(BB$7<>\"\",IFERROR(VLOOKUP(V25,tblShift[],3,0),0),0)","v":0},{"$f":"IF(BC$7<>\"\",IFERROR(VLOOKUP(W25,tblShift[],3,0),0),0)","v":0},{"$f":"IF(BD$7<>\"\",IFERROR(VLOOKUP(X25,tblShift[],3,0),0),0)","v":0},{"$f":"IF(BE$7<>\"\",IFERROR(VLOOKUP(Y25,tblShift[],3,0),0),0)","v":0},{"$f":"IF(BF$7<>\"\",IFERROR(VLOOKUP(Z25,tblShift[],3,0),0),0)","v":0},{"$f":"IF(BG$7<>\"\",IFERROR(VLOOKUP(AA25,tblShift[],3,0),0),0)","v":0},{"$f":"IF(BH$7<>\"\",IFERROR(VLOOKUP(AB25,tblShift[],3,0),0),0)","v":0},{"$f":"IF(BI$7<>\"\",IFERROR(VLOOKUP(AC25,tblShift[],3,0),0),0)","v":0},{"$f":"IF(BJ$7<>\"\",IFERROR(VLOOKUP(AD25,tblShift[],3,0),0),0)","v":0},{"$f":"IF(BK$7<>\"\",IFERROR(VLOOKUP(AE25,tblShift[],3,0),0),0)","v":0},{"$f":"IF(BL$7<>\"\",IFERROR(VLOOKUP(AF25,tblShift[],3,0),0),0)","v":0},{"$f":"IF(BM$7<>\"\",IFERROR(VLOOKUP(AG25,tblShift[],3,0),0),0)","v":0},{"$f":"IF(BN$7<>\"\",IFERROR(VLOOKUP(AH25,tblShift[],3,0),0),0)","v":0},{"$f":"IF(BO$7<>\"\",IFERROR(VLOOKUP(AI25,tblShift[],3,0),0),0)","v":0},null,0,0,0,0,0,0,0,0,0,0,0,0,0,0,0,0,0,0,0,0,0,0,0,0,0,0,0,0,0,null,0,0,0,0,0,0,0,0,0,0,0,0,0,0,0,0,0,0,0,0,0,0,0,0,0,0,0,0,0,null,{"$f":"IFERROR(INDEX(tblShift[0],MATCH(INDEX($E25:$AI25,$D$1),tblShift[[Смена]:[Смена]],0)),0)","v":0},{"$f":"IFERROR(INDEX(tblShift[1],MATCH(INDEX($E25:$AI25,$D$1),tblShift[[Смена]:[Смена]],0)),0)","v":0},{"$f":"IFERROR(INDEX(tblShift[2],MATCH(INDEX($E25:$AI25,$D$1),tblShift[[Смена]:[Смена]],0)),0)","v":0},{"$f":"IFERROR(INDEX(tblShift[3],MATCH(INDEX($E25:$AI25,$D$1),tblShift[[Смена]:[Смена]],0)),0)","v":0},{"$f":"IFERROR(INDEX(tblShift[4],MATCH(INDEX($E25:$AI25,$D$1),tblShift[[Смена]:[Смена]],0)),0)","v":0},{"$f":"IFERROR(INDEX(tblShift[5],MATCH(INDEX($E25:$AI25,$D$1),tblShift[[Смена]:[Смена]],0)),0)","v":0},{"$f":"IFERROR(INDEX(tblShift[6],MATCH(INDEX($E25:$AI25,$D$1),tblShift[[Смена]:[Смена]],0)),0)","v":0},{"$f":"IFERROR(INDEX(tblShift[7],MATCH(INDEX($E25:$AI25,$D$1),tblShift[[Смена]:[Смена]],0)),0)","v":0},{"$f":"IFERROR(INDEX(tblShift[8],MATCH(INDEX($E25:$AI25,$D$1),tblShift[[Смена]:[Смена]],0)),0)","v":0},{"$f":"IFERROR(INDEX(tblShift[9],MATCH(INDEX($E25:$AI25,$D$1),tblShift[[Смена]:[Смена]],0)),0)","v":0},{"$f":"IFERROR(INDEX(tblShift[10],MATCH(INDEX($E25:$AI25,$D$1),tblShift[[Смена]:[Смена]],0)),0)","v":0},{"$f":"IFERROR(INDEX(tblShift[11],MATCH(INDEX($E25:$AI25,$D$1),tblShift[[Смена]:[Смена]],0)),0)","v":0},{"$f":"IFERROR(INDEX(tblShift[12],MATCH(INDEX($E25:$AI25,$D$1),tblShift[[Смена]:[Смена]],0)),0)","v":0},{"$f":"IFERROR(INDEX(tblShift[13],MATCH(INDEX($E25:$AI25,$D$1),tblShift[[Смена]:[Смена]],0)),0)","v":0},{"$f":"IFERROR(INDEX(tblShift[14],MATCH(INDEX($E25:$AI25,$D$1),tblShift[[Смена]:[Смена]],0)),0)","v":0},{"$f":"IFERROR(INDEX(tblShift[15],MATCH(INDEX($E25:$AI25,$D$1),tblShift[[Смена]:[Смена]],0)),0)","v":0},{"$f":"IFERROR(INDEX(tblShift[16],MATCH(INDEX($E25:$AI25,$D$1),tblShift[[Смена]:[Смена]],0)),0)","v":0},{"$f":"IFERROR(INDEX(tblShift[17],MATCH(INDEX($E25:$AI25,$D$1),tblShift[[Смена]:[Смена]],0)),0)","v":0},{"$f":"IFERROR(INDEX(tblShift[18],MATCH(INDEX($E25:$AI25,$D$1),tblShift[[Смена]:[Смена]],0)),0)","v":0},{"$f":"IFERROR(INDEX(tblShift[19],MATCH(INDEX($E25:$AI25,$D$1),tblShift[[Смена]:[Смена]],0)),0)","v":0},{"$f":"IFERROR(INDEX(tblShift[20],MATCH(INDEX($E25:$AI25,$D$1),tblShift[[Смена]:[Смена]],0)),0)","v":0},{"$f":"IFERROR(INDEX(tblShift[21],MATCH(INDEX($E25:$AI25,$D$1),tblShift[[Смена]:[Смена]],0)),0)","v":0},{"$f":"IFERROR(INDEX(tblShift[22],MATCH(INDEX($E25:$AI25,$D$1),tblShift[[Смена]:[Смена]],0)),0)","v":0},{"$f":"IFERROR(INDEX(tblShift[23],MATCH(INDEX($E25:$AI25,$D$1),tblShift[[Смена]:[Смена]],0)),0)","v":0},null,{"$f":"IF(EX$7<>\"\",IFERROR(IF(INDEX(tblShift[[Рабочий]:[Рабочий]],MATCH(E25,tblShift[[Смена]:[Смена]],0)),1,0),0),0)","v":0},{"$f":"IF(EY$7<>\"\",IFERROR(IF(INDEX(tblShift[[Рабочий]:[Рабочий]],MATCH(F25,tblShift[[Смена]:[Смена]],0)),1,0),0),0)","v":0},{"$f":"IF(EZ$7<>\"\",IFERROR(IF(INDEX(tblShift[[Рабочий]:[Рабочий]],MATCH(G25,tblShift[[Смена]:[Смена]],0)),1,0),0),0)","v":0},{"$f":"IF(FA$7<>\"\",IFERROR(IF(INDEX(tblShift[[Рабочий]:[Рабочий]],MATCH(H25,tblShift[[Смена]:[Смена]],0)),1,0),0),0)","v":0},{"$f":"IF(FB$7<>\"\",IFERROR(IF(INDEX(tblShift[[Рабочий]:[Рабочий]],MATCH(I25,tblShift[[Смена]:[Смена]],0)),1,0),0),0)","v":0},{"$f":"IF(FC$7<>\"\",IFERROR(IF(INDEX(tblShift[[Рабочий]:[Рабочий]],MATCH(J25,tblShift[[Смена]:[Смена]],0)),1,0),0),0)","v":0},{"$f":"IF(FD$7<>\"\",IFERROR(IF(INDEX(tblShift[[Рабочий]:[Рабочий]],MATCH(K25,tblShift[[Смена]:[Смена]],0)),1,0),0),0)","v":0},{"$f":"IF(FE$7<>\"\",IFERROR(IF(INDEX(tblShift[[Рабочий]:[Рабочий]],MATCH(L25,tblShift[[Смена]:[Смена]],0)),1,0),0),0)","v":0},{"$f":"IF(FF$7<>\"\",IFERROR(IF(INDEX(tblShift[[Рабочий]:[Рабочий]],MATCH(M25,tblShift[[Смена]:[Смена]],0)),1,0),0),0)","v":0},{"$f":"IF(FG$7<>\"\",IFERROR(IF(INDEX(tblShift[[Рабочий]:[Рабочий]],MATCH(N25,tblShift[[Смена]:[Смена]],0)),1,0),0),0)","v":0},{"$f":"IF(FH$7<>\"\",IFERROR(IF(INDEX(tblShift[[Рабочий]:[Рабочий]],MATCH(O25,tblShift[[Смена]:[Смена]],0)),1,0),0),0)","v":0},{"$f":"IF(FI$7<>\"\",IFERROR(IF(INDEX(tblShift[[Рабочий]:[Рабочий]],MATCH(P25,tblShift[[Смена]:[Смена]],0)),1,0),0),0)","v":0},{"$f":"IF(FJ$7<>\"\",IFERROR(IF(INDEX(tblShift[[Рабочий]:[Рабочий]],MATCH(Q25,tblShift[[Смена]:[Смена]],0)),1,0),0),0)","v":0},{"$f":"IF(FK$7<>\"\",IFERROR(IF(INDEX(tblShift[[Рабочий]:[Рабочий]],MATCH(R25,tblShift[[Смена]:[Смена]],0)),1,0),0),0)","v":0},{"$f":"IF(FL$7<>\"\",IFERROR(IF(INDEX(tblShift[[Рабочий]:[Рабочий]],MATCH(S25,tblShift[[Смена]:[Смена]],0)),1,0),0),0)","v":0},{"$f":"IF(FM$7<>\"\",IFERROR(IF(INDEX(tblShift[[Рабочий]:[Рабочий]],MATCH(T25,tblShift[[Смена]:[Смена]],0)),1,0),0),0)","v":0},{"$f":"IF(FN$7<>\"\",IFERROR(IF(INDEX(tblShift[[Рабочий]:[Рабочий]],MATCH(U25,tblShift[[Смена]:[Смена]],0)),1,0),0),0)","v":0},{"$f":"IF(FO$7<>\"\",IFERROR(IF(INDEX(tblShift[[Рабочий]:[Рабочий]],MATCH(V25,tblShift[[Смена]:[Смена]],0)),1,0),0),0)","v":0},{"$f":"IF(FP$7<>\"\",IFERROR(IF(INDEX(tblShift[[Рабочий]:[Рабочий]],MATCH(W25,tblShift[[Смена]:[Смена]],0)),1,0),0),0)","v":0},{"$f":"IF(FQ$7<>\"\",IFERROR(IF(INDEX(tblShift[[Рабочий]:[Рабочий]],MATCH(X25,tblShift[[Смена]:[Смена]],0)),1,0),0),0)","v":0},{"$f":"IF(FR$7<>\"\",IFERROR(IF(INDEX(tblShift[[Рабочий]:[Рабочий]],MATCH(Y25,tblShift[[Смена]:[Смена]],0)),1,0),0),0)","v":0},{"$f":"IF(FS$7<>\"\",IFERROR(IF(INDEX(tblShift[[Рабочий]:[Рабочий]],MATCH(Z25,tblShift[[Смена]:[Смена]],0)),1,0),0),0)","v":0},{"$f":"IF(FT$7<>\"\",IFERROR(IF(INDEX(tblShift[[Рабочий]:[Рабочий]],MATCH(AA25,tblShift[[Смена]:[Смена]],0)),1,0),0),0)","v":0},{"$f":"IF(FU$7<>\"\",IFERROR(IF(INDEX(tblShift[[Рабочий]:[Рабочий]],MATCH(AB25,tblShift[[Смена]:[Смена]],0)),1,0),0),0)","v":0},{"$f":"IF(FV$7<>\"\",IFERROR(IF(INDEX(tblShift[[Рабочий]:[Рабочий]],MATCH(AC25,tblShift[[Смена]:[Смена]],0)),1,0),0),0)","v":0},{"$f":"IF(FW$7<>\"\",IFERROR(IF(INDEX(tblShift[[Рабочий]:[Рабочий]],MATCH(AD25,tblShift[[Смена]:[Смена]],0)),1,0),0),0)","v":0},{"$f":"IF(FX$7<>\"\",IFERROR(IF(INDEX(tblShift[[Рабочий]:[Рабочий]],MATCH(AE25,tblShift[[Смена]:[Смена]],0)),1,0),0),0)","v":0},{"$f":"IF(FY$7<>\"\",IFERROR(IF(INDEX(tblShift[[Рабочий]:[Рабочий]],MATCH(AF25,tblShift[[Смена]:[Смена]],0)),1,0),0),0)","v":0},{"$f":"IF(FZ$7<>\"\",IFERROR(IF(INDEX(tblShift[[Рабочий]:[Рабочий]],MATCH(AG25,tblShift[[Смена]:[Смена]],0)),1,0),0),0)","v":0},{"$f":"IF(GA$7<>\"\",IFERROR(IF(INDEX(tblShift[[Рабочий]:[Рабочий]],MATCH(AH25,tblShift[[Смена]:[Смена]],0)),1,0),0),0)","v":0},{"$f":"IF(GB$7<>\"\",IFERROR(IF(INDEX(tblShift[[Рабочий]:[Рабочий]],MATCH(AI25,tblShift[[Смена]:[Смена]],0)),1,0),0),0)","v":0},null,null,null,null,null,null,null,null,null,null,null,null,null,null,null,0]
[null,null,"","",null,null,null,null,null,null,null,null,null,null,null,null,null,null,null,null,null,null,null,null,null,null,null,null,null,null,null,null,null,null,null,null,{"$f":"IF(AK25<>\"\",IFERROR(VLOOKUP(E26,tblShift[],3,0),0),0)","v":0},{"$f":"IF(AL25<>\"\",IFERROR(VLOOKUP(F26,tblShift[],3,0),0),0)","v":0},{"$f":"IF(AM25<>\"\",IFERROR(VLOOKUP(G26,tblShift[],3,0),0),0)","v":0},{"$f":"IF(AN$7<>\"\",IFERROR(VLOOKUP(H26,tblShift[],3,0),0),0)","v":0},{"$f":"IF(AO$7<>\"\",IFERROR(VLOOKUP(I26,tblShift[],3,0),0),0)","v":0},{"$f":"IF(AP$7<>\"\",IFERROR(VLOOKUP(J26,tblShift[],3,0),0),0)","v":0},{"$f":"IF(AQ$7<>\"\",IFERROR(VLOOKUP(K26,tblShift[],3,0),0),0)","v":0},{"$f":"IF(AR$7<>\"\",IFERROR(VLOOKUP(L26,tblShift[],3,0),0),0)","v":0},{"$f":"IF(AS$7<>\"\",IFERROR(VLOOKUP(M26,tblShift[],3,0),0),0)","v":0},{"$f":"IF(AT$7<>\"\",IFERROR(VLOOKUP(N26,tblShift[],3,0),0),0)","v":0},{"$f":"IF(AU$7<>\"\",IFERROR(VLOOKUP(O26,tblShift[],3,0),0),0)","v":0},{"$f":"IF(AV$7<>\"\",IFERROR(VLOOKUP(P26,tblShift[],3,0),0),0)","v":0},{"$f":"IF(AW$7<>\"\",IFERROR(VLOOKUP(Q26,tblShift[],3,0),0),0)","v":0},{"$f":"IF(AX$7<>\"\",IFERROR(VLOOKUP(R26,tblShift[],3,0),0),0)","v":0},{"$f":"IF(AY$7<>\"\",IFERROR(VLOOKUP(S26,tblShift[],3,0),0),0)","v":0},{"$f":"IF(AZ$7<>\"\",IFERROR(VLOOKUP(T26,tblShift[],3,0),0),0)","v":0},{"$f":"IF(BA$7<>\"\",IFERROR(VLOOKUP(U26,tblShift[],3,0),0),0)","v":0},{"$f":"IF(BB$7<>\"\",IFERROR(VLOOKUP(V26,tblShift[],3,0),0),0)","v":0},{"$f":"IF(BC$7<>\"\",IFERROR(VLOOKUP(W26,tblShift[],3,0),0),0)","v":0},{"$f":"IF(BD$7<>\"\",IFERROR(VLOOKUP(X26,tblShift[],3,0),0),0)","v":0},{"$f":"IF(BE$7<>\"\",IFERROR(VLOOKUP(Y26,tblShift[],3,0),0),0)","v":0},{"$f":"IF(BF$7<>\"\",IFERROR(VLOOKUP(Z26,tblShift[],3,0),0),0)","v":0},{"$f":"IF(BG$7<>\"\",IFERROR(VLOOKUP(AA26,tblShift[],3,0),0),0)","v":0},{"$f":"IF(BH$7<>\"\",IFERROR(VLOOKUP(AB26,tblShift[],3,0),0),0)","v":0},{"$f":"IF(BI$7<>\"\",IFERROR(VLOOKUP(AC26,tblShift[],3,0),0),0)","v":0},{"$f":"IF(BJ$7<>\"\",IFERROR(VLOOKUP(AD26,tblShift[],3,0),0),0)","v":0},{"$f":"IF(BK$7<>\"\",IFERROR(VLOOKUP(AE26,tblShift[],3,0),0),0)","v":0},{"$f":"IF(BL$7<>\"\",IFERROR(VLOOKUP(AF26,tblShift[],3,0),0),0)","v":0},{"$f":"IF(BM$7<>\"\",IFERROR(VLOOKUP(AG26,tblShift[],3,0),0),0)","v":0},{"$f":"IF(BN$7<>\"\",IFERROR(VLOOKUP(AH26,tblShift[],3,0),0),0)","v":0},{"$f":"IF(BO$7<>\"\",IFERROR(VLOOKUP(AI26,tblShift[],3,0),0),0)","v":0},null,0,0,0,0,0,0,0,0,0,0,0,0,0,0,0,0,0,0,0,0,0,0,0,0,0,0,0,0,0,null,0,0,0,0,0,0,0,0,0,0,0,0,0,0,0,0,0,0,0,0,0,0,0,0,0,0,0,0,0,null,{"$f":"IFERROR(INDEX(tblShift[0],MATCH(INDEX($E26:$AI26,$D$1),tblShift[[Смена]:[Смена]],0)),0)","v":0},{"$f":"IFERROR(INDEX(tblShift[1],MATCH(INDEX($E26:$AI26,$D$1),tblShift[[Смена]:[Смена]],0)),0)","v":0},{"$f":"IFERROR(INDEX(tblShift[2],MATCH(INDEX($E26:$AI26,$D$1),tblShift[[Смена]:[Смена]],0)),0)","v":0},{"$f":"IFERROR(INDEX(tblShift[3],MATCH(INDEX($E26:$AI26,$D$1),tblShift[[Смена]:[Смена]],0)),0)","v":0},{"$f":"IFERROR(INDEX(tblShift[4],MATCH(INDEX($E26:$AI26,$D$1),tblShift[[Смена]:[Смена]],0)),0)","v":0},{"$f":"IFERROR(INDEX(tblShift[5],MATCH(INDEX($E26:$AI26,$D$1),tblShift[[Смена]:[Смена]],0)),0)","v":0},{"$f":"IFERROR(INDEX(tblShift[6],MATCH(INDEX($E26:$AI26,$D$1),tblShift[[Смена]:[Смена]],0)),0)","v":0},{"$f":"IFERROR(INDEX(tblShift[7],MATCH(INDEX($E26:$AI26,$D$1),tblShift[[Смена]:[Смена]],0)),0)","v":0},{"$f":"IFERROR(INDEX(tblShift[8],MATCH(INDEX($E26:$AI26,$D$1),tblShift[[Смена]:[Смена]],0)),0)","v":0},{"$f":"IFERROR(INDEX(tblShift[9],MATCH(INDEX($E26:$AI26,$D$1),tblShift[[Смена]:[Смена]],0)),0)","v":0},{"$f":"IFERROR(INDEX(tblShift[10],MATCH(INDEX($E26:$AI26,$D$1),tblShift[[Смена]:[Смена]],0)),0)","v":0},{"$f":"IFERROR(INDEX(tblShift[11],MATCH(INDEX($E26:$AI26,$D$1),tblShift[[Смена]:[Смена]],0)),0)","v":0},{"$f":"IFERROR(INDEX(tblShift[12],MATCH(INDEX($E26:$AI26,$D$1),tblShift[[Смена]:[Смена]],0)),0)","v":0},{"$f":"IFERROR(INDEX(tblShift[13],MATCH(INDEX($E26:$AI26,$D$1),tblShift[[Смена]:[Смена]],0)),0)","v":0},{"$f":"IFERROR(INDEX(tblShift[14],MATCH(INDEX($E26:$AI26,$D$1),tblShift[[Смена]:[Смена]],0)),0)","v":0},{"$f":"IFERROR(INDEX(tblShift[15],MATCH(INDEX($E26:$AI26,$D$1),tblShift[[Смена]:[Смена]],0)),0)","v":0},{"$f":"IFERROR(INDEX(tblShift[16],MATCH(INDEX($E26:$AI26,$D$1),tblShift[[Смена]:[Смена]],0)),0)","v":0},{"$f":"IFERROR(INDEX(tblShift[17],MATCH(INDEX($E26:$AI26,$D$1),tblShift[[Смена]:[Смена]],0)),0)","v":0},{"$f":"IFERROR(INDEX(tblShift[18],MATCH(INDEX($E26:$AI26,$D$1),tblShift[[Смена]:[Смена]],0)),0)","v":0},{"$f":"IFERROR(INDEX(tblShift[19],MATCH(INDEX($E26:$AI26,$D$1),tblShift[[Смена]:[Смена]],0)),0)","v":0},{"$f":"IFERROR(INDEX(tblShift[20],MATCH(INDEX($E26:$AI26,$D$1),tblShift[[Смена]:[Смена]],0)),0)","v":0},{"$f":"IFERROR(INDEX(tblShift[21],MATCH(INDEX($E26:$AI26,$D$1),tblShift[[Смена]:[Смена]],0)),0)","v":0},{"$f":"IFERROR(INDEX(tblShift[22],MATCH(INDEX($E26:$AI26,$D$1),tblShift[[Смена]:[Смена]],0)),0)","v":0},{"$f":"IFERROR(INDEX(tblShift[23],MATCH(INDEX($E26:$AI26,$D$1),tblShift[[Смена]:[Смена]],0)),0)","v":0},null,{"$f":"IF(EX$7<>\"\",IFERROR(IF(INDEX(tblShift[[Рабочий]:[Рабочий]],MATCH(E26,tblShift[[Смена]:[Смена]],0)),1,0),0),0)","v":0},{"$f":"IF(EY$7<>\"\",IFERROR(IF(INDEX(tblShift[[Рабочий]:[Рабочий]],MATCH(F26,tblShift[[Смена]:[Смена]],0)),1,0),0),0)","v":0},{"$f":"IF(EZ$7<>\"\",IFERROR(IF(INDEX(tblShift[[Рабочий]:[Рабочий]],MATCH(G26,tblShift[[Смена]:[Смена]],0)),1,0),0),0)","v":0},{"$f":"IF(FA$7<>\"\",IFERROR(IF(INDEX(tblShift[[Рабочий]:[Рабочий]],MATCH(H26,tblShift[[Смена]:[Смена]],0)),1,0),0),0)","v":0},{"$f":"IF(FB$7<>\"\",IFERROR(IF(INDEX(tblShift[[Рабочий]:[Рабочий]],MATCH(I26,tblShift[[Смена]:[Смена]],0)),1,0),0),0)","v":0},{"$f":"IF(FC$7<>\"\",IFERROR(IF(INDEX(tblShift[[Рабочий]:[Рабочий]],MATCH(J26,tblShift[[Смена]:[Смена]],0)),1,0),0),0)","v":0},{"$f":"IF(FD$7<>\"\",IFERROR(IF(INDEX(tblShift[[Рабочий]:[Рабочий]],MATCH(K26,tblShift[[Смена]:[Смена]],0)),1,0),0),0)","v":0},{"$f":"IF(FE$7<>\"\",IFERROR(IF(INDEX(tblShift[[Рабочий]:[Рабочий]],MATCH(L26,tblShift[[Смена]:[Смена]],0)),1,0),0),0)","v":0},{"$f":"IF(FF$7<>\"\",IFERROR(IF(INDEX(tblShift[[Рабочий]:[Рабочий]],MATCH(M26,tblShift[[Смена]:[Смена]],0)),1,0),0),0)","v":0},{"$f":"IF(FG$7<>\"\",IFERROR(IF(INDEX(tblShift[[Рабочий]:[Рабочий]],MATCH(N26,tblShift[[Смена]:[Смена]],0)),1,0),0),0)","v":0},{"$f":"IF(FH$7<>\"\",IFERROR(IF(INDEX(tblShift[[Рабочий]:[Рабочий]],MATCH(O26,tblShift[[Смена]:[Смена]],0)),1,0),0),0)","v":0},{"$f":"IF(FI$7<>\"\",IFERROR(IF(INDEX(tblShift[[Рабочий]:[Рабочий]],MATCH(P26,tblShift[[Смена]:[Смена]],0)),1,0),0),0)","v":0},{"$f":"IF(FJ$7<>\"\",IFERROR(IF(INDEX(tblShift[[Рабочий]:[Рабочий]],MATCH(Q26,tblShift[[Смена]:[Смена]],0)),1,0),0),0)","v":0},{"$f":"IF(FK$7<>\"\",IFERROR(IF(INDEX(tblShift[[Рабочий]:[Рабочий]],MATCH(R26,tblShift[[Смена]:[Смена]],0)),1,0),0),0)","v":0},{"$f":"IF(FL$7<>\"\",IFERROR(IF(INDEX(tblShift[[Рабочий]:[Рабочий]],MATCH(S26,tblShift[[Смена]:[Смена]],0)),1,0),0),0)","v":0},{"$f":"IF(FM$7<>\"\",IFERROR(IF(INDEX(tblShift[[Рабочий]:[Рабочий]],MATCH(T26,tblShift[[Смена]:[Смена]],0)),1,0),0),0)","v":0},{"$f":"IF(FN$7<>\"\",IFERROR(IF(INDEX(tblShift[[Рабочий]:[Рабочий]],MATCH(U26,tblShift[[Смена]:[Смена]],0)),1,0),0),0)","v":0},{"$f":"IF(FO$7<>\"\",IFERROR(IF(INDEX(tblShift[[Рабочий]:[Рабочий]],MATCH(V26,tblShift[[Смена]:[Смена]],0)),1,0),0),0)","v":0},{"$f":"IF(FP$7<>\"\",IFERROR(IF(INDEX(tblShift[[Рабочий]:[Рабочий]],MATCH(W26,tblShift[[Смена]:[Смена]],0)),1,0),0),0)","v":0},{"$f":"IF(FQ$7<>\"\",IFERROR(IF(INDEX(tblShift[[Рабочий]:[Рабочий]],MATCH(X26,tblShift[[Смена]:[Смена]],0)),1,0),0),0)","v":0},{"$f":"IF(FR$7<>\"\",IFERROR(IF(INDEX(tblShift[[Рабочий]:[Рабочий]],MATCH(Y26,tblShift[[Смена]:[Смена]],0)),1,0),0),0)","v":0},{"$f":"IF(FS$7<>\"\",IFERROR(IF(INDEX(tblShift[[Рабочий]:[Рабочий]],MATCH(Z26,tblShift[[Смена]:[Смена]],0)),1,0),0),0)","v":0},{"$f":"IF(FT$7<>\"\",IFERROR(IF(INDEX(tblShift[[Рабочий]:[Рабочий]],MATCH(AA26,tblShift[[Смена]:[Смена]],0)),1,0),0),0)","v":0},{"$f":"IF(FU$7<>\"\",IFERROR(IF(INDEX(tblShift[[Рабочий]:[Рабочий]],MATCH(AB26,tblShift[[Смена]:[Смена]],0)),1,0),0),0)","v":0},{"$f":"IF(FV$7<>\"\",IFERROR(IF(INDEX(tblShift[[Рабочий]:[Рабочий]],MATCH(AC26,tblShift[[Смена]:[Смена]],0)),1,0),0),0)","v":0},{"$f":"IF(FW$7<>\"\",IFERROR(IF(INDEX(tblShift[[Рабочий]:[Рабочий]],MATCH(AD26,tblShift[[Смена]:[Смена]],0)),1,0),0),0)","v":0},{"$f":"IF(FX$7<>\"\",IFERROR(IF(INDEX(tblShift[[Рабочий]:[Рабочий]],MATCH(AE26,tblShift[[Смена]:[Смена]],0)),1,0),0),0)","v":0},{"$f":"IF(FY$7<>\"\",IFERROR(IF(INDEX(tblShift[[Рабочий]:[Рабочий]],MATCH(AF26,tblShift[[Смена]:[Смена]],0)),1,0),0),0)","v":0},{"$f":"IF(FZ$7<>\"\",IFERROR(IF(INDEX(tblShift[[Рабочий]:[Рабочий]],MATCH(AG26,tblShift[[Смена]:[Смена]],0)),1,0),0),0)","v":0},{"$f":"IF(GA$7<>\"\",IFERROR(IF(INDEX(tblShift[[Рабочий]:[Рабочий]],MATCH(AH26,tblShift[[Смена]:[Смена]],0)),1,0),0),0)","v":0},{"$f":"IF(GB$7<>\"\",IFERROR(IF(INDEX(tblShift[[Рабочий]:[Рабочий]],MATCH(AI26,tblShift[[Смена]:[Смена]],0)),1,0),0),0)","v":0},null,null,null,null,null,null,null,null,null,null,null,null,null,null,null,0]
[null,null,"","",null,null,null,null,null,null,null,null,null,null,null,null,null,null,null,null,null,null,null,null,null,null,null,null,null,null,null,null,null,null,null,null,{"$f":"IF(AK26<>\"\",IFERROR(VLOOKUP(E27,tblShift[],3,0),0),0)","v":0},{"$f":"IF(AL26<>\"\",IFERROR(VLOOKUP(F27,tblShift[],3,0),0),0)","v":0},{"$f":"IF(AM26<>\"\",IFERROR(VLOOKUP(G27,tblShift[],3,0),0),0)","v":0},{"$f":"IF(AN$7<>\"\",IFERROR(VLOOKUP(H27,tblShift[],3,0),0),0)","v":0},{"$f":"IF(AO$7<>\"\",IFERROR(VLOOKUP(I27,tblShift[],3,0),0),0)","v":0},{"$f":"IF(AP$7<>\"\",IFERROR(VLOOKUP(J27,tblShift[],3,0),0),0)","v":0},{"$f":"IF(AQ$7<>\"\",IFERROR(VLOOKUP(K27,tblShift[],3,0),0),0)","v":0},{"$f":"IF(AR$7<>\"\",IFERROR(VLOOKUP(L27,tblShift[],3,0),0),0)","v":0},{"$f":"IF(AS$7<>\"\",IFERROR(VLOOKUP(M27,tblShift[],3,0),0),0)","v":0},{"$f":"IF(AT$7<>\"\",IFERROR(VLOOKUP(N27,tblShift[],3,0),0),0)","v":0},{"$f":"IF(AU$7<>\"\",IFERROR(VLOOKUP(O27,tblShift[],3,0),0),0)","v":0},{"$f":"IF(AV$7<>\"\",IFERROR(VLOOKUP(P27,tblShift[],3,0),0),0)","v":0},{"$f":"IF(AW$7<>\"\",IFERROR(VLOOKUP(Q27,tblShift[],3,0),0),0)","v":0},{"$f":"IF(AX$7<>\"\",IFERROR(VLOOKUP(R27,tblShift[],3,0),0),0)","v":0},{"$f":"IF(AY$7<>\"\",IFERROR(VLOOKUP(S27,tblShift[],3,0),0),0)","v":0},{"$f":"IF(AZ$7<>\"\",IFERROR(VLOOKUP(T27,tblShift[],3,0),0),0)","v":0},{"$f":"IF(BA$7<>\"\",IFERROR(VLOOKUP(U27,tblShift[],3,0),0),0)","v":0},{"$f":"IF(BB$7<>\"\",IFERROR(VLOOKUP(V27,tblShift[],3,0),0),0)","v":0},{"$f":"IF(BC$7<>\"\",IFERROR(VLOOKUP(W27,tblShift[],3,0),0),0)","v":0},{"$f":"IF(BD$7<>\"\",IFERROR(VLOOKUP(X27,tblShift[],3,0),0),0)","v":0},{"$f":"IF(BE$7<>\"\",IFERROR(VLOOKUP(Y27,tblShift[],3,0),0),0)","v":0},{"$f":"IF(BF$7<>\"\",IFERROR(VLOOKUP(Z27,tblShift[],3,0),0),0)","v":0},{"$f":"IF(BG$7<>\"\",IFERROR(VLOOKUP(AA27,tblShift[],3,0),0),0)","v":0},{"$f":"IF(BH$7<>\"\",IFERROR(VLOOKUP(AB27,tblShift[],3,0),0),0)","v":0},{"$f":"IF(BI$7<>\"\",IFERROR(VLOOKUP(AC27,tblShift[],3,0),0),0)","v":0},{"$f":"IF(BJ$7<>\"\",IFERROR(VLOOKUP(AD27,tblShift[],3,0),0),0)","v":0},{"$f":"IF(BK$7<>\"\",IFERROR(VLOOKUP(AE27,tblShift[],3,0),0),0)","v":0},{"$f":"IF(BL$7<>\"\",IFERROR(VLOOKUP(AF27,tblShift[],3,0),0),0)","v":0},{"$f":"IF(BM$7<>\"\",IFERROR(VLOOKUP(AG27,tblShift[],3,0),0),0)","v":0},{"$f":"IF(BN$7<>\"\",IFERROR(VLOOKUP(AH27,tblShift[],3,0),0),0)","v":0},{"$f":"IF(BO$7<>\"\",IFERROR(VLOOKUP(AI27,tblShift[],3,0),0),0)","v":0},null,0,0,0,0,0,0,0,0,0,0,0,0,0,0,0,0,0,0,0,0,0,0,0,0,0,0,0,0,0,null,0,0,0,0,0,0,0,0,0,0,0,0,0,0,0,0,0,0,0,0,0,0,0,0,0,0,0,0,0,null,{"$f":"IFERROR(INDEX(tblShift[0],MATCH(INDEX($E27:$AI27,$D$1),tblShift[[Смена]:[Смена]],0)),0)","v":0},{"$f":"IFERROR(INDEX(tblShift[1],MATCH(INDEX($E27:$AI27,$D$1),tblShift[[Смена]:[Смена]],0)),0)","v":0},{"$f":"IFERROR(INDEX(tblShift[2],MATCH(INDEX($E27:$AI27,$D$1),tblShift[[Смена]:[Смена]],0)),0)","v":0},{"$f":"IFERROR(INDEX(tblShift[3],MATCH(INDEX($E27:$AI27,$D$1),tblShift[[Смена]:[Смена]],0)),0)","v":0},{"$f":"IFERROR(INDEX(tblShift[4],MATCH(INDEX($E27:$AI27,$D$1),tblShift[[Смена]:[Смена]],0)),0)","v":0},{"$f":"IFERROR(INDEX(tblShift[5],MATCH(INDEX($E27:$AI27,$D$1),tblShift[[Смена]:[Смена]],0)),0)","v":0},{"$f":"IFERROR(INDEX(tblShift[6],MATCH(INDEX($E27:$AI27,$D$1),tblShift[[Смена]:[Смена]],0)),0)","v":0},{"$f":"IFERROR(INDEX(tblShift[7],MATCH(INDEX($E27:$AI27,$D$1),tblShift[[Смена]:[Смена]],0)),0)","v":0},{"$f":"IFERROR(INDEX(tblShift[8],MATCH(INDEX($E27:$AI27,$D$1),tblShift[[Смена]:[Смена]],0)),0)","v":0},{"$f":"IFERROR(INDEX(tblShift[9],MATCH(INDEX($E27:$AI27,$D$1),tblShift[[Смена]:[Смена]],0)),0)","v":0},{"$f":"IFERROR(INDEX(tblShift[10],MATCH(INDEX($E27:$AI27,$D$1),tblShift[[Смена]:[Смена]],0)),0)","v":0},{"$f":"IFERROR(INDEX(tblShift[11],MATCH(INDEX($E27:$AI27,$D$1),tblShift[[Смена]:[Смена]],0)),0)","v":0},{"$f":"IFERROR(INDEX(tblShift[12],MATCH(INDEX($E27:$AI27,$D$1),tblShift[[Смена]:[Смена]],0)),0)","v":0},{"$f":"IFERROR(INDEX(tblShift[13],MATCH(INDEX($E27:$AI27,$D$1),tblShift[[Смена]:[Смена]],0)),0)","v":0},{"$f":"IFERROR(INDEX(tblShift[14],MATCH(INDEX($E27:$AI27,$D$1),tblShift[[Смена]:[Смена]],0)),0)","v":0},{"$f":"IFERROR(INDEX(tblShift[15],MATCH(INDEX($E27:$AI27,$D$1),tblShift[[Смена]:[Смена]],0)),0)","v":0},{"$f":"IFERROR(INDEX(tblShift[16],MATCH(INDEX($E27:$AI27,$D$1),tblShift[[Смена]:[Смена]],0)),0)","v":0},{"$f":"IFERROR(INDEX(tblShift[17],MATCH(INDEX($E27:$AI27,$D$1),tblShift[[Смена]:[Смена]],0)),0)","v":0},{"$f":"IFERROR(INDEX(tblShift[18],MATCH(INDEX($E27:$AI27,$D$1),tblShift[[Смена]:[Смена]],0)),0)","v":0},{"$f":"IFERROR(INDEX(tblShift[19],MATCH(INDEX($E27:$AI27,$D$1),tblShift[[Смена]:[Смена]],0)),0)","v":0},{"$f":"IFERROR(INDEX(tblShift[20],MATCH(INDEX($E27:$AI27,$D$1),tblShift[[Смена]:[Смена]],0)),0)","v":0},{"$f":"IFERROR(INDEX(tblShift[21],MATCH(INDEX($E27:$AI27,$D$1),tblShift[[Смена]:[Смена]],0)),0)","v":0},{"$f":"IFERROR(INDEX(tblShift[22],MATCH(INDEX($E27:$AI27,$D$1),tblShift[[Смена]:[Смена]],0)),0)","v":0},{"$f":"IFERROR(INDEX(tblShift[23],MATCH(INDEX($E27:$AI27,$D$1),tblShift[[Смена]:[Смена]],0)),0)","v":0},null,{"$f":"IF(EX$7<>\"\",IFERROR(IF(INDEX(tblShift[[Рабочий]:[Рабочий]],MATCH(E27,tblShift[[Смена]:[Смена]],0)),1,0),0),0)","v":0},{"$f":"IF(EY$7<>\"\",IFERROR(IF(INDEX(tblShift[[Рабочий]:[Рабочий]],MATCH(F27,tblShift[[Смена]:[Смена]],0)),1,0),0),0)","v":0},{"$f":"IF(EZ$7<>\"\",IFERROR(IF(INDEX(tblShift[[Рабочий]:[Рабочий]],MATCH(G27,tblShift[[Смена]:[Смена]],0)),1,0),0),0)","v":0},{"$f":"IF(FA$7<>\"\",IFERROR(IF(INDEX(tblShift[[Рабочий]:[Рабочий]],MATCH(H27,tblShift[[Смена]:[Смена]],0)),1,0),0),0)","v":0},{"$f":"IF(FB$7<>\"\",IFERROR(IF(INDEX(tblShift[[Рабочий]:[Рабочий]],MATCH(I27,tblShift[[Смена]:[Смена]],0)),1,0),0),0)","v":0},{"$f":"IF(FC$7<>\"\",IFERROR(IF(INDEX(tblShift[[Рабочий]:[Рабочий]],MATCH(J27,tblShift[[Смена]:[Смена]],0)),1,0),0),0)","v":0},{"$f":"IF(FD$7<>\"\",IFERROR(IF(INDEX(tblShift[[Рабочий]:[Рабочий]],MATCH(K27,tblShift[[Смена]:[Смена]],0)),1,0),0),0)","v":0},{"$f":"IF(FE$7<>\"\",IFERROR(IF(INDEX(tblShift[[Рабочий]:[Рабочий]],MATCH(L27,tblShift[[Смена]:[Смена]],0)),1,0),0),0)","v":0},{"$f":"IF(FF$7<>\"\",IFERROR(IF(INDEX(tblShift[[Рабочий]:[Рабочий]],MATCH(M27,tblShift[[Смена]:[Смена]],0)),1,0),0),0)","v":0},{"$f":"IF(FG$7<>\"\",IFERROR(IF(INDEX(tblShift[[Рабочий]:[Рабочий]],MATCH(N27,tblShift[[Смена]:[Смена]],0)),1,0),0),0)","v":0},{"$f":"IF(FH$7<>\"\",IFERROR(IF(INDEX(tblShift[[Рабочий]:[Рабочий]],MATCH(O27,tblShift[[Смена]:[Смена]],0)),1,0),0),0)","v":0},{"$f":"IF(FI$7<>\"\",IFERROR(IF(INDEX(tblShift[[Рабочий]:[Рабочий]],MATCH(P27,tblShift[[Смена]:[Смена]],0)),1,0),0),0)","v":0},{"$f":"IF(FJ$7<>\"\",IFERROR(IF(INDEX(tblShift[[Рабочий]:[Рабочий]],MATCH(Q27,tblShift[[Смена]:[Смена]],0)),1,0),0),0)","v":0},{"$f":"IF(FK$7<>\"\",IFERROR(IF(INDEX(tblShift[[Рабочий]:[Рабочий]],MATCH(R27,tblShift[[Смена]:[Смена]],0)),1,0),0),0)","v":0},{"$f":"IF(FL$7<>\"\",IFERROR(IF(INDEX(tblShift[[Рабочий]:[Рабочий]],MATCH(S27,tblShift[[Смена]:[Смена]],0)),1,0),0),0)","v":0},{"$f":"IF(FM$7<>\"\",IFERROR(IF(INDEX(tblShift[[Рабочий]:[Рабочий]],MATCH(T27,tblShift[[Смена]:[Смена]],0)),1,0),0),0)","v":0},{"$f":"IF(FN$7<>\"\",IFERROR(IF(INDEX(tblShift[[Рабочий]:[Рабочий]],MATCH(U27,tblShift[[Смена]:[Смена]],0)),1,0),0),0)","v":0},{"$f":"IF(FO$7<>\"\",IFERROR(IF(INDEX(tblShift[[Рабочий]:[Рабочий]],MATCH(V27,tblShift[[Смена]:[Смена]],0)),1,0),0),0)","v":0},{"$f":"IF(FP$7<>\"\",IFERROR(IF(INDEX(tblShift[[Рабочий]:[Рабочий]],MATCH(W27,tblShift[[Смена]:[Смена]],0)),1,0),0),0)","v":0},{"$f":"IF(FQ$7<>\"\",IFERROR(IF(INDEX(tblShift[[Рабочий]:[Рабочий]],MATCH(X27,tblShift[[Смена]:[Смена]],0)),1,0),0),0)","v":0},{"$f":"IF(FR$7<>\"\",IFERROR(IF(INDEX(tblShift[[Рабочий]:[Рабочий]],MATCH(Y27,tblShift[[Смена]:[Смена]],0)),1,0),0),0)","v":0},{"$f":"IF(FS$7<>\"\",IFERROR(IF(INDEX(tblShift[[Рабочий]:[Рабочий]],MATCH(Z27,tblShift[[Смена]:[Смена]],0)),1,0),0),0)","v":0},{"$f":"IF(FT$7<>\"\",IFERROR(IF(INDEX(tblShift[[Рабочий]:[Рабочий]],MATCH(AA27,tblShift[[Смена]:[Смена]],0)),1,0),0),0)","v":0},{"$f":"IF(FU$7<>\"\",IFERROR(IF(INDEX(tblShift[[Рабочий]:[Рабочий]],MATCH(AB27,tblShift[[Смена]:[Смена]],0)),1,0),0),0)","v":0},{"$f":"IF(FV$7<>\"\",IFERROR(IF(INDEX(tblShift[[Рабочий]:[Рабочий]],MATCH(AC27,tblShift[[Смена]:[Смена]],0)),1,0),0),0)","v":0},{"$f":"IF(FW$7<>\"\",IFERROR(IF(INDEX(tblShift[[Рабочий]:[Рабочий]],MATCH(AD27,tblShift[[Смена]:[Смена]],0)),1,0),0),0)","v":0},{"$f":"IF(FX$7<>\"\",IFERROR(IF(INDEX(tblShift[[Рабочий]:[Рабочий]],MATCH(AE27,tblShift[[Смена]:[Смена]],0)),1,0),0),0)","v":0},{"$f":"IF(FY$7<>\"\",IFERROR(IF(INDEX(tblShift[[Рабочий]:[Рабочий]],MATCH(AF27,tblShift[[Смена]:[Смена]],0)),1,0),0),0)","v":0},{"$f":"IF(FZ$7<>\"\",IFERROR(IF(INDEX(tblShift[[Рабочий]:[Рабочий]],MATCH(AG27,tblShift[[Смена]:[Смена]],0)),1,0),0),0)","v":0},{"$f":"IF(GA$7<>\"\",IFERROR(IF(INDEX(tblShift[[Рабочий]:[Рабочий]],MATCH(AH27,tblShift[[Смена]:[Смена]],0)),1,0),0),0)","v":0},{"$f":"IF(GB$7<>\"\",IFERROR(IF(INDEX(tblShift[[Рабочий]:[Рабочий]],MATCH(AI27,tblShift[[Смена]:[Смена]],0)),1,0),0),0)","v":0},null,null,null,null,null,null,null,null,null,null,null,null,null,null,null,0]
[null,null,"","",null,null,null,null,null,null,null,null,null,null,null,null,null,null,null,null,null,null,null,null,null,null,null,null,null,null,null,null,null,null,null,null,{"$f":"IF(AK27<>\"\",IFERROR(VLOOKUP(E28,tblShift[],3,0),0),0)","v":0},{"$f":"IF(AL27<>\"\",IFERROR(VLOOKUP(F28,tblShift[],3,0),0),0)","v":0},{"$f":"IF(AM27<>\"\",IFERROR(VLOOKUP(G28,tblShift[],3,0),0),0)","v":0},{"$f":"IF(AN$7<>\"\",IFERROR(VLOOKUP(H28,tblShift[],3,0),0),0)","v":0},{"$f":"IF(AO$7<>\"\",IFERROR(VLOOKUP(I28,tblShift[],3,0),0),0)","v":0},{"$f":"IF(AP$7<>\"\",IFERROR(VLOOKUP(J28,tblShift[],3,0),0),0)","v":0},{"$f":"IF(AQ$7<>\"\",IFERROR(VLOOKUP(K28,tblShift[],3,0),0),0)","v":0},{"$f":"IF(AR$7<>\"\",IFERROR(VLOOKUP(L28,tblShift[],3,0),0),0)","v":0},{"$f":"IF(AS$7<>\"\",IFERROR(VLOOKUP(M28,tblShift[],3,0),0),0)","v":0},{"$f":"IF(AT$7<>\"\",IFERROR(VLOOKUP(N28,tblShift[],3,0),0),0)","v":0},{"$f":"IF(AU$7<>\"\",IFERROR(VLOOKUP(O28,tblShift[],3,0),0),0)","v":0},{"$f":"IF(AV$7<>\"\",IFERROR(VLOOKUP(P28,tblShift[],3,0),0),0)","v":0},{"$f":"IF(AW$7<>\"\",IFERROR(VLOOKUP(Q28,tblShift[],3,0),0),0)","v":0},{"$f":"IF(AX$7<>\"\",IFERROR(VLOOKUP(R28,tblShift[],3,0),0),0)","v":0},{"$f":"IF(AY$7<>\"\",IFERROR(VLOOKUP(S28,tblShift[],3,0),0),0)","v":0},{"$f":"IF(AZ$7<>\"\",IFERROR(VLOOKUP(T28,tblShift[],3,0),0),0)","v":0},{"$f":"IF(BA$7<>\"\",IFERROR(VLOOKUP(U28,tblShift[],3,0),0),0)","v":0},{"$f":"IF(BB$7<>\"\",IFERROR(VLOOKUP(V28,tblShift[],3,0),0),0)","v":0},{"$f":"IF(BC$7<>\"\",IFERROR(VLOOKUP(W28,tblShift[],3,0),0),0)","v":0},{"$f":"IF(BD$7<>\"\",IFERROR(VLOOKUP(X28,tblShift[],3,0),0),0)","v":0},{"$f":"IF(BE$7<>\"\",IFERROR(VLOOKUP(Y28,tblShift[],3,0),0),0)","v":0},{"$f":"IF(BF$7<>\"\",IFERROR(VLOOKUP(Z28,tblShift[],3,0),0),0)","v":0},{"$f":"IF(BG$7<>\"\",IFERROR(VLOOKUP(AA28,tblShift[],3,0),0),0)","v":0},{"$f":"IF(BH$7<>\"\",IFERROR(VLOOKUP(AB28,tblShift[],3,0),0),0)","v":0},{"$f":"IF(BI$7<>\"\",IFERROR(VLOOKUP(AC28,tblShift[],3,0),0),0)","v":0},{"$f":"IF(BJ$7<>\"\",IFERROR(VLOOKUP(AD28,tblShift[],3,0),0),0)","v":0},{"$f":"IF(BK$7<>\"\",IFERROR(VLOOKUP(AE28,tblShift[],3,0),0),0)","v":0},{"$f":"IF(BL$7<>\"\",IFERROR(VLOOKUP(AF28,tblShift[],3,0),0),0)","v":0},{"$f":"IF(BM$7<>\"\",IFERROR(VLOOKUP(AG28,tblShift[],3,0),0),0)","v":0},{"$f":"IF(BN$7<>\"\",IFERROR(VLOOKUP(AH28,tblShift[],3,0),0),0)","v":0},{"$f":"IF(BO$7<>\"\",IFERROR(VLOOKUP(AI28,tblShift[],3,0),0),0)","v":0},null,0,0,0,0,0,0,0,0,0,0,0,0,0,0,0,0,0,0,0,0,0,0,0,0,0,0,0,0,0,null,0,0,0,0,0,0,0,0,0,0,0,0,0,0,0,0,0,0,0,0,0,0,0,0,0,0,0,0,0,null,{"$f":"IFERROR(INDEX(tblShift[0],MATCH(INDEX($E28:$AI28,$D$1),tblShift[[Смена]:[Смена]],0)),0)","v":0},{"$f":"IFERROR(INDEX(tblShift[1],MATCH(INDEX($E28:$AI28,$D$1),tblShift[[Смена]:[Смена]],0)),0)","v":0},{"$f":"IFERROR(INDEX(tblShift[2],MATCH(INDEX($E28:$AI28,$D$1),tblShift[[Смена]:[Смена]],0)),0)","v":0},{"$f":"IFERROR(INDEX(tblShift[3],MATCH(INDEX($E28:$AI28,$D$1),tblShift[[Смена]:[Смена]],0)),0)","v":0},{"$f":"IFERROR(INDEX(tblShift[4],MATCH(INDEX($E28:$AI28,$D$1),tblShift[[Смена]:[Смена]],0)),0)","v":0},{"$f":"IFERROR(INDEX(tblShift[5],MATCH(INDEX($E28:$AI28,$D$1),tblShift[[Смена]:[Смена]],0)),0)","v":0},{"$f":"IFERROR(INDEX(tblShift[6],MATCH(INDEX($E28:$AI28,$D$1),tblShift[[Смена]:[Смена]],0)),0)","v":0},{"$f":"IFERROR(INDEX(tblShift[7],MATCH(INDEX($E28:$AI28,$D$1),tblShift[[Смена]:[Смена]],0)),0)","v":0},{"$f":"IFERROR(INDEX(tblShift[8],MATCH(INDEX($E28:$AI28,$D$1),tblShift[[Смена]:[Смена]],0)),0)","v":0},{"$f":"IFERROR(INDEX(tblShift[9],MATCH(INDEX($E28:$AI28,$D$1),tblShift[[Смена]:[Смена]],0)),0)","v":0},{"$f":"IFERROR(INDEX(tblShift[10],MATCH(INDEX($E28:$AI28,$D$1),tblShift[[Смена]:[Смена]],0)),0)","v":0},{"$f":"IFERROR(INDEX(tblShift[11],MATCH(INDEX($E28:$AI28,$D$1),tblShift[[Смена]:[Смена]],0)),0)","v":0},{"$f":"IFERROR(INDEX(tblShift[12],MATCH(INDEX($E28:$AI28,$D$1),tblShift[[Смена]:[Смена]],0)),0)","v":0},{"$f":"IFERROR(INDEX(tblShift[13],MATCH(INDEX($E28:$AI28,$D$1),tblShift[[Смена]:[Смена]],0)),0)","v":0},{"$f":"IFERROR(INDEX(tblShift[14],MATCH(INDEX($E28:$AI28,$D$1),tblShift[[Смена]:[Смена]],0)),0)","v":0},{"$f":"IFERROR(INDEX(tblShift[15],MATCH(INDEX($E28:$AI28,$D$1),tblShift[[Смена]:[Смена]],0)),0)","v":0},{"$f":"IFERROR(INDEX(tblShift[16],MATCH(INDEX($E28:$AI28,$D$1),tblShift[[Смена]:[Смена]],0)),0)","v":0},{"$f":"IFERROR(INDEX(tblShift[17],MATCH(INDEX($E28:$AI28,$D$1),tblShift[[Смена]:[Смена]],0)),0)","v":0},{"$f":"IFERROR(INDEX(tblShift[18],MATCH(INDEX($E28:$AI28,$D$1),tblShift[[Смена]:[Смена]],0)),0)","v":0},{"$f":"IFERROR(INDEX(tblShift[19],MATCH(INDEX($E28:$AI28,$D$1),tblShift[[Смена]:[Смена]],0)),0)","v":0},{"$f":"IFERROR(INDEX(tblShift[20],MATCH(INDEX($E28:$AI28,$D$1),tblShift[[Смена]:[Смена]],0)),0)","v":0},{"$f":"IFERROR(INDEX(tblShift[21],MATCH(INDEX($E28:$AI28,$D$1),tblShift[[Смена]:[Смена]],0)),0)","v":0},{"$f":"IFERROR(INDEX(tblShift[22],MATCH(INDEX($E28:$AI28,$D$1),tblShift[[Смена]:[Смена]],0)),0)","v":0},{"$f":"IFERROR(INDEX(tblShift[23],MATCH(INDEX($E28:$AI28,$D$1),tblShift[[Смена]:[Смена]],0)),0)","v":0},null,{"$f":"IF(EX$7<>\"\",IFERROR(IF(INDEX(tblShift[[Рабочий]:[Рабочий]],MATCH(E28,tblShift[[Смена]:[Смена]],0)),1,0),0),0)","v":0},{"$f":"IF(EY$7<>\"\",IFERROR(IF(INDEX(tblShift[[Рабочий]:[Рабочий]],MATCH(F28,tblShift[[Смена]:[Смена]],0)),1,0),0),0)","v":0},{"$f":"IF(EZ$7<>\"\",IFERROR(IF(INDEX(tblShift[[Рабочий]:[Рабочий]],MATCH(G28,tblShift[[Смена]:[Смена]],0)),1,0),0),0)","v":0},{"$f":"IF(FA$7<>\"\",IFERROR(IF(INDEX(tblShift[[Рабочий]:[Рабочий]],MATCH(H28,tblShift[[Смена]:[Смена]],0)),1,0),0),0)","v":0},{"$f":"IF(FB$7<>\"\",IFERROR(IF(INDEX(tblShift[[Рабочий]:[Рабочий]],MATCH(I28,tblShift[[Смена]:[Смена]],0)),1,0),0),0)","v":0},{"$f":"IF(FC$7<>\"\",IFERROR(IF(INDEX(tblShift[[Рабочий]:[Рабочий]],MATCH(J28,tblShift[[Смена]:[Смена]],0)),1,0),0),0)","v":0},{"$f":"IF(FD$7<>\"\",IFERROR(IF(INDEX(tblShift[[Рабочий]:[Рабочий]],MATCH(K28,tblShift[[Смена]:[Смена]],0)),1,0),0),0)","v":0},{"$f":"IF(FE$7<>\"\",IFERROR(IF(INDEX(tblShift[[Рабочий]:[Рабочий]],MATCH(L28,tblShift[[Смена]:[Смена]],0)),1,0),0),0)","v":0},{"$f":"IF(FF$7<>\"\",IFERROR(IF(INDEX(tblShift[[Рабочий]:[Рабочий]],MATCH(M28,tblShift[[Смена]:[Смена]],0)),1,0),0),0)","v":0},{"$f":"IF(FG$7<>\"\",IFERROR(IF(INDEX(tblShift[[Рабочий]:[Рабочий]],MATCH(N28,tblShift[[Смена]:[Смена]],0)),1,0),0),0)","v":0},{"$f":"IF(FH$7<>\"\",IFERROR(IF(INDEX(tblShift[[Рабочий]:[Рабочий]],MATCH(O28,tblShift[[Смена]:[Смена]],0)),1,0),0),0)","v":0},{"$f":"IF(FI$7<>\"\",IFERROR(IF(INDEX(tblShift[[Рабочий]:[Рабочий]],MATCH(P28,tblShift[[Смена]:[Смена]],0)),1,0),0),0)","v":0},{"$f":"IF(FJ$7<>\"\",IFERROR(IF(INDEX(tblShift[[Рабочий]:[Рабочий]],MATCH(Q28,tblShift[[Смена]:[Смена]],0)),1,0),0),0)","v":0},{"$f":"IF(FK$7<>\"\",IFERROR(IF(INDEX(tblShift[[Рабочий]:[Рабочий]],MATCH(R28,tblShift[[Смена]:[Смена]],0)),1,0),0),0)","v":0},{"$f":"IF(FL$7<>\"\",IFERROR(IF(INDEX(tblShift[[Рабочий]:[Рабочий]],MATCH(S28,tblShift[[Смена]:[Смена]],0)),1,0),0),0)","v":0},{"$f":"IF(FM$7<>\"\",IFERROR(IF(INDEX(tblShift[[Рабочий]:[Рабочий]],MATCH(T28,tblShift[[Смена]:[Смена]],0)),1,0),0),0)","v":0},{"$f":"IF(FN$7<>\"\",IFERROR(IF(INDEX(tblShift[[Рабочий]:[Рабочий]],MATCH(U28,tblShift[[Смена]:[Смена]],0)),1,0),0),0)","v":0},{"$f":"IF(FO$7<>\"\",IFERROR(IF(INDEX(tblShift[[Рабочий]:[Рабочий]],MATCH(V28,tblShift[[Смена]:[Смена]],0)),1,0),0),0)","v":0},{"$f":"IF(FP$7<>\"\",IFERROR(IF(INDEX(tblShift[[Рабочий]:[Рабочий]],MATCH(W28,tblShift[[Смена]:[Смена]],0)),1,0),0),0)","v":0},{"$f":"IF(FQ$7<>\"\",IFERROR(IF(INDEX(tblShift[[Рабочий]:[Рабочий]],MATCH(X28,tblShift[[Смена]:[Смена]],0)),1,0),0),0)","v":0},{"$f":"IF(FR$7<>\"\",IFERROR(IF(INDEX(tblShift[[Рабочий]:[Рабочий]],MATCH(Y28,tblShift[[Смена]:[Смена]],0)),1,0),0),0)","v":0},{"$f":"IF(FS$7<>\"\",IFERROR(IF(INDEX(tblShift[[Рабочий]:[Рабочий]],MATCH(Z28,tblShift[[Смена]:[Смена]],0)),1,0),0),0)","v":0},{"$f":"IF(FT$7<>\"\",IFERROR(IF(INDEX(tblShift[[Рабочий]:[Рабочий]],MATCH(AA28,tblShift[[Смена]:[Смена]],0)),1,0),0),0)","v":0},{"$f":"IF(FU$7<>\"\",IFERROR(IF(INDEX(tblShift[[Рабочий]:[Рабочий]],MATCH(AB28,tblShift[[Смена]:[Смена]],0)),1,0),0),0)","v":0},{"$f":"IF(FV$7<>\"\",IFERROR(IF(INDEX(tblShift[[Рабочий]:[Рабочий]],MATCH(AC28,tblShift[[Смена]:[Смена]],0)),1,0),0),0)","v":0},{"$f":"IF(FW$7<>\"\",IFERROR(IF(INDEX(tblShift[[Рабочий]:[Рабочий]],MATCH(AD28,tblShift[[Смена]:[Смена]],0)),1,0),0),0)","v":0},{"$f":"IF(FX$7<>\"\",IFERROR(IF(INDEX(tblShift[[Рабочий]:[Рабочий]],MATCH(AE28,tblShift[[Смена]:[Смена]],0)),1,0),0),0)","v":0},{"$f":"IF(FY$7<>\"\",IFERROR(IF(INDEX(tblShift[[Рабочий]:[Рабочий]],MATCH(AF28,tblShift[[Смена]:[Смена]],0)),1,0),0),0)","v":0},{"$f":"IF(FZ$7<>\"\",IFERROR(IF(INDEX(tblShift[[Рабочий]:[Рабочий]],MATCH(AG28,tblShift[[Смена]:[Смена]],0)),1,0),0),0)","v":0},{"$f":"IF(GA$7<>\"\",IFERROR(IF(INDEX(tblShift[[Рабочий]:[Рабочий]],MATCH(AH28,tblShift[[Смена]:[Смена]],0)),1,0),0),0)","v":0},{"$f":"IF(GB$7<>\"\",IFERROR(IF(INDEX(tblShift[[Рабочий]:[Рабочий]],MATCH(AI28,tblShift[[Смена]:[Смена]],0)),1,0),0),0)","v":0},null,null,null,null,null,null,null,null,null,null,null,null,null,null,null,0]
[null,null,"","",null,null,null,null,null,null,null,null,null,null,null,null,null,null,null,null,null,null,null,null,null,null,null,null,null,null,null,null,null,null,null,null,{"$f":"IF(AK28<>\"\",IFERROR(VLOOKUP(E29,tblShift[],3,0),0),0)","v":0},{"$f":"IF(AL28<>\"\",IFERROR(VLOOKUP(F29,tblShift[],3,0),0),0)","v":0},{"$f":"IF(AM28<>\"\",IFERROR(VLOOKUP(G29,tblShift[],3,0),0),0)","v":0},{"$f":"IF(AN$7<>\"\",IFERROR(VLOOKUP(H29,tblShift[],3,0),0),0)","v":0},{"$f":"IF(AO$7<>\"\",IFERROR(VLOOKUP(I29,tblShift[],3,0),0),0)","v":0},{"$f":"IF(AP$7<>\"\",IFERROR(VLOOKUP(J29,tblShift[],3,0),0),0)","v":0},{"$f":"IF(AQ$7<>\"\",IFERROR(VLOOKUP(K29,tblShift[],3,0),0),0)","v":0},{"$f":"IF(AR$7<>\"\",IFERROR(VLOOKUP(L29,tblShift[],3,0),0),0)","v":0},{"$f":"IF(AS$7<>\"\",IFERROR(VLOOKUP(M29,tblShift[],3,0),0),0)","v":0},{"$f":"IF(AT$7<>\"\",IFERROR(VLOOKUP(N29,tblShift[],3,0),0),0)","v":0},{"$f":"IF(AU$7<>\"\",IFERROR(VLOOKUP(O29,tblShift[],3,0),0),0)","v":0},{"$f":"IF(AV$7<>\"\",IFERROR(VLOOKUP(P29,tblShift[],3,0),0),0)","v":0},{"$f":"IF(AW$7<>\"\",IFERROR(VLOOKUP(Q29,tblShift[],3,0),0),0)","v":0},{"$f":"IF(AX$7<>\"\",IFERROR(VLOOKUP(R29,tblShift[],3,0),0),0)","v":0},{"$f":"IF(AY$7<>\"\",IFERROR(VLOOKUP(S29,tblShift[],3,0),0),0)","v":0},{"$f":"IF(AZ$7<>\"\",IFERROR(VLOOKUP(T29,tblShift[],3,0),0),0)","v":0},{"$f":"IF(BA$7<>\"\",IFERROR(VLOOKUP(U29,tblShift[],3,0),0),0)","v":0},{"$f":"IF(BB$7<>\"\",IFERROR(VLOOKUP(V29,tblShift[],3,0),0),0)","v":0},{"$f":"IF(BC$7<>\"\",IFERROR(VLOOKUP(W29,tblShift[],3,0),0),0)","v":0},{"$f":"IF(BD$7<>\"\",IFERROR(VLOOKUP(X29,tblShift[],3,0),0),0)","v":0},{"$f":"IF(BE$7<>\"\",IFERROR(VLOOKUP(Y29,tblShift[],3,0),0),0)","v":0},{"$f":"IF(BF$7<>\"\",IFERROR(VLOOKUP(Z29,tblShift[],3,0),0),0)","v":0},{"$f":"IF(BG$7<>\"\",IFERROR(VLOOKUP(AA29,tblShift[],3,0),0),0)","v":0},{"$f":"IF(BH$7<>\"\",IFERROR(VLOOKUP(AB29,tblShift[],3,0),0),0)","v":0},{"$f":"IF(BI$7<>\"\",IFERROR(VLOOKUP(AC29,tblShift[],3,0),0),0)","v":0},{"$f":"IF(BJ$7<>\"\",IFERROR(VLOOKUP(AD29,tblShift[],3,0),0),0)","v":0},{"$f":"IF(BK$7<>\"\",IFERROR(VLOOKUP(AE29,tblShift[],3,0),0),0)","v":0},{"$f":"IF(BL$7<>\"\",IFERROR(VLOOKUP(AF29,tblShift[],3,0),0),0)","v":0},{"$f":"IF(BM$7<>\"\",IFERROR(VLOOKUP(AG29,tblShift[],3,0),0),0)","v":0},{"$f":"IF(BN$7<>\"\",IFERROR(VLOOKUP(AH29,tblShift[],3,0),0),0)","v":0},{"$f":"IF(BO$7<>\"\",IFERROR(VLOOKUP(AI29,tblShift[],3,0),0),0)","v":0},null,0,0,0,0,0,0,0,0,0,0,0,0,0,0,0,0,0,0,0,0,0,0,0,0,0,0,0,0,0,null,0,0,0,0,0,0,0,0,0,0,0,0,0,0,0,0,0,0,0,0,0,0,0,0,0,0,0,0,0,null,{"$f":"IFERROR(INDEX(tblShift[0],MATCH(INDEX($E29:$AI29,$D$1),tblShift[[Смена]:[Смена]],0)),0)","v":0},{"$f":"IFERROR(INDEX(tblShift[1],MATCH(INDEX($E29:$AI29,$D$1),tblShift[[Смена]:[Смена]],0)),0)","v":0},{"$f":"IFERROR(INDEX(tblShift[2],MATCH(INDEX($E29:$AI29,$D$1),tblShift[[Смена]:[Смена]],0)),0)","v":0},{"$f":"IFERROR(INDEX(tblShift[3],MATCH(INDEX($E29:$AI29,$D$1),tblShift[[Смена]:[Смена]],0)),0)","v":0},{"$f":"IFERROR(INDEX(tblShift[4],MATCH(INDEX($E29:$AI29,$D$1),tblShift[[Смена]:[Смена]],0)),0)","v":0},{"$f":"IFERROR(INDEX(tblShift[5],MATCH(INDEX($E29:$AI29,$D$1),tblShift[[Смена]:[Смена]],0)),0)","v":0},{"$f":"IFERROR(INDEX(tblShift[6],MATCH(INDEX($E29:$AI29,$D$1),tblShift[[Смена]:[Смена]],0)),0)","v":0},{"$f":"IFERROR(INDEX(tblShift[7],MATCH(INDEX($E29:$AI29,$D$1),tblShift[[Смена]:[Смена]],0)),0)","v":0},{"$f":"IFERROR(INDEX(tblShift[8],MATCH(INDEX($E29:$AI29,$D$1),tblShift[[Смена]:[Смена]],0)),0)","v":0},{"$f":"IFERROR(INDEX(tblShift[9],MATCH(INDEX($E29:$AI29,$D$1),tblShift[[Смена]:[Смена]],0)),0)","v":0},{"$f":"IFERROR(INDEX(tblShift[10],MATCH(INDEX($E29:$AI29,$D$1),tblShift[[Смена]:[Смена]],0)),0)","v":0},{"$f":"IFERROR(INDEX(tblShift[11],MATCH(INDEX($E29:$AI29,$D$1),tblShift[[Смена]:[Смена]],0)),0)","v":0},{"$f":"IFERROR(INDEX(tblShift[12],MATCH(INDEX($E29:$AI29,$D$1),tblShift[[Смена]:[Смена]],0)),0)","v":0},{"$f":"IFERROR(INDEX(tblShift[13],MATCH(INDEX($E29:$AI29,$D$1),tblShift[[Смена]:[Смена]],0)),0)","v":0},{"$f":"IFERROR(INDEX(tblShift[14],MATCH(INDEX($E29:$AI29,$D$1),tblShift[[Смена]:[Смена]],0)),0)","v":0},{"$f":"IFERROR(INDEX(tblShift[15],MATCH(INDEX($E29:$AI29,$D$1),tblShift[[Смена]:[Смена]],0)),0)","v":0},{"$f":"IFERROR(INDEX(tblShift[16],MATCH(INDEX($E29:$AI29,$D$1),tblShift[[Смена]:[Смена]],0)),0)","v":0},{"$f":"IFERROR(INDEX(tblShift[17],MATCH(INDEX($E29:$AI29,$D$1),tblShift[[Смена]:[Смена]],0)),0)","v":0},{"$f":"IFERROR(INDEX(tblShift[18],MATCH(INDEX($E29:$AI29,$D$1),tblShift[[Смена]:[Смена]],0)),0)","v":0},{"$f":"IFERROR(INDEX(tblShift[19],MATCH(INDEX($E29:$AI29,$D$1),tblShift[[Смена]:[Смена]],0)),0)","v":0},{"$f":"IFERROR(INDEX(tblShift[20],MATCH(INDEX($E29:$AI29,$D$1),tblShift[[Смена]:[Смена]],0)),0)","v":0},{"$f":"IFERROR(INDEX(tblShift[21],MATCH(INDEX($E29:$AI29,$D$1),tblShift[[Смена]:[Смена]],0)),0)","v":0},{"$f":"IFERROR(INDEX(tblShift[22],MATCH(INDEX($E29:$AI29,$D$1),tblShift[[Смена]:[Смена]],0)),0)","v":0},{"$f":"IFERROR(INDEX(tblShift[23],MATCH(INDEX($E29:$AI29,$D$1),tblShift[[Смена]:[Смена]],0)),0)","v":0},null,{"$f":"IF(EX$7<>\"\",IFERROR(IF(INDEX(tblShift[[Рабочий]:[Рабочий]],MATCH(E29,tblShift[[Смена]:[Смена]],0)),1,0),0),0)","v":0},{"$f":"IF(EY$7<>\"\",IFERROR(IF(INDEX(tblShift[[Рабочий]:[Рабочий]],MATCH(F29,tblShift[[Смена]:[Смена]],0)),1,0),0),0)","v":0},{"$f":"IF(EZ$7<>\"\",IFERROR(IF(INDEX(tblShift[[Рабочий]:[Рабочий]],MATCH(G29,tblShift[[Смена]:[Смена]],0)),1,0),0),0)","v":0},{"$f":"IF(FA$7<>\"\",IFERROR(IF(INDEX(tblShift[[Рабочий]:[Рабочий]],MATCH(H29,tblShift[[Смена]:[Смена]],0)),1,0),0),0)","v":0},{"$f":"IF(FB$7<>\"\",IFERROR(IF(INDEX(tblShift[[Рабочий]:[Рабочий]],MATCH(I29,tblShift[[Смена]:[Смена]],0)),1,0),0),0)","v":0},{"$f":"IF(FC$7<>\"\",IFERROR(IF(INDEX(tblShift[[Рабочий]:[Рабочий]],MATCH(J29,tblShift[[Смена]:[Смена]],0)),1,0),0),0)","v":0},{"$f":"IF(FD$7<>\"\",IFERROR(IF(INDEX(tblShift[[Рабочий]:[Рабочий]],MATCH(K29,tblShift[[Смена]:[Смена]],0)),1,0),0),0)","v":0},{"$f":"IF(FE$7<>\"\",IFERROR(IF(INDEX(tblShift[[Рабочий]:[Рабочий]],MATCH(L29,tblShift[[Смена]:[Смена]],0)),1,0),0),0)","v":0},{"$f":"IF(FF$7<>\"\",IFERROR(IF(INDEX(tblShift[[Рабочий]:[Рабочий]],MATCH(M29,tblShift[[Смена]:[Смена]],0)),1,0),0),0)","v":0},{"$f":"IF(FG$7<>\"\",IFERROR(IF(INDEX(tblShift[[Рабочий]:[Рабочий]],MATCH(N29,tblShift[[Смена]:[Смена]],0)),1,0),0),0)","v":0},{"$f":"IF(FH$7<>\"\",IFERROR(IF(INDEX(tblShift[[Рабочий]:[Рабочий]],MATCH(O29,tblShift[[Смена]:[Смена]],0)),1,0),0),0)","v":0},{"$f":"IF(FI$7<>\"\",IFERROR(IF(INDEX(tblShift[[Рабочий]:[Рабочий]],MATCH(P29,tblShift[[Смена]:[Смена]],0)),1,0),0),0)","v":0},{"$f":"IF(FJ$7<>\"\",IFERROR(IF(INDEX(tblShift[[Рабочий]:[Рабочий]],MATCH(Q29,tblShift[[Смена]:[Смена]],0)),1,0),0),0)","v":0},{"$f":"IF(FK$7<>\"\",IFERROR(IF(INDEX(tblShift[[Рабочий]:[Рабочий]],MATCH(R29,tblShift[[Смена]:[Смена]],0)),1,0),0),0)","v":0},{"$f":"IF(FL$7<>\"\",IFERROR(IF(INDEX(tblShift[[Рабочий]:[Рабочий]],MATCH(S29,tblShift[[Смена]:[Смена]],0)),1,0),0),0)","v":0},{"$f":"IF(FM$7<>\"\",IFERROR(IF(INDEX(tblShift[[Рабочий]:[Рабочий]],MATCH(T29,tblShift[[Смена]:[Смена]],0)),1,0),0),0)","v":0},{"$f":"IF(FN$7<>\"\",IFERROR(IF(INDEX(tblShift[[Рабочий]:[Рабочий]],MATCH(U29,tblShift[[Смена]:[Смена]],0)),1,0),0),0)","v":0},{"$f":"IF(FO$7<>\"\",IFERROR(IF(INDEX(tblShift[[Рабочий]:[Рабочий]],MATCH(V29,tblShift[[Смена]:[Смена]],0)),1,0),0),0)","v":0},{"$f":"IF(FP$7<>\"\",IFERROR(IF(INDEX(tblShift[[Рабочий]:[Рабочий]],MATCH(W29,tblShift[[Смена]:[Смена]],0)),1,0),0),0)","v":0},{"$f":"IF(FQ$7<>\"\",IFERROR(IF(INDEX(tblShift[[Рабочий]:[Рабочий]],MATCH(X29,tblShift[[Смена]:[Смена]],0)),1,0),0),0)","v":0},{"$f":"IF(FR$7<>\"\",IFERROR(IF(INDEX(tblShift[[Рабочий]:[Рабочий]],MATCH(Y29,tblShift[[Смена]:[Смена]],0)),1,0),0),0)","v":0},{"$f":"IF(FS$7<>\"\",IFERROR(IF(INDEX(tblShift[[Рабочий]:[Рабочий]],MATCH(Z29,tblShift[[Смена]:[Смена]],0)),1,0),0),0)","v":0},{"$f":"IF(FT$7<>\"\",IFERROR(IF(INDEX(tblShift[[Рабочий]:[Рабочий]],MATCH(AA29,tblShift[[Смена]:[Смена]],0)),1,0),0),0)","v":0},{"$f":"IF(FU$7<>\"\",IFERROR(IF(INDEX(tblShift[[Рабочий]:[Рабочий]],MATCH(AB29,tblShift[[Смена]:[Смена]],0)),1,0),0),0)","v":0},{"$f":"IF(FV$7<>\"\",IFERROR(IF(INDEX(tblShift[[Рабочий]:[Рабочий]],MATCH(AC29,tblShift[[Смена]:[Смена]],0)),1,0),0),0)","v":0},{"$f":"IF(FW$7<>\"\",IFERROR(IF(INDEX(tblShift[[Рабочий]:[Рабочий]],MATCH(AD29,tblShift[[Смена]:[Смена]],0)),1,0),0),0)","v":0},{"$f":"IF(FX$7<>\"\",IFERROR(IF(INDEX(tblShift[[Рабочий]:[Рабочий]],MATCH(AE29,tblShift[[Смена]:[Смена]],0)),1,0),0),0)","v":0},{"$f":"IF(FY$7<>\"\",IFERROR(IF(INDEX(tblShift[[Рабочий]:[Рабочий]],MATCH(AF29,tblShift[[Смена]:[Смена]],0)),1,0),0),0)","v":0},{"$f":"IF(FZ$7<>\"\",IFERROR(IF(INDEX(tblShift[[Рабочий]:[Рабочий]],MATCH(AG29,tblShift[[Смена]:[Смена]],0)),1,0),0),0)","v":0},{"$f":"IF(GA$7<>\"\",IFERROR(IF(INDEX(tblShift[[Рабочий]:[Рабочий]],MATCH(AH29,tblShift[[Смена]:[Смена]],0)),1,0),0),0)","v":0},{"$f":"IF(GB$7<>\"\",IFERROR(IF(INDEX(tblShift[[Рабочий]:[Рабочий]],MATCH(AI29,tblShift[[Смена]:[Смена]],0)),1,0),0),0)","v":0},null,null,null,null,null,null,null,null,null,null,null,null,null,null,null,0]
[null,null,"","",null,null,null,null,null,null,null,null,null,null,null,null,null,null,null,null,null,null,null,null,null,null,null,null,null,null,null,null,null,null,null,null,{"$f":"IF(AK29<>\"\",IFERROR(VLOOKUP(E30,tblShift[],3,0),0),0)","v":0},{"$f":"IF(AL29<>\"\",IFERROR(VLOOKUP(F30,tblShift[],3,0),0),0)","v":0},{"$f":"IF(AM29<>\"\",IFERROR(VLOOKUP(G30,tblShift[],3,0),0),0)","v":0},{"$f":"IF(AN$7<>\"\",IFERROR(VLOOKUP(H30,tblShift[],3,0),0),0)","v":0},{"$f":"IF(AO$7<>\"\",IFERROR(VLOOKUP(I30,tblShift[],3,0),0),0)","v":0},{"$f":"IF(AP$7<>\"\",IFERROR(VLOOKUP(J30,tblShift[],3,0),0),0)","v":0},{"$f":"IF(AQ$7<>\"\",IFERROR(VLOOKUP(K30,tblShift[],3,0),0),0)","v":0},{"$f":"IF(AR$7<>\"\",IFERROR(VLOOKUP(L30,tblShift[],3,0),0),0)","v":0},{"$f":"IF(AS$7<>\"\",IFERROR(VLOOKUP(M30,tblShift[],3,0),0),0)","v":0},{"$f":"IF(AT$7<>\"\",IFERROR(VLOOKUP(N30,tblShift[],3,0),0),0)","v":0},{"$f":"IF(AU$7<>\"\",IFERROR(VLOOKUP(O30,tblShift[],3,0),0),0)","v":0},{"$f":"IF(AV$7<>\"\",IFERROR(VLOOKUP(P30,tblShift[],3,0),0),0)","v":0},{"$f":"IF(AW$7<>\"\",IFERROR(VLOOKUP(Q30,tblShift[],3,0),0),0)","v":0},{"$f":"IF(AX$7<>\"\",IFERROR(VLOOKUP(R30,tblShift[],3,0),0),0)","v":0},{"$f":"IF(AY$7<>\"\",IFERROR(VLOOKUP(S30,tblShift[],3,0),0),0)","v":0},{"$f":"IF(AZ$7<>\"\",IFERROR(VLOOKUP(T30,tblShift[],3,0),0),0)","v":0},{"$f":"IF(BA$7<>\"\",IFERROR(VLOOKUP(U30,tblShift[],3,0),0),0)","v":0},{"$f":"IF(BB$7<>\"\",IFERROR(VLOOKUP(V30,tblShift[],3,0),0),0)","v":0},{"$f":"IF(BC$7<>\"\",IFERROR(VLOOKUP(W30,tblShift[],3,0),0),0)","v":0},{"$f":"IF(BD$7<>\"\",IFERROR(VLOOKUP(X30,tblShift[],3,0),0),0)","v":0},{"$f":"IF(BE$7<>\"\",IFERROR(VLOOKUP(Y30,tblShift[],3,0),0),0)","v":0},{"$f":"IF(BF$7<>\"\",IFERROR(VLOOKUP(Z30,tblShift[],3,0),0),0)","v":0},{"$f":"IF(BG$7<>\"\",IFERROR(VLOOKUP(AA30,tblShift[],3,0),0),0)","v":0},{"$f":"IF(BH$7<>\"\",IFERROR(VLOOKUP(AB30,tblShift[],3,0),0),0)","v":0},{"$f":"IF(BI$7<>\"\",IFERROR(VLOOKUP(AC30,tblShift[],3,0),0),0)","v":0},{"$f":"IF(BJ$7<>\"\",IFERROR(VLOOKUP(AD30,tblShift[],3,0),0),0)","v":0},{"$f":"IF(BK$7<>\"\",IFERROR(VLOOKUP(AE30,tblShift[],3,0),0),0)","v":0},{"$f":"IF(BL$7<>\"\",IFERROR(VLOOKUP(AF30,tblShift[],3,0),0),0)","v":0},{"$f":"IF(BM$7<>\"\",IFERROR(VLOOKUP(AG30,tblShift[],3,0),0),0)","v":0},{"$f":"IF(BN$7<>\"\",IFERROR(VLOOKUP(AH30,tblShift[],3,0),0),0)","v":0},{"$f":"IF(BO$7<>\"\",IFERROR(VLOOKUP(AI30,tblShift[],3,0),0),0)","v":0},null,0,0,0,0,0,0,0,0,0,0,0,0,0,0,0,0,0,0,0,0,0,0,0,0,0,0,0,0,0,null,0,0,0,0,0,0,0,0,0,0,0,0,0,0,0,0,0,0,0,0,0,0,0,0,0,0,0,0,0,null,{"$f":"IFERROR(INDEX(tblShift[0],MATCH(INDEX($E30:$AI30,$D$1),tblShift[[Смена]:[Смена]],0)),0)","v":0},{"$f":"IFERROR(INDEX(tblShift[1],MATCH(INDEX($E30:$AI30,$D$1),tblShift[[Смена]:[Смена]],0)),0)","v":0},{"$f":"IFERROR(INDEX(tblShift[2],MATCH(INDEX($E30:$AI30,$D$1),tblShift[[Смена]:[Смена]],0)),0)","v":0},{"$f":"IFERROR(INDEX(tblShift[3],MATCH(INDEX($E30:$AI30,$D$1),tblShift[[Смена]:[Смена]],0)),0)","v":0},{"$f":"IFERROR(INDEX(tblShift[4],MATCH(INDEX($E30:$AI30,$D$1),tblShift[[Смена]:[Смена]],0)),0)","v":0},{"$f":"IFERROR(INDEX(tblShift[5],MATCH(INDEX($E30:$AI30,$D$1),tblShift[[Смена]:[Смена]],0)),0)","v":0},{"$f":"IFERROR(INDEX(tblShift[6],MATCH(INDEX($E30:$AI30,$D$1),tblShift[[Смена]:[Смена]],0)),0)","v":0},{"$f":"IFERROR(INDEX(tblShift[7],MATCH(INDEX($E30:$AI30,$D$1),tblShift[[Смена]:[Смена]],0)),0)","v":0},{"$f":"IFERROR(INDEX(tblShift[8],MATCH(INDEX($E30:$AI30,$D$1),tblShift[[Смена]:[Смена]],0)),0)","v":0},{"$f":"IFERROR(INDEX(tblShift[9],MATCH(INDEX($E30:$AI30,$D$1),tblShift[[Смена]:[Смена]],0)),0)","v":0},{"$f":"IFERROR(INDEX(tblShift[10],MATCH(INDEX($E30:$AI30,$D$1),tblShift[[Смена]:[Смена]],0)),0)","v":0},{"$f":"IFERROR(INDEX(tblShift[11],MATCH(INDEX($E30:$AI30,$D$1),tblShift[[Смена]:[Смена]],0)),0)","v":0},{"$f":"IFERROR(INDEX(tblShift[12],MATCH(INDEX($E30:$AI30,$D$1),tblShift[[Смена]:[Смена]],0)),0)","v":0},{"$f":"IFERROR(INDEX(tblShift[13],MATCH(INDEX($E30:$AI30,$D$1),tblShift[[Смена]:[Смена]],0)),0)","v":0},{"$f":"IFERROR(INDEX(tblShift[14],MATCH(INDEX($E30:$AI30,$D$1),tblShift[[Смена]:[Смена]],0)),0)","v":0},{"$f":"IFERROR(INDEX(tblShift[15],MATCH(INDEX($E30:$AI30,$D$1),tblShift[[Смена]:[Смена]],0)),0)","v":0},{"$f":"IFERROR(INDEX(tblShift[16],MATCH(INDEX($E30:$AI30,$D$1),tblShift[[Смена]:[Смена]],0)),0)","v":0},{"$f":"IFERROR(INDEX(tblShift[17],MATCH(INDEX($E30:$AI30,$D$1),tblShift[[Смена]:[Смена]],0)),0)","v":0},{"$f":"IFERROR(INDEX(tblShift[18],MATCH(INDEX($E30:$AI30,$D$1),tblShift[[Смена]:[Смена]],0)),0)","v":0},{"$f":"IFERROR(INDEX(tblShift[19],MATCH(INDEX($E30:$AI30,$D$1),tblShift[[Смена]:[Смена]],0)),0)","v":0},{"$f":"IFERROR(INDEX(tblShift[20],MATCH(INDEX($E30:$AI30,$D$1),tblShift[[Смена]:[Смена]],0)),0)","v":0},{"$f":"IFERROR(INDEX(tblShift[21],MATCH(INDEX($E30:$AI30,$D$1),tblShift[[Смена]:[Смена]],0)),0)","v":0},{"$f":"IFERROR(INDEX(tblShift[22],MATCH(INDEX($E30:$AI30,$D$1),tblShift[[Смена]:[Смена]],0)),0)","v":0},{"$f":"IFERROR(INDEX(tblShift[23],MATCH(INDEX($E30:$AI30,$D$1),tblShift[[Смена]:[Смена]],0)),0)","v":0},null,{"$f":"IF(EX$7<>\"\",IFERROR(IF(INDEX(tblShift[[Рабочий]:[Рабочий]],MATCH(E30,tblShift[[Смена]:[Смена]],0)),1,0),0),0)","v":0},{"$f":"IF(EY$7<>\"\",IFERROR(IF(INDEX(tblShift[[Рабочий]:[Рабочий]],MATCH(F30,tblShift[[Смена]:[Смена]],0)),1,0),0),0)","v":0},{"$f":"IF(EZ$7<>\"\",IFERROR(IF(INDEX(tblShift[[Рабочий]:[Рабочий]],MATCH(G30,tblShift[[Смена]:[Смена]],0)),1,0),0),0)","v":0},{"$f":"IF(FA$7<>\"\",IFERROR(IF(INDEX(tblShift[[Рабочий]:[Рабочий]],MATCH(H30,tblShift[[Смена]:[Смена]],0)),1,0),0),0)","v":0},{"$f":"IF(FB$7<>\"\",IFERROR(IF(INDEX(tblShift[[Рабочий]:[Рабочий]],MATCH(I30,tblShift[[Смена]:[Смена]],0)),1,0),0),0)","v":0},{"$f":"IF(FC$7<>\"\",IFERROR(IF(INDEX(tblShift[[Рабочий]:[Рабочий]],MATCH(J30,tblShift[[Смена]:[Смена]],0)),1,0),0),0)","v":0},{"$f":"IF(FD$7<>\"\",IFERROR(IF(INDEX(tblShift[[Рабочий]:[Рабочий]],MATCH(K30,tblShift[[Смена]:[Смена]],0)),1,0),0),0)","v":0},{"$f":"IF(FE$7<>\"\",IFERROR(IF(INDEX(tblShift[[Рабочий]:[Рабочий]],MATCH(L30,tblShift[[Смена]:[Смена]],0)),1,0),0),0)","v":0},{"$f":"IF(FF$7<>\"\",IFERROR(IF(INDEX(tblShift[[Рабочий]:[Рабочий]],MATCH(M30,tblShift[[Смена]:[Смена]],0)),1,0),0),0)","v":0},{"$f":"IF(FG$7<>\"\",IFERROR(IF(INDEX(tblShift[[Рабочий]:[Рабочий]],MATCH(N30,tblShift[[Смена]:[Смена]],0)),1,0),0),0)","v":0},{"$f":"IF(FH$7<>\"\",IFERROR(IF(INDEX(tblShift[[Рабочий]:[Рабочий]],MATCH(O30,tblShift[[Смена]:[Смена]],0)),1,0),0),0)","v":0},{"$f":"IF(FI$7<>\"\",IFERROR(IF(INDEX(tblShift[[Рабочий]:[Рабочий]],MATCH(P30,tblShift[[Смена]:[Смена]],0)),1,0),0),0)","v":0},{"$f":"IF(FJ$7<>\"\",IFERROR(IF(INDEX(tblShift[[Рабочий]:[Рабочий]],MATCH(Q30,tblShift[[Смена]:[Смена]],0)),1,0),0),0)","v":0},{"$f":"IF(FK$7<>\"\",IFERROR(IF(INDEX(tblShift[[Рабочий]:[Рабочий]],MATCH(R30,tblShift[[Смена]:[Смена]],0)),1,0),0),0)","v":0},{"$f":"IF(FL$7<>\"\",IFERROR(IF(INDEX(tblShift[[Рабочий]:[Рабочий]],MATCH(S30,tblShift[[Смена]:[Смена]],0)),1,0),0),0)","v":0},{"$f":"IF(FM$7<>\"\",IFERROR(IF(INDEX(tblShift[[Рабочий]:[Рабочий]],MATCH(T30,tblShift[[Смена]:[Смена]],0)),1,0),0),0)","v":0},{"$f":"IF(FN$7<>\"\",IFERROR(IF(INDEX(tblShift[[Рабочий]:[Рабочий]],MATCH(U30,tblShift[[Смена]:[Смена]],0)),1,0),0),0)","v":0},{"$f":"IF(FO$7<>\"\",IFERROR(IF(INDEX(tblShift[[Рабочий]:[Рабочий]],MATCH(V30,tblShift[[Смена]:[Смена]],0)),1,0),0),0)","v":0},{"$f":"IF(FP$7<>\"\",IFERROR(IF(INDEX(tblShift[[Рабочий]:[Рабочий]],MATCH(W30,tblShift[[Смена]:[Смена]],0)),1,0),0),0)","v":0},{"$f":"IF(FQ$7<>\"\",IFERROR(IF(INDEX(tblShift[[Рабочий]:[Рабочий]],MATCH(X30,tblShift[[Смена]:[Смена]],0)),1,0),0),0)","v":0},{"$f":"IF(FR$7<>\"\",IFERROR(IF(INDEX(tblShift[[Рабочий]:[Рабочий]],MATCH(Y30,tblShift[[Смена]:[Смена]],0)),1,0),0),0)","v":0},{"$f":"IF(FS$7<>\"\",IFERROR(IF(INDEX(tblShift[[Рабочий]:[Рабочий]],MATCH(Z30,tblShift[[Смена]:[Смена]],0)),1,0),0),0)","v":0},{"$f":"IF(FT$7<>\"\",IFERROR(IF(INDEX(tblShift[[Рабочий]:[Рабочий]],MATCH(AA30,tblShift[[Смена]:[Смена]],0)),1,0),0),0)","v":0},{"$f":"IF(FU$7<>\"\",IFERROR(IF(INDEX(tblShift[[Рабочий]:[Рабочий]],MATCH(AB30,tblShift[[Смена]:[Смена]],0)),1,0),0),0)","v":0},{"$f":"IF(FV$7<>\"\",IFERROR(IF(INDEX(tblShift[[Рабочий]:[Рабочий]],MATCH(AC30,tblShift[[Смена]:[Смена]],0)),1,0),0),0)","v":0},{"$f":"IF(FW$7<>\"\",IFERROR(IF(INDEX(tblShift[[Рабочий]:[Рабочий]],MATCH(AD30,tblShift[[Смена]:[Смена]],0)),1,0),0),0)","v":0},{"$f":"IF(FX$7<>\"\",IFERROR(IF(INDEX(tblShift[[Рабочий]:[Рабочий]],MATCH(AE30,tblShift[[Смена]:[Смена]],0)),1,0),0),0)","v":0},{"$f":"IF(FY$7<>\"\",IFERROR(IF(INDEX(tblShift[[Рабочий]:[Рабочий]],MATCH(AF30,tblShift[[Смена]:[Смена]],0)),1,0),0),0)","v":0},{"$f":"IF(FZ$7<>\"\",IFERROR(IF(INDEX(tblShift[[Рабочий]:[Рабочий]],MATCH(AG30,tblShift[[Смена]:[Смена]],0)),1,0),0),0)","v":0},{"$f":"IF(GA$7<>\"\",IFERROR(IF(INDEX(tblShift[[Рабочий]:[Рабочий]],MATCH(AH30,tblShift[[Смена]:[Смена]],0)),1,0),0),0)","v":0},{"$f":"IF(GB$7<>\"\",IFERROR(IF(INDEX(tblShift[[Рабочий]:[Рабочий]],MATCH(AI30,tblShift[[Смена]:[Смена]],0)),1,0),0),0)","v":0},null,null,null,null,null,null,null,null,null,null,null,null,null,null,null,0]
[null,null,"","",null,null,null,null,null,null,null,null,null,null,null,null,null,null,null,null,null,null,null,null,null,null,null,null,null,null,null,null,null,null,null,null,{"$f":"IF(AK30<>\"\",IFERROR(VLOOKUP(E31,tblShift[],3,0),0),0)","v":0},{"$f":"IF(AL30<>\"\",IFERROR(VLOOKUP(F31,tblShift[],3,0),0),0)","v":0},{"$f":"IF(AM30<>\"\",IFERROR(VLOOKUP(G31,tblShift[],3,0),0),0)","v":0},{"$f":"IF(AN$7<>\"\",IFERROR(VLOOKUP(H31,tblShift[],3,0),0),0)","v":0},{"$f":"IF(AO$7<>\"\",IFERROR(VLOOKUP(I31,tblShift[],3,0),0),0)","v":0},{"$f":"IF(AP$7<>\"\",IFERROR(VLOOKUP(J31,tblShift[],3,0),0),0)","v":0},{"$f":"IF(AQ$7<>\"\",IFERROR(VLOOKUP(K31,tblShift[],3,0),0),0)","v":0},{"$f":"IF(AR$7<>\"\",IFERROR(VLOOKUP(L31,tblShift[],3,0),0),0)","v":0},{"$f":"IF(AS$7<>\"\",IFERROR(VLOOKUP(M31,tblShift[],3,0),0),0)","v":0},{"$f":"IF(AT$7<>\"\",IFERROR(VLOOKUP(N31,tblShift[],3,0),0),0)","v":0},{"$f":"IF(AU$7<>\"\",IFERROR(VLOOKUP(O31,tblShift[],3,0),0),0)","v":0},{"$f":"IF(AV$7<>\"\",IFERROR(VLOOKUP(P31,tblShift[],3,0),0),0)","v":0},{"$f":"IF(AW$7<>\"\",IFERROR(VLOOKUP(Q31,tblShift[],3,0),0),0)","v":0},{"$f":"IF(AX$7<>\"\",IFERROR(VLOOKUP(R31,tblShift[],3,0),0),0)","v":0},{"$f":"IF(AY$7<>\"\",IFERROR(VLOOKUP(S31,tblShift[],3,0),0),0)","v":0},{"$f":"IF(AZ$7<>\"\",IFERROR(VLOOKUP(T31,tblShift[],3,0),0),0)","v":0},{"$f":"IF(BA$7<>\"\",IFERROR(VLOOKUP(U31,tblShift[],3,0),0),0)","v":0},{"$f":"IF(BB$7<>\"\",IFERROR(VLOOKUP(V31,tblShift[],3,0),0),0)","v":0},{"$f":"IF(BC$7<>\"\",IFERROR(VLOOKUP(W31,tblShift[],3,0),0),0)","v":0},{"$f":"IF(BD$7<>\"\",IFERROR(VLOOKUP(X31,tblShift[],3,0),0),0)","v":0},{"$f":"IF(BE$7<>\"\",IFERROR(VLOOKUP(Y31,tblShift[],3,0),0),0)","v":0},{"$f":"IF(BF$7<>\"\",IFERROR(VLOOKUP(Z31,tblShift[],3,0),0),0)","v":0},{"$f":"IF(BG$7<>\"\",IFERROR(VLOOKUP(AA31,tblShift[],3,0),0),0)","v":0},{"$f":"IF(BH$7<>\"\",IFERROR(VLOOKUP(AB31,tblShift[],3,0),0),0)","v":0},{"$f":"IF(BI$7<>\"\",IFERROR(VLOOKUP(AC31,tblShift[],3,0),0),0)","v":0},{"$f":"IF(BJ$7<>\"\",IFERROR(VLOOKUP(AD31,tblShift[],3,0),0),0)","v":0},{"$f":"IF(BK$7<>\"\",IFERROR(VLOOKUP(AE31,tblShift[],3,0),0),0)","v":0},{"$f":"IF(BL$7<>\"\",IFERROR(VLOOKUP(AF31,tblShift[],3,0),0),0)","v":0},{"$f":"IF(BM$7<>\"\",IFERROR(VLOOKUP(AG31,tblShift[],3,0),0),0)","v":0},{"$f":"IF(BN$7<>\"\",IFERROR(VLOOKUP(AH31,tblShift[],3,0),0),0)","v":0},{"$f":"IF(BO$7<>\"\",IFERROR(VLOOKUP(AI31,tblShift[],3,0),0),0)","v":0},null,0,0,0,0,0,0,0,0,0,0,0,0,0,0,0,0,0,0,0,0,0,0,0,0,0,0,0,0,0,null,0,0,0,0,0,0,0,0,0,0,0,0,0,0,0,0,0,0,0,0,0,0,0,0,0,0,0,0,0,null,{"$f":"IFERROR(INDEX(tblShift[0],MATCH(INDEX($E31:$AI31,$D$1),tblShift[[Смена]:[Смена]],0)),0)","v":0},{"$f":"IFERROR(INDEX(tblShift[1],MATCH(INDEX($E31:$AI31,$D$1),tblShift[[Смена]:[Смена]],0)),0)","v":0},{"$f":"IFERROR(INDEX(tblShift[2],MATCH(INDEX($E31:$AI31,$D$1),tblShift[[Смена]:[Смена]],0)),0)","v":0},{"$f":"IFERROR(INDEX(tblShift[3],MATCH(INDEX($E31:$AI31,$D$1),tblShift[[Смена]:[Смена]],0)),0)","v":0},{"$f":"IFERROR(INDEX(tblShift[4],MATCH(INDEX($E31:$AI31,$D$1),tblShift[[Смена]:[Смена]],0)),0)","v":0},{"$f":"IFERROR(INDEX(tblShift[5],MATCH(INDEX($E31:$AI31,$D$1),tblShift[[Смена]:[Смена]],0)),0)","v":0},{"$f":"IFERROR(INDEX(tblShift[6],MATCH(INDEX($E31:$AI31,$D$1),tblShift[[Смена]:[Смена]],0)),0)","v":0},{"$f":"IFERROR(INDEX(tblShift[7],MATCH(INDEX($E31:$AI31,$D$1),tblShift[[Смена]:[Смена]],0)),0)","v":0},{"$f":"IFERROR(INDEX(tblShift[8],MATCH(INDEX($E31:$AI31,$D$1),tblShift[[Смена]:[Смена]],0)),0)","v":0},{"$f":"IFERROR(INDEX(tblShift[9],MATCH(INDEX($E31:$AI31,$D$1),tblShift[[Смена]:[Смена]],0)),0)","v":0},{"$f":"IFERROR(INDEX(tblShift[10],MATCH(INDEX($E31:$AI31,$D$1),tblShift[[Смена]:[Смена]],0)),0)","v":0},{"$f":"IFERROR(INDEX(tblShift[11],MATCH(INDEX($E31:$AI31,$D$1),tblShift[[Смена]:[Смена]],0)),0)","v":0},{"$f":"IFERROR(INDEX(tblShift[12],MATCH(INDEX($E31:$AI31,$D$1),tblShift[[Смена]:[Смена]],0)),0)","v":0},{"$f":"IFERROR(INDEX(tblShift[13],MATCH(INDEX($E31:$AI31,$D$1),tblShift[[Смена]:[Смена]],0)),0)","v":0},{"$f":"IFERROR(INDEX(tblShift[14],MATCH(INDEX($E31:$AI31,$D$1),tblShift[[Смена]:[Смена]],0)),0)","v":0},{"$f":"IFERROR(INDEX(tblShift[15],MATCH(INDEX($E31:$AI31,$D$1),tblShift[[Смена]:[Смена]],0)),0)","v":0},{"$f":"IFERROR(INDEX(tblShift[16],MATCH(INDEX($E31:$AI31,$D$1),tblShift[[Смена]:[Смена]],0)),0)","v":0},{"$f":"IFERROR(INDEX(tblShift[17],MATCH(INDEX($E31:$AI31,$D$1),tblShift[[Смена]:[Смена]],0)),0)","v":0},{"$f":"IFERROR(INDEX(tblShift[18],MATCH(INDEX($E31:$AI31,$D$1),tblShift[[Смена]:[Смена]],0)),0)","v":0},{"$f":"IFERROR(INDEX(tblShift[19],MATCH(INDEX($E31:$AI31,$D$1),tblShift[[Смена]:[Смена]],0)),0)","v":0},{"$f":"IFERROR(INDEX(tblShift[20],MATCH(INDEX($E31:$AI31,$D$1),tblShift[[Смена]:[Смена]],0)),0)","v":0},{"$f":"IFERROR(INDEX(tblShift[21],MATCH(INDEX($E31:$AI31,$D$1),tblShift[[Смена]:[Смена]],0)),0)","v":0},{"$f":"IFERROR(INDEX(tblShift[22],MATCH(INDEX($E31:$AI31,$D$1),tblShift[[Смена]:[Смена]],0)),0)","v":0},{"$f":"IFERROR(INDEX(tblShift[23],MATCH(INDEX($E31:$AI31,$D$1),tblShift[[Смена]:[Смена]],0)),0)","v":0},null,{"$f":"IF(EX$7<>\"\",IFERROR(IF(INDEX(tblShift[[Рабочий]:[Рабочий]],MATCH(E31,tblShift[[Смена]:[Смена]],0)),1,0),0),0)","v":0},{"$f":"IF(EY$7<>\"\",IFERROR(IF(INDEX(tblShift[[Рабочий]:[Рабочий]],MATCH(F31,tblShift[[Смена]:[Смена]],0)),1,0),0),0)","v":0},{"$f":"IF(EZ$7<>\"\",IFERROR(IF(INDEX(tblShift[[Рабочий]:[Рабочий]],MATCH(G31,tblShift[[Смена]:[Смена]],0)),1,0),0),0)","v":0},{"$f":"IF(FA$7<>\"\",IFERROR(IF(INDEX(tblShift[[Рабочий]:[Рабочий]],MATCH(H31,tblShift[[Смена]:[Смена]],0)),1,0),0),0)","v":0},{"$f":"IF(FB$7<>\"\",IFERROR(IF(INDEX(tblShift[[Рабочий]:[Рабочий]],MATCH(I31,tblShift[[Смена]:[Смена]],0)),1,0),0),0)","v":0},{"$f":"IF(FC$7<>\"\",IFERROR(IF(INDEX(tblShift[[Рабочий]:[Рабочий]],MATCH(J31,tblShift[[Смена]:[Смена]],0)),1,0),0),0)","v":0},{"$f":"IF(FD$7<>\"\",IFERROR(IF(INDEX(tblShift[[Рабочий]:[Рабочий]],MATCH(K31,tblShift[[Смена]:[Смена]],0)),1,0),0),0)","v":0},{"$f":"IF(FE$7<>\"\",IFERROR(IF(INDEX(tblShift[[Рабочий]:[Рабочий]],MATCH(L31,tblShift[[Смена]:[Смена]],0)),1,0),0),0)","v":0},{"$f":"IF(FF$7<>\"\",IFERROR(IF(INDEX(tblShift[[Рабочий]:[Рабочий]],MATCH(M31,tblShift[[Смена]:[Смена]],0)),1,0),0),0)","v":0},{"$f":"IF(FG$7<>\"\",IFERROR(IF(INDEX(tblShift[[Рабочий]:[Рабочий]],MATCH(N31,tblShift[[Смена]:[Смена]],0)),1,0),0),0)","v":0},{"$f":"IF(FH$7<>\"\",IFERROR(IF(INDEX(tblShift[[Рабочий]:[Рабочий]],MATCH(O31,tblShift[[Смена]:[Смена]],0)),1,0),0),0)","v":0},{"$f":"IF(FI$7<>\"\",IFERROR(IF(INDEX(tblShift[[Рабочий]:[Рабочий]],MATCH(P31,tblShift[[Смена]:[Смена]],0)),1,0),0),0)","v":0},{"$f":"IF(FJ$7<>\"\",IFERROR(IF(INDEX(tblShift[[Рабочий]:[Рабочий]],MATCH(Q31,tblShift[[Смена]:[Смена]],0)),1,0),0),0)","v":0},{"$f":"IF(FK$7<>\"\",IFERROR(IF(INDEX(tblShift[[Рабочий]:[Рабочий]],MATCH(R31,tblShift[[Смена]:[Смена]],0)),1,0),0),0)","v":0},{"$f":"IF(FL$7<>\"\",IFERROR(IF(INDEX(tblShift[[Рабочий]:[Рабочий]],MATCH(S31,tblShift[[Смена]:[Смена]],0)),1,0),0),0)","v":0},{"$f":"IF(FM$7<>\"\",IFERROR(IF(INDEX(tblShift[[Рабочий]:[Рабочий]],MATCH(T31,tblShift[[Смена]:[Смена]],0)),1,0),0),0)","v":0},{"$f":"IF(FN$7<>\"\",IFERROR(IF(INDEX(tblShift[[Рабочий]:[Рабочий]],MATCH(U31,tblShift[[Смена]:[Смена]],0)),1,0),0),0)","v":0},{"$f":"IF(FO$7<>\"\",IFERROR(IF(INDEX(tblShift[[Рабочий]:[Рабочий]],MATCH(V31,tblShift[[Смена]:[Смена]],0)),1,0),0),0)","v":0},{"$f":"IF(FP$7<>\"\",IFERROR(IF(INDEX(tblShift[[Рабочий]:[Рабочий]],MATCH(W31,tblShift[[Смена]:[Смена]],0)),1,0),0),0)","v":0},{"$f":"IF(FQ$7<>\"\",IFERROR(IF(INDEX(tblShift[[Рабочий]:[Рабочий]],MATCH(X31,tblShift[[Смена]:[Смена]],0)),1,0),0),0)","v":0},{"$f":"IF(FR$7<>\"\",IFERROR(IF(INDEX(tblShift[[Рабочий]:[Рабочий]],MATCH(Y31,tblShift[[Смена]:[Смена]],0)),1,0),0),0)","v":0},{"$f":"IF(FS$7<>\"\",IFERROR(IF(INDEX(tblShift[[Рабочий]:[Рабочий]],MATCH(Z31,tblShift[[Смена]:[Смена]],0)),1,0),0),0)","v":0},{"$f":"IF(FT$7<>\"\",IFERROR(IF(INDEX(tblShift[[Рабочий]:[Рабочий]],MATCH(AA31,tblShift[[Смена]:[Смена]],0)),1,0),0),0)","v":0},{"$f":"IF(FU$7<>\"\",IFERROR(IF(INDEX(tblShift[[Рабочий]:[Рабочий]],MATCH(AB31,tblShift[[Смена]:[Смена]],0)),1,0),0),0)","v":0},{"$f":"IF(FV$7<>\"\",IFERROR(IF(INDEX(tblShift[[Рабочий]:[Рабочий]],MATCH(AC31,tblShift[[Смена]:[Смена]],0)),1,0),0),0)","v":0},{"$f":"IF(FW$7<>\"\",IFERROR(IF(INDEX(tblShift[[Рабочий]:[Рабочий]],MATCH(AD31,tblShift[[Смена]:[Смена]],0)),1,0),0),0)","v":0},{"$f":"IF(FX$7<>\"\",IFERROR(IF(INDEX(tblShift[[Рабочий]:[Рабочий]],MATCH(AE31,tblShift[[Смена]:[Смена]],0)),1,0),0),0)","v":0},{"$f":"IF(FY$7<>\"\",IFERROR(IF(INDEX(tblShift[[Рабочий]:[Рабочий]],MATCH(AF31,tblShift[[Смена]:[Смена]],0)),1,0),0),0)","v":0},{"$f":"IF(FZ$7<>\"\",IFERROR(IF(INDEX(tblShift[[Рабочий]:[Рабочий]],MATCH(AG31,tblShift[[Смена]:[Смена]],0)),1,0),0),0)","v":0},{"$f":"IF(GA$7<>\"\",IFERROR(IF(INDEX(tblShift[[Рабочий]:[Рабочий]],MATCH(AH31,tblShift[[Смена]:[Смена]],0)),1,0),0),0)","v":0},{"$f":"IF(GB$7<>\"\",IFERROR(IF(INDEX(tblShift[[Рабочий]:[Рабочий]],MATCH(AI31,tblShift[[Смена]:[Смена]],0)),1,0),0),0)","v":0},null,null,null,null,null,null,null,null,null,null,null,null,null,null,null,0]
[null,null,"","",null,null,null,null,null,null,null,null,null,null,null,null,null,null,null,null,null,null,null,null,null,null,null,null,null,null,null,null,null,null,null,null,{"$f":"IF(AK31<>\"\",IFERROR(VLOOKUP(E32,tblShift[],3,0),0),0)","v":0},{"$f":"IF(AL31<>\"\",IFERROR(VLOOKUP(F32,tblShift[],3,0),0),0)","v":0},{"$f":"IF(AM31<>\"\",IFERROR(VLOOKUP(G32,tblShift[],3,0),0),0)","v":0},{"$f":"IF(AN$7<>\"\",IFERROR(VLOOKUP(H32,tblShift[],3,0),0),0)","v":0},{"$f":"IF(AO$7<>\"\",IFERROR(VLOOKUP(I32,tblShift[],3,0),0),0)","v":0},{"$f":"IF(AP$7<>\"\",IFERROR(VLOOKUP(J32,tblShift[],3,0),0),0)","v":0},{"$f":"IF(AQ$7<>\"\",IFERROR(VLOOKUP(K32,tblShift[],3,0),0),0)","v":0},{"$f":"IF(AR$7<>\"\",IFERROR(VLOOKUP(L32,tblShift[],3,0),0),0)","v":0},{"$f":"IF(AS$7<>\"\",IFERROR(VLOOKUP(M32,tblShift[],3,0),0),0)","v":0},{"$f":"IF(AT$7<>\"\",IFERROR(VLOOKUP(N32,tblShift[],3,0),0),0)","v":0},{"$f":"IF(AU$7<>\"\",IFERROR(VLOOKUP(O32,tblShift[],3,0),0),0)","v":0},{"$f":"IF(AV$7<>\"\",IFERROR(VLOOKUP(P32,tblShift[],3,0),0),0)","v":0},{"$f":"IF(AW$7<>\"\",IFERROR(VLOOKUP(Q32,tblShift[],3,0),0),0)","v":0},{"$f":"IF(AX$7<>\"\",IFERROR(VLOOKUP(R32,tblShift[],3,0),0),0)","v":0},{"$f":"IF(AY$7<>\"\",IFERROR(VLOOKUP(S32,tblShift[],3,0),0),0)","v":0},{"$f":"IF(AZ$7<>\"\",IFERROR(VLOOKUP(T32,tblShift[],3,0),0),0)","v":0},{"$f":"IF(BA$7<>\"\",IFERROR(VLOOKUP(U32,tblShift[],3,0),0),0)","v":0},{"$f":"IF(BB$7<>\"\",IFERROR(VLOOKUP(V32,tblShift[],3,0),0),0)","v":0},{"$f":"IF(BC$7<>\"\",IFERROR(VLOOKUP(W32,tblShift[],3,0),0),0)","v":0},{"$f":"IF(BD$7<>\"\",IFERROR(VLOOKUP(X32,tblShift[],3,0),0),0)","v":0},{"$f":"IF(BE$7<>\"\",IFERROR(VLOOKUP(Y32,tblShift[],3,0),0),0)","v":0},{"$f":"IF(BF$7<>\"\",IFERROR(VLOOKUP(Z32,tblShift[],3,0),0),0)","v":0},{"$f":"IF(BG$7<>\"\",IFERROR(VLOOKUP(AA32,tblShift[],3,0),0),0)","v":0},{"$f":"IF(BH$7<>\"\",IFERROR(VLOOKUP(AB32,tblShift[],3,0),0),0)","v":0},{"$f":"IF(BI$7<>\"\",IFERROR(VLOOKUP(AC32,tblShift[],3,0),0),0)","v":0},{"$f":"IF(BJ$7<>\"\",IFERROR(VLOOKUP(AD32,tblShift[],3,0),0),0)","v":0},{"$f":"IF(BK$7<>\"\",IFERROR(VLOOKUP(AE32,tblShift[],3,0),0),0)","v":0},{"$f":"IF(BL$7<>\"\",IFERROR(VLOOKUP(AF32,tblShift[],3,0),0),0)","v":0},{"$f":"IF(BM$7<>\"\",IFERROR(VLOOKUP(AG32,tblShift[],3,0),0),0)","v":0},{"$f":"IF(BN$7<>\"\",IFERROR(VLOOKUP(AH32,tblShift[],3,0),0),0)","v":0},{"$f":"IF(BO$7<>\"\",IFERROR(VLOOKUP(AI32,tblShift[],3,0),0),0)","v":0},null,0,0,0,0,0,0,0,0,0,0,0,0,0,0,0,0,0,0,0,0,0,0,0,0,0,0,0,0,0,null,0,0,0,0,0,0,0,0,0,0,0,0,0,0,0,0,0,0,0,0,0,0,0,0,0,0,0,0,0,null,{"$f":"IFERROR(INDEX(tblShift[0],MATCH(INDEX($E32:$AI32,$D$1),tblShift[[Смена]:[Смена]],0)),0)","v":0},{"$f":"IFERROR(INDEX(tblShift[1],MATCH(INDEX($E32:$AI32,$D$1),tblShift[[Смена]:[Смена]],0)),0)","v":0},{"$f":"IFERROR(INDEX(tblShift[2],MATCH(INDEX($E32:$AI32,$D$1),tblShift[[Смена]:[Смена]],0)),0)","v":0},{"$f":"IFERROR(INDEX(tblShift[3],MATCH(INDEX($E32:$AI32,$D$1),tblShift[[Смена]:[Смена]],0)),0)","v":0},{"$f":"IFERROR(INDEX(tblShift[4],MATCH(INDEX($E32:$AI32,$D$1),tblShift[[Смена]:[Смена]],0)),0)","v":0},{"$f":"IFERROR(INDEX(tblShift[5],MATCH(INDEX($E32:$AI32,$D$1),tblShift[[Смена]:[Смена]],0)),0)","v":0},{"$f":"IFERROR(INDEX(tblShift[6],MATCH(INDEX($E32:$AI32,$D$1),tblShift[[Смена]:[Смена]],0)),0)","v":0},{"$f":"IFERROR(INDEX(tblShift[7],MATCH(INDEX($E32:$AI32,$D$1),tblShift[[Смена]:[Смена]],0)),0)","v":0},{"$f":"IFERROR(INDEX(tblShift[8],MATCH(INDEX($E32:$AI32,$D$1),tblShift[[Смена]:[Смена]],0)),0)","v":0},{"$f":"IFERROR(INDEX(tblShift[9],MATCH(INDEX($E32:$AI32,$D$1),tblShift[[Смена]:[Смена]],0)),0)","v":0},{"$f":"IFERROR(INDEX(tblShift[10],MATCH(INDEX($E32:$AI32,$D$1),tblShift[[Смена]:[Смена]],0)),0)","v":0},{"$f":"IFERROR(INDEX(tblShift[11],MATCH(INDEX($E32:$AI32,$D$1),tblShift[[Смена]:[Смена]],0)),0)","v":0},{"$f":"IFERROR(INDEX(tblShift[12],MATCH(INDEX($E32:$AI32,$D$1),tblShift[[Смена]:[Смена]],0)),0)","v":0},{"$f":"IFERROR(INDEX(tblShift[13],MATCH(INDEX($E32:$AI32,$D$1),tblShift[[Смена]:[Смена]],0)),0)","v":0},{"$f":"IFERROR(INDEX(tblShift[14],MATCH(INDEX($E32:$AI32,$D$1),tblShift[[Смена]:[Смена]],0)),0)","v":0},{"$f":"IFERROR(INDEX(tblShift[15],MATCH(INDEX($E32:$AI32,$D$1),tblShift[[Смена]:[Смена]],0)),0)","v":0},{"$f":"IFERROR(INDEX(tblShift[16],MATCH(INDEX($E32:$AI32,$D$1),tblShift[[Смена]:[Смена]],0)),0)","v":0},{"$f":"IFERROR(INDEX(tblShift[17],MATCH(INDEX($E32:$AI32,$D$1),tblShift[[Смена]:[Смена]],0)),0)","v":0},{"$f":"IFERROR(INDEX(tblShift[18],MATCH(INDEX($E32:$AI32,$D$1),tblShift[[Смена]:[Смена]],0)),0)","v":0},{"$f":"IFERROR(INDEX(tblShift[19],MATCH(INDEX($E32:$AI32,$D$1),tblShift[[Смена]:[Смена]],0)),0)","v":0},{"$f":"IFERROR(INDEX(tblShift[20],MATCH(INDEX($E32:$AI32,$D$1),tblShift[[Смена]:[Смена]],0)),0)","v":0},{"$f":"IFERROR(INDEX(tblShift[21],MATCH(INDEX($E32:$AI32,$D$1),tblShift[[Смена]:[Смена]],0)),0)","v":0},{"$f":"IFERROR(INDEX(tblShift[22],MATCH(INDEX($E32:$AI32,$D$1),tblShift[[Смена]:[Смена]],0)),0)","v":0},{"$f":"IFERROR(INDEX(tblShift[23],MATCH(INDEX($E32:$AI32,$D$1),tblShift[[Смена]:[Смена]],0)),0)","v":0},null,{"$f":"IF(EX$7<>\"\",IFERROR(IF(INDEX(tblShift[[Рабочий]:[Рабочий]],MATCH(E32,tblShift[[Смена]:[Смена]],0)),1,0),0),0)","v":0},{"$f":"IF(EY$7<>\"\",IFERROR(IF(INDEX(tblShift[[Рабочий]:[Рабочий]],MATCH(F32,tblShift[[Смена]:[Смена]],0)),1,0),0),0)","v":0},{"$f":"IF(EZ$7<>\"\",IFERROR(IF(INDEX(tblShift[[Рабочий]:[Рабочий]],MATCH(G32,tblShift[[Смена]:[Смена]],0)),1,0),0),0)","v":0},{"$f":"IF(FA$7<>\"\",IFERROR(IF(INDEX(tblShift[[Рабочий]:[Рабочий]],MATCH(H32,tblShift[[Смена]:[Смена]],0)),1,0),0),0)","v":0},{"$f":"IF(FB$7<>\"\",IFERROR(IF(INDEX(tblShift[[Рабочий]:[Рабочий]],MATCH(I32,tblShift[[Смена]:[Смена]],0)),1,0),0),0)","v":0},{"$f":"IF(FC$7<>\"\",IFERROR(IF(INDEX(tblShift[[Рабочий]:[Рабочий]],MATCH(J32,tblShift[[Смена]:[Смена]],0)),1,0),0),0)","v":0},{"$f":"IF(FD$7<>\"\",IFERROR(IF(INDEX(tblShift[[Рабочий]:[Рабочий]],MATCH(K32,tblShift[[Смена]:[Смена]],0)),1,0),0),0)","v":0},{"$f":"IF(FE$7<>\"\",IFERROR(IF(INDEX(tblShift[[Рабочий]:[Рабочий]],MATCH(L32,tblShift[[Смена]:[Смена]],0)),1,0),0),0)","v":0},{"$f":"IF(FF$7<>\"\",IFERROR(IF(INDEX(tblShift[[Рабочий]:[Рабочий]],MATCH(M32,tblShift[[Смена]:[Смена]],0)),1,0),0),0)","v":0},{"$f":"IF(FG$7<>\"\",IFERROR(IF(INDEX(tblShift[[Рабочий]:[Рабочий]],MATCH(N32,tblShift[[Смена]:[Смена]],0)),1,0),0),0)","v":0},{"$f":"IF(FH$7<>\"\",IFERROR(IF(INDEX(tblShift[[Рабочий]:[Рабочий]],MATCH(O32,tblShift[[Смена]:[Смена]],0)),1,0),0),0)","v":0},{"$f":"IF(FI$7<>\"\",IFERROR(IF(INDEX(tblShift[[Рабочий]:[Рабочий]],MATCH(P32,tblShift[[Смена]:[Смена]],0)),1,0),0),0)","v":0},{"$f":"IF(FJ$7<>\"\",IFERROR(IF(INDEX(tblShift[[Рабочий]:[Рабочий]],MATCH(Q32,tblShift[[Смена]:[Смена]],0)),1,0),0),0)","v":0},{"$f":"IF(FK$7<>\"\",IFERROR(IF(INDEX(tblShift[[Рабочий]:[Рабочий]],MATCH(R32,tblShift[[Смена]:[Смена]],0)),1,0),0),0)","v":0},{"$f":"IF(FL$7<>\"\",IFERROR(IF(INDEX(tblShift[[Рабочий]:[Рабочий]],MATCH(S32,tblShift[[Смена]:[Смена]],0)),1,0),0),0)","v":0},{"$f":"IF(FM$7<>\"\",IFERROR(IF(INDEX(tblShift[[Рабочий]:[Рабочий]],MATCH(T32,tblShift[[Смена]:[Смена]],0)),1,0),0),0)","v":0},{"$f":"IF(FN$7<>\"\",IFERROR(IF(INDEX(tblShift[[Рабочий]:[Рабочий]],MATCH(U32,tblShift[[Смена]:[Смена]],0)),1,0),0),0)","v":0},{"$f":"IF(FO$7<>\"\",IFERROR(IF(INDEX(tblShift[[Рабочий]:[Рабочий]],MATCH(V32,tblShift[[Смена]:[Смена]],0)),1,0),0),0)","v":0},{"$f":"IF(FP$7<>\"\",IFERROR(IF(INDEX(tblShift[[Рабочий]:[Рабочий]],MATCH(W32,tblShift[[Смена]:[Смена]],0)),1,0),0),0)","v":0},{"$f":"IF(FQ$7<>\"\",IFERROR(IF(INDEX(tblShift[[Рабочий]:[Рабочий]],MATCH(X32,tblShift[[Смена]:[Смена]],0)),1,0),0),0)","v":0},{"$f":"IF(FR$7<>\"\",IFERROR(IF(INDEX(tblShift[[Рабочий]:[Рабочий]],MATCH(Y32,tblShift[[Смена]:[Смена]],0)),1,0),0),0)","v":0},{"$f":"IF(FS$7<>\"\",IFERROR(IF(INDEX(tblShift[[Рабочий]:[Рабочий]],MATCH(Z32,tblShift[[Смена]:[Смена]],0)),1,0),0),0)","v":0},{"$f":"IF(FT$7<>\"\",IFERROR(IF(INDEX(tblShift[[Рабочий]:[Рабочий]],MATCH(AA32,tblShift[[Смена]:[Смена]],0)),1,0),0),0)","v":0},{"$f":"IF(FU$7<>\"\",IFERROR(IF(INDEX(tblShift[[Рабочий]:[Рабочий]],MATCH(AB32,tblShift[[Смена]:[Смена]],0)),1,0),0),0)","v":0},{"$f":"IF(FV$7<>\"\",IFERROR(IF(INDEX(tblShift[[Рабочий]:[Рабочий]],MATCH(AC32,tblShift[[Смена]:[Смена]],0)),1,0),0),0)","v":0},{"$f":"IF(FW$7<>\"\",IFERROR(IF(INDEX(tblShift[[Рабочий]:[Рабочий]],MATCH(AD32,tblShift[[Смена]:[Смена]],0)),1,0),0),0)","v":0},{"$f":"IF(FX$7<>\"\",IFERROR(IF(INDEX(tblShift[[Рабочий]:[Рабочий]],MATCH(AE32,tblShift[[Смена]:[Смена]],0)),1,0),0),0)","v":0},{"$f":"IF(FY$7<>\"\",IFERROR(IF(INDEX(tblShift[[Рабочий]:[Рабочий]],MATCH(AF32,tblShift[[Смена]:[Смена]],0)),1,0),0),0)","v":0},{"$f":"IF(FZ$7<>\"\",IFERROR(IF(INDEX(tblShift[[Рабочий]:[Рабочий]],MATCH(AG32,tblShift[[Смена]:[Смена]],0)),1,0),0),0)","v":0},{"$f":"IF(GA$7<>\"\",IFERROR(IF(INDEX(tblShift[[Рабочий]:[Рабочий]],MATCH(AH32,tblShift[[Смена]:[Смена]],0)),1,0),0),0)","v":0},{"$f":"IF(GB$7<>\"\",IFERROR(IF(INDEX(tblShift[[Рабочий]:[Рабочий]],MATCH(AI32,tblShift[[Смена]:[Смена]],0)),1,0),0),0)","v":0},null,null,null,null,null,null,null,null,null,null,null,null,null,null,null,0]
[null,null,"","",null,null,null,null,null,null,null,null,null,null,null,null,null,null,null,null,null,null,null,null,null,null,null,null,null,null,null,null,null,null,null,null,{"$f":"IF(AK32<>\"\",IFERROR(VLOOKUP(E33,tblShift[],3,0),0),0)","v":0},{"$f":"IF(AL32<>\"\",IFERROR(VLOOKUP(F33,tblShift[],3,0),0),0)","v":0},{"$f":"IF(AM32<>\"\",IFERROR(VLOOKUP(G33,tblShift[],3,0),0),0)","v":0},{"$f":"IF(AN$7<>\"\",IFERROR(VLOOKUP(H33,tblShift[],3,0),0),0)","v":0},{"$f":"IF(AO$7<>\"\",IFERROR(VLOOKUP(I33,tblShift[],3,0),0),0)","v":0},{"$f":"IF(AP$7<>\"\",IFERROR(VLOOKUP(J33,tblShift[],3,0),0),0)","v":0},{"$f":"IF(AQ$7<>\"\",IFERROR(VLOOKUP(K33,tblShift[],3,0),0),0)","v":0},{"$f":"IF(AR$7<>\"\",IFERROR(VLOOKUP(L33,tblShift[],3,0),0),0)","v":0},{"$f":"IF(AS$7<>\"\",IFERROR(VLOOKUP(M33,tblShift[],3,0),0),0)","v":0},{"$f":"IF(AT$7<>\"\",IFERROR(VLOOKUP(N33,tblShift[],3,0),0),0)","v":0},{"$f":"IF(AU$7<>\"\",IFERROR(VLOOKUP(O33,tblShift[],3,0),0),0)","v":0},{"$f":"IF(AV$7<>\"\",IFERROR(VLOOKUP(P33,tblShift[],3,0),0),0)","v":0},{"$f":"IF(AW$7<>\"\",IFERROR(VLOOKUP(Q33,tblShift[],3,0),0),0)","v":0},{"$f":"IF(AX$7<>\"\",IFERROR(VLOOKUP(R33,tblShift[],3,0),0),0)","v":0},{"$f":"IF(AY$7<>\"\",IFERROR(VLOOKUP(S33,tblShift[],3,0),0),0)","v":0},{"$f":"IF(AZ$7<>\"\",IFERROR(VLOOKUP(T33,tblShift[],3,0),0),0)","v":0},{"$f":"IF(BA$7<>\"\",IFERROR(VLOOKUP(U33,tblShift[],3,0),0),0)","v":0},{"$f":"IF(BB$7<>\"\",IFERROR(VLOOKUP(V33,tblShift[],3,0),0),0)","v":0},{"$f":"IF(BC$7<>\"\",IFERROR(VLOOKUP(W33,tblShift[],3,0),0),0)","v":0},{"$f":"IF(BD$7<>\"\",IFERROR(VLOOKUP(X33,tblShift[],3,0),0),0)","v":0},{"$f":"IF(BE$7<>\"\",IFERROR(VLOOKUP(Y33,tblShift[],3,0),0),0)","v":0},{"$f":"IF(BF$7<>\"\",IFERROR(VLOOKUP(Z33,tblShift[],3,0),0),0)","v":0},{"$f":"IF(BG$7<>\"\",IFERROR(VLOOKUP(AA33,tblShift[],3,0),0),0)","v":0},{"$f":"IF(BH$7<>\"\",IFERROR(VLOOKUP(AB33,tblShift[],3,0),0),0)","v":0},{"$f":"IF(BI$7<>\"\",IFERROR(VLOOKUP(AC33,tblShift[],3,0),0),0)","v":0},{"$f":"IF(BJ$7<>\"\",IFERROR(VLOOKUP(AD33,tblShift[],3,0),0),0)","v":0},{"$f":"IF(BK$7<>\"\",IFERROR(VLOOKUP(AE33,tblShift[],3,0),0),0)","v":0},{"$f":"IF(BL$7<>\"\",IFERROR(VLOOKUP(AF33,tblShift[],3,0),0),0)","v":0},{"$f":"IF(BM$7<>\"\",IFERROR(VLOOKUP(AG33,tblShift[],3,0),0),0)","v":0},{"$f":"IF(BN$7<>\"\",IFERROR(VLOOKUP(AH33,tblShift[],3,0),0),0)","v":0},{"$f":"IF(BO$7<>\"\",IFERROR(VLOOKUP(AI33,tblShift[],3,0),0),0)","v":0},null,0,0,0,0,0,0,0,0,0,0,0,0,0,0,0,0,0,0,0,0,0,0,0,0,0,0,0,0,0,null,0,0,0,0,0,0,0,0,0,0,0,0,0,0,0,0,0,0,0,0,0,0,0,0,0,0,0,0,0,null,{"$f":"IFERROR(INDEX(tblShift[0],MATCH(INDEX($E33:$AI33,$D$1),tblShift[[Смена]:[Смена]],0)),0)","v":0},{"$f":"IFERROR(INDEX(tblShift[1],MATCH(INDEX($E33:$AI33,$D$1),tblShift[[Смена]:[Смена]],0)),0)","v":0},{"$f":"IFERROR(INDEX(tblShift[2],MATCH(INDEX($E33:$AI33,$D$1),tblShift[[Смена]:[Смена]],0)),0)","v":0},{"$f":"IFERROR(INDEX(tblShift[3],MATCH(INDEX($E33:$AI33,$D$1),tblShift[[Смена]:[Смена]],0)),0)","v":0},{"$f":"IFERROR(INDEX(tblShift[4],MATCH(INDEX($E33:$AI33,$D$1),tblShift[[Смена]:[Смена]],0)),0)","v":0},{"$f":"IFERROR(INDEX(tblShift[5],MATCH(INDEX($E33:$AI33,$D$1),tblShift[[Смена]:[Смена]],0)),0)","v":0},{"$f":"IFERROR(INDEX(tblShift[6],MATCH(INDEX($E33:$AI33,$D$1),tblShift[[Смена]:[Смена]],0)),0)","v":0},{"$f":"IFERROR(INDEX(tblShift[7],MATCH(INDEX($E33:$AI33,$D$1),tblShift[[Смена]:[Смена]],0)),0)","v":0},{"$f":"IFERROR(INDEX(tblShift[8],MATCH(INDEX($E33:$AI33,$D$1),tblShift[[Смена]:[Смена]],0)),0)","v":0},{"$f":"IFERROR(INDEX(tblShift[9],MATCH(INDEX($E33:$AI33,$D$1),tblShift[[Смена]:[Смена]],0)),0)","v":0},{"$f":"IFERROR(INDEX(tblShift[10],MATCH(INDEX($E33:$AI33,$D$1),tblShift[[Смена]:[Смена]],0)),0)","v":0},{"$f":"IFERROR(INDEX(tblShift[11],MATCH(INDEX($E33:$AI33,$D$1),tblShift[[Смена]:[Смена]],0)),0)","v":0},{"$f":"IFERROR(INDEX(tblShift[12],MATCH(INDEX($E33:$AI33,$D$1),tblShift[[Смена]:[Смена]],0)),0)","v":0},{"$f":"IFERROR(INDEX(tblShift[13],MATCH(INDEX($E33:$AI33,$D$1),tblShift[[Смена]:[Смена]],0)),0)","v":0},{"$f":"IFERROR(INDEX(tblShift[14],MATCH(INDEX($E33:$AI33,$D$1),tblShift[[Смена]:[Смена]],0)),0)","v":0},{"$f":"IFERROR(INDEX(tblShift[15],MATCH(INDEX($E33:$AI33,$D$1),tblShift[[Смена]:[Смена]],0)),0)","v":0},{"$f":"IFERROR(INDEX(tblShift[16],MATCH(INDEX($E33:$AI33,$D$1),tblShift[[Смена]:[Смена]],0)),0)","v":0},{"$f":"IFERROR(INDEX(tblShift[17],MATCH(INDEX($E33:$AI33,$D$1),tblShift[[Смена]:[Смена]],0)),0)","v":0},{"$f":"IFERROR(INDEX(tblShift[18],MATCH(INDEX($E33:$AI33,$D$1),tblShift[[Смена]:[Смена]],0)),0)","v":0},{"$f":"IFERROR(INDEX(tblShift[19],MATCH(INDEX($E33:$AI33,$D$1),tblShift[[Смена]:[Смена]],0)),0)","v":0},{"$f":"IFERROR(INDEX(tblShift[20],MATCH(INDEX($E33:$AI33,$D$1),tblShift[[Смена]:[Смена]],0)),0)","v":0},{"$f":"IFERROR(INDEX(tblShift[21],MATCH(INDEX($E33:$AI33,$D$1),tblShift[[Смена]:[Смена]],0)),0)","v":0},{"$f":"IFERROR(INDEX(tblShift[22],MATCH(INDEX($E33:$AI33,$D$1),tblShift[[Смена]:[Смена]],0)),0)","v":0},{"$f":"IFERROR(INDEX(tblShift[23],MATCH(INDEX($E33:$AI33,$D$1),tblShift[[Смена]:[Смена]],0)),0)","v":0},null,{"$f":"IF(EX$7<>\"\",IFERROR(IF(INDEX(tblShift[[Рабочий]:[Рабочий]],MATCH(E33,tblShift[[Смена]:[Смена]],0)),1,0),0),0)","v":0},{"$f":"IF(EY$7<>\"\",IFERROR(IF(INDEX(tblShift[[Рабочий]:[Рабочий]],MATCH(F33,tblShift[[Смена]:[Смена]],0)),1,0),0),0)","v":0},{"$f":"IF(EZ$7<>\"\",IFERROR(IF(INDEX(tblShift[[Рабочий]:[Рабочий]],MATCH(G33,tblShift[[Смена]:[Смена]],0)),1,0),0),0)","v":0},{"$f":"IF(FA$7<>\"\",IFERROR(IF(INDEX(tblShift[[Рабочий]:[Рабочий]],MATCH(H33,tblShift[[Смена]:[Смена]],0)),1,0),0),0)","v":0},{"$f":"IF(FB$7<>\"\",IFERROR(IF(INDEX(tblShift[[Рабочий]:[Рабочий]],MATCH(I33,tblShift[[Смена]:[Смена]],0)),1,0),0),0)","v":0},{"$f":"IF(FC$7<>\"\",IFERROR(IF(INDEX(tblShift[[Рабочий]:[Рабочий]],MATCH(J33,tblShift[[Смена]:[Смена]],0)),1,0),0),0)","v":0},{"$f":"IF(FD$7<>\"\",IFERROR(IF(INDEX(tblShift[[Рабочий]:[Рабочий]],MATCH(K33,tblShift[[Смена]:[Смена]],0)),1,0),0),0)","v":0},{"$f":"IF(FE$7<>\"\",IFERROR(IF(INDEX(tblShift[[Рабочий]:[Рабочий]],MATCH(L33,tblShift[[Смена]:[Смена]],0)),1,0),0),0)","v":0},{"$f":"IF(FF$7<>\"\",IFERROR(IF(INDEX(tblShift[[Рабочий]:[Рабочий]],MATCH(M33,tblShift[[Смена]:[Смена]],0)),1,0),0),0)","v":0},{"$f":"IF(FG$7<>\"\",IFERROR(IF(INDEX(tblShift[[Рабочий]:[Рабочий]],MATCH(N33,tblShift[[Смена]:[Смена]],0)),1,0),0),0)","v":0},{"$f":"IF(FH$7<>\"\",IFERROR(IF(INDEX(tblShift[[Рабочий]:[Рабочий]],MATCH(O33,tblShift[[Смена]:[Смена]],0)),1,0),0),0)","v":0},{"$f":"IF(FI$7<>\"\",IFERROR(IF(INDEX(tblShift[[Рабочий]:[Рабочий]],MATCH(P33,tblShift[[Смена]:[Смена]],0)),1,0),0),0)","v":0},{"$f":"IF(FJ$7<>\"\",IFERROR(IF(INDEX(tblShift[[Рабочий]:[Рабочий]],MATCH(Q33,tblShift[[Смена]:[Смена]],0)),1,0),0),0)","v":0},{"$f":"IF(FK$7<>\"\",IFERROR(IF(INDEX(tblShift[[Рабочий]:[Рабочий]],MATCH(R33,tblShift[[Смена]:[Смена]],0)),1,0),0),0)","v":0},{"$f":"IF(FL$7<>\"\",IFERROR(IF(INDEX(tblShift[[Рабочий]:[Рабочий]],MATCH(S33,tblShift[[Смена]:[Смена]],0)),1,0),0),0)","v":0},{"$f":"IF(FM$7<>\"\",IFERROR(IF(INDEX(tblShift[[Рабочий]:[Рабочий]],MATCH(T33,tblShift[[Смена]:[Смена]],0)),1,0),0),0)","v":0},{"$f":"IF(FN$7<>\"\",IFERROR(IF(INDEX(tblShift[[Рабочий]:[Рабочий]],MATCH(U33,tblShift[[Смена]:[Смена]],0)),1,0),0),0)","v":0},{"$f":"IF(FO$7<>\"\",IFERROR(IF(INDEX(tblShift[[Рабочий]:[Рабочий]],MATCH(V33,tblShift[[Смена]:[Смена]],0)),1,0),0),0)","v":0},{"$f":"IF(FP$7<>\"\",IFERROR(IF(INDEX(tblShift[[Рабочий]:[Рабочий]],MATCH(W33,tblShift[[Смена]:[Смена]],0)),1,0),0),0)","v":0},{"$f":"IF(FQ$7<>\"\",IFERROR(IF(INDEX(tblShift[[Рабочий]:[Рабочий]],MATCH(X33,tblShift[[Смена]:[Смена]],0)),1,0),0),0)","v":0},{"$f":"IF(FR$7<>\"\",IFERROR(IF(INDEX(tblShift[[Рабочий]:[Рабочий]],MATCH(Y33,tblShift[[Смена]:[Смена]],0)),1,0),0),0)","v":0},{"$f":"IF(FS$7<>\"\",IFERROR(IF(INDEX(tblShift[[Рабочий]:[Рабочий]],MATCH(Z33,tblShift[[Смена]:[Смена]],0)),1,0),0),0)","v":0},{"$f":"IF(FT$7<>\"\",IFERROR(IF(INDEX(tblShift[[Рабочий]:[Рабочий]],MATCH(AA33,tblShift[[Смена]:[Смена]],0)),1,0),0),0)","v":0},{"$f":"IF(FU$7<>\"\",IFERROR(IF(INDEX(tblShift[[Рабочий]:[Рабочий]],MATCH(AB33,tblShift[[Смена]:[Смена]],0)),1,0),0),0)","v":0},{"$f":"IF(FV$7<>\"\",IFERROR(IF(INDEX(tblShift[[Рабочий]:[Рабочий]],MATCH(AC33,tblShift[[Смена]:[Смена]],0)),1,0),0),0)","v":0},{"$f":"IF(FW$7<>\"\",IFERROR(IF(INDEX(tblShift[[Рабочий]:[Рабочий]],MATCH(AD33,tblShift[[Смена]:[Смена]],0)),1,0),0),0)","v":0},{"$f":"IF(FX$7<>\"\",IFERROR(IF(INDEX(tblShift[[Рабочий]:[Рабочий]],MATCH(AE33,tblShift[[Смена]:[Смена]],0)),1,0),0),0)","v":0},{"$f":"IF(FY$7<>\"\",IFERROR(IF(INDEX(tblShift[[Рабочий]:[Рабочий]],MATCH(AF33,tblShift[[Смена]:[Смена]],0)),1,0),0),0)","v":0},{"$f":"IF(FZ$7<>\"\",IFERROR(IF(INDEX(tblShift[[Рабочий]:[Рабочий]],MATCH(AG33,tblShift[[Смена]:[Смена]],0)),1,0),0),0)","v":0},{"$f":"IF(GA$7<>\"\",IFERROR(IF(INDEX(tblShift[[Рабочий]:[Рабочий]],MATCH(AH33,tblShift[[Смена]:[Смена]],0)),1,0),0),0)","v":0},{"$f":"IF(GB$7<>\"\",IFERROR(IF(INDEX(tblShift[[Рабочий]:[Рабочий]],MATCH(AI33,tblShift[[Смена]:[Смена]],0)),1,0),0),0)","v":0},null,null,null,null,null,null,null,null,null,null,null,null,null,null,null,0]
[null,null,"","",null,null,null,null,null,null,null,null,null,null,null,null,null,null,null,null,null,null,null,null,null,null,null,null,null,null,null,null,null,null,null,null,{"$f":"IF(AK33<>\"\",IFERROR(VLOOKUP(E34,tblShift[],3,0),0),0)","v":0},{"$f":"IF(AL33<>\"\",IFERROR(VLOOKUP(F34,tblShift[],3,0),0),0)","v":0},{"$f":"IF(AM33<>\"\",IFERROR(VLOOKUP(G34,tblShift[],3,0),0),0)","v":0},{"$f":"IF(AN$7<>\"\",IFERROR(VLOOKUP(H34,tblShift[],3,0),0),0)","v":0},{"$f":"IF(AO$7<>\"\",IFERROR(VLOOKUP(I34,tblShift[],3,0),0),0)","v":0},{"$f":"IF(AP$7<>\"\",IFERROR(VLOOKUP(J34,tblShift[],3,0),0),0)","v":0},{"$f":"IF(AQ$7<>\"\",IFERROR(VLOOKUP(K34,tblShift[],3,0),0),0)","v":0},{"$f":"IF(AR$7<>\"\",IFERROR(VLOOKUP(L34,tblShift[],3,0),0),0)","v":0},{"$f":"IF(AS$7<>\"\",IFERROR(VLOOKUP(M34,tblShift[],3,0),0),0)","v":0},{"$f":"IF(AT$7<>\"\",IFERROR(VLOOKUP(N34,tblShift[],3,0),0),0)","v":0},{"$f":"IF(AU$7<>\"\",IFERROR(VLOOKUP(O34,tblShift[],3,0),0),0)","v":0},{"$f":"IF(AV$7<>\"\",IFERROR(VLOOKUP(P34,tblShift[],3,0),0),0)","v":0},{"$f":"IF(AW$7<>\"\",IFERROR(VLOOKUP(Q34,tblShift[],3,0),0),0)","v":0},{"$f":"IF(AX$7<>\"\",IFERROR(VLOOKUP(R34,tblShift[],3,0),0),0)","v":0},{"$f":"IF(AY$7<>\"\",IFERROR(VLOOKUP(S34,tblShift[],3,0),0),0)","v":0},{"$f":"IF(AZ$7<>\"\",IFERROR(VLOOKUP(T34,tblShift[],3,0),0),0)","v":0},{"$f":"IF(BA$7<>\"\",IFERROR(VLOOKUP(U34,tblShift[],3,0),0),0)","v":0},{"$f":"IF(BB$7<>\"\",IFERROR(VLOOKUP(V34,tblShift[],3,0),0),0)","v":0},{"$f":"IF(BC$7<>\"\",IFERROR(VLOOKUP(W34,tblShift[],3,0),0),0)","v":0},{"$f":"IF(BD$7<>\"\",IFERROR(VLOOKUP(X34,tblShift[],3,0),0),0)","v":0},{"$f":"IF(BE$7<>\"\",IFERROR(VLOOKUP(Y34,tblShift[],3,0),0),0)","v":0},{"$f":"IF(BF$7<>\"\",IFERROR(VLOOKUP(Z34,tblShift[],3,0),0),0)","v":0},{"$f":"IF(BG$7<>\"\",IFERROR(VLOOKUP(AA34,tblShift[],3,0),0),0)","v":0},{"$f":"IF(BH$7<>\"\",IFERROR(VLOOKUP(AB34,tblShift[],3,0),0),0)","v":0},{"$f":"IF(BI$7<>\"\",IFERROR(VLOOKUP(AC34,tblShift[],3,0),0),0)","v":0},{"$f":"IF(BJ$7<>\"\",IFERROR(VLOOKUP(AD34,tblShift[],3,0),0),0)","v":0},{"$f":"IF(BK$7<>\"\",IFERROR(VLOOKUP(AE34,tblShift[],3,0),0),0)","v":0},{"$f":"IF(BL$7<>\"\",IFERROR(VLOOKUP(AF34,tblShift[],3,0),0),0)","v":0},{"$f":"IF(BM$7<>\"\",IFERROR(VLOOKUP(AG34,tblShift[],3,0),0),0)","v":0},{"$f":"IF(BN$7<>\"\",IFERROR(VLOOKUP(AH34,tblShift[],3,0),0),0)","v":0},{"$f":"IF(BO$7<>\"\",IFERROR(VLOOKUP(AI34,tblShift[],3,0),0),0)","v":0},null,0,0,0,0,0,0,0,0,0,0,0,0,0,0,0,0,0,0,0,0,0,0,0,0,0,0,0,0,0,null,0,0,0,0,0,0,0,0,0,0,0,0,0,0,0,0,0,0,0,0,0,0,0,0,0,0,0,0,0,null,{"$f":"IFERROR(INDEX(tblShift[0],MATCH(INDEX($E34:$AI34,$D$1),tblShift[[Смена]:[Смена]],0)),0)","v":0},{"$f":"IFERROR(INDEX(tblShift[1],MATCH(INDEX($E34:$AI34,$D$1),tblShift[[Смена]:[Смена]],0)),0)","v":0},{"$f":"IFERROR(INDEX(tblShift[2],MATCH(INDEX($E34:$AI34,$D$1),tblShift[[Смена]:[Смена]],0)),0)","v":0},{"$f":"IFERROR(INDEX(tblShift[3],MATCH(INDEX($E34:$AI34,$D$1),tblShift[[Смена]:[Смена]],0)),0)","v":0},{"$f":"IFERROR(INDEX(tblShift[4],MATCH(INDEX($E34:$AI34,$D$1),tblShift[[Смена]:[Смена]],0)),0)","v":0},{"$f":"IFERROR(INDEX(tblShift[5],MATCH(INDEX($E34:$AI34,$D$1),tblShift[[Смена]:[Смена]],0)),0)","v":0},{"$f":"IFERROR(INDEX(tblShift[6],MATCH(INDEX($E34:$AI34,$D$1),tblShift[[Смена]:[Смена]],0)),0)","v":0},{"$f":"IFERROR(INDEX(tblShift[7],MATCH(INDEX($E34:$AI34,$D$1),tblShift[[Смена]:[Смена]],0)),0)","v":0},{"$f":"IFERROR(INDEX(tblShift[8],MATCH(INDEX($E34:$AI34,$D$1),tblShift[[Смена]:[Смена]],0)),0)","v":0},{"$f":"IFERROR(INDEX(tblShift[9],MATCH(INDEX($E34:$AI34,$D$1),tblShift[[Смена]:[Смена]],0)),0)","v":0},{"$f":"IFERROR(INDEX(tblShift[10],MATCH(INDEX($E34:$AI34,$D$1),tblShift[[Смена]:[Смена]],0)),0)","v":0},{"$f":"IFERROR(INDEX(tblShift[11],MATCH(INDEX($E34:$AI34,$D$1),tblShift[[Смена]:[Смена]],0)),0)","v":0},{"$f":"IFERROR(INDEX(tblShift[12],MATCH(INDEX($E34:$AI34,$D$1),tblShift[[Смена]:[Смена]],0)),0)","v":0},{"$f":"IFERROR(INDEX(tblShift[13],MATCH(INDEX($E34:$AI34,$D$1),tblShift[[Смена]:[Смена]],0)),0)","v":0},{"$f":"IFERROR(INDEX(tblShift[14],MATCH(INDEX($E34:$AI34,$D$1),tblShift[[Смена]:[Смена]],0)),0)","v":0},{"$f":"IFERROR(INDEX(tblShift[15],MATCH(INDEX($E34:$AI34,$D$1),tblShift[[Смена]:[Смена]],0)),0)","v":0},{"$f":"IFERROR(INDEX(tblShift[16],MATCH(INDEX($E34:$AI34,$D$1),tblShift[[Смена]:[Смена]],0)),0)","v":0},{"$f":"IFERROR(INDEX(tblShift[17],MATCH(INDEX($E34:$AI34,$D$1),tblShift[[Смена]:[Смена]],0)),0)","v":0},{"$f":"IFERROR(INDEX(tblShift[18],MATCH(INDEX($E34:$AI34,$D$1),tblShift[[Смена]:[Смена]],0)),0)","v":0},{"$f":"IFERROR(INDEX(tblShift[19],MATCH(INDEX($E34:$AI34,$D$1),tblShift[[Смена]:[Смена]],0)),0)","v":0},{"$f":"IFERROR(INDEX(tblShift[20],MATCH(INDEX($E34:$AI34,$D$1),tblShift[[Смена]:[Смена]],0)),0)","v":0},{"$f":"IFERROR(INDEX(tblShift[21],MATCH(INDEX($E34:$AI34,$D$1),tblShift[[Смена]:[Смена]],0)),0)","v":0},{"$f":"IFERROR(INDEX(tblShift[22],MATCH(INDEX($E34:$AI34,$D$1),tblShift[[Смена]:[Смена]],0)),0)","v":0},{"$f":"IFERROR(INDEX(tblShift[23],MATCH(INDEX($E34:$AI34,$D$1),tblShift[[Смена]:[Смена]],0)),0)","v":0},null,{"$f":"IF(EX$7<>\"\",IFERROR(IF(INDEX(tblShift[[Рабочий]:[Рабочий]],MATCH(E34,tblShift[[Смена]:[Смена]],0)),1,0),0),0)","v":0},{"$f":"IF(EY$7<>\"\",IFERROR(IF(INDEX(tblShift[[Рабочий]:[Рабочий]],MATCH(F34,tblShift[[Смена]:[Смена]],0)),1,0),0),0)","v":0},{"$f":"IF(EZ$7<>\"\",IFERROR(IF(INDEX(tblShift[[Рабочий]:[Рабочий]],MATCH(G34,tblShift[[Смена]:[Смена]],0)),1,0),0),0)","v":0},{"$f":"IF(FA$7<>\"\",IFERROR(IF(INDEX(tblShift[[Рабочий]:[Рабочий]],MATCH(H34,tblShift[[Смена]:[Смена]],0)),1,0),0),0)","v":0},{"$f":"IF(FB$7<>\"\",IFERROR(IF(INDEX(tblShift[[Рабочий]:[Рабочий]],MATCH(I34,tblShift[[Смена]:[Смена]],0)),1,0),0),0)","v":0},{"$f":"IF(FC$7<>\"\",IFERROR(IF(INDEX(tblShift[[Рабочий]:[Рабочий]],MATCH(J34,tblShift[[Смена]:[Смена]],0)),1,0),0),0)","v":0},{"$f":"IF(FD$7<>\"\",IFERROR(IF(INDEX(tblShift[[Рабочий]:[Рабочий]],MATCH(K34,tblShift[[Смена]:[Смена]],0)),1,0),0),0)","v":0},{"$f":"IF(FE$7<>\"\",IFERROR(IF(INDEX(tblShift[[Рабочий]:[Рабочий]],MATCH(L34,tblShift[[Смена]:[Смена]],0)),1,0),0),0)","v":0},{"$f":"IF(FF$7<>\"\",IFERROR(IF(INDEX(tblShift[[Рабочий]:[Рабочий]],MATCH(M34,tblShift[[Смена]:[Смена]],0)),1,0),0),0)","v":0},{"$f":"IF(FG$7<>\"\",IFERROR(IF(INDEX(tblShift[[Рабочий]:[Рабочий]],MATCH(N34,tblShift[[Смена]:[Смена]],0)),1,0),0),0)","v":0},{"$f":"IF(FH$7<>\"\",IFERROR(IF(INDEX(tblShift[[Рабочий]:[Рабочий]],MATCH(O34,tblShift[[Смена]:[Смена]],0)),1,0),0),0)","v":0},{"$f":"IF(FI$7<>\"\",IFERROR(IF(INDEX(tblShift[[Рабочий]:[Рабочий]],MATCH(P34,tblShift[[Смена]:[Смена]],0)),1,0),0),0)","v":0},{"$f":"IF(FJ$7<>\"\",IFERROR(IF(INDEX(tblShift[[Рабочий]:[Рабочий]],MATCH(Q34,tblShift[[Смена]:[Смена]],0)),1,0),0),0)","v":0},{"$f":"IF(FK$7<>\"\",IFERROR(IF(INDEX(tblShift[[Рабочий]:[Рабочий]],MATCH(R34,tblShift[[Смена]:[Смена]],0)),1,0),0),0)","v":0},{"$f":"IF(FL$7<>\"\",IFERROR(IF(INDEX(tblShift[[Рабочий]:[Рабочий]],MATCH(S34,tblShift[[Смена]:[Смена]],0)),1,0),0),0)","v":0},{"$f":"IF(FM$7<>\"\",IFERROR(IF(INDEX(tblShift[[Рабочий]:[Рабочий]],MATCH(T34,tblShift[[Смена]:[Смена]],0)),1,0),0),0)","v":0},{"$f":"IF(FN$7<>\"\",IFERROR(IF(INDEX(tblShift[[Рабочий]:[Рабочий]],MATCH(U34,tblShift[[Смена]:[Смена]],0)),1,0),0),0)","v":0},{"$f":"IF(FO$7<>\"\",IFERROR(IF(INDEX(tblShift[[Рабочий]:[Рабочий]],MATCH(V34,tblShift[[Смена]:[Смена]],0)),1,0),0),0)","v":0},{"$f":"IF(FP$7<>\"\",IFERROR(IF(INDEX(tblShift[[Рабочий]:[Рабочий]],MATCH(W34,tblShift[[Смена]:[Смена]],0)),1,0),0),0)","v":0},{"$f":"IF(FQ$7<>\"\",IFERROR(IF(INDEX(tblShift[[Рабочий]:[Рабочий]],MATCH(X34,tblShift[[Смена]:[Смена]],0)),1,0),0),0)","v":0},{"$f":"IF(FR$7<>\"\",IFERROR(IF(INDEX(tblShift[[Рабочий]:[Рабочий]],MATCH(Y34,tblShift[[Смена]:[Смена]],0)),1,0),0),0)","v":0},{"$f":"IF(FS$7<>\"\",IFERROR(IF(INDEX(tblShift[[Рабочий]:[Рабочий]],MATCH(Z34,tblShift[[Смена]:[Смена]],0)),1,0),0),0)","v":0},{"$f":"IF(FT$7<>\"\",IFERROR(IF(INDEX(tblShift[[Рабочий]:[Рабочий]],MATCH(AA34,tblShift[[Смена]:[Смена]],0)),1,0),0),0)","v":0},{"$f":"IF(FU$7<>\"\",IFERROR(IF(INDEX(tblShift[[Рабочий]:[Рабочий]],MATCH(AB34,tblShift[[Смена]:[Смена]],0)),1,0),0),0)","v":0},{"$f":"IF(FV$7<>\"\",IFERROR(IF(INDEX(tblShift[[Рабочий]:[Рабочий]],MATCH(AC34,tblShift[[Смена]:[Смена]],0)),1,0),0),0)","v":0},{"$f":"IF(FW$7<>\"\",IFERROR(IF(INDEX(tblShift[[Рабочий]:[Рабочий]],MATCH(AD34,tblShift[[Смена]:[Смена]],0)),1,0),0),0)","v":0},{"$f":"IF(FX$7<>\"\",IFERROR(IF(INDEX(tblShift[[Рабочий]:[Рабочий]],MATCH(AE34,tblShift[[Смена]:[Смена]],0)),1,0),0),0)","v":0},{"$f":"IF(FY$7<>\"\",IFERROR(IF(INDEX(tblShift[[Рабочий]:[Рабочий]],MATCH(AF34,tblShift[[Смена]:[Смена]],0)),1,0),0),0)","v":0},{"$f":"IF(FZ$7<>\"\",IFERROR(IF(INDEX(tblShift[[Рабочий]:[Рабочий]],MATCH(AG34,tblShift[[Смена]:[Смена]],0)),1,0),0),0)","v":0},{"$f":"IF(GA$7<>\"\",IFERROR(IF(INDEX(tblShift[[Рабочий]:[Рабочий]],MATCH(AH34,tblShift[[Смена]:[Смена]],0)),1,0),0),0)","v":0},{"$f":"IF(GB$7<>\"\",IFERROR(IF(INDEX(tblShift[[Рабочий]:[Рабочий]],MATCH(AI34,tblShift[[Смена]:[Смена]],0)),1,0),0),0)","v":0},null,null,null,null,null,null,null,null,null,null,null,null,null,null,null,0]
[null,null,"","",null,null,null,null,null,null,null,null,null,null,null,null,null,null,null,null,null,null,null,null,null,null,null,null,null,null,null,null,null,null,null,null,{"$f":"IF(AK34<>\"\",IFERROR(VLOOKUP(E35,tblShift[],3,0),0),0)","v":0},{"$f":"IF(AL34<>\"\",IFERROR(VLOOKUP(F35,tblShift[],3,0),0),0)","v":0},{"$f":"IF(AM34<>\"\",IFERROR(VLOOKUP(G35,tblShift[],3,0),0),0)","v":0},{"$f":"IF(AN$7<>\"\",IFERROR(VLOOKUP(H35,tblShift[],3,0),0),0)","v":0},{"$f":"IF(AO$7<>\"\",IFERROR(VLOOKUP(I35,tblShift[],3,0),0),0)","v":0},{"$f":"IF(AP$7<>\"\",IFERROR(VLOOKUP(J35,tblShift[],3,0),0),0)","v":0},{"$f":"IF(AQ$7<>\"\",IFERROR(VLOOKUP(K35,tblShift[],3,0),0),0)","v":0},{"$f":"IF(AR$7<>\"\",IFERROR(VLOOKUP(L35,tblShift[],3,0),0),0)","v":0},{"$f":"IF(AS$7<>\"\",IFERROR(VLOOKUP(M35,tblShift[],3,0),0),0)","v":0},{"$f":"IF(AT$7<>\"\",IFERROR(VLOOKUP(N35,tblShift[],3,0),0),0)","v":0},{"$f":"IF(AU$7<>\"\",IFERROR(VLOOKUP(O35,tblShift[],3,0),0),0)","v":0},{"$f":"IF(AV$7<>\"\",IFERROR(VLOOKUP(P35,tblShift[],3,0),0),0)","v":0},{"$f":"IF(AW$7<>\"\",IFERROR(VLOOKUP(Q35,tblShift[],3,0),0),0)","v":0},{"$f":"IF(AX$7<>\"\",IFERROR(VLOOKUP(R35,tblShift[],3,0),0),0)","v":0},{"$f":"IF(AY$7<>\"\",IFERROR(VLOOKUP(S35,tblShift[],3,0),0),0)","v":0},{"$f":"IF(AZ$7<>\"\",IFERROR(VLOOKUP(T35,tblShift[],3,0),0),0)","v":0},{"$f":"IF(BA$7<>\"\",IFERROR(VLOOKUP(U35,tblShift[],3,0),0),0)","v":0},{"$f":"IF(BB$7<>\"\",IFERROR(VLOOKUP(V35,tblShift[],3,0),0),0)","v":0},{"$f":"IF(BC$7<>\"\",IFERROR(VLOOKUP(W35,tblShift[],3,0),0),0)","v":0},{"$f":"IF(BD$7<>\"\",IFERROR(VLOOKUP(X35,tblShift[],3,0),0),0)","v":0},{"$f":"IF(BE$7<>\"\",IFERROR(VLOOKUP(Y35,tblShift[],3,0),0),0)","v":0},{"$f":"IF(BF$7<>\"\",IFERROR(VLOOKUP(Z35,tblShift[],3,0),0),0)","v":0},{"$f":"IF(BG$7<>\"\",IFERROR(VLOOKUP(AA35,tblShift[],3,0),0),0)","v":0},{"$f":"IF(BH$7<>\"\",IFERROR(VLOOKUP(AB35,tblShift[],3,0),0),0)","v":0},{"$f":"IF(BI$7<>\"\",IFERROR(VLOOKUP(AC35,tblShift[],3,0),0),0)","v":0},{"$f":"IF(BJ$7<>\"\",IFERROR(VLOOKUP(AD35,tblShift[],3,0),0),0)","v":0},{"$f":"IF(BK$7<>\"\",IFERROR(VLOOKUP(AE35,tblShift[],3,0),0),0)","v":0},{"$f":"IF(BL$7<>\"\",IFERROR(VLOOKUP(AF35,tblShift[],3,0),0),0)","v":0},{"$f":"IF(BM$7<>\"\",IFERROR(VLOOKUP(AG35,tblShift[],3,0),0),0)","v":0},{"$f":"IF(BN$7<>\"\",IFERROR(VLOOKUP(AH35,tblShift[],3,0),0),0)","v":0},{"$f":"IF(BO$7<>\"\",IFERROR(VLOOKUP(AI35,tblShift[],3,0),0),0)","v":0},null,0,0,0,0,0,0,0,0,0,0,0,0,0,0,0,0,0,0,0,0,0,0,0,0,0,0,0,0,0,null,0,0,0,0,0,0,0,0,0,0,0,0,0,0,0,0,0,0,0,0,0,0,0,0,0,0,0,0,0,null,{"$f":"IFERROR(INDEX(tblShift[0],MATCH(INDEX($E35:$AI35,$D$1),tblShift[[Смена]:[Смена]],0)),0)","v":0},{"$f":"IFERROR(INDEX(tblShift[1],MATCH(INDEX($E35:$AI35,$D$1),tblShift[[Смена]:[Смена]],0)),0)","v":0},{"$f":"IFERROR(INDEX(tblShift[2],MATCH(INDEX($E35:$AI35,$D$1),tblShift[[Смена]:[Смена]],0)),0)","v":0},{"$f":"IFERROR(INDEX(tblShift[3],MATCH(INDEX($E35:$AI35,$D$1),tblShift[[Смена]:[Смена]],0)),0)","v":0},{"$f":"IFERROR(INDEX(tblShift[4],MATCH(INDEX($E35:$AI35,$D$1),tblShift[[Смена]:[Смена]],0)),0)","v":0},{"$f":"IFERROR(INDEX(tblShift[5],MATCH(INDEX($E35:$AI35,$D$1),tblShift[[Смена]:[Смена]],0)),0)","v":0},{"$f":"IFERROR(INDEX(tblShift[6],MATCH(INDEX($E35:$AI35,$D$1),tblShift[[Смена]:[Смена]],0)),0)","v":0},{"$f":"IFERROR(INDEX(tblShift[7],MATCH(INDEX($E35:$AI35,$D$1),tblShift[[Смена]:[Смена]],0)),0)","v":0},{"$f":"IFERROR(INDEX(tblShift[8],MATCH(INDEX($E35:$AI35,$D$1),tblShift[[Смена]:[Смена]],0)),0)","v":0},{"$f":"IFERROR(INDEX(tblShift[9],MATCH(INDEX($E35:$AI35,$D$1),tblShift[[Смена]:[Смена]],0)),0)","v":0},{"$f":"IFERROR(INDEX(tblShift[10],MATCH(INDEX($E35:$AI35,$D$1),tblShift[[Смена]:[Смена]],0)),0)","v":0},{"$f":"IFERROR(INDEX(tblShift[11],MATCH(INDEX($E35:$AI35,$D$1),tblShift[[Смена]:[Смена]],0)),0)","v":0},{"$f":"IFERROR(INDEX(tblShift[12],MATCH(INDEX($E35:$AI35,$D$1),tblShift[[Смена]:[Смена]],0)),0)","v":0},{"$f":"IFERROR(INDEX(tblShift[13],MATCH(INDEX($E35:$AI35,$D$1),tblShift[[Смена]:[Смена]],0)),0)","v":0},{"$f":"IFERROR(INDEX(tblShift[14],MATCH(INDEX($E35:$AI35,$D$1),tblShift[[Смена]:[Смена]],0)),0)","v":0},{"$f":"IFERROR(INDEX(tblShift[15],MATCH(INDEX($E35:$AI35,$D$1),tblShift[[Смена]:[Смена]],0)),0)","v":0},{"$f":"IFERROR(INDEX(tblShift[16],MATCH(INDEX($E35:$AI35,$D$1),tblShift[[Смена]:[Смена]],0)),0)","v":0},{"$f":"IFERROR(INDEX(tblShift[17],MATCH(INDEX($E35:$AI35,$D$1),tblShift[[Смена]:[Смена]],0)),0)","v":0},{"$f":"IFERROR(INDEX(tblShift[18],MATCH(INDEX($E35:$AI35,$D$1),tblShift[[Смена]:[Смена]],0)),0)","v":0},{"$f":"IFERROR(INDEX(tblShift[19],MATCH(INDEX($E35:$AI35,$D$1),tblShift[[Смена]:[Смена]],0)),0)","v":0},{"$f":"IFERROR(INDEX(tblShift[20],MATCH(INDEX($E35:$AI35,$D$1),tblShift[[Смена]:[Смена]],0)),0)","v":0},{"$f":"IFERROR(INDEX(tblShift[21],MATCH(INDEX($E35:$AI35,$D$1),tblShift[[Смена]:[Смена]],0)),0)","v":0},{"$f":"IFERROR(INDEX(tblShift[22],MATCH(INDEX($E35:$AI35,$D$1),tblShift[[Смена]:[Смена]],0)),0)","v":0},{"$f":"IFERROR(INDEX(tblShift[23],MATCH(INDEX($E35:$AI35,$D$1),tblShift[[Смена]:[Смена]],0)),0)","v":0},null,{"$f":"IF(EX$7<>\"\",IFERROR(IF(INDEX(tblShift[[Рабочий]:[Рабочий]],MATCH(E35,tblShift[[Смена]:[Смена]],0)),1,0),0),0)","v":0},{"$f":"IF(EY$7<>\"\",IFERROR(IF(INDEX(tblShift[[Рабочий]:[Рабочий]],MATCH(F35,tblShift[[Смена]:[Смена]],0)),1,0),0),0)","v":0},{"$f":"IF(EZ$7<>\"\",IFERROR(IF(INDEX(tblShift[[Рабочий]:[Рабочий]],MATCH(G35,tblShift[[Смена]:[Смена]],0)),1,0),0),0)","v":0},{"$f":"IF(FA$7<>\"\",IFERROR(IF(INDEX(tblShift[[Рабочий]:[Рабочий]],MATCH(H35,tblShift[[Смена]:[Смена]],0)),1,0),0),0)","v":0},{"$f":"IF(FB$7<>\"\",IFERROR(IF(INDEX(tblShift[[Рабочий]:[Рабочий]],MATCH(I35,tblShift[[Смена]:[Смена]],0)),1,0),0),0)","v":0},{"$f":"IF(FC$7<>\"\",IFERROR(IF(INDEX(tblShift[[Рабочий]:[Рабочий]],MATCH(J35,tblShift[[Смена]:[Смена]],0)),1,0),0),0)","v":0},{"$f":"IF(FD$7<>\"\",IFERROR(IF(INDEX(tblShift[[Рабочий]:[Рабочий]],MATCH(K35,tblShift[[Смена]:[Смена]],0)),1,0),0),0)","v":0},{"$f":"IF(FE$7<>\"\",IFERROR(IF(INDEX(tblShift[[Рабочий]:[Рабочий]],MATCH(L35,tblShift[[Смена]:[Смена]],0)),1,0),0),0)","v":0},{"$f":"IF(FF$7<>\"\",IFERROR(IF(INDEX(tblShift[[Рабочий]:[Рабочий]],MATCH(M35,tblShift[[Смена]:[Смена]],0)),1,0),0),0)","v":0},{"$f":"IF(FG$7<>\"\",IFERROR(IF(INDEX(tblShift[[Рабочий]:[Рабочий]],MATCH(N35,tblShift[[Смена]:[Смена]],0)),1,0),0),0)","v":0},{"$f":"IF(FH$7<>\"\",IFERROR(IF(INDEX(tblShift[[Рабочий]:[Рабочий]],MATCH(O35,tblShift[[Смена]:[Смена]],0)),1,0),0),0)","v":0},{"$f":"IF(FI$7<>\"\",IFERROR(IF(INDEX(tblShift[[Рабочий]:[Рабочий]],MATCH(P35,tblShift[[Смена]:[Смена]],0)),1,0),0),0)","v":0},{"$f":"IF(FJ$7<>\"\",IFERROR(IF(INDEX(tblShift[[Рабочий]:[Рабочий]],MATCH(Q35,tblShift[[Смена]:[Смена]],0)),1,0),0),0)","v":0},{"$f":"IF(FK$7<>\"\",IFERROR(IF(INDEX(tblShift[[Рабочий]:[Рабочий]],MATCH(R35,tblShift[[Смена]:[Смена]],0)),1,0),0),0)","v":0},{"$f":"IF(FL$7<>\"\",IFERROR(IF(INDEX(tblShift[[Рабочий]:[Рабочий]],MATCH(S35,tblShift[[Смена]:[Смена]],0)),1,0),0),0)","v":0},{"$f":"IF(FM$7<>\"\",IFERROR(IF(INDEX(tblShift[[Рабочий]:[Рабочий]],MATCH(T35,tblShift[[Смена]:[Смена]],0)),1,0),0),0)","v":0},{"$f":"IF(FN$7<>\"\",IFERROR(IF(INDEX(tblShift[[Рабочий]:[Рабочий]],MATCH(U35,tblShift[[Смена]:[Смена]],0)),1,0),0),0)","v":0},{"$f":"IF(FO$7<>\"\",IFERROR(IF(INDEX(tblShift[[Рабочий]:[Рабочий]],MATCH(V35,tblShift[[Смена]:[Смена]],0)),1,0),0),0)","v":0},{"$f":"IF(FP$7<>\"\",IFERROR(IF(INDEX(tblShift[[Рабочий]:[Рабочий]],MATCH(W35,tblShift[[Смена]:[Смена]],0)),1,0),0),0)","v":0},{"$f":"IF(FQ$7<>\"\",IFERROR(IF(INDEX(tblShift[[Рабочий]:[Рабочий]],MATCH(X35,tblShift[[Смена]:[Смена]],0)),1,0),0),0)","v":0},{"$f":"IF(FR$7<>\"\",IFERROR(IF(INDEX(tblShift[[Рабочий]:[Рабочий]],MATCH(Y35,tblShift[[Смена]:[Смена]],0)),1,0),0),0)","v":0},{"$f":"IF(FS$7<>\"\",IFERROR(IF(INDEX(tblShift[[Рабочий]:[Рабочий]],MATCH(Z35,tblShift[[Смена]:[Смена]],0)),1,0),0),0)","v":0},{"$f":"IF(FT$7<>\"\",IFERROR(IF(INDEX(tblShift[[Рабочий]:[Рабочий]],MATCH(AA35,tblShift[[Смена]:[Смена]],0)),1,0),0),0)","v":0},{"$f":"IF(FU$7<>\"\",IFERROR(IF(INDEX(tblShift[[Рабочий]:[Рабочий]],MATCH(AB35,tblShift[[Смена]:[Смена]],0)),1,0),0),0)","v":0},{"$f":"IF(FV$7<>\"\",IFERROR(IF(INDEX(tblShift[[Рабочий]:[Рабочий]],MATCH(AC35,tblShift[[Смена]:[Смена]],0)),1,0),0),0)","v":0},{"$f":"IF(FW$7<>\"\",IFERROR(IF(INDEX(tblShift[[Рабочий]:[Рабочий]],MATCH(AD35,tblShift[[Смена]:[Смена]],0)),1,0),0),0)","v":0},{"$f":"IF(FX$7<>\"\",IFERROR(IF(INDEX(tblShift[[Рабочий]:[Рабочий]],MATCH(AE35,tblShift[[Смена]:[Смена]],0)),1,0),0),0)","v":0},{"$f":"IF(FY$7<>\"\",IFERROR(IF(INDEX(tblShift[[Рабочий]:[Рабочий]],MATCH(AF35,tblShift[[Смена]:[Смена]],0)),1,0),0),0)","v":0},{"$f":"IF(FZ$7<>\"\",IFERROR(IF(INDEX(tblShift[[Рабочий]:[Рабочий]],MATCH(AG35,tblShift[[Смена]:[Смена]],0)),1,0),0),0)","v":0},{"$f":"IF(GA$7<>\"\",IFERROR(IF(INDEX(tblShift[[Рабочий]:[Рабочий]],MATCH(AH35,tblShift[[Смена]:[Смена]],0)),1,0),0),0)","v":0},{"$f":"IF(GB$7<>\"\",IFERROR(IF(INDEX(tblShift[[Рабочий]:[Рабочий]],MATCH(AI35,tblShift[[Смена]:[Смена]],0)),1,0),0),0)","v":0},null,null,null,null,null,null,null,null,null,null,null,null,null,null,null,0]
[null,"Часы",null,{"$f":"SUM(E36:AI36)","v":0},{"$f":"IF(E$6=1,SUM(AK$8:AK$35),\"\")","v":0},{"$f":"IF(F$6=1,SUM(AL$8:AL$35),\"\")","v":0},0,0,0,0,0,0,0,0,0,0,0,0,0,0,0,0,0,0,0,0,0,0,0,0,0,0,0,0,0,null,null,null,null,null,null,null,null,null,null,null,null,null,null,null,null,null,null,null,null,null,null,null,null,null,null,null,null,null,null,null,null,null,null,null,null,null,null,null,null,null,null,null,null,null,null,null,null,null,null,null,null,null,null,null,null,null,null,null,null,null,null,null,null,null,null,null,null,null,null,null,null,null,null,null,null,null,null,null,null,null,null,null,null,null,null,null,null,null,null,null,null,null,null,null,null,null,null,null,null,null,null,null,null,null,null,null,null,null,null,null,null,null,null,null,null,null,null,null,null,null,null,null,null,null,null,null,null,null,null,null,null,null,null,null,null,null,null,null,null,null,null,null,null,null,null,null,null,null,null,null,null,null,null,null,null,null,null,null,null,null,null,null,null,1]
[null,"Смены",null,{"$f":"SUM(E37:AI37)","v":0},{"$f":"IF(E$6=1,SUM(EX$8:EX$35),\"\")","v":0},{"$f":"IF(F$6=1,SUM(EY$8:EY$35),\"\")","v":0},0,0,0,0,0,0,0,0,0,0,0,0,0,0,0,0,0,0,0,0,0,0,0,0,0,0,0,0,0,null,null,null,null,null,null,null,null,null,null,null,null,null,null,null,null,null,null,null,null,null,null,null,null,null,null,null,null,null,null,null,null,null,null,null,null,null,null,null,null,null,null,null,null,null,null,null,null,null,null,null,null,null,null,null,null,null,null,null,null,null,null,null,null,null,null,null,null,null,null,null,null,null,null,null,null,null,null,null,null,null,null,null,null,null,null,null,null,null,null,null,null,null,null,null,null,null,null,null,null,null,null,null,null,null,null,null,null,null,null,null,null,null,null,null,null,null,null,null,null,null,null,null,null,null,null,null,null,null,null,null,null,null,null,null,null,null,null,null,null,null,null,null,null,null,null,null,null,null,null,null,null,null,null,null,null,null,null,null,null,null,null,null,null,1]
[null,"Больные",null,{"$f":"SUM(E38:AI38)","v":0},{"$f":"IF(E$6=1,COUNTIF(E$8:E$35,\"=Б\"),\"\")","v":0},{"$f":"IF(F$6=1,COUNTIF(F$8:F$35,\"=Б\"),\"\")","v":0},0,0,0,0,0,0,0,0,0,0,0,0,0,0,0,0,0,0,0,0,0,0,0,0,0,0,0,0,0,null,null,null,null,null,null,null,null,null,null,null,null,null,null,null,null,null,null,null,null,null,null,null,null,null,null,null,null,null,null,null,null,null,null,null,null,null,null,null,null,null,null,null,null,null,null,null,null,null,null,null,null,null,null,null,null,null,null,null,null,null,null,null,null,null,null,null,null,null,null,null,null,null,null,null,null,null,null,null,null,null,null,null,null,null,null,null,null,null,null,null,null,null,null,null,null,null,null,null,null,null,null,null,null,null,null,null,null,null,null,null,null,null,null,null,null,null,null,null,null,null,null,null,null,null,null,null,null,null,null,null,null,null,null,null,null,null,null,null,null,null,null,null,null,null,null,null,null,null,null,null,null,null,null,null,null,null,null,null,null,null,null,null,null,1]
[null,"Отпуска",null,0,{"$f":"IF(E$6=1,COUNTIF(E$8:E$35,\"=О\"),\"\")","v":0},{"$f":"IF(F$6=1,COUNTIF(F$8:F$35,\"=О\"),\"\")","v":0},0,0,0,0,0,0,0,0,0,0,0,0,0,0,0,0,0,0,0,0,0,0,0,0,0,0,0,0,0,null,null,null,null,null,null,null,null,null,null,null,null,null,null,null,null,null,null,null,null,null,null,null,null,null,null,null,null,null,null,null,null,null,null,null,null,null,null,null,null,null,null,null,null,null,null,null,null,null,null,null,null,null,null,null,null,null,null,null,null,null,null,null,null,null,null,null,null,null,null,null,null,null,null,null,null,null,null,null,null,null,null,null,null,null,null,null,null,null,null,null,null,null,null,null,null,null,null,null,null,null,null,null,null,null,null,null,null,null,null,null,null,null,null,null,null,null,null,null,null,null,null,null,null,null,null,null,null,null,null,null,null,null,null,null,null,null,null,null,null,null,null,null,null,null,null,null,null,null,null,null,null,null,null,null,null,null,null,null,null,null,null,null,null,1]
[null,"Выходные",null,0,{"$f":"IF(E$6=1,COUNTIF(E$8:E$35,\"=В\"),\"\")","v":0},{"$f":"IF(F$6=1,COUNTIF(F$8:F$35,\"=В\"),\"\")","v":0},0,0,0,0,0,0,0,0,0,0,0,0,0,0,0,0,0,0,0,0,0,0,0,0,0,0,0,0,0,null,null,null,null,null,null,null,null,null,null,null,null,null,null,null,null,null,null,null,null,null,null,null,null,null,null,null,null,null,null,null,null,null,null,null,null,null,null,null,null,null,null,null,null,null,null,null,null,null,null,null,null,null,null,null,null,null,null,null,null,null,null,null,null,null,null,null,null,null,null,null,null,null,null,null,null,null,null,null,null,null,null,null,null,null,null,null,null,null,null,null,null,null,null,null,null,null,null,null,null,null,null,null,null,null,null,null,null,null,null,null,null,null,null,null,null,null,null,null,null,null,null,null,null,null,null,null,null,null,null,null,null,null,null,null,null,null,null,null,null,null,null,null,null,null,null,null,null,null,null,null,null,null,null,null,null,null,null,null,null,null,null,null,null,1]
[null,null,null,null,null,null,null,null,null,null,null,null,null,null,null,null,null,null,null,null,null,null,null,null,null,null,null,null,null,null,null,null,null,null,null,null,null,null,null,null,null,null,null,null,null,null,null,null,null,null,null,null,null,null,null,null,null,null,null,null,null,null,null,null,null,null,null,null,null,null,null,null,null,null,null,null,null,null,null,null,null,null,null,null,null,null,null,null,null,null,null,null,null,null,null,null,null,null,null,null,null,null,null,null,null,null,null,null,null,null,null,null,null,null,null,null,null,null,null,null,null,null,null,null,null,null,null,null,null,null,null,null,null,null,null,null,null,null,null,null,null,null,null,null,null,null,null,null,null,null,null,null,null,null,null,null,null,null,null,null,null,null,null,null,null,null,null,null,null,null,null,null,null,null,null,null,null,null,null,null,null,null,null,null,null,null,null,null,null,null,null,null,null,null,null,null,null,null,null,{"$f":"IF(rngShowHidden,1,0)","v":0}]
[null,null,null,null,null,null,null,null,null,null,null,null,null,null,null,null,null,null,null,null,null,null,null,null,null,null,null,null,null,null,null,null,null,null,null,null,null,null,null,null,null,null,null,null,null,null,null,null,null,null,null,null,null,null,null,null,null,null,null,null,null,null,null,null,null,null,null,null,null,null,null,null,null,null,null,null,null,null,null,null,null,null,null,null,null,null,null,null,null,null,null,null,null,null,null,null,null,null,null,null,null,null,null,null,null,null,null,null,null,null,null,null,null,null,null,null,null,null,null,null,null,null,null,null,null,null,null,null,null,null,null,null,null,null,null,null,null,null,null,null,null,null,null,null,null,null,null,null,null,null,null,null,null,null,null,null,null,null,null,null,null,null,null,null,null,null,null,null,null,null,null,null,null,null,null,null,null,null,null,null,null,null,null,null,null,null,null,null,null,null,null,null,null,null,null,null,null,null,null,0]
[null,null,null,null,null,null,null,null,null,null,null,null,null,null,null,null,null,null,null,null,null,null,null,null,null,null,null,null,null,null,null,null,null,null,null,null,null,null,null,null,null,null,null,null,null,null,null,null,null,null,null,null,null,null,null,null,null,null,null,null,null,null,null,null,null,null,null,null,null,null,null,null,null,null,null,null,null,null,null,null,null,null,null,null,null,null,null,null,null,null,null,null,null,null,null,null,null,null,null,null,null,null,null,null,null,null,null,null,null,null,null,null,null,null,null,null,null,null,null,null,null,null,null,null,null,null,null,null,null,null,null,null,null,null,null,null,null,null,null,null,null,null,null,null,null,null,null,null,null,null,null,null,null,null,null,null,null,null,null,null,null,null,null,null,null,null,null,null,null,null,null,null,null,null,null,null,null,null,null,null,null,null,null,null,null,null,null,null,null,null,null,null,null,null,null,null,null,null,null,0]
[null,null,null,null,null,null,null,null,null,null,null,null,null,null,null,null,null,null,null,null,null,null,null,null,null,null,null,null,null,null,null,null,null,null,null,null,null,null,null,null,null,null,null,null,null,null,null,null,null,null,null,null,null,null,null,null,null,null,null,null,null,null,null,null,null,null,null,null,null,null,null,null,null,null,null,null,null,null,null,null,null,null,null,null,null,null,null,null,null,null,null,null,null,null,null,null,null,null,null,null,null,null,null,null,null,null,null,null,null,null,null,null,null,null,null,null,null,null,null,null,null,null,null,null,null,null,null,null,null,null,null,null,null,null,null,null,null,null,null,null,null,null,null,null,null,null,null,null,null,null,null,null,null,null,null,null,null,null,null,null,null,null,null,null,null,null,null,null,null,null,null,null,null,null,null,null,null,null,null,null,null,null,null,null,null,null,null,null,null,null,null,null,null,null,null,null,null,null,null,0]
[null,null,null,null,null,null,null,null,null,null,null,null,null,null,null,null,null,null,null,null,null,null,null,null,null,null,null,null,null,null,null,null,null,null,null,null,null,null,null,null,null,null,null,null,null,null,null,null,null,null,null,null,null,null,null,null,null,null,null,null,null,null,null,null,null,null,null,null,null,null,null,null,null,null,null,null,null,null,null,null,null,null,null,null,null,null,null,null,null,null,null,null,null,null,null,null,null,null,null,null,null,null,null,null,null,null,null,null,null,null,null,null,null,null,null,null,null,null,null,null,null,null,null,null,null,null,null,null,null,null,null,null,null,null,null,null,null,null,null,null,null,null,null,null,null,null,null,null,null,null,null,null,null,null,null,null,null,null,null,null,null,null,null,null,null,null,null,null,null,null,null,null,null,null,null,null,null,null,null,null,null,null,null,null,null,null,null,null,null,null,null,null,null,null,null,null,null,null,null,0]
[null,null,null,null,null,null,null,null,null,null,null,null,null,null,null,null,null,null,null,null,null,null,null,null,null,null,null,null,null,null,null,null,null,null,null,null,null,null,null,null,null,null,null,null,null,null,null,null,null,null,null,null,null,null,null,null,null,null,null,null,null,null,null,null,null,null,null,null,null,null,null,null,null,null,null,null,null,null,null,null,null,null,null,null,null,null,null,null,null,null,null,null,null,null,null,null,null,null,null,null,null,null,null,null,null,null,null,null,null,null,null,null,null,null,null,null,null,null,null,null,null,null,null,null,null,null,null,null,null,null,null,null,null,null,null,null,null,null,null,null,null,null,null,null,null,null,null,null,null,null,null,null,null,null,null,null,null,null,null,null,null,null,null,null,null,null,null,null,null,null,null,null,null,null,null,null,null,null,null,null,null,null,null,null,null,null,null,null,null,null,null,null,null,null,null,null,null,null,null,0]
[null,null,null,null,null,null,null,null,null,null,null,null,null,null,null,null,null,null,null,null,null,null,null,null,null,null,null,null,null,null,null,null,null,null,null,null,null,null,null,null,null,null,null,null,null,null,null,null,null,null,null,null,null,null,null,null,null,null,null,null,null,null,null,null,null,null,null,null,null,null,null,null,null,null,null,null,null,null,null,null,null,null,null,null,null,null,null,null,null,null,null,null,null,null,null,null,null,null,null,null,null,null,null,null,null,null,null,null,null,null,null,null,null,null,null,null,null,null,null,null,null,null,null,null,null,null,null,null,null,null,null,null,null,null,null,null,null,null,null,null,null,null,null,null,null,null,null,null,null,null,null,null,null,null,null,null,null,null,null,null,null,null,null,null,null,null,null,null,null,null,null,null,null,null,null,null,null,null,null,null,null,null,null,null,null,null,null,null,null,null,null,null,null,null,null,null,null,null,null,0]
[null,null,null,null,null,null,null,null,null,null,null,null,null,null,null,null,null,null,null,null,null,null,null,null,null,null,null,null,null,null,null,null,null,null,null,null,null,null,null,null,null,null,null,null,null,null,null,null,null,null,null,null,null,null,null,null,null,null,null,null,null,null,null,null,null,null,null,null,null,null,null,null,null,null,null,null,null,null,null,null,null,null,null,null,null,null,null,null,null,null,null,null,null,null,null,null,null,null,null,null,null,null,null,null,null,null,null,null,null,null,null,null,null,null,null,null,null,null,null,null,null,null,null,null,null,null,null,null,null,null,null,null,null,null,null,null,null,null,null,null,null,null,null,null,null,null,null,null,null,null,null,null,null,null,null,null,null,null,null,null,null,null,null,null,null,null,null,null,null,null,null,null,null,null,null,null,null,null,null,null,null,null,null,null,null,null,null,null,null,null,null,null,null,null,null,null,null,null,null,0]
[null,null,null,null,null,null,null,null,null,null,null,null,null,null,null,null,null,null,null,null,null,null,null,null,null,null,null,null,null,null,null,null,null,null,null,null,null,null,null,null,null,null,null,null,null,null,null,null,null,null,null,null,null,null,null,null,null,null,null,null,null,null,null,null,null,null,null,null,null,null,null,null,null,null,null,null,null,null,null,null,null,null,null,null,null,null,null,null,null,null,null,null,null,null,null,null,null,null,null,null,null,null,null,null,null,null,null,null,null,null,null,null,null,null,null,null,null,null,null,null,null,null,null,null,null,null,null,null,null,null,null,null,null,null,null,null,null,null,null,null,null,null,null,null,null,null,null,null,null,null,null,null,null,null,null,null,null,null,null,null,null,null,null,null,null,null,null,null,null,null,null,null,null,null,null,null,null,null,null,null,null,null,null,null,null,null,null,null,null,null,null,null,null,null,null,null,null,null,null,0]
[1,1,1,1,1,1,1,1,1,1,1,1,1,1,1,1,1,1,1,1,1,1,1,1,1,1,1,1,1,1,1,1,{"$f":"IF(rngShowHidden,1,IF(AG6=1,1,0))","v":1},{"$f":"IF(rngShowHidden,1,IF(AH6=1,1,0))","v":1},{"$f":"IF(rngShowHidden,1,IF(AI6=1,1,0))","v":1},{"$f":"IF(rngShowHidden,1,0)","v":0},0,0,0,0,0,0,0,0,0,0,0,0,0,0,0,0,0,0,0,0,0,0,0,0,0,0,0,0,0,0,0,{"$f":"IF(rngShowHidden,1,0)","v":0},0,0,0,0,0,0,0,0,0,0,0,0,0,0,0,0,0,0,0,0,0,0,0,0,0,0,0,0,0,0,0,{"$f":"IF(rngShowHidden,1,0)","v":0},0,0,0,0,0,0,0,0,0,0,0,0,0,0,0,0,0,0,0,0,0,0,0,0,0,0,0,0,0,0,0,{"$f":"IF(rngShowHidden,1,0)","v":0},0,0,0,0,0,0,0,0,0,0,0,0,0,0,0,0,0,0,0,0,0,0,0,0,0,0,0,0,0,0,0,{"$f":"IF(rngShowHidden,1,0)","v":0},0,0,0,0,0,0,0,0,0,0,0,0,0,0,0,0,0,0,0,0,0,0,0,0,0,0,0,0,0,0,0,0,0,0,0,0]

{"sheet":"Настройки","index":1,"n_rows":14,"n_cols":34,"rows_kept":14,"cut":false,"hidden":false,"merged":[]}
["Праздники",null,"Смена","Название","Часы","0","1","2","3","4","5","6","7","8","9","10","11","12","13","14","15","16","17","18","19","20","21","22","23","Рабочий",null,"Показать скрытое",null,"Версия"]
["2015-01-01",null,"07-16","Утро",8,null,null,null,null,null,null,null,1,1,1,1,1,1,1,1,1,null,null,null,null,null,null,null,null,true,null,0,null,"1.00 от 26.01.2015"]
["2015-01-02",null,"09-18","День",8,null,null,null,null,null,null,null,null,null,1,1,1,1,1,1,1,1,1,null,null,null,null,null,null,true]
["2015-01-05",null,"11-20","Вечер",8,null,null,null,null,null,null,null,null,null,null,null,1,1,1,1,1,1,1,1,1,null,null,null,null,true]
["2015-01-06",null,"19-07","Ночь",11,1,1,1,1,1,1,1,null,null,null,null,null,null,null,null,null,null,null,null,1,1,1,1,1,true]
["2015-01-07",null,"07-19","Супер-день",11,null,null,null,null,null,null,null,1,1,1,1,1,1,1,1,1,1,1,1,null,null,null,null,null,true]
["2015-01-08",null,"10-15","Мини-день",5,null,null,null,null,null,null,null,null,null,null,1,1,1,1,1,null,null,null,null,null,null,null,null,null,true]
["2015-01-09",null,"Б","Болезнь",0,null,null,null,null,null,null,null,null,null,null,null,null,null,null,null,null,null,null,null,null,null,null,null,null,false]
["2015-02-23",null,"О","Отпуск",0,null,null,null,null,null,null,null,null,null,null,null,null,null,null,null,null,null,null,null,null,null,null,null,null,false]
["2015-03-09",null,"В","Выходной",0,null,null,null,null,null,null,null,null,null,null,null,null,null,null,null,null,null,null,null,null,null,null,null,null,false]
["2015-05-01"]
["2015-05-04"]
["2015-05-11"]
["2015-11-04"]